Workbook

Sheet Guidance
C1: THE CONTENTS OF THE WORKBOOK INCLUDE ESTIMATES
C2: BASED ON SMALL SAMPLE SIZES WHICH MAY BE UNRELIABLE
C3: THEY ARE PROVIDED ON A CAVEAT EMPTOR BASIS
G5: Users should follow the guidelines set out in general terms below
G6: and in more detail in the Working Futures technical documentation available on line at:
G7: https://www.gov.uk/government/publications/uk-labour-market-projections-2014-to-2024
G9: If in doubt about what to do please contact:
G11: UKCES: email: working.futures@ukces.org.uk
G12: All other enquiries: Rob Wilson, IER, University of Warwick, email: r.a.wilson@warwick.ac.uk, tel: 024 7652 3530
G14: Copyright: Warwick Institute for Employment Research / Cambridge Econometrics, 2015
G17: REPORTING
G18: The projections presented in this Workbook are calculated from a number of different data sources, using
G19: a variety of econometric and statistical techniques. As a result, precise margins of error cannot be assigned
G20: to the estimates. For further details, see the Working Futures Technical Report.
G22: However, as a general rule of thumb, it is not advisable to use any statistics or analyses in published reports etc which are not
G23: based on data for at least 10,000 individuals. This should provide a reasonable degree of statistical robustness to
G24: the estimates whether historic or forecast.
G26: For unpublished analyses, a more lenient criterion can be used. However, the uncertainties associated with
G27: projections involving fewer than 1,000 individuals are probably too great to make such estimates useful.
G28: However, there is inevitably some degree of judgement required on the part of the researcher.
G30: For cases in between 1,000 and 10,000 individuals, it is difficult to prescribe general rules, and an element of
G31: judgement by on behalf of the user is needed.
G33: Thus, in summary, CE/IER advise:
G35: PUBLISHED ANALYSIS: Ideally, a minimum of 10,000 individuals per cell
G36: UNPUBLISHED ANALYSIS: A minimum of 1,000 individuals per cell

Sheet Info
A1: North West
A2: c152 | B2: <-MDM forecast identifier
A3: Occupational forecast: Saturday, 23 January 2016 at 03:23

Sheet Table 6.x.2a CD
A1: Table 6.x.2a | B1: Employment Status
A2: =names!A3 -> All industries | E2: 000s | I2: Labels for graphs (DO NOT REMOVE!) | M2: - for :- | N2: Figure 6.x.7
A3: =All!P7 -> 2004 | N3: Figure 6.x.8
A4: Employment by Gender | B4: FT | C4: =I4 -> PT 2004 | D4: SE | E4: Total | I4: =CONCATENATE(" PT ",A3) -> PT 2004 | K4: =CONCATENATE(" PT ",All!I7,"-",RIGHT(TEXT(A3,"0"),2)) -> PT 1997-04 | N4: Figure 6.x.9
A5: Male employment | B5: =MalesFT!$P$8/1000 -> 1287.063 | C5: =MalesPT!$P$8/1000 -> 227.754 | D5: =MalesSE!$P$8/1000 -> 247.3 | E5: =Males!$P$8/1000 -> 1762.117
A6: Female employment | B6: =FemalesFT!$P$8/1000 -> 773.309 | C6: =FemalesPT!$P$8/1000 -> 746.349 | D6: =FemalesSE!$P$8/1000 -> 103.651 | E6: =Females!$P$8/1000 -> 1623.309
A7: Total employment | B7: =FT!$P$8/1000 -> 2060.372 | C7: =PT!$P$8/1000 -> 974.103 | D7: =SE!$P$8/1000 -> 350.951 | E7: =All!$P$8/1000 -> 3385.426
A9: =All!U7 -> 2009
A10: Employment by Gender | B10: FT | C10: =I10 -> PT 2009 | D10: SE | E10: Total | I10: =CONCATENATE(" PT ",A9) -> PT 2009 | K10: =CONCATENATE(" PT ",A3,"-",RIGHT(TEXT(A9,"0"),2)) -> PT 2004-09
A11: Male employment | B11: =MalesFT!$U$8/1000 -> 1302.703 | C11: =MalesPT!$U$8/1000 -> 238.235 | D11: =MalesSE!$U$8/1000 -> 255.417 | E11: =Males!$U$8/1000 -> 1796.355
A12: Female employment | B12: =FemalesFT!$U$8/1000 -> 792.437 | C12: =FemalesPT!$U$8/1000 -> 729.74 | D12: =FemalesSE!$U$8/1000 -> 99.091 | E12: =Females!$U$8/1000 -> 1621.268
A13: Total employment | B13: =FT!$U$8/1000 -> 2095.14 | C13: =PT!$U$8/1000 -> 967.975 | D13: =SE!$U$8/1000 -> 354.508 | E13: =All!$U$8/1000 -> 3417.623
A15: =All!Z7 -> 2014
A16: Employment by Gender | B16: FT | C16: =I16 -> PT 2014 | D16: SE | E16: Total | I16: =CONCATENATE(" PT ",A15) -> PT 2014 | K16: =CONCATENATE(" PT ",A9,"-",RIGHT(TEXT(A15,"0"),2)) -> PT 2009-14
A17: Male employment | B17: =MalesFT!$Z$8/1000 -> 1340.129 | C17: =MalesPT!$Z$8/1000 -> 257.56 | D17: =MalesSE!$Z$8/1000 -> 301.473 | E17: =Males!$Z$8/1000 -> 1899.162
A18: Female employment | B18: =FemalesFT!$Z$8/1000 -> 818.149 | C18: =FemalesPT!$Z$8/1000 -> 765.081 | D18: =FemalesSE!$Z$8/1000 -> 145.049 | E18: =Females!$Z$8/1000 -> 1728.279
A19: Total employment | B19: =FT!$Z$8/1000 -> 2158.278 | C19: =PT!$Z$8/1000 -> 1022.641 | D19: =SE!$Z$8/1000 -> 446.522 | E19: =All!$Z$8/1000 -> 3627.441
A21: =All!AE7 -> 2019
A22: Employment by Gender | B22: FT | C22: =I22 -> PT 2019 | D22: SE | E22: Total | I22: =CONCATENATE(" PT ",A21) -> PT 2019 | K22: =CONCATENATE(" PT ",A15,"-",RIGHT(TEXT(A21,"0"),2)) -> PT 2014-19
A23: Male employment | B23: =MalesFT!$AE$8/1000 -> 1369.795 | C23: =MalesPT!$AE$8/1000 -> 282.194 | D23: =MalesSE!$AE$8/1000 -> 299.767 | E23: =Males!$AE$8/1000 -> 1951.756
A24: Female employment | B24: =FemalesFT!$AE$8/1000 -> 842.667 | C24: =FemalesPT!$AE$8/1000 -> 784.236 | D24: =FemalesSE!$AE$8/1000 -> 144.254 | E24: =Females!$AE$8/1000 -> 1771.157
A25: Total employment | B25: =FT!$AE$8/1000 -> 2212.462 | C25: =PT!$AE$8/1000 -> 1066.43 | D25: =SE!$AE$8/1000 -> 444.021 | E25: =All!$AE$8/1000 -> 3722.913
A27: =All!AJ7 -> 2024
A28: Employment by Gender | B28: FT | C28: =I28 -> PT 2024 | D28: SE | E28: Total | I28: =CONCATENATE(" PT ",A27) -> PT 2024 | K28: =CONCATENATE(" PT ",A21,"-",RIGHT(TEXT(A27,"0"),2)) -> PT 2019-24
A29: Male employment | B29: =MalesFT!$AJ$8/1000 -> 1364.633 | C29: =MalesPT!$AJ$8/1000 -> 306.714 | D29: =MalesSE!$AJ$8/1000 -> 291.355 | E29: =Males!$AJ$8/1000 -> 1962.702
A30: Female employment | B30: =FemalesFT!$AJ$8/1000 -> 865.615 | C30: =FemalesPT!$AJ$8/1000 -> 806.081 | D30: =FemalesSE!$AJ$8/1000 -> 143.074 | E30: =Females!$AJ$8/1000 -> 1814.77
A31: Total employment | B31: =FT!$AJ$8/1000 -> 2230.248 | C31: =PT!$AJ$8/1000 -> 1112.795 | D31: =SE!$AJ$8/1000 -> 434.429 | E31: =All!$AJ$8/1000 -> 3777.472
A34: Table 6.x.2a | B34: Employment Status
A35: =names!A4 -> Agriculture | E35: 000s
A36: =A$3 -> 2004
A37: Employment by Gender | B37: FT | C37: PT | D37: SE | E37: Total
A38: Male employment | B38: =MalesFT!$P$36/1000 -> 6.987 | C38: =MalesPT!$P$36/1000 -> 0 | D38: =MalesSE!$P$36/1000 -> 6.955 | E38: =Males!$P$36/1000 -> 13.942
A39: Female employment | B39: =FemalesFT!$P$36/1000 -> 1.113 | C39: =FemalesPT!$P$36/1000 -> 0.99 | D39: =FemalesSE!$P$36/1000 -> 4.139 | E39: =Females!$P$36/1000 -> 6.242
A40: Total employment | B40: =FT!$P$36/1000 -> 8.1 | C40: =PT!$P$36/1000 -> 0.99 | D40: =SE!$P$36/1000 -> 11.094 | E40: =All!$P$36/1000 -> 20.184
A42: =A$9 -> 2009
A43: Employment by Gender | B43: FT | C43: PT | D43: SE | E43: Total
A44: Male employment | B44: =MalesFT!$U$36/1000 -> 8.889 | C44: =MalesPT!$U$36/1000 -> 3.19 | D44: =MalesSE!$U$36/1000 -> 8.919 | E44: =Males!$U$36/1000 -> 20.998
A45: Female employment | B45: =FemalesFT!$U$36/1000 -> 1.037 | C45: =FemalesPT!$U$36/1000 -> 1.977 | D45: =FemalesSE!$U$36/1000 -> 3.112 | E45: =Females!$U$36/1000 -> 6.126
A46: Total employment | B46: =FT!$U$36/1000 -> 9.926 | C46: =PT!$U$36/1000 -> 5.167 | D46: =SE!$U$36/1000 -> 12.031 | E46: =All!$U$36/1000 -> 27.124
A48: =A$15 -> 2014
A49: Employment by Gender | B49: FT | C49: PT | D49: SE | E49: Total
A50: Male employment | B50: =MalesFT!$Z$36/1000 -> 14.071 | C50: =MalesPT!$Z$36/1000 -> 1.999 | D50: =MalesSE!$Z$36/1000 -> 9.932 | E50: =Males!$Z$36/1000 -> 26.002
A51: Female employment | B51: =FemalesFT!$Z$36/1000 -> 5.981 | C51: =FemalesPT!$Z$36/1000 -> 2.949 | D51: =FemalesSE!$Z$36/1000 -> 6.293 | E51: =Females!$Z$36/1000 -> 15.223
A52: Total employment | B52: =FT!$Z$36/1000 -> 20.052 | C52: =PT!$Z$36/1000 -> 4.948 | D52: =SE!$Z$36/1000 -> 16.225 | E52: =All!$Z$36/1000 -> 41.225
A54: =A$21 -> 2019
A55: Employment by Gender | B55: FT | C55: PT | D55: SE | E55: Total
A56: Male employment | B56: =MalesFT!$AE$36/1000 -> 11.517 | C56: =MalesPT!$AE$36/1000 -> 1.821 | D56: =MalesSE!$AE$36/1000 -> 8.135 | E56: =Males!$AE$36/1000 -> 21.473
A57: Female employment | B57: =FemalesFT!$AE$36/1000 -> 5.388 | C57: =FemalesPT!$AE$36/1000 -> 2.849 | D57: =FemalesSE!$AE$36/1000 -> 5.322 | E57: =Females!$AE$36/1000 -> 13.559
A58: Total employment | B58: =FT!$AE$36/1000 -> 16.905 | C58: =PT!$AE$36/1000 -> 4.67 | D58: =SE!$AE$36/1000 -> 13.457 | E58: =All!$AE$36/1000 -> 35.032
A60: =A$27 -> 2024
A61: Employment by Gender | B61: FT | C61: PT | D61: SE | E61: Total
A62: Male employment | B62: =MalesFT!$AJ$36/1000 -> 10.182 | C62: =MalesPT!$AJ$36/1000 -> 1.841 | D62: =MalesSE!$AJ$36/1000 -> 7.15 | E62: =Males!$AJ$36/1000 -> 19.173
A63: Female employment | B63: =FemalesFT!$AJ$36/1000 -> 5.443 | C63: =FemalesPT!$AJ$36/1000 -> 3.103 | D63: =FemalesSE!$AJ$36/1000 -> 4.933 | E63: =Females!$AJ$36/1000 -> 13.479
A64: Total employment | B64: =FT!$AJ$36/1000 -> 15.625 | C64: =PT!$AJ$36/1000 -> 4.944 | D64: =SE!$AJ$36/1000 -> 12.083 | E64: =All!$AJ$36/1000 -> 32.652
A67: Table 6.x.2a | B67: Employment Status
A68: =names!A5 -> Mining and quarrying | E68: 000s
A69: =A$3 -> 2004
A70: Employment by Gender | B70: FT | C70: PT | D70: SE | E70: Total
A71: Male employment | B71: =MalesFT!$P$64/1000 -> 1.895 | C71: =MalesPT!$P$64/1000 -> 0.112 | D71: =MalesSE!$P$64/1000 -> 0 | E71: =Males!$P$64/1000 -> 2.007
A72: Female employment | B72: =FemalesFT!$P$64/1000 -> 0.001 | C72: =FemalesPT!$P$64/1000 -> 0.195 | D72: =FemalesSE!$P$64/1000 -> 0.054 | E72: =Females!$P$64/1000 -> 0.25
A73: Total employment | B73: =FT!$P$64/1000 -> 1.896 | C73: =PT!$P$64/1000 -> 0.307 | D73: =SE!$P$64/1000 -> 0.054 | E73: =All!$P$64/1000 -> 2.257
A75: =A$9 -> 2009
A76: Employment by Gender | B76: FT | C76: PT | D76: SE | E76: Total
A77: Male employment | B77: =MalesFT!$U$64/1000 -> 0.972 | C77: =MalesPT!$U$64/1000 -> 0.109 | D77: =MalesSE!$U$64/1000 -> 0 | E77: =Males!$U$64/1000 -> 1.081
A78: Female employment | B78: =FemalesFT!$U$64/1000 -> 0 | C78: =FemalesPT!$U$64/1000 -> 0.001 | D78: =FemalesSE!$U$64/1000 -> 0.103 | E78: =Females!$U$64/1000 -> 0.104
A79: Total employment | B79: =FT!$U$64/1000 -> 0.972 | C79: =PT!$U$64/1000 -> 0.11 | D79: =SE!$U$64/1000 -> 0.103 | E79: =All!$U$64/1000 -> 1.185
A81: =A$15 -> 2014
A82: Employment by Gender | B82: FT | C82: PT | D82: SE | E82: Total
A83: Male employment | B83: =MalesFT!$Z$64/1000 -> 1.014 | C83: =MalesPT!$Z$64/1000 -> 0.109 | D83: =MalesSE!$Z$64/1000 -> 0 | E83: =Males!$Z$64/1000 -> 1.123
A84: Female employment | B84: =FemalesFT!$Z$64/1000 -> 0 | C84: =FemalesPT!$Z$64/1000 -> 0.001 | D84: =FemalesSE!$Z$64/1000 -> 0 | E84: =Females!$Z$64/1000 -> 0.001
A85: Total employment | B85: =FT!$Z$64/1000 -> 1.014 | C85: =PT!$Z$64/1000 -> 0.11 | D85: =SE!$Z$64/1000 -> 0 | E85: =All!$Z$64/1000 -> 1.124
A87: =A$21 -> 2019
A88: Employment by Gender | B88: FT | C88: PT | D88: SE | E88: Total
A89: Male employment | B89: =MalesFT!$AE$64/1000 -> 1.313 | C89: =MalesPT!$AE$64/1000 -> 0.151 | D89: =MalesSE!$AE$64/1000 -> 0 | E89: =Males!$AE$64/1000 -> 1.464
A90: Female employment | B90: =FemalesFT!$AE$64/1000 -> 0.001 | C90: =FemalesPT!$AE$64/1000 -> 0.001 | D90: =FemalesSE!$AE$64/1000 -> 0 | E90: =Females!$AE$64/1000 -> 0.002
A91: Total employment | B91: =FT!$AE$64/1000 -> 1.314 | C91: =PT!$AE$64/1000 -> 0.152 | D91: =SE!$AE$64/1000 -> 0 | E91: =All!$AE$64/1000 -> 1.466
A93: =A$27 -> 2024
A94: Employment by Gender | B94: FT | C94: PT | D94: SE | E94: Total
A95: Male employment | B95: =MalesFT!$AJ$64/1000 -> 1.071 | C95: =MalesPT!$AJ$64/1000 -> 0.164 | D95: =MalesSE!$AJ$64/1000 -> 0 | E95: =Males!$AJ$64/1000 -> 1.235
A96: Female employment | B96: =FemalesFT!$AJ$64/1000 -> 0 | C96: =FemalesPT!$AJ$64/1000 -> 0.001 | D96: =FemalesSE!$AJ$64/1000 -> 0 | E96: =Females!$AJ$64/1000 -> 0.001
A97: Total employment | B97: =FT!$AJ$64/1000 -> 1.071 | C97: =PT!$AJ$64/1000 -> 0.165 | D97: =SE!$AJ$64/1000 -> 0 | E97: =All!$AJ$64/1000 -> 1.236
A100: Table 6.x.2a | B100: Employment Status
A101: =names!A6 -> Food drink and tobacco | E101: 000s
A102: =A$3 -> 2004
A103: Employment by Gender | B103: FT | C103: PT | D103: SE | E103: Total
A104: Male employment | B104: =MalesFT!$P$92/1000 -> 38.714 | C104: =MalesPT!$P$92/1000 -> 0.714 | D104: =MalesSE!$P$92/1000 -> 0.776 | E104: =Males!$P$92/1000 -> 40.204
A105: Female employment | B105: =FemalesFT!$P$92/1000 -> 15.667 | C105: =FemalesPT!$P$92/1000 -> 4.363 | D105: =FemalesSE!$P$92/1000 -> 0.183 | E105: =Females!$P$92/1000 -> 20.213
A106: Total employment | B106: =FT!$P$92/1000 -> 54.381 | C106: =PT!$P$92/1000 -> 5.077 | D106: =SE!$P$92/1000 -> 0.959 | E106: =All!$P$92/1000 -> 60.417
A108: =A$9 -> 2009
A109: Employment by Gender | B109: FT | C109: PT | D109: SE | E109: Total
A110: Male employment | B110: =MalesFT!$U$92/1000 -> 29.109 | C110: =MalesPT!$U$92/1000 -> 1.015 | D110: =MalesSE!$U$92/1000 -> 0.264 | E110: =Males!$U$92/1000 -> 30.388
A111: Female employment | B111: =FemalesFT!$U$92/1000 -> 12.435 | C111: =FemalesPT!$U$92/1000 -> 5.439 | D111: =FemalesSE!$U$92/1000 -> 0.415 | E111: =Females!$U$92/1000 -> 18.289
A112: Total employment | B112: =FT!$U$92/1000 -> 41.544 | C112: =PT!$U$92/1000 -> 6.454 | D112: =SE!$U$92/1000 -> 0.679 | E112: =All!$U$92/1000 -> 48.677
A114: =A$15 -> 2014
A115: Employment by Gender | B115: FT | C115: PT | D115: SE | E115: Total
A116: Male employment | B116: =MalesFT!$Z$92/1000 -> 33.045 | C116: =MalesPT!$Z$92/1000 -> 1.992 | D116: =MalesSE!$Z$92/1000 -> 0.13 | E116: =Males!$Z$92/1000 -> 35.167
A117: Female employment | B117: =FemalesFT!$Z$92/1000 -> 13.566 | C117: =FemalesPT!$Z$92/1000 -> 3.346 | D117: =FemalesSE!$Z$92/1000 -> 0.149 | E117: =Females!$Z$92/1000 -> 17.061
A118: Total employment | B118: =FT!$Z$92/1000 -> 46.611 | C118: =PT!$Z$92/1000 -> 5.338 | D118: =SE!$Z$92/1000 -> 0.279 | E118: =All!$Z$92/1000 -> 52.228
A120: =A$21 -> 2019
A121: Employment by Gender | B121: FT | C121: PT | D121: SE | E121: Total
A122: Male employment | B122: =MalesFT!$AE$92/1000 -> 32.387 | C122: =MalesPT!$AE$92/1000 -> 2.295 | D122: =MalesSE!$AE$92/1000 -> 0.129 | E122: =Males!$AE$92/1000 -> 34.811
A123: Female employment | B123: =FemalesFT!$AE$92/1000 -> 13.475 | C123: =FemalesPT!$AE$92/1000 -> 3.403 | D123: =FemalesSE!$AE$92/1000 -> 0.147 | E123: =Females!$AE$92/1000 -> 17.025
A124: Total employment | B124: =FT!$AE$92/1000 -> 45.862 | C124: =PT!$AE$92/1000 -> 5.698 | D124: =SE!$AE$92/1000 -> 0.276 | E124: =All!$AE$92/1000 -> 51.836
A126: =A$27 -> 2024
A127: Employment by Gender | B127: FT | C127: PT | D127: SE | E127: Total
A128: Male employment | B128: =MalesFT!$AJ$92/1000 -> 28.69 | C128: =MalesPT!$AJ$92/1000 -> 2.416 | D128: =MalesSE!$AJ$92/1000 -> 0.114 | E128: =Males!$AJ$92/1000 -> 31.22
A129: Female employment | B129: =FemalesFT!$AJ$92/1000 -> 12.111 | C129: =FemalesPT!$AJ$92/1000 -> 3.152 | D129: =FemalesSE!$AJ$92/1000 -> 0.132 | E129: =Females!$AJ$92/1000 -> 15.395
A130: Total employment | B130: =FT!$AJ$92/1000 -> 40.801 | C130: =PT!$AJ$92/1000 -> 5.568 | D130: =SE!$AJ$92/1000 -> 0.246 | E130: =All!$AJ$92/1000 -> 46.615
A133: Table 6.x.2a | B133: Employment Status
A134: =names!A7 -> Engineering | E134: 000s
A135: =A$3 -> 2004
A136: Employment by Gender | B136: FT | C136: PT | D136: SE | E136: Total
A137: Male employment | B137: =MalesFT!$P$120/1000 -> 36.918 | C137: =MalesPT!$P$120/1000 -> 0.635 | D137: =MalesSE!$P$120/1000 -> 0.342 | E137: =Males!$P$120/1000 -> 37.895
A138: Female employment | B138: =FemalesFT!$P$120/1000 -> 9.576 | C138: =FemalesPT!$P$120/1000 -> 1.842 | D138: =FemalesSE!$P$120/1000 -> 0.205 | E138: =Females!$P$120/1000 -> 11.623
A139: Total employment | B139: =FT!$P$120/1000 -> 46.494 | C139: =PT!$P$120/1000 -> 2.477 | D139: =SE!$P$120/1000 -> 0.547 | E139: =All!$P$120/1000 -> 49.518
A141: =A$9 -> 2009
A142: Employment by Gender | B142: FT | C142: PT | D142: SE | E142: Total
A143: Male employment | B143: =MalesFT!$U$120/1000 -> 24.55 | C143: =MalesPT!$U$120/1000 -> 0.389 | D143: =MalesSE!$U$120/1000 -> 0.58 | E143: =Males!$U$120/1000 -> 25.519
A144: Female employment | B144: =FemalesFT!$U$120/1000 -> 5.255 | C144: =FemalesPT!$U$120/1000 -> 0.838 | D144: =FemalesSE!$U$120/1000 -> 0.08 | E144: =Females!$U$120/1000 -> 6.173
A145: Total employment | B145: =FT!$U$120/1000 -> 29.805 | C145: =PT!$U$120/1000 -> 1.227 | D145: =SE!$U$120/1000 -> 0.66 | E145: =All!$U$120/1000 -> 31.692
A147: =A$15 -> 2014
A148: Employment by Gender | B148: FT | C148: PT | D148: SE | E148: Total
A149: Male employment | B149: =MalesFT!$Z$120/1000 -> 26.724 | C149: =MalesPT!$Z$120/1000 -> 0.541 | D149: =MalesSE!$Z$120/1000 -> 0.498 | E149: =Males!$Z$120/1000 -> 27.763
A150: Female employment | B150: =FemalesFT!$Z$120/1000 -> 5.243 | C150: =FemalesPT!$Z$120/1000 -> 0.796 | D150: =FemalesSE!$Z$120/1000 -> 0.035 | E150: =Females!$Z$120/1000 -> 6.074
A151: Total employment | B151: =FT!$Z$120/1000 -> 31.967 | C151: =PT!$Z$120/1000 -> 1.337 | D151: =SE!$Z$120/1000 -> 0.533 | E151: =All!$Z$120/1000 -> 33.837
A153: =A$21 -> 2019
A154: Employment by Gender | B154: FT | C154: PT | D154: SE | E154: Total
A155: Male employment | B155: =MalesFT!$AE$120/1000 -> 24.443 | C155: =MalesPT!$AE$120/1000 -> 0.65 | D155: =MalesSE!$AE$120/1000 -> 0.504 | E155: =Males!$AE$120/1000 -> 25.597
A156: Female employment | B156: =FemalesFT!$AE$120/1000 -> 5.061 | C156: =FemalesPT!$AE$120/1000 -> 0.844 | D156: =FemalesSE!$AE$120/1000 -> 0.037 | E156: =Females!$AE$120/1000 -> 5.942
A157: Total employment | B157: =FT!$AE$120/1000 -> 29.504 | C157: =PT!$AE$120/1000 -> 1.494 | D157: =SE!$AE$120/1000 -> 0.541 | E157: =All!$AE$120/1000 -> 31.539
A159: =A$27 -> 2024
A160: Employment by Gender | B160: FT | C160: PT | D160: SE | E160: Total
A161: Male employment | B161: =MalesFT!$AJ$120/1000 -> 20.163 | C161: =MalesPT!$AJ$120/1000 -> 0.724 | D161: =MalesSE!$AJ$120/1000 -> 0.48 | E161: =Males!$AJ$120/1000 -> 21.367
A162: Female employment | B162: =FemalesFT!$AJ$120/1000 -> 4.354 | C162: =FemalesPT!$AJ$120/1000 -> 0.824 | D162: =FemalesSE!$AJ$120/1000 -> 0.036 | E162: =Females!$AJ$120/1000 -> 5.214
A163: Total employment | B163: =FT!$AJ$120/1000 -> 24.517 | C163: =PT!$AJ$120/1000 -> 1.548 | D163: =SE!$AJ$120/1000 -> 0.516 | E163: =All!$AJ$120/1000 -> 26.581
A166: Table 6.x.2a | B166: Employment Status
A167: =names!A8 -> Rest of manufacturing | E167: 000s
A168: =A$3 -> 2004
A169: Employment by Gender | B169: FT | C169: PT | D169: SE | E169: Total
A170: Male employment | B170: =MalesFT!$P$148/1000 -> 221.973 | C170: =MalesPT!$P$148/1000 -> 4.641 | D170: =MalesSE!$P$148/1000 -> 12.869 | E170: =Males!$P$148/1000 -> 239.483
A171: Female employment | B171: =FemalesFT!$P$148/1000 -> 51.771 | C171: =FemalesPT!$P$148/1000 -> 16.646 | D171: =FemalesSE!$P$148/1000 -> 2.622 | E171: =Females!$P$148/1000 -> 71.039
A172: Total employment | B172: =FT!$P$148/1000 -> 273.744 | C172: =PT!$P$148/1000 -> 21.287 | D172: =SE!$P$148/1000 -> 15.491 | E172: =All!$P$148/1000 -> 310.522
A174: =A$9 -> 2009
A175: Employment by Gender | B175: FT | C175: PT | D175: SE | E175: Total
A176: Male employment | B176: =MalesFT!$U$148/1000 -> 196.23 | C176: =MalesPT!$U$148/1000 -> 4.234 | D176: =MalesSE!$U$148/1000 -> 15.714 | E176: =Males!$U$148/1000 -> 216.178
A177: Female employment | B177: =FemalesFT!$U$148/1000 -> 42.792 | C177: =FemalesPT!$U$148/1000 -> 9.75 | D177: =FemalesSE!$U$148/1000 -> 5.908 | E177: =Females!$U$148/1000 -> 58.45
A178: Total employment | B178: =FT!$U$148/1000 -> 239.022 | C178: =PT!$U$148/1000 -> 13.984 | D178: =SE!$U$148/1000 -> 21.622 | E178: =All!$U$148/1000 -> 274.628
A180: =A$15 -> 2014
A181: Employment by Gender | B181: FT | C181: PT | D181: SE | E181: Total
A182: Male employment | B182: =MalesFT!$Z$148/1000 -> 172.332 | C182: =MalesPT!$Z$148/1000 -> 5.605 | D182: =MalesSE!$Z$148/1000 -> 14.347 | E182: =Males!$Z$148/1000 -> 192.284
A183: Female employment | B183: =FemalesFT!$Z$148/1000 -> 35.275 | C183: =FemalesPT!$Z$148/1000 -> 8.713 | D183: =FemalesSE!$Z$148/1000 -> 3.96 | E183: =Females!$Z$148/1000 -> 47.948
A184: Total employment | B184: =FT!$Z$148/1000 -> 207.607 | C184: =PT!$Z$148/1000 -> 14.318 | D184: =SE!$Z$148/1000 -> 18.307 | E184: =All!$Z$148/1000 -> 240.232
A186: =A$21 -> 2019
A187: Employment by Gender | B187: FT | C187: PT | D187: SE | E187: Total
A188: Male employment | B188: =MalesFT!$AE$148/1000 -> 167.859 | C188: =MalesPT!$AE$148/1000 -> 6.335 | D188: =MalesSE!$AE$148/1000 -> 15.106 | E188: =Males!$AE$148/1000 -> 189.3
A189: Female employment | B189: =FemalesFT!$AE$148/1000 -> 35.335 | C189: =FemalesPT!$AE$148/1000 -> 8.938 | D189: =FemalesSE!$AE$148/1000 -> 3.858 | E189: =Females!$AE$148/1000 -> 48.131
A190: Total employment | B190: =FT!$AE$148/1000 -> 203.194 | C190: =PT!$AE$148/1000 -> 15.273 | D190: =SE!$AE$148/1000 -> 18.964 | E190: =All!$AE$148/1000 -> 237.431
A192: =A$27 -> 2024
A193: Employment by Gender | B193: FT | C193: PT | D193: SE | E193: Total
A194: Male employment | B194: =MalesFT!$AJ$148/1000 -> 152.466 | C194: =MalesPT!$AJ$148/1000 -> 6.744 | D194: =MalesSE!$AJ$148/1000 -> 15.034 | E194: =Males!$AJ$148/1000 -> 174.244
A195: Female employment | B195: =FemalesFT!$AJ$148/1000 -> 33.789 | C195: =FemalesPT!$AJ$148/1000 -> 8.625 | D195: =FemalesSE!$AJ$148/1000 -> 3.479 | E195: =Females!$AJ$148/1000 -> 45.893
A196: Total employment | B196: =FT!$AJ$148/1000 -> 186.255 | C196: =PT!$AJ$148/1000 -> 15.369 | D196: =SE!$AJ$148/1000 -> 18.513 | E196: =All!$AJ$148/1000 -> 220.137
A199: Table 6.x.2a | B199: Employment Status
A200: =names!A9 -> Electricity and gas | E200: 000s
A201: =A$3 -> 2004
A202: Employment by Gender | B202: FT | C202: PT | D202: SE | E202: Total
A203: Male employment | B203: =MalesFT!$P$176/1000 -> 4.081 | C203: =MalesPT!$P$176/1000 -> 0.084 | D203: =MalesSE!$P$176/1000 -> 0 | E203: =Males!$P$176/1000 -> 4.165
A204: Female employment | B204: =FemalesFT!$P$176/1000 -> 1.113 | C204: =FemalesPT!$P$176/1000 -> 0 | D204: =FemalesSE!$P$176/1000 -> 0.03 | E204: =Females!$P$176/1000 -> 1.143
A205: Total employment | B205: =FT!$P$176/1000 -> 5.194 | C205: =PT!$P$176/1000 -> 0.084 | D205: =SE!$P$176/1000 -> 0.03 | E205: =All!$P$176/1000 -> 5.308
A207: =A$9 -> 2009
A208: Employment by Gender | B208: FT | C208: PT | D208: SE | E208: Total
A209: Male employment | B209: =MalesFT!$U$176/1000 -> 8.003 | C209: =MalesPT!$U$176/1000 -> 0.167 | D209: =MalesSE!$U$176/1000 -> 0.001 | E209: =Males!$U$176/1000 -> 8.171
A210: Female employment | B210: =FemalesFT!$U$176/1000 -> 2.094 | C210: =FemalesPT!$U$176/1000 -> 1.165 | D210: =FemalesSE!$U$176/1000 -> 0 | E210: =Females!$U$176/1000 -> 3.259
A211: Total employment | B211: =FT!$U$176/1000 -> 10.097 | C211: =PT!$U$176/1000 -> 1.332 | D211: =SE!$U$176/1000 -> 0.001 | E211: =All!$U$176/1000 -> 11.43
A213: =A$15 -> 2014
A214: Employment by Gender | B214: FT | C214: PT | D214: SE | E214: Total
A215: Male employment | B215: =MalesFT!$Z$176/1000 -> 10.008 | C215: =MalesPT!$Z$176/1000 -> 0.084 | D215: =MalesSE!$Z$176/1000 -> 0.99 | E215: =Males!$Z$176/1000 -> 11.082
A216: Female employment | B216: =FemalesFT!$Z$176/1000 -> 3.136 | C216: =FemalesPT!$Z$176/1000 -> 0.999 | D216: =FemalesSE!$Z$176/1000 -> 0 | E216: =Females!$Z$176/1000 -> 4.135
A217: Total employment | B217: =FT!$Z$176/1000 -> 13.144 | C217: =PT!$Z$176/1000 -> 1.083 | D217: =SE!$Z$176/1000 -> 0.99 | E217: =All!$Z$176/1000 -> 15.217
A219: =A$21 -> 2019
A220: Employment by Gender | B220: FT | C220: PT | D220: SE | E220: Total
A221: Male employment | B221: =MalesFT!$AE$176/1000 -> 11.171 | C221: =MalesPT!$AE$176/1000 -> 0.07 | D221: =MalesSE!$AE$176/1000 -> 1.081 | E221: =Males!$AE$176/1000 -> 12.322
A222: Female employment | B222: =FemalesFT!$AE$176/1000 -> 3.064 | C222: =FemalesPT!$AE$176/1000 -> 1.059 | D222: =FemalesSE!$AE$176/1000 -> 0 | E222: =Females!$AE$176/1000 -> 4.123
A223: Total employment | B223: =FT!$AE$176/1000 -> 14.235 | C223: =PT!$AE$176/1000 -> 1.129 | D223: =SE!$AE$176/1000 -> 1.081 | E223: =All!$AE$176/1000 -> 16.445
A225: =A$27 -> 2024
A226: Employment by Gender | B226: FT | C226: PT | D226: SE | E226: Total
A227: Male employment | B227: =MalesFT!$AJ$176/1000 -> 11.742 | C227: =MalesPT!$AJ$176/1000 -> 0.042 | D227: =MalesSE!$AJ$176/1000 -> 1.094 | E227: =Males!$AJ$176/1000 -> 12.878
A228: Female employment | B228: =FemalesFT!$AJ$176/1000 -> 2.647 | C228: =FemalesPT!$AJ$176/1000 -> 1.05 | D228: =FemalesSE!$AJ$176/1000 -> 0 | E228: =Females!$AJ$176/1000 -> 3.697
A229: Total employment | B229: =FT!$AJ$176/1000 -> 14.389 | C229: =PT!$AJ$176/1000 -> 1.092 | D229: =SE!$AJ$176/1000 -> 1.094 | E229: =All!$AJ$176/1000 -> 16.575
A232: Table 6.x.2a | B232: Employment Status
A233: =names!A10 -> Water and sewerage | E233: 000s
A234: =A$3 -> 2004
A235: Employment by Gender | B235: FT | C235: PT | D235: SE | E235: Total
A236: Male employment | B236: =MalesFT!$P$204/1000 -> 13.011 | C236: =MalesPT!$P$204/1000 -> 1.652 | D236: =MalesSE!$P$204/1000 -> 1.205 | E236: =Males!$P$204/1000 -> 15.868
A237: Female employment | B237: =FemalesFT!$P$204/1000 -> 2.099 | C237: =FemalesPT!$P$204/1000 -> 0.845 | D237: =FemalesSE!$P$204/1000 -> 0.075 | E237: =Females!$P$204/1000 -> 3.019
A238: Total employment | B238: =FT!$P$204/1000 -> 15.11 | C238: =PT!$P$204/1000 -> 2.497 | D238: =SE!$P$204/1000 -> 1.28 | E238: =All!$P$204/1000 -> 18.887
A240: =A$9 -> 2009
A241: Employment by Gender | B241: FT | C241: PT | D241: SE | E241: Total
A242: Male employment | B242: =MalesFT!$U$204/1000 -> 11.045 | C242: =MalesPT!$U$204/1000 -> 0 | D242: =MalesSE!$U$204/1000 -> 0 | E242: =Males!$U$204/1000 -> 11.045
A243: Female employment | B243: =FemalesFT!$U$204/1000 -> 2.99 | C243: =FemalesPT!$U$204/1000 -> 0.995 | D243: =FemalesSE!$U$204/1000 -> 0.077 | E243: =Females!$U$204/1000 -> 4.062
... 265 more rows

Sheet Table 6.x.2b CD
A1: Table 6.x.2b | B1: Employment Shares
A2: ='Table 6.x.2a CD'!A2 -> All industries | E2: per cent
A3: ='Table 6.x.2a CD'!A3 -> 2004
A4: Employment by Gender | B4: FT | C4: PT | D4: SE | E4: Total
A5: Male employment | B5: ='Table 6.x.2a CD'!B5/'Table 6.x.2a CD'!E7*100 -> 38.01775611 | C5: ='Table 6.x.2a CD'!C5/'Table 6.x.2a CD'!E7*100 -> 6.727484222 | D5: ='Table 6.x.2a CD'!D5/'Table 6.x.2a CD'!E7*100 -> 7.3048414 | E5: ='Table 6.x.2a CD'!E5/'Table 6.x.2a CD'!E7*100 -> 52.05008173
A6: Female employment | B6: ='Table 6.x.2a CD'!B6/'Table 6.x.2a CD'!E7*100 -> 22.84229518 | C6: ='Table 6.x.2a CD'!C6/'Table 6.x.2a CD'!E7*100 -> 22.04594045 | D6: ='Table 6.x.2a CD'!D6/'Table 6.x.2a CD'!E7*100 -> 3.061682636 | E6: ='Table 6.x.2a CD'!E6/'Table 6.x.2a CD'!E7*100 -> 47.94991827
A7: Total employment | B7: ='Table 6.x.2a CD'!B7/'Table 6.x.2a CD'!E7*100 -> 60.86005129 | C7: ='Table 6.x.2a CD'!C7/'Table 6.x.2a CD'!E7*100 -> 28.77342467 | D7: ='Table 6.x.2a CD'!D7/'Table 6.x.2a CD'!E7*100 -> 10.36652404 | E7: ='Table 6.x.2a CD'!E7/'Table 6.x.2a CD'!E7*100 -> 100
A9: ='Table 6.x.2a CD'!A9 -> 2009
A10: Employment by Gender | B10: FT | C10: PT | D10: SE | E10: Total
A11: Male employment | B11: ='Table 6.x.2a CD'!B11/'Table 6.x.2a CD'!E13*100 -> 38.11722358 | C11: ='Table 6.x.2a CD'!C11/'Table 6.x.2a CD'!E13*100 -> 6.970780569 | D11: ='Table 6.x.2a CD'!D11/'Table 6.x.2a CD'!E13*100 -> 7.473527654 | E11: ='Table 6.x.2a CD'!E11/'Table 6.x.2a CD'!E13*100 -> 52.5615318
A12: Female employment | B12: ='Table 6.x.2a CD'!B12/'Table 6.x.2a CD'!E13*100 -> 23.18678801 | C12: ='Table 6.x.2a CD'!C12/'Table 6.x.2a CD'!E13*100 -> 21.35226735 | D12: ='Table 6.x.2a CD'!D12/'Table 6.x.2a CD'!E13*100 -> 2.899412838 | E12: ='Table 6.x.2a CD'!E12/'Table 6.x.2a CD'!E13*100 -> 47.4384682
A13: Total employment | B13: ='Table 6.x.2a CD'!B13/'Table 6.x.2a CD'!E13*100 -> 61.30401159 | C13: ='Table 6.x.2a CD'!C13/'Table 6.x.2a CD'!E13*100 -> 28.32304792 | D13: ='Table 6.x.2a CD'!D13/'Table 6.x.2a CD'!E13*100 -> 10.37294049 | E13: ='Table 6.x.2a CD'!E13/'Table 6.x.2a CD'!E13*100 -> 100
A15: ='Table 6.x.2a CD'!A15 -> 2014
A16: Employment by Gender | B16: FT | C16: PT | D16: SE | E16: Total
A17: Male employment | B17: ='Table 6.x.2a CD'!B17/'Table 6.x.2a CD'!E19*100 -> 36.9441984 | C17: ='Table 6.x.2a CD'!C17/'Table 6.x.2a CD'!E19*100 -> 7.100322238 | D17: ='Table 6.x.2a CD'!D17/'Table 6.x.2a CD'!E19*100 -> 8.310900164 | E17: ='Table 6.x.2a CD'!E17/'Table 6.x.2a CD'!E19*100 -> 52.3554208
A18: Female employment | B18: ='Table 6.x.2a CD'!B18/'Table 6.x.2a CD'!E19*100 -> 22.55443989 | C18: ='Table 6.x.2a CD'!C18/'Table 6.x.2a CD'!E19*100 -> 21.09148019 | D18: ='Table 6.x.2a CD'!D18/'Table 6.x.2a CD'!E19*100 -> 3.99865911 | E18: ='Table 6.x.2a CD'!E18/'Table 6.x.2a CD'!E19*100 -> 47.6445792
A19: Total employment | B19: ='Table 6.x.2a CD'!B19/'Table 6.x.2a CD'!E19*100 -> 59.4986383 | C19: ='Table 6.x.2a CD'!C19/'Table 6.x.2a CD'!E19*100 -> 28.19180243 | D19: ='Table 6.x.2a CD'!D19/'Table 6.x.2a CD'!E19*100 -> 12.30955927 | E19: ='Table 6.x.2a CD'!E19/'Table 6.x.2a CD'!E19*100 -> 100
A21: ='Table 6.x.2a CD'!A21 -> 2019
A22: Employment by Gender | B22: FT | C22: PT | D22: SE | E22: Total
A23: Male employment | B23: ='Table 6.x.2a CD'!B23/'Table 6.x.2a CD'!E25*100 -> 36.79363445 | C23: ='Table 6.x.2a CD'!C23/'Table 6.x.2a CD'!E25*100 -> 7.579924645 | D23: ='Table 6.x.2a CD'!D23/'Table 6.x.2a CD'!E25*100 -> 8.051947494 | E23: ='Table 6.x.2a CD'!E23/'Table 6.x.2a CD'!E25*100 -> 52.42550659
A24: Female employment | B24: ='Table 6.x.2a CD'!B24/'Table 6.x.2a CD'!E25*100 -> 22.63461435 | C24: ='Table 6.x.2a CD'!C24/'Table 6.x.2a CD'!E25*100 -> 21.06511756 | D24: ='Table 6.x.2a CD'!D24/'Table 6.x.2a CD'!E25*100 -> 3.874761511 | E24: ='Table 6.x.2a CD'!E24/'Table 6.x.2a CD'!E25*100 -> 47.57449341
A25: Total employment | B25: ='Table 6.x.2a CD'!B25/'Table 6.x.2a CD'!E25*100 -> 59.42824879 | C25: ='Table 6.x.2a CD'!C25/'Table 6.x.2a CD'!E25*100 -> 28.6450422 | D25: ='Table 6.x.2a CD'!D25/'Table 6.x.2a CD'!E25*100 -> 11.926709 | E25: ='Table 6.x.2a CD'!E25/'Table 6.x.2a CD'!E25*100 -> 100
A27: ='Table 6.x.2a CD'!A27 -> 2024
A28: Employment by Gender | B28: FT | C28: PT | D28: SE | E28: Total
A29: Male employment | B29: ='Table 6.x.2a CD'!B29/'Table 6.x.2a CD'!E31*100 -> 36.12556228 | C29: ='Table 6.x.2a CD'!C29/'Table 6.x.2a CD'!E31*100 -> 8.119557207 | D29: ='Table 6.x.2a CD'!D29/'Table 6.x.2a CD'!E31*100 -> 7.712962532 | E29: ='Table 6.x.2a CD'!E29/'Table 6.x.2a CD'!E31*100 -> 51.95808202
A30: Female employment | B30: ='Table 6.x.2a CD'!B30/'Table 6.x.2a CD'!E31*100 -> 22.91519302 | C30: ='Table 6.x.2a CD'!C30/'Table 6.x.2a CD'!E31*100 -> 21.33916545 | D30: ='Table 6.x.2a CD'!D30/'Table 6.x.2a CD'!E31*100 -> 3.787559511 | E30: ='Table 6.x.2a CD'!E30/'Table 6.x.2a CD'!E31*100 -> 48.04191798
A31: Total employment | B31: ='Table 6.x.2a CD'!B31/'Table 6.x.2a CD'!E31*100 -> 59.0407553 | C31: ='Table 6.x.2a CD'!C31/'Table 6.x.2a CD'!E31*100 -> 29.45872266 | D31: ='Table 6.x.2a CD'!D31/'Table 6.x.2a CD'!E31*100 -> 11.50052204 | E31: ='Table 6.x.2a CD'!E31/'Table 6.x.2a CD'!E31*100 -> 100
A34: Table 6.x.2b | B34: Employment Status
A35: ='Table 6.x.2a CD'!A35 -> Agriculture | E35: per cent
A36: ='Table 6.x.2a CD'!A36 -> 2004
A37: Employment by Gender | B37: FT | C37: PT | D37: SE | E37: Total
A38: Male employment | B38: ='Table 6.x.2a CD'!B38/'Table 6.x.2a CD'!E40*100 -> 34.61652794 | C38: ='Table 6.x.2a CD'!C38/'Table 6.x.2a CD'!E40*100 -> 0 | D38: ='Table 6.x.2a CD'!D38/'Table 6.x.2a CD'!E40*100 -> 34.45798652 | E38: ='Table 6.x.2a CD'!E38/'Table 6.x.2a CD'!E40*100 -> 69.07451447
A39: Female employment | B39: ='Table 6.x.2a CD'!B39/'Table 6.x.2a CD'!E40*100 -> 5.514268728 | C39: ='Table 6.x.2a CD'!C39/'Table 6.x.2a CD'!E40*100 -> 4.904875149 | D39: ='Table 6.x.2a CD'!D39/'Table 6.x.2a CD'!E40*100 -> 20.50634166 | E39: ='Table 6.x.2a CD'!E39/'Table 6.x.2a CD'!E40*100 -> 30.92548553
A40: Total employment | B40: ='Table 6.x.2a CD'!B40/'Table 6.x.2a CD'!E40*100 -> 40.13079667 | C40: ='Table 6.x.2a CD'!C40/'Table 6.x.2a CD'!E40*100 -> 4.904875149 | D40: ='Table 6.x.2a CD'!D40/'Table 6.x.2a CD'!E40*100 -> 54.96432818 | E40: ='Table 6.x.2a CD'!E40/'Table 6.x.2a CD'!E40*100 -> 100
A42: ='Table 6.x.2a CD'!A42 -> 2009
A43: Employment by Gender | B43: FT | C43: PT | D43: SE | E43: Total
A44: Male employment | B44: ='Table 6.x.2a CD'!B44/'Table 6.x.2a CD'!E46*100 -> 32.77171509 | C44: ='Table 6.x.2a CD'!C44/'Table 6.x.2a CD'!E46*100 -> 11.76080224 | D44: ='Table 6.x.2a CD'!D44/'Table 6.x.2a CD'!E46*100 -> 32.88231824 | E44: ='Table 6.x.2a CD'!E44/'Table 6.x.2a CD'!E46*100 -> 77.41483557
A45: Female employment | B45: ='Table 6.x.2a CD'!B45/'Table 6.x.2a CD'!E46*100 -> 3.823182421 | C45: ='Table 6.x.2a CD'!C45/'Table 6.x.2a CD'!E46*100 -> 7.288747972 | D45: ='Table 6.x.2a CD'!D45/'Table 6.x.2a CD'!E46*100 -> 11.47323404 | E45: ='Table 6.x.2a CD'!E45/'Table 6.x.2a CD'!E46*100 -> 22.58516443
A46: Total employment | B46: ='Table 6.x.2a CD'!B46/'Table 6.x.2a CD'!E46*100 -> 36.59489751 | C46: ='Table 6.x.2a CD'!C46/'Table 6.x.2a CD'!E46*100 -> 19.04955021 | D46: ='Table 6.x.2a CD'!D46/'Table 6.x.2a CD'!E46*100 -> 44.35555228 | E46: ='Table 6.x.2a CD'!E46/'Table 6.x.2a CD'!E46*100 -> 100
A48: ='Table 6.x.2a CD'!A48 -> 2014
A49: Employment by Gender | B49: FT | C49: PT | D49: SE | E49: Total
A50: Male employment | B50: ='Table 6.x.2a CD'!B50/'Table 6.x.2a CD'!E52*100 -> 34.13220133 | C50: ='Table 6.x.2a CD'!C50/'Table 6.x.2a CD'!E52*100 -> 4.848999394 | D50: ='Table 6.x.2a CD'!D50/'Table 6.x.2a CD'!E52*100 -> 24.09217708 | E50: ='Table 6.x.2a CD'!E50/'Table 6.x.2a CD'!E52*100 -> 63.0733778
A51: Female employment | B51: ='Table 6.x.2a CD'!B51/'Table 6.x.2a CD'!E52*100 -> 14.50818678 | C51: ='Table 6.x.2a CD'!C51/'Table 6.x.2a CD'!E52*100 -> 7.153426319 | D51: ='Table 6.x.2a CD'!D51/'Table 6.x.2a CD'!E52*100 -> 15.2650091 | E51: ='Table 6.x.2a CD'!E51/'Table 6.x.2a CD'!E52*100 -> 36.9266222
A52: Total employment | B52: ='Table 6.x.2a CD'!B52/'Table 6.x.2a CD'!E52*100 -> 48.64038811 | C52: ='Table 6.x.2a CD'!C52/'Table 6.x.2a CD'!E52*100 -> 12.00242571 | D52: ='Table 6.x.2a CD'!D52/'Table 6.x.2a CD'!E52*100 -> 39.35718617 | E52: ='Table 6.x.2a CD'!E52/'Table 6.x.2a CD'!E52*100 -> 100
A54: ='Table 6.x.2a CD'!A54 -> 2019
A55: Employment by Gender | B55: FT | C55: PT | D55: SE | E55: Total
A56: Male employment | B56: ='Table 6.x.2a CD'!B56/'Table 6.x.2a CD'!E58*100 -> 32.87565654 | C56: ='Table 6.x.2a CD'!C56/'Table 6.x.2a CD'!E58*100 -> 5.19810459 | D56: ='Table 6.x.2a CD'!D56/'Table 6.x.2a CD'!E58*100 -> 23.22162594 | E56: ='Table 6.x.2a CD'!E56/'Table 6.x.2a CD'!E58*100 -> 61.29538707
A57: Female employment | B57: ='Table 6.x.2a CD'!B57/'Table 6.x.2a CD'!E58*100 -> 15.3802238 | C57: ='Table 6.x.2a CD'!C57/'Table 6.x.2a CD'!E58*100 -> 8.132564512 | D57: ='Table 6.x.2a CD'!D57/'Table 6.x.2a CD'!E58*100 -> 15.19182462 | E57: ='Table 6.x.2a CD'!E57/'Table 6.x.2a CD'!E58*100 -> 38.70461293
A58: Total employment | B58: ='Table 6.x.2a CD'!B58/'Table 6.x.2a CD'!E58*100 -> 48.25588034 | C58: ='Table 6.x.2a CD'!C58/'Table 6.x.2a CD'!E58*100 -> 13.3306691 | D58: ='Table 6.x.2a CD'!D58/'Table 6.x.2a CD'!E58*100 -> 38.41345056 | E58: ='Table 6.x.2a CD'!E58/'Table 6.x.2a CD'!E58*100 -> 100
A60: ='Table 6.x.2a CD'!A60 -> 2024
A61: Employment by Gender | B61: FT | C61: PT | D61: SE | E61: Total
A62: Male employment | B62: ='Table 6.x.2a CD'!B62/'Table 6.x.2a CD'!E64*100 -> 31.18338846 | C62: ='Table 6.x.2a CD'!C62/'Table 6.x.2a CD'!E64*100 -> 5.638245743 | D62: ='Table 6.x.2a CD'!D62/'Table 6.x.2a CD'!E64*100 -> 21.89758667 | E62: ='Table 6.x.2a CD'!E62/'Table 6.x.2a CD'!E64*100 -> 58.71922087
A63: Female employment | B63: ='Table 6.x.2a CD'!B63/'Table 6.x.2a CD'!E64*100 -> 16.66972927 | C63: ='Table 6.x.2a CD'!C63/'Table 6.x.2a CD'!E64*100 -> 9.503246356 | D63: ='Table 6.x.2a CD'!D63/'Table 6.x.2a CD'!E64*100 -> 15.1078035 | E63: ='Table 6.x.2a CD'!E63/'Table 6.x.2a CD'!E64*100 -> 41.28077913
A64: Total employment | B64: ='Table 6.x.2a CD'!B64/'Table 6.x.2a CD'!E64*100 -> 47.85311773 | C64: ='Table 6.x.2a CD'!C64/'Table 6.x.2a CD'!E64*100 -> 15.1414921 | D64: ='Table 6.x.2a CD'!D64/'Table 6.x.2a CD'!E64*100 -> 37.00539018 | E64: ='Table 6.x.2a CD'!E64/'Table 6.x.2a CD'!E64*100 -> 100
A67: Table 6.x.2b | B67: Employment Status
A68: ='Table 6.x.2a CD'!A68 -> Mining and quarrying | E68: per cent
A69: ='Table 6.x.2a CD'!A69 -> 2004
A70: Employment by Gender | B70: FT | C70: PT | D70: SE | E70: Total
A71: Male employment | B71: ='Table 6.x.2a CD'!B71/'Table 6.x.2a CD'!E73*100 -> 83.96101019 | C71: ='Table 6.x.2a CD'!C71/'Table 6.x.2a CD'!E73*100 -> 4.962339389 | D71: ='Table 6.x.2a CD'!D71/'Table 6.x.2a CD'!E73*100 -> 0 | E71: ='Table 6.x.2a CD'!E71/'Table 6.x.2a CD'!E73*100 -> 88.92334958
A72: Female employment | B72: ='Table 6.x.2a CD'!B72/'Table 6.x.2a CD'!E73*100 -> 0.04430660168 | C72: ='Table 6.x.2a CD'!C72/'Table 6.x.2a CD'!E73*100 -> 8.639787328 | D72: ='Table 6.x.2a CD'!D72/'Table 6.x.2a CD'!E73*100 -> 2.392556491 | E72: ='Table 6.x.2a CD'!E72/'Table 6.x.2a CD'!E73*100 -> 11.07665042
A73: Total employment | B73: ='Table 6.x.2a CD'!B73/'Table 6.x.2a CD'!E73*100 -> 84.00531679 | C73: ='Table 6.x.2a CD'!C73/'Table 6.x.2a CD'!E73*100 -> 13.60212672 | D73: ='Table 6.x.2a CD'!D73/'Table 6.x.2a CD'!E73*100 -> 2.392556491 | E73: ='Table 6.x.2a CD'!E73/'Table 6.x.2a CD'!E73*100 -> 100
A75: ='Table 6.x.2a CD'!A75 -> 2009
A76: Employment by Gender | B76: FT | C76: PT | D76: SE | E76: Total
A77: Male employment | B77: ='Table 6.x.2a CD'!B77/'Table 6.x.2a CD'!E79*100 -> 82.02531646 | C77: ='Table 6.x.2a CD'!C77/'Table 6.x.2a CD'!E79*100 -> 9.198312236 | D77: ='Table 6.x.2a CD'!D77/'Table 6.x.2a CD'!E79*100 -> 0 | E77: ='Table 6.x.2a CD'!E77/'Table 6.x.2a CD'!E79*100 -> 91.22362869
A78: Female employment | B78: ='Table 6.x.2a CD'!B78/'Table 6.x.2a CD'!E79*100 -> 0 | C78: ='Table 6.x.2a CD'!C78/'Table 6.x.2a CD'!E79*100 -> 0.08438818565 | D78: ='Table 6.x.2a CD'!D78/'Table 6.x.2a CD'!E79*100 -> 8.691983122 | E78: ='Table 6.x.2a CD'!E78/'Table 6.x.2a CD'!E79*100 -> 8.776371308
A79: Total employment | B79: ='Table 6.x.2a CD'!B79/'Table 6.x.2a CD'!E79*100 -> 82.02531646 | C79: ='Table 6.x.2a CD'!C79/'Table 6.x.2a CD'!E79*100 -> 9.282700422 | D79: ='Table 6.x.2a CD'!D79/'Table 6.x.2a CD'!E79*100 -> 8.691983122 | E79: ='Table 6.x.2a CD'!E79/'Table 6.x.2a CD'!E79*100 -> 100
A81: ='Table 6.x.2a CD'!A81 -> 2014
A82: Employment by Gender | B82: FT | C82: PT | D82: SE | E82: Total
A83: Male employment | B83: ='Table 6.x.2a CD'!B83/'Table 6.x.2a CD'!E85*100 -> 90.21352313 | C83: ='Table 6.x.2a CD'!C83/'Table 6.x.2a CD'!E85*100 -> 9.697508897 | D83: ='Table 6.x.2a CD'!D83/'Table 6.x.2a CD'!E85*100 -> 0 | E83: ='Table 6.x.2a CD'!E83/'Table 6.x.2a CD'!E85*100 -> 99.91103203
A84: Female employment | B84: ='Table 6.x.2a CD'!B84/'Table 6.x.2a CD'!E85*100 -> 0 | C84: ='Table 6.x.2a CD'!C84/'Table 6.x.2a CD'!E85*100 -> 0.08896797153 | D84: ='Table 6.x.2a CD'!D84/'Table 6.x.2a CD'!E85*100 -> 0 | E84: ='Table 6.x.2a CD'!E84/'Table 6.x.2a CD'!E85*100 -> 0.08896797153
A85: Total employment | B85: ='Table 6.x.2a CD'!B85/'Table 6.x.2a CD'!E85*100 -> 90.21352313 | C85: ='Table 6.x.2a CD'!C85/'Table 6.x.2a CD'!E85*100 -> 9.786476868 | D85: ='Table 6.x.2a CD'!D85/'Table 6.x.2a CD'!E85*100 -> 0 | E85: ='Table 6.x.2a CD'!E85/'Table 6.x.2a CD'!E85*100 -> 100
A87: ='Table 6.x.2a CD'!A87 -> 2019
A88: Employment by Gender | B88: FT | C88: PT | D88: SE | E88: Total
A89: Male employment | B89: ='Table 6.x.2a CD'!B89/'Table 6.x.2a CD'!E91*100 -> 89.56343793 | C89: ='Table 6.x.2a CD'!C89/'Table 6.x.2a CD'!E91*100 -> 10.30013643 | D89: ='Table 6.x.2a CD'!D89/'Table 6.x.2a CD'!E91*100 -> 0 | E89: ='Table 6.x.2a CD'!E89/'Table 6.x.2a CD'!E91*100 -> 99.86357435
A90: Female employment | B90: ='Table 6.x.2a CD'!B90/'Table 6.x.2a CD'!E91*100 -> 0.06821282401 | C90: ='Table 6.x.2a CD'!C90/'Table 6.x.2a CD'!E91*100 -> 0.06821282401 | D90: ='Table 6.x.2a CD'!D90/'Table 6.x.2a CD'!E91*100 -> 0 | E90: ='Table 6.x.2a CD'!E90/'Table 6.x.2a CD'!E91*100 -> 0.136425648
A91: Total employment | B91: ='Table 6.x.2a CD'!B91/'Table 6.x.2a CD'!E91*100 -> 89.63165075 | C91: ='Table 6.x.2a CD'!C91/'Table 6.x.2a CD'!E91*100 -> 10.36834925 | D91: ='Table 6.x.2a CD'!D91/'Table 6.x.2a CD'!E91*100 -> 0 | E91: ='Table 6.x.2a CD'!E91/'Table 6.x.2a CD'!E91*100 -> 100
A93: ='Table 6.x.2a CD'!A93 -> 2024
A94: Employment by Gender | B94: FT | C94: PT | D94: SE | E94: Total
A95: Male employment | B95: ='Table 6.x.2a CD'!B95/'Table 6.x.2a CD'!E97*100 -> 86.65048544 | C95: ='Table 6.x.2a CD'!C95/'Table 6.x.2a CD'!E97*100 -> 13.26860841 | D95: ='Table 6.x.2a CD'!D95/'Table 6.x.2a CD'!E97*100 -> 0 | E95: ='Table 6.x.2a CD'!E95/'Table 6.x.2a CD'!E97*100 -> 99.91909385
A96: Female employment | B96: ='Table 6.x.2a CD'!B96/'Table 6.x.2a CD'!E97*100 -> 0 | C96: ='Table 6.x.2a CD'!C96/'Table 6.x.2a CD'!E97*100 -> 0.08090614887 | D96: ='Table 6.x.2a CD'!D96/'Table 6.x.2a CD'!E97*100 -> 0 | E96: ='Table 6.x.2a CD'!E96/'Table 6.x.2a CD'!E97*100 -> 0.08090614887
A97: Total employment | B97: ='Table 6.x.2a CD'!B97/'Table 6.x.2a CD'!E97*100 -> 86.65048544 | C97: ='Table 6.x.2a CD'!C97/'Table 6.x.2a CD'!E97*100 -> 13.34951456 | D97: ='Table 6.x.2a CD'!D97/'Table 6.x.2a CD'!E97*100 -> 0 | E97: ='Table 6.x.2a CD'!E97/'Table 6.x.2a CD'!E97*100 -> 100
A100: Table 6.x.2b | B100: Employment Status
A101: ='Table 6.x.2a CD'!A101 -> Food drink and tobacco | E101: per cent
A102: ='Table 6.x.2a CD'!A102 -> 2004
A103: Employment by Gender | B103: FT | C103: PT | D103: SE | E103: Total
A104: Male employment | B104: ='Table 6.x.2a CD'!B104/'Table 6.x.2a CD'!E106*100 -> 64.07799129 | C104: ='Table 6.x.2a CD'!C104/'Table 6.x.2a CD'!E106*100 -> 1.181786583 | D104: ='Table 6.x.2a CD'!D104/'Table 6.x.2a CD'!E106*100 -> 1.284406707 | E104: ='Table 6.x.2a CD'!E104/'Table 6.x.2a CD'!E106*100 -> 66.54418458
A105: Female employment | B105: ='Table 6.x.2a CD'!B105/'Table 6.x.2a CD'!E106*100 -> 25.93144314 | C105: ='Table 6.x.2a CD'!C105/'Table 6.x.2a CD'!E106*100 -> 7.221477399 | D105: ='Table 6.x.2a CD'!D105/'Table 6.x.2a CD'!E106*100 -> 0.3028948806 | E105: ='Table 6.x.2a CD'!E105/'Table 6.x.2a CD'!E106*100 -> 33.45581542
A106: Total employment | B106: ='Table 6.x.2a CD'!B106/'Table 6.x.2a CD'!E106*100 -> 90.00943443 | C106: ='Table 6.x.2a CD'!C106/'Table 6.x.2a CD'!E106*100 -> 8.403263982 | D106: ='Table 6.x.2a CD'!D106/'Table 6.x.2a CD'!E106*100 -> 1.587301587 | E106: ='Table 6.x.2a CD'!E106/'Table 6.x.2a CD'!E106*100 -> 100
A108: ='Table 6.x.2a CD'!A108 -> 2009
A109: Employment by Gender | B109: FT | C109: PT | D109: SE | E109: Total
A110: Male employment | B110: ='Table 6.x.2a CD'!B110/'Table 6.x.2a CD'!E112*100 -> 59.80031637 | C110: ='Table 6.x.2a CD'!C110/'Table 6.x.2a CD'!E112*100 -> 2.085173696 | D110: ='Table 6.x.2a CD'!D110/'Table 6.x.2a CD'!E112*100 -> 0.5423505968 | E110: ='Table 6.x.2a CD'!E110/'Table 6.x.2a CD'!E112*100 -> 62.42784066
A111: Female employment | B111: ='Table 6.x.2a CD'!B111/'Table 6.x.2a CD'!E112*100 -> 25.54594572 | C111: ='Table 6.x.2a CD'!C111/'Table 6.x.2a CD'!E112*100 -> 11.17365491 | D111: ='Table 6.x.2a CD'!D111/'Table 6.x.2a CD'!E112*100 -> 0.8525587033 | E111: ='Table 6.x.2a CD'!E111/'Table 6.x.2a CD'!E112*100 -> 37.57215934
A112: Total employment | B112: ='Table 6.x.2a CD'!B112/'Table 6.x.2a CD'!E112*100 -> 85.3462621 | C112: ='Table 6.x.2a CD'!C112/'Table 6.x.2a CD'!E112*100 -> 13.2588286 | D112: ='Table 6.x.2a CD'!D112/'Table 6.x.2a CD'!E112*100 -> 1.3949093 | E112: ='Table 6.x.2a CD'!E112/'Table 6.x.2a CD'!E112*100 -> 100
A114: ='Table 6.x.2a CD'!A114 -> 2014
A115: Employment by Gender | B115: FT | C115: PT | D115: SE | E115: Total
A116: Male employment | B116: ='Table 6.x.2a CD'!B116/'Table 6.x.2a CD'!E118*100 -> 63.27065942 | C116: ='Table 6.x.2a CD'!C116/'Table 6.x.2a CD'!E118*100 -> 3.814046106 | D116: ='Table 6.x.2a CD'!D116/'Table 6.x.2a CD'!E118*100 -> 0.2489086314 | E116: ='Table 6.x.2a CD'!E116/'Table 6.x.2a CD'!E118*100 -> 67.33361415
A117: Female employment | B117: ='Table 6.x.2a CD'!B117/'Table 6.x.2a CD'!E118*100 -> 25.97457303 | C117: ='Table 6.x.2a CD'!C117/'Table 6.x.2a CD'!E118*100 -> 6.406525236 | D117: ='Table 6.x.2a CD'!D117/'Table 6.x.2a CD'!E118*100 -> 0.2852875852 | E117: ='Table 6.x.2a CD'!E117/'Table 6.x.2a CD'!E118*100 -> 32.66638585
A118: Total employment | B118: ='Table 6.x.2a CD'!B118/'Table 6.x.2a CD'!E118*100 -> 89.24523244 | C118: ='Table 6.x.2a CD'!C118/'Table 6.x.2a CD'!E118*100 -> 10.22057134 | D118: ='Table 6.x.2a CD'!D118/'Table 6.x.2a CD'!E118*100 -> 0.5341962166 | E118: ='Table 6.x.2a CD'!E118/'Table 6.x.2a CD'!E118*100 -> 100
A120: ='Table 6.x.2a CD'!A120 -> 2019
A121: Employment by Gender | B121: FT | C121: PT | D121: SE | E121: Total
A122: Male employment | B122: ='Table 6.x.2a CD'!B122/'Table 6.x.2a CD'!E124*100 -> 62.47974381 | C122: ='Table 6.x.2a CD'!C122/'Table 6.x.2a CD'!E124*100 -> 4.427424956 | D122: ='Table 6.x.2a CD'!D122/'Table 6.x.2a CD'!E124*100 -> 0.2488617949 | E122: ='Table 6.x.2a CD'!E122/'Table 6.x.2a CD'!E124*100 -> 67.15603056
A123: Female employment | B123: ='Table 6.x.2a CD'!B123/'Table 6.x.2a CD'!E124*100 -> 25.99544718 | C123: ='Table 6.x.2a CD'!C123/'Table 6.x.2a CD'!E124*100 -> 6.564935566 | D123: ='Table 6.x.2a CD'!D123/'Table 6.x.2a CD'!E124*100 -> 0.2835866965 | E123: ='Table 6.x.2a CD'!E123/'Table 6.x.2a CD'!E124*100 -> 32.84396944
A124: Total employment | B124: ='Table 6.x.2a CD'!B124/'Table 6.x.2a CD'!E124*100 -> 88.47519099 | C124: ='Table 6.x.2a CD'!C124/'Table 6.x.2a CD'!E124*100 -> 10.99236052 | D124: ='Table 6.x.2a CD'!D124/'Table 6.x.2a CD'!E124*100 -> 0.5324484914 | E124: ='Table 6.x.2a CD'!E124/'Table 6.x.2a CD'!E124*100 -> 100
A126: ='Table 6.x.2a CD'!A126 -> 2024
A127: Employment by Gender | B127: FT | C127: PT | D127: SE | E127: Total
A128: Male employment | B128: ='Table 6.x.2a CD'!B128/'Table 6.x.2a CD'!E130*100 -> 61.54671243 | C128: ='Table 6.x.2a CD'!C128/'Table 6.x.2a CD'!E130*100 -> 5.182881047 | D128: ='Table 6.x.2a CD'!D128/'Table 6.x.2a CD'!E130*100 -> 0.2445564732 | E128: ='Table 6.x.2a CD'!E128/'Table 6.x.2a CD'!E130*100 -> 66.97414995
A129: Female employment | B129: ='Table 6.x.2a CD'!B129/'Table 6.x.2a CD'!E130*100 -> 25.98090743 | C129: ='Table 6.x.2a CD'!C129/'Table 6.x.2a CD'!E130*100 -> 6.761771962 | D129: ='Table 6.x.2a CD'!D129/'Table 6.x.2a CD'!E130*100 -> 0.2831706532 | E129: ='Table 6.x.2a CD'!E129/'Table 6.x.2a CD'!E130*100 -> 33.02585005
A130: Total employment | B130: ='Table 6.x.2a CD'!B130/'Table 6.x.2a CD'!E130*100 -> 87.52761986 | C130: ='Table 6.x.2a CD'!C130/'Table 6.x.2a CD'!E130*100 -> 11.94465301 | D130: ='Table 6.x.2a CD'!D130/'Table 6.x.2a CD'!E130*100 -> 0.5277271265 | E130: ='Table 6.x.2a CD'!E130/'Table 6.x.2a CD'!E130*100 -> 100
A133: Table 6.x.2b | B133: Employment Status
A134: ='Table 6.x.2a CD'!A134 -> Engineering | E134: per cent
A135: ='Table 6.x.2a CD'!A135 -> 2004
A136: Employment by Gender | B136: FT | C136: PT | D136: SE | E136: Total
A137: Male employment | B137: ='Table 6.x.2a CD'!B137/'Table 6.x.2a CD'!E139*100 -> 74.55470738 | C137: ='Table 6.x.2a CD'!C137/'Table 6.x.2a CD'!E139*100 -> 1.282361969 | D137: ='Table 6.x.2a CD'!D137/'Table 6.x.2a CD'!E139*100 -> 0.6906579426 | E137: ='Table 6.x.2a CD'!E137/'Table 6.x.2a CD'!E139*100 -> 76.52772729
A138: Female employment | B138: ='Table 6.x.2a CD'!B138/'Table 6.x.2a CD'!E139*100 -> 19.33842239 | C138: ='Table 6.x.2a CD'!C138/'Table 6.x.2a CD'!E139*100 -> 3.719859445 | D138: ='Table 6.x.2a CD'!D138/'Table 6.x.2a CD'!E139*100 -> 0.413990872 | E138: ='Table 6.x.2a CD'!E138/'Table 6.x.2a CD'!E139*100 -> 23.47227271
A139: Total employment | B139: ='Table 6.x.2a CD'!B139/'Table 6.x.2a CD'!E139*100 -> 93.89312977 | C139: ='Table 6.x.2a CD'!C139/'Table 6.x.2a CD'!E139*100 -> 5.002221414 | D139: ='Table 6.x.2a CD'!D139/'Table 6.x.2a CD'!E139*100 -> 1.104648815 | E139: ='Table 6.x.2a CD'!E139/'Table 6.x.2a CD'!E139*100 -> 100
A141: ='Table 6.x.2a CD'!A141 -> 2009
A142: Employment by Gender | B142: FT | C142: PT | D142: SE | E142: Total
A143: Male employment | B143: ='Table 6.x.2a CD'!B143/'Table 6.x.2a CD'!E145*100 -> 77.46434431 | C143: ='Table 6.x.2a CD'!C143/'Table 6.x.2a CD'!E145*100 -> 1.227439101 | D143: ='Table 6.x.2a CD'!D143/'Table 6.x.2a CD'!E145*100 -> 1.830114855 | E143: ='Table 6.x.2a CD'!E143/'Table 6.x.2a CD'!E145*100 -> 80.52189827
A144: Female employment | B144: ='Table 6.x.2a CD'!B144/'Table 6.x.2a CD'!E145*100 -> 16.58147166 | C144: ='Table 6.x.2a CD'!C144/'Table 6.x.2a CD'!E145*100 -> 2.644200429 | D144: ='Table 6.x.2a CD'!D144/'Table 6.x.2a CD'!E145*100 -> 0.2524296352 | E144: ='Table 6.x.2a CD'!E144/'Table 6.x.2a CD'!E145*100 -> 19.47810173
A145: Total employment | B145: ='Table 6.x.2a CD'!B145/'Table 6.x.2a CD'!E145*100 -> 94.04581598 | C145: ='Table 6.x.2a CD'!C145/'Table 6.x.2a CD'!E145*100 -> 3.87163953 | D145: ='Table 6.x.2a CD'!D145/'Table 6.x.2a CD'!E145*100 -> 2.082544491 | E145: ='Table 6.x.2a CD'!E145/'Table 6.x.2a CD'!E145*100 -> 100
A147: ='Table 6.x.2a CD'!A147 -> 2014
A148: Employment by Gender | B148: FT | C148: PT | D148: SE | E148: Total
A149: Male employment | B149: ='Table 6.x.2a CD'!B149/'Table 6.x.2a CD'!E151*100 -> 78.97863286 | C149: ='Table 6.x.2a CD'!C149/'Table 6.x.2a CD'!E151*100 -> 1.598841505 | D149: ='Table 6.x.2a CD'!D149/'Table 6.x.2a CD'!E151*100 -> 1.471761681 | E149: ='Table 6.x.2a CD'!E149/'Table 6.x.2a CD'!E151*100 -> 82.04923604
A150: Female employment | B150: ='Table 6.x.2a CD'!B150/'Table 6.x.2a CD'!E151*100 -> 15.49487248 | C150: ='Table 6.x.2a CD'!C150/'Table 6.x.2a CD'!E151*100 -> 2.352454414 | D150: ='Table 6.x.2a CD'!D150/'Table 6.x.2a CD'!E151*100 -> 0.1034370659 | E150: ='Table 6.x.2a CD'!E150/'Table 6.x.2a CD'!E151*100 -> 17.95076396
A151: Total employment | B151: ='Table 6.x.2a CD'!B151/'Table 6.x.2a CD'!E151*100 -> 94.47350533 | C151: ='Table 6.x.2a CD'!C151/'Table 6.x.2a CD'!E151*100 -> 3.951295919 | D151: ='Table 6.x.2a CD'!D151/'Table 6.x.2a CD'!E151*100 -> 1.575198747 | E151: ='Table 6.x.2a CD'!E151/'Table 6.x.2a CD'!E151*100 -> 100
A153: ='Table 6.x.2a CD'!A153 -> 2019
A154: Employment by Gender | B154: FT | C154: PT | D154: SE | E154: Total
A155: Male employment | B155: ='Table 6.x.2a CD'!B155/'Table 6.x.2a CD'!E157*100 -> 77.50087194 | C155: ='Table 6.x.2a CD'!C155/'Table 6.x.2a CD'!E157*100 -> 2.060940423 | D155: ='Table 6.x.2a CD'!D155/'Table 6.x.2a CD'!E157*100 -> 1.598021497 | E155: ='Table 6.x.2a CD'!E155/'Table 6.x.2a CD'!E157*100 -> 81.15983386
A156: Female employment | B156: ='Table 6.x.2a CD'!B156/'Table 6.x.2a CD'!E157*100 -> 16.0467992 | C156: ='Table 6.x.2a CD'!C156/'Table 6.x.2a CD'!E157*100 -> 2.676051872 | D156: ='Table 6.x.2a CD'!D156/'Table 6.x.2a CD'!E157*100 -> 0.1173150702 | E156: ='Table 6.x.2a CD'!E156/'Table 6.x.2a CD'!E157*100 -> 18.84016614
A157: Total employment | B157: ='Table 6.x.2a CD'!B157/'Table 6.x.2a CD'!E157*100 -> 93.54767114 | C157: ='Table 6.x.2a CD'!C157/'Table 6.x.2a CD'!E157*100 -> 4.736992295 | D157: ='Table 6.x.2a CD'!D157/'Table 6.x.2a CD'!E157*100 -> 1.715336567 | E157: ='Table 6.x.2a CD'!E157/'Table 6.x.2a CD'!E157*100 -> 100
A159: ='Table 6.x.2a CD'!A159 -> 2024
A160: Employment by Gender | B160: FT | C160: PT | D160: SE | E160: Total
A161: Male employment | B161: ='Table 6.x.2a CD'!B161/'Table 6.x.2a CD'!E163*100 -> 75.85493398 | C161: ='Table 6.x.2a CD'!C161/'Table 6.x.2a CD'!E163*100 -> 2.723750047 | D161: ='Table 6.x.2a CD'!D161/'Table 6.x.2a CD'!E163*100 -> 1.805801136 | E161: ='Table 6.x.2a CD'!E161/'Table 6.x.2a CD'!E163*100 -> 80.38448516
A162: Female employment | B162: ='Table 6.x.2a CD'!B162/'Table 6.x.2a CD'!E163*100 -> 16.38012114 | C162: ='Table 6.x.2a CD'!C162/'Table 6.x.2a CD'!E163*100 -> 3.099958617 | D162: ='Table 6.x.2a CD'!D162/'Table 6.x.2a CD'!E163*100 -> 0.1354350852 | E162: ='Table 6.x.2a CD'!E162/'Table 6.x.2a CD'!E163*100 -> 19.61551484
A163: Total employment | B163: ='Table 6.x.2a CD'!B163/'Table 6.x.2a CD'!E163*100 -> 92.23505511 | C163: ='Table 6.x.2a CD'!C163/'Table 6.x.2a CD'!E163*100 -> 5.823708664 | D163: ='Table 6.x.2a CD'!D163/'Table 6.x.2a CD'!E163*100 -> 1.941236221 | E163: ='Table 6.x.2a CD'!E163/'Table 6.x.2a CD'!E163*100 -> 100
A166: Table 6.x.2b | B166: Employment Status
A167: ='Table 6.x.2a CD'!A167 -> Rest of manufacturing | E167: per cent
A168: ='Table 6.x.2a CD'!A168 -> 2004
A169: Employment by Gender | B169: FT | C169: PT | D169: SE | E169: Total
A170: Male employment | B170: ='Table 6.x.2a CD'!B170/'Table 6.x.2a CD'!E172*100 -> 71.48382401 | C170: ='Table 6.x.2a CD'!C170/'Table 6.x.2a CD'!E172*100 -> 1.494580094 | D170: ='Table 6.x.2a CD'!D170/'Table 6.x.2a CD'!E172*100 -> 4.144311836 | E170: ='Table 6.x.2a CD'!E170/'Table 6.x.2a CD'!E172*100 -> 77.12271594
A171: Female employment | B171: ='Table 6.x.2a CD'!B171/'Table 6.x.2a CD'!E172*100 -> 16.67224867 | C171: ='Table 6.x.2a CD'!C171/'Table 6.x.2a CD'!E172*100 -> 5.360650775 | D171: ='Table 6.x.2a CD'!D171/'Table 6.x.2a CD'!E172*100 -> 0.8443846169 | E171: ='Table 6.x.2a CD'!E171/'Table 6.x.2a CD'!E172*100 -> 22.87728406
A172: Total employment | B172: ='Table 6.x.2a CD'!B172/'Table 6.x.2a CD'!E172*100 -> 88.15607268 | C172: ='Table 6.x.2a CD'!C172/'Table 6.x.2a CD'!E172*100 -> 6.855230869 | D172: ='Table 6.x.2a CD'!D172/'Table 6.x.2a CD'!E172*100 -> 4.988696453 | E172: ='Table 6.x.2a CD'!E172/'Table 6.x.2a CD'!E172*100 -> 100
A174: ='Table 6.x.2a CD'!A174 -> 2009
A175: Employment by Gender | B175: FT | C175: PT | D175: SE | E175: Total
A176: Male employment | B176: ='Table 6.x.2a CD'!B176/'Table 6.x.2a CD'!E178*100 -> 71.45302009 | C176: ='Table 6.x.2a CD'!C176/'Table 6.x.2a CD'!E178*100 -> 1.541721893 | D176: ='Table 6.x.2a CD'!D176/'Table 6.x.2a CD'!E178*100 -> 5.721922018 | E176: ='Table 6.x.2a CD'!E176/'Table 6.x.2a CD'!E178*100 -> 78.716664
A177: Female employment | B177: ='Table 6.x.2a CD'!B177/'Table 6.x.2a CD'!E178*100 -> 15.58180521 | C177: ='Table 6.x.2a CD'!C177/'Table 6.x.2a CD'!E178*100 -> 3.550257075 | D177: ='Table 6.x.2a CD'!D177/'Table 6.x.2a CD'!E178*100 -> 2.151273723 | E177: ='Table 6.x.2a CD'!E177/'Table 6.x.2a CD'!E178*100 -> 21.283336
A178: Total employment | B178: ='Table 6.x.2a CD'!B178/'Table 6.x.2a CD'!E178*100 -> 87.03482529 | C178: ='Table 6.x.2a CD'!C178/'Table 6.x.2a CD'!E178*100 -> 5.091978968 | D178: ='Table 6.x.2a CD'!D178/'Table 6.x.2a CD'!E178*100 -> 7.873195741 | E178: ='Table 6.x.2a CD'!E178/'Table 6.x.2a CD'!E178*100 -> 100
A180: ='Table 6.x.2a CD'!A180 -> 2014
A181: Employment by Gender | B181: FT | C181: PT | D181: SE | E181: Total
A182: Male employment | B182: ='Table 6.x.2a CD'!B182/'Table 6.x.2a CD'!E184*100 -> 71.73565553 | C182: ='Table 6.x.2a CD'!C182/'Table 6.x.2a CD'!E184*100 -> 2.333161277 | D182: ='Table 6.x.2a CD'!D182/'Table 6.x.2a CD'!E184*100 -> 5.972143595 | E182: ='Table 6.x.2a CD'!E182/'Table 6.x.2a CD'!E184*100 -> 80.0409604
A183: Female employment | B183: ='Table 6.x.2a CD'!B183/'Table 6.x.2a CD'!E184*100 -> 14.6837224 | C183: ='Table 6.x.2a CD'!C183/'Table 6.x.2a CD'!E184*100 -> 3.626910653 | D183: ='Table 6.x.2a CD'!D183/'Table 6.x.2a CD'!E184*100 -> 1.64840654 | E183: ='Table 6.x.2a CD'!E183/'Table 6.x.2a CD'!E184*100 -> 19.9590396
A184: Total employment | B184: ='Table 6.x.2a CD'!B184/'Table 6.x.2a CD'!E184*100 -> 86.41937793 | C184: ='Table 6.x.2a CD'!C184/'Table 6.x.2a CD'!E184*100 -> 5.96007193 | D184: ='Table 6.x.2a CD'!D184/'Table 6.x.2a CD'!E184*100 -> 7.620550135 | E184: ='Table 6.x.2a CD'!E184/'Table 6.x.2a CD'!E184*100 -> 100
A186: ='Table 6.x.2a CD'!A186 -> 2019
A187: Employment by Gender | B187: FT | C187: PT | D187: SE | E187: Total
A188: Male employment | B188: ='Table 6.x.2a CD'!B188/'Table 6.x.2a CD'!E190*100 -> 70.69801332 | C188: ='Table 6.x.2a CD'!C188/'Table 6.x.2a CD'!E190*100 -> 2.668143587 | D188: ='Table 6.x.2a CD'!D188/'Table 6.x.2a CD'!E190*100 -> 6.362269459 | E188: ='Table 6.x.2a CD'!E188/'Table 6.x.2a CD'!E190*100 -> 79.72842636
A189: Female employment | B189: ='Table 6.x.2a CD'!B189/'Table 6.x.2a CD'!E190*100 -> 14.88221841 | C189: ='Table 6.x.2a CD'!C189/'Table 6.x.2a CD'!E190*100 -> 3.764462096 | D189: ='Table 6.x.2a CD'!D189/'Table 6.x.2a CD'!E190*100 -> 1.624893127 | E189: ='Table 6.x.2a CD'!E189/'Table 6.x.2a CD'!E190*100 -> 20.27157364
A190: Total employment | B190: ='Table 6.x.2a CD'!B190/'Table 6.x.2a CD'!E190*100 -> 85.58023173 | C190: ='Table 6.x.2a CD'!C190/'Table 6.x.2a CD'!E190*100 -> 6.432605683 | D190: ='Table 6.x.2a CD'!D190/'Table 6.x.2a CD'!E190*100 -> 7.987162586 | E190: ='Table 6.x.2a CD'!E190/'Table 6.x.2a CD'!E190*100 -> 100
A192: ='Table 6.x.2a CD'!A192 -> 2024
A193: Employment by Gender | B193: FT | C193: PT | D193: SE | E193: Total
A194: Male employment | B194: ='Table 6.x.2a CD'!B194/'Table 6.x.2a CD'!E196*100 -> 69.25959743 | C194: ='Table 6.x.2a CD'!C194/'Table 6.x.2a CD'!E196*100 -> 3.063546791 | D194: ='Table 6.x.2a CD'!D194/'Table 6.x.2a CD'!E196*100 -> 6.82938352 | E194: ='Table 6.x.2a CD'!E194/'Table 6.x.2a CD'!E196*100 -> 79.15252774
A195: Female employment | B195: ='Table 6.x.2a CD'!B195/'Table 6.x.2a CD'!E196*100 -> 15.34907807 | C195: ='Table 6.x.2a CD'!C195/'Table 6.x.2a CD'!E196*100 -> 3.918014691 | D195: ='Table 6.x.2a CD'!D195/'Table 6.x.2a CD'!E196*100 -> 1.580379491 | E195: ='Table 6.x.2a CD'!E195/'Table 6.x.2a CD'!E196*100 -> 20.84747226
A196: Total employment | B196: ='Table 6.x.2a CD'!B196/'Table 6.x.2a CD'!E196*100 -> 84.60867551 | C196: ='Table 6.x.2a CD'!C196/'Table 6.x.2a CD'!E196*100 -> 6.981561482 | D196: ='Table 6.x.2a CD'!D196/'Table 6.x.2a CD'!E196*100 -> 8.409763011 | E196: ='Table 6.x.2a CD'!E196/'Table 6.x.2a CD'!E196*100 -> 100
A199: Table 6.x.2b | B199: Employment Status
A200: ='Table 6.x.2a CD'!A200 -> Electricity and gas | E200: per cent
A201: ='Table 6.x.2a CD'!A201 -> 2004
A202: Employment by Gender | B202: FT | C202: PT | D202: SE | E202: Total
A203: Male employment | B203: ='Table 6.x.2a CD'!B203/'Table 6.x.2a CD'!E205*100 -> 76.88394876 | C203: ='Table 6.x.2a CD'!C203/'Table 6.x.2a CD'!E205*100 -> 1.582516956 | D203: ='Table 6.x.2a CD'!D203/'Table 6.x.2a CD'!E205*100 -> 0 | E203: ='Table 6.x.2a CD'!E203/'Table 6.x.2a CD'!E205*100 -> 78.46646571
A204: Female employment | B204: ='Table 6.x.2a CD'!B204/'Table 6.x.2a CD'!E205*100 -> 20.96834966 | C204: ='Table 6.x.2a CD'!C204/'Table 6.x.2a CD'!E205*100 -> 0 | D204: ='Table 6.x.2a CD'!D204/'Table 6.x.2a CD'!E205*100 -> 0.565184627 | E204: ='Table 6.x.2a CD'!E204/'Table 6.x.2a CD'!E205*100 -> 21.53353429
A205: Total employment | B205: ='Table 6.x.2a CD'!B205/'Table 6.x.2a CD'!E205*100 -> 97.85229842 | C205: ='Table 6.x.2a CD'!C205/'Table 6.x.2a CD'!E205*100 -> 1.582516956 | D205: ='Table 6.x.2a CD'!D205/'Table 6.x.2a CD'!E205*100 -> 0.565184627 | E205: ='Table 6.x.2a CD'!E205/'Table 6.x.2a CD'!E205*100 -> 100
A207: ='Table 6.x.2a CD'!A207 -> 2009
A208: Employment by Gender | B208: FT | C208: PT | D208: SE | E208: Total
A209: Male employment | B209: ='Table 6.x.2a CD'!B209/'Table 6.x.2a CD'!E211*100 -> 70.01749781 | C209: ='Table 6.x.2a CD'!C209/'Table 6.x.2a CD'!E211*100 -> 1.461067367 | D209: ='Table 6.x.2a CD'!D209/'Table 6.x.2a CD'!E211*100 -> 0.008748906387 | E209: ='Table 6.x.2a CD'!E209/'Table 6.x.2a CD'!E211*100 -> 71.48731409
A210: Female employment | B210: ='Table 6.x.2a CD'!B210/'Table 6.x.2a CD'!E211*100 -> 18.32020997 | C210: ='Table 6.x.2a CD'!C210/'Table 6.x.2a CD'!E211*100 -> 10.19247594 | D210: ='Table 6.x.2a CD'!D210/'Table 6.x.2a CD'!E211*100 -> 0 | E210: ='Table 6.x.2a CD'!E210/'Table 6.x.2a CD'!E211*100 -> 28.51268591
A211: Total employment | B211: ='Table 6.x.2a CD'!B211/'Table 6.x.2a CD'!E211*100 -> 88.33770779 | C211: ='Table 6.x.2a CD'!C211/'Table 6.x.2a CD'!E211*100 -> 11.65354331 | D211: ='Table 6.x.2a CD'!D211/'Table 6.x.2a CD'!E211*100 -> 0.008748906387 | E211: ='Table 6.x.2a CD'!E211/'Table 6.x.2a CD'!E211*100 -> 100
A213: ='Table 6.x.2a CD'!A213 -> 2014
A214: Employment by Gender | B214: FT | C214: PT | D214: SE | E214: Total
A215: Male employment | B215: ='Table 6.x.2a CD'!B215/'Table 6.x.2a CD'!E217*100 -> 65.76854833 | C215: ='Table 6.x.2a CD'!C215/'Table 6.x.2a CD'!E217*100 -> 0.5520141947 | D215: ='Table 6.x.2a CD'!D215/'Table 6.x.2a CD'!E217*100 -> 6.50588158 | E215: ='Table 6.x.2a CD'!E215/'Table 6.x.2a CD'!E217*100 -> 72.82644411
A216: Female employment | B216: ='Table 6.x.2a CD'!B216/'Table 6.x.2a CD'!E217*100 -> 20.60852993 | C216: ='Table 6.x.2a CD'!C216/'Table 6.x.2a CD'!E217*100 -> 6.565025958 | D216: ='Table 6.x.2a CD'!D216/'Table 6.x.2a CD'!E217*100 -> 0 | E216: ='Table 6.x.2a CD'!E216/'Table 6.x.2a CD'!E217*100 -> 27.17355589
A217: Total employment | B217: ='Table 6.x.2a CD'!B217/'Table 6.x.2a CD'!E217*100 -> 86.37707827 | C217: ='Table 6.x.2a CD'!C217/'Table 6.x.2a CD'!E217*100 -> 7.117040152 | D217: ='Table 6.x.2a CD'!D217/'Table 6.x.2a CD'!E217*100 -> 6.50588158 | E217: ='Table 6.x.2a CD'!E217/'Table 6.x.2a CD'!E217*100 -> 100
A219: ='Table 6.x.2a CD'!A219 -> 2019
A220: Employment by Gender | B220: FT | C220: PT | D220: SE | E220: Total
A221: Male employment | B221: ='Table 6.x.2a CD'!B221/'Table 6.x.2a CD'!E223*100 -> 67.92946184 | C221: ='Table 6.x.2a CD'!C221/'Table 6.x.2a CD'!E223*100 -> 0.4256612952 | D221: ='Table 6.x.2a CD'!D221/'Table 6.x.2a CD'!E223*100 -> 6.573426573 | E221: ='Table 6.x.2a CD'!E221/'Table 6.x.2a CD'!E223*100 -> 74.92854971
A222: Female employment | B222: ='Table 6.x.2a CD'!B222/'Table 6.x.2a CD'!E223*100 -> 18.63180298 | C222: ='Table 6.x.2a CD'!C222/'Table 6.x.2a CD'!E223*100 -> 6.439647309 | D222: ='Table 6.x.2a CD'!D222/'Table 6.x.2a CD'!E223*100 -> 0 | E222: ='Table 6.x.2a CD'!E222/'Table 6.x.2a CD'!E223*100 -> 25.07145029
A223: Total employment | B223: ='Table 6.x.2a CD'!B223/'Table 6.x.2a CD'!E223*100 -> 86.56126482 | C223: ='Table 6.x.2a CD'!C223/'Table 6.x.2a CD'!E223*100 -> 6.865308604 | D223: ='Table 6.x.2a CD'!D223/'Table 6.x.2a CD'!E223*100 -> 6.573426573 | E223: ='Table 6.x.2a CD'!E223/'Table 6.x.2a CD'!E223*100 -> 100
A225: ='Table 6.x.2a CD'!A225 -> 2024
A226: Employment by Gender | B226: FT | C226: PT | D226: SE | E226: Total
A227: Male employment | B227: ='Table 6.x.2a CD'!B227/'Table 6.x.2a CD'!E229*100 -> 70.84162896 | C227: ='Table 6.x.2a CD'!C227/'Table 6.x.2a CD'!E229*100 -> 0.2533936652 | D227: ='Table 6.x.2a CD'!D227/'Table 6.x.2a CD'!E229*100 -> 6.600301659 | E227: ='Table 6.x.2a CD'!E227/'Table 6.x.2a CD'!E229*100 -> 77.69532428
A228: Female employment | B228: ='Table 6.x.2a CD'!B228/'Table 6.x.2a CD'!E229*100 -> 15.96983409 | C228: ='Table 6.x.2a CD'!C228/'Table 6.x.2a CD'!E229*100 -> 6.334841629 | D228: ='Table 6.x.2a CD'!D228/'Table 6.x.2a CD'!E229*100 -> 0 | E228: ='Table 6.x.2a CD'!E228/'Table 6.x.2a CD'!E229*100 -> 22.30467572
A229: Total employment | B229: ='Table 6.x.2a CD'!B229/'Table 6.x.2a CD'!E229*100 -> 86.81146305 | C229: ='Table 6.x.2a CD'!C229/'Table 6.x.2a CD'!E229*100 -> 6.588235294 | D229: ='Table 6.x.2a CD'!D229/'Table 6.x.2a CD'!E229*100 -> 6.600301659 | E229: ='Table 6.x.2a CD'!E229/'Table 6.x.2a CD'!E229*100 -> 100
A232: Table 6.x.2b | B232: Employment Status
A233: ='Table 6.x.2a CD'!A233 -> Water and sewerage | E233: per cent
A234: ='Table 6.x.2a CD'!A234 -> 2004
A235: Employment by Gender | B235: FT | C235: PT | D235: SE | E235: Total
A236: Male employment | B236: ='Table 6.x.2a CD'!B236/'Table 6.x.2a CD'!E238*100 -> 68.88865357 | C236: ='Table 6.x.2a CD'!C236/'Table 6.x.2a CD'!E238*100 -> 8.746757029 | D236: ='Table 6.x.2a CD'!D236/'Table 6.x.2a CD'!E238*100 -> 6.38004977 | E236: ='Table 6.x.2a CD'!E236/'Table 6.x.2a CD'!E238*100 -> 84.01546037
A237: Female employment | B237: ='Table 6.x.2a CD'!B237/'Table 6.x.2a CD'!E238*100 -> 11.11346429 | C237: ='Table 6.x.2a CD'!C237/'Table 6.x.2a CD'!E238*100 -> 4.473976809 | D237: ='Table 6.x.2a CD'!D237/'Table 6.x.2a CD'!E238*100 -> 0.3970985334 | E237: ='Table 6.x.2a CD'!E237/'Table 6.x.2a CD'!E238*100 -> 15.98453963
A238: Total employment | B238: ='Table 6.x.2a CD'!B238/'Table 6.x.2a CD'!E238*100 -> 80.00211786 | C238: ='Table 6.x.2a CD'!C238/'Table 6.x.2a CD'!E238*100 -> 13.22073384 | D238: ='Table 6.x.2a CD'!D238/'Table 6.x.2a CD'!E238*100 -> 6.777148303 | E238: ='Table 6.x.2a CD'!E238/'Table 6.x.2a CD'!E238*100 -> 100
A240: ='Table 6.x.2a CD'!A240 -> 2009
A241: Employment by Gender | B241: FT | C241: PT | D241: SE | E241: Total
A242: Male employment | B242: ='Table 6.x.2a CD'!B242/'Table 6.x.2a CD'!E244*100 -> 73.11180248 | C242: ='Table 6.x.2a CD'!C242/'Table 6.x.2a CD'!E244*100 -> 0 | D242: ='Table 6.x.2a CD'!D242/'Table 6.x.2a CD'!E244*100 -> 0 | E242: ='Table 6.x.2a CD'!E242/'Table 6.x.2a CD'!E244*100 -> 73.11180248
A243: Female employment | B243: ='Table 6.x.2a CD'!B243/'Table 6.x.2a CD'!E244*100 -> 19.79214933 | C243: ='Table 6.x.2a CD'!C243/'Table 6.x.2a CD'!E244*100 -> 6.586350698 | D243: ='Table 6.x.2a CD'!D243/'Table 6.x.2a CD'!E244*100 -> 0.5096974912 | E243: ='Table 6.x.2a CD'!E243/'Table 6.x.2a CD'!E244*100 -> 26.88819752
... 265 more rows

Sheet Table 6.x.2c CD
A1: Table 6.x.2c | B1: Employment changes
A2: ='Table 6.x.2a CD'!A2 -> All industries | E2: 000s | I2: Labels for graphs (DO NOT REMOVE!)
A3: =CONCATENATE(All!K7,"-",All!P7) -> 1999-2004
A4: Employment by Gender | B4: FT | C4: =I4 -> PT 1999 | D4: =K4 -> SE -04 | E4: Total | I4: =CONCATENATE(" PT ",LEFT(A3,4)) -> PT 1999 | K4: =CONCATENATE(" SE -",RIGHT(A3,2)) -> SE -04
A5: Male employment | B5: =(MalesFT!$P$8-MalesFT!$K$8)/1000 -> 15.728 | C5: =(MalesPT!$P$8-MalesPT!$K$8)/1000 -> 51.275 | D5: =(MalesSE!$P$8-MalesSE!$K$8)/1000 -> -0.713 | E5: =(Males!$P$8-Males!$K$8)/1000 -> 66.29
A6: Female employment | B6: =(FemalesFT!$P$8-FemalesFT!$K$8)/1000 -> 68.967 | C6: =(FemalesPT!$P$8-FemalesPT!$K$8)/1000 -> 64.511 | D6: =(FemalesSE!$P$8-FemalesSE!$K$8)/1000 -> 15.136 | E6: =(Females!$P$8-Females!$K$8)/1000 -> 148.614
A7: Total employment | B7: =(FT!$P$8-FT!$K$8)/1000 -> 84.695 | C7: =(PT!$P$8-PT!$K$8)/1000 -> 115.786 | D7: =(SE!$P$8-SE!$K$8)/1000 -> 14.423 | E7: =(All!$P$8-All!$K$8)/1000 -> 214.904
A9: =CONCATENATE(All!P7,"-",All!U7) -> 2004-2009
A10: Employment by Gender | B10: FT | C10: =I10 -> PT 2004 | D10: =K10 -> SE -09 | E10: Total | I10: =CONCATENATE(" PT ",LEFT(A9,4)) -> PT 2004 | K10: =CONCATENATE(" SE -",RIGHT(A9,2)) -> SE -09
A11: Male employment | B11: =(MalesFT!$U$8-MalesFT!$P$8)/1000 -> 15.64 | C11: =(MalesPT!$U$8-MalesPT!$P$8)/1000 -> 10.481 | D11: =(MalesSE!$U$8-MalesSE!$P$8)/1000 -> 8.117 | E11: =(Males!$U$8-Males!$P$8)/1000 -> 34.238
A12: Female employment | B12: =(FemalesFT!$U$8-FemalesFT!$P$8)/1000 -> 19.128 | C12: =(FemalesPT!$U$8-FemalesPT!$P$8)/1000 -> -16.609 | D12: =(FemalesSE!$U$8-FemalesSE!$P$8)/1000 -> -4.56 | E12: =(Females!$U$8-Females!$P$8)/1000 -> -2.041
A13: Total employment | B13: =(FT!$U$8-FT!$P$8)/1000 -> 34.768 | C13: =(PT!$U$8-PT!$P$8)/1000 -> -6.128 | D13: =(SE!$U$8-SE!$P$8)/1000 -> 3.557 | E13: =(All!$U$8-All!$P$8)/1000 -> 32.197
A15: =CONCATENATE(All!U7,,"-",All!Z7) -> 2009-2014
A16: Employment by Gender | B16: FT | C16: =I16 -> PT 2009 | D16: =K16 -> SE -14 | E16: Total | I16: =CONCATENATE(" PT ",LEFT(A15,4)) -> PT 2009 | K16: =CONCATENATE(" SE -",RIGHT(A15,2)) -> SE -14
A17: Male employment | B17: =(MalesFT!$Z$8-MalesFT!$U$8)/1000 -> 37.426 | C17: =(MalesPT!$Z$8-MalesPT!$U$8)/1000 -> 19.325 | D17: =(MalesSE!$Z$8-MalesSE!$U$8)/1000 -> 46.056 | E17: =(Males!$Z$8-Males!$U$8)/1000 -> 102.807
A18: Female employment | B18: =(FemalesFT!$Z$8-FemalesFT!$U$8)/1000 -> 25.712 | C18: =(FemalesPT!$Z$8-FemalesPT!$U$8)/1000 -> 35.341 | D18: =(FemalesSE!$Z$8-FemalesSE!$U$8)/1000 -> 45.958 | E18: =(Females!$Z$8-Females!$U$8)/1000 -> 107.011
A19: Total employment | B19: =(FT!$Z$8-FT!$U$8)/1000 -> 63.138 | C19: =(PT!$Z$8-PT!$U$8)/1000 -> 54.666 | D19: =(SE!$Z$8-SE!$U$8)/1000 -> 92.014 | E19: =(All!$Z$8-All!$U$8)/1000 -> 209.818
A21: =CONCATENATE(All!Z7,"-",All!AE7) -> 2014-2019
A22: Employment by Gender | B22: FT | C22: =I22 -> PT 2014 | D22: =K22 -> SE -19 | E22: Total | I22: =CONCATENATE(" PT ",LEFT(A21,4)) -> PT 2014 | K22: =CONCATENATE(" SE -",RIGHT(A21,2)) -> SE -19
A23: Male employment | B23: =(MalesFT!$AE$8-MalesFT!$Z$8)/1000 -> 29.666 | C23: =(MalesPT!$AE$8-MalesPT!$Z$8)/1000 -> 24.634 | D23: =(MalesSE!$AE$8-MalesSE!$Z$8)/1000 -> -1.706 | E23: =(Males!$AE$8-Males!$Z$8)/1000 -> 52.594
A24: Female employment | B24: =(FemalesFT!$AE$8-FemalesFT!$Z$8)/1000 -> 24.518 | C24: =(FemalesPT!$AE$8-FemalesPT!$Z$8)/1000 -> 19.155 | D24: =(FemalesSE!$AE$8-FemalesSE!$Z$8)/1000 -> -0.795 | E24: =(Females!$AE$8-Females!$Z$8)/1000 -> 42.878
A25: Total employment | B25: =(FT!$AE$8-FT!$Z$8)/1000 -> 54.184 | C25: =(PT!$AE$8-PT!$Z$8)/1000 -> 43.789 | D25: =(SE!$AE$8-SE!$Z$8)/1000 -> -2.501 | E25: =(All!$AE$8-All!$Z$8)/1000 -> 95.472
A27: =CONCATENATE(All!AE7,"-",All!AJ7) -> 2019-2024
A28: Employment by Gender | B28: FT | C28: =I28 -> PT 2019 | D28: =K28 -> SE -24 | E28: Total | I28: =CONCATENATE(" PT ",LEFT(A27,4)) -> PT 2019 | K28: =CONCATENATE(" SE -",RIGHT(A27,2)) -> SE -24
A29: Male employment | B29: =(MalesFT!$AJ$8-MalesFT!$AE$8)/1000 -> -5.162 | C29: =(MalesPT!$AJ$8-MalesPT!$AE$8)/1000 -> 24.52 | D29: =(MalesSE!$AJ$8-MalesSE!$AE$8)/1000 -> -8.412 | E29: =(Males!$AJ$8-Males!$AE$8)/1000 -> 10.946
A30: Female employment | B30: =(FemalesFT!$AJ$8-FemalesFT!$AE$8)/1000 -> 22.948 | C30: =(FemalesPT!$AJ$8-FemalesPT!$AE$8)/1000 -> 21.845 | D30: =(FemalesSE!$AJ$8-FemalesSE!$AE$8)/1000 -> -1.18 | E30: =(Females!$AJ$8-Females!$AE$8)/1000 -> 43.613
A31: Total employment | B31: =(FT!$AJ$8-FT!$AE$8)/1000 -> 17.786 | C31: =(PT!$AJ$8-PT!$AE$8)/1000 -> 46.365 | D31: =(SE!$AJ$8-SE!$AE$8)/1000 -> -9.592 | E31: =(All!$AJ$8-All!$AE$8)/1000 -> 54.559
A34: Table 6.x.2c | B34: Employment changes
A35: ='Table 6.x.2a CD'!A35 -> Agriculture | E35: 000s
A36: =A$3 -> 1999-2004
A37: Employment by Gender | B37: FT | C37: PT | D37: SE | E37: Total
A38: Male employment | B38: =(MalesFT!$P$36-MalesFT!$K$36)/1000 -> -6.035 | C38: =(MalesPT!$P$36-MalesPT!$K$36)/1000 -> 0 | D38: =(MalesSE!$P$36-MalesSE!$K$36)/1000 -> -2.055 | E38: =(Males!$P$36-Males!$K$36)/1000 -> -8.09
A39: Female employment | B39: =(FemalesFT!$P$36-FemalesFT!$K$36)/1000 -> -1.993 | C39: =(FemalesPT!$P$36-FemalesPT!$K$36)/1000 -> -0.013 | D39: =(FemalesSE!$P$36-FemalesSE!$K$36)/1000 -> 0.96 | E39: =(Females!$P$36-Females!$K$36)/1000 -> -1.046
A40: Total employment | B40: =(FT!$P$36-FT!$K$36)/1000 -> -8.028 | C40: =(PT!$P$36-PT!$K$36)/1000 -> -0.013 | D40: =(SE!$P$36-SE!$K$36)/1000 -> -1.095 | E40: =(All!$P$36-All!$K$36)/1000 -> -9.136
A42: =A$9 -> 2004-2009
A43: Employment by Gender | B43: FT | C43: PT | D43: SE | E43: Total
A44: Male employment | B44: =(MalesFT!$U$36-MalesFT!$P$36)/1000 -> 1.902 | C44: =(MalesPT!$U$36-MalesPT!$P$36)/1000 -> 3.19 | D44: =(MalesSE!$U$36-MalesSE!$P$36)/1000 -> 1.964 | E44: =(Males!$U$36-Males!$P$36)/1000 -> 7.056
A45: Female employment | B45: =(FemalesFT!$U$36-FemalesFT!$P$36)/1000 -> -0.076 | C45: =(FemalesPT!$U$36-FemalesPT!$P$36)/1000 -> 0.987 | D45: =(FemalesSE!$U$36-FemalesSE!$P$36)/1000 -> -1.027 | E45: =(Females!$U$36-Females!$P$36)/1000 -> -0.116
A46: Total employment | B46: =(FT!$U$36-FT!$P$36)/1000 -> 1.826 | C46: =(PT!$U$36-PT!$P$36)/1000 -> 4.177 | D46: =(SE!$U$36-SE!$P$36)/1000 -> 0.937 | E46: =(All!$U$36-All!$P$36)/1000 -> 6.94
A48: =A$15 -> 2009-2014
A49: Employment by Gender | B49: FT | C49: PT | D49: SE | E49: Total
A50: Male employment | B50: =(MalesFT!$Z$36-MalesFT!$U$36)/1000 -> 5.182 | C50: =(MalesPT!$Z$36-MalesPT!$U$36)/1000 -> -1.191 | D50: =(MalesSE!$Z$36-MalesSE!$U$36)/1000 -> 1.013 | E50: =(Males!$Z$36-Males!$U$36)/1000 -> 5.004
A51: Female employment | B51: =(FemalesFT!$Z$36-FemalesFT!$U$36)/1000 -> 4.944 | C51: =(FemalesPT!$Z$36-FemalesPT!$U$36)/1000 -> 0.972 | D51: =(FemalesSE!$Z$36-FemalesSE!$U$36)/1000 -> 3.181 | E51: =(Females!$Z$36-Females!$U$36)/1000 -> 9.097
A52: Total employment | B52: =(FT!$Z$36-FT!$U$36)/1000 -> 10.126 | C52: =(PT!$Z$36-PT!$U$36)/1000 -> -0.219 | D52: =(SE!$Z$36-SE!$U$36)/1000 -> 4.194 | E52: =(All!$Z$36-All!$U$36)/1000 -> 14.101
A54: =A$21 -> 2014-2019
A55: Employment by Gender | B55: FT | C55: PT | D55: SE | E55: Total
A56: Male employment | B56: =(MalesFT!$AE$36-MalesFT!$Z$36)/1000 -> -2.554 | C56: =(MalesPT!$AE$36-MalesPT!$Z$36)/1000 -> -0.178 | D56: =(MalesSE!$AE$36-MalesSE!$Z$36)/1000 -> -1.797 | E56: =(Males!$AE$36-Males!$Z$36)/1000 -> -4.529
A57: Female employment | B57: =(FemalesFT!$AE$36-FemalesFT!$Z$36)/1000 -> -0.593 | C57: =(FemalesPT!$AE$36-FemalesPT!$Z$36)/1000 -> -0.1 | D57: =(FemalesSE!$AE$36-FemalesSE!$Z$36)/1000 -> -0.971 | E57: =(Females!$AE$36-Females!$Z$36)/1000 -> -1.664
A58: Total employment | B58: =(FT!$AE$36-FT!$Z$36)/1000 -> -3.147 | C58: =(PT!$AE$36-PT!$Z$36)/1000 -> -0.278 | D58: =(SE!$AE$36-SE!$Z$36)/1000 -> -2.768 | E58: =(All!$AE$36-All!$Z$36)/1000 -> -6.193
A60: =A$27 -> 2019-2024
A61: Employment by Gender | B61: FT | C61: PT | D61: SE | E61: Total
A62: Male employment | B62: =(MalesFT!$AJ$36-MalesFT!$AE$36)/1000 -> -1.335 | C62: =(MalesPT!$AJ$36-MalesPT!$AE$36)/1000 -> 0.02 | D62: =(MalesSE!$AJ$36-MalesSE!$AE$36)/1000 -> -0.985 | E62: =(Males!$AJ$36-Males!$AE$36)/1000 -> -2.3
A63: Female employment | B63: =(FemalesFT!$AJ$36-FemalesFT!$AE$36)/1000 -> 0.055 | C63: =(FemalesPT!$AJ$36-FemalesPT!$AE$36)/1000 -> 0.254 | D63: =(FemalesSE!$AJ$36-FemalesSE!$AE$36)/1000 -> -0.389 | E63: =(Females!$AJ$36-Females!$AE$36)/1000 -> -0.08
A64: Total employment | B64: =(FT!$AJ$36-FT!$AE$36)/1000 -> -1.28 | C64: =(PT!$AJ$36-PT!$AE$36)/1000 -> 0.274 | D64: =(SE!$AJ$36-SE!$AE$36)/1000 -> -1.374 | E64: =(All!$AJ$36-All!$AE$36)/1000 -> -2.38
A67: Table 6.x.2c | B67: Employment changes
A68: ='Table 6.x.2a CD'!A68 -> Mining and quarrying | E68: 000s
A69: =A$3 -> 1999-2004
A70: Employment by Gender | B70: FT | C70: PT | D70: SE | E70: Total
A71: Male employment | B71: =(MalesFT!$P$64-MalesFT!$K$64)/1000 -> -0.095 | C71: =(MalesPT!$P$64-MalesPT!$K$64)/1000 -> 0.002 | D71: =(MalesSE!$P$64-MalesSE!$K$64)/1000 -> -0.001 | E71: =(Males!$P$64-Males!$K$64)/1000 -> -0.094
A72: Female employment | B72: =(FemalesFT!$P$64-FemalesFT!$K$64)/1000 -> 0.001 | C72: =(FemalesPT!$P$64-FemalesPT!$K$64)/1000 -> 0.069 | D72: =(FemalesSE!$P$64-FemalesSE!$K$64)/1000 -> 0.054 | E72: =(Females!$P$64-Females!$K$64)/1000 -> 0.124
A73: Total employment | B73: =(FT!$P$64-FT!$K$64)/1000 -> -0.094 | C73: =(PT!$P$64-PT!$K$64)/1000 -> 0.071 | D73: =(SE!$P$64-SE!$K$64)/1000 -> 0.053 | E73: =(All!$P$64-All!$K$64)/1000 -> 0.03
A75: =A$9 -> 2004-2009
A76: Employment by Gender | B76: FT | C76: PT | D76: SE | E76: Total
A77: Male employment | B77: =(MalesFT!$U$64-MalesFT!$P$64)/1000 -> -0.923 | C77: =(MalesPT!$U$64-MalesPT!$P$64)/1000 -> -0.003 | D77: =(MalesSE!$U$64-MalesSE!$P$64)/1000 -> 0 | E77: =(Males!$U$64-Males!$P$64)/1000 -> -0.926
A78: Female employment | B78: =(FemalesFT!$U$64-FemalesFT!$P$64)/1000 -> -0.001 | C78: =(FemalesPT!$U$64-FemalesPT!$P$64)/1000 -> -0.194 | D78: =(FemalesSE!$U$64-FemalesSE!$P$64)/1000 -> 0.049 | E78: =(Females!$U$64-Females!$P$64)/1000 -> -0.146
A79: Total employment | B79: =(FT!$U$64-FT!$P$64)/1000 -> -0.924 | C79: =(PT!$U$64-PT!$P$64)/1000 -> -0.197 | D79: =(SE!$U$64-SE!$P$64)/1000 -> 0.049 | E79: =(All!$U$64-All!$P$64)/1000 -> -1.072
A81: =A$15 -> 2009-2014
A82: Employment by Gender | B82: FT | C82: PT | D82: SE | E82: Total
A83: Male employment | B83: =(MalesFT!$Z$64-MalesFT!$U$64)/1000 -> 0.042 | C83: =(MalesPT!$Z$64-MalesPT!$U$64)/1000 -> 0 | D83: =(MalesSE!$Z$64-MalesSE!$U$64)/1000 -> 0 | E83: =(Males!$Z$64-Males!$U$64)/1000 -> 0.042
A84: Female employment | B84: =(FemalesFT!$Z$64-FemalesFT!$U$64)/1000 -> 0 | C84: =(FemalesPT!$Z$64-FemalesPT!$U$64)/1000 -> 0 | D84: =(FemalesSE!$Z$64-FemalesSE!$U$64)/1000 -> -0.103 | E84: =(Females!$Z$64-Females!$U$64)/1000 -> -0.103
A85: Total employment | B85: =(FT!$Z$64-FT!$U$64)/1000 -> 0.042 | C85: =(PT!$Z$64-PT!$U$64)/1000 -> 0 | D85: =(SE!$Z$64-SE!$U$64)/1000 -> -0.103 | E85: =(All!$Z$64-All!$U$64)/1000 -> -0.061
A87: =A$21 -> 2014-2019
A88: Employment by Gender | B88: FT | C88: PT | D88: SE | E88: Total
A89: Male employment | B89: =(MalesFT!$AE$64-MalesFT!$Z$64)/1000 -> 0.299 | C89: =(MalesPT!$AE$64-MalesPT!$Z$64)/1000 -> 0.042 | D89: =(MalesSE!$AE$64-MalesSE!$Z$64)/1000 -> 0 | E89: =(Males!$AE$64-Males!$Z$64)/1000 -> 0.341
A90: Female employment | B90: =(FemalesFT!$AE$64-FemalesFT!$Z$64)/1000 -> 0.001 | C90: =(FemalesPT!$AE$64-FemalesPT!$Z$64)/1000 -> 0 | D90: =(FemalesSE!$AE$64-FemalesSE!$Z$64)/1000 -> 0 | E90: =(Females!$AE$64-Females!$Z$64)/1000 -> 0.001
A91: Total employment | B91: =(FT!$AE$64-FT!$Z$64)/1000 -> 0.3 | C91: =(PT!$AE$64-PT!$Z$64)/1000 -> 0.042 | D91: =(SE!$AE$64-SE!$Z$64)/1000 -> 0 | E91: =(All!$AE$64-All!$Z$64)/1000 -> 0.342
A93: =A$27 -> 2019-2024
A94: Employment by Gender | B94: FT | C94: PT | D94: SE | E94: Total
A95: Male employment | B95: =(MalesFT!$AJ$64-MalesFT!$AE$64)/1000 -> -0.242 | C95: =(MalesPT!$AJ$64-MalesPT!$AE$64)/1000 -> 0.013 | D95: =(MalesSE!$AJ$64-MalesSE!$AE$64)/1000 -> 0 | E95: =(Males!$AJ$64-Males!$AE$64)/1000 -> -0.229
A96: Female employment | B96: =(FemalesFT!$AJ$64-FemalesFT!$AE$64)/1000 -> -0.001 | C96: =(FemalesPT!$AJ$64-FemalesPT!$AE$64)/1000 -> 0 | D96: =(FemalesSE!$AJ$64-FemalesSE!$AE$64)/1000 -> 0 | E96: =(Females!$AJ$64-Females!$AE$64)/1000 -> -0.001
A97: Total employment | B97: =(FT!$AJ$64-FT!$AE$64)/1000 -> -0.243 | C97: =(PT!$AJ$64-PT!$AE$64)/1000 -> 0.013 | D97: =(SE!$AJ$64-SE!$AE$64)/1000 -> 0 | E97: =(All!$AJ$64-All!$AE$64)/1000 -> -0.23
A100: Table 6.x.2c | B100: Employment changes
A101: ='Table 6.x.2a CD'!A101 -> Food drink and tobacco | E101: 000s
A102: =A$3 -> 1999-2004
A103: Employment by Gender | B103: FT | C103: PT | D103: SE | E103: Total
A104: Male employment | B104: =(MalesFT!$P$92-MalesFT!$K$92)/1000 -> -4.681 | C104: =(MalesPT!$P$92-MalesPT!$K$92)/1000 -> 0.004 | D104: =(MalesSE!$P$92-MalesSE!$K$92)/1000 -> -0.181 | E104: =(Males!$P$92-Males!$K$92)/1000 -> -4.858
A105: Female employment | B105: =(FemalesFT!$P$92-FemalesFT!$K$92)/1000 -> -2.832 | C105: =(FemalesPT!$P$92-FemalesPT!$K$92)/1000 -> -1.725 | D105: =(FemalesSE!$P$92-FemalesSE!$K$92)/1000 -> 0.166 | E105: =(Females!$P$92-Females!$K$92)/1000 -> -4.391
A106: Total employment | B106: =(FT!$P$92-FT!$K$92)/1000 -> -7.513 | C106: =(PT!$P$92-PT!$K$92)/1000 -> -1.721 | D106: =(SE!$P$92-SE!$K$92)/1000 -> -0.015 | E106: =(All!$P$92-All!$K$92)/1000 -> -9.249
A108: =A$9 -> 2004-2009
A109: Employment by Gender | B109: FT | C109: PT | D109: SE | E109: Total
A110: Male employment | B110: =(MalesFT!$U$92-MalesFT!$P$92)/1000 -> -9.605 | C110: =(MalesPT!$U$92-MalesPT!$P$92)/1000 -> 0.301 | D110: =(MalesSE!$U$92-MalesSE!$P$92)/1000 -> -0.512 | E110: =(Males!$U$92-Males!$P$92)/1000 -> -9.816
A111: Female employment | B111: =(FemalesFT!$U$92-FemalesFT!$P$92)/1000 -> -3.232 | C111: =(FemalesPT!$U$92-FemalesPT!$P$92)/1000 -> 1.076 | D111: =(FemalesSE!$U$92-FemalesSE!$P$92)/1000 -> 0.232 | E111: =(Females!$U$92-Females!$P$92)/1000 -> -1.924
A112: Total employment | B112: =(FT!$U$92-FT!$P$92)/1000 -> -12.837 | C112: =(PT!$U$92-PT!$P$92)/1000 -> 1.377 | D112: =(SE!$U$92-SE!$P$92)/1000 -> -0.28 | E112: =(All!$U$92-All!$P$92)/1000 -> -11.74
A114: =A$15 -> 2009-2014
A115: Employment by Gender | B115: FT | C115: PT | D115: SE | E115: Total
A116: Male employment | B116: =(MalesFT!$Z$92-MalesFT!$U$92)/1000 -> 3.936 | C116: =(MalesPT!$Z$92-MalesPT!$U$92)/1000 -> 0.977 | D116: =(MalesSE!$Z$92-MalesSE!$U$92)/1000 -> -0.134 | E116: =(Males!$Z$92-Males!$U$92)/1000 -> 4.779
A117: Female employment | B117: =(FemalesFT!$Z$92-FemalesFT!$U$92)/1000 -> 1.131 | C117: =(FemalesPT!$Z$92-FemalesPT!$U$92)/1000 -> -2.093 | D117: =(FemalesSE!$Z$92-FemalesSE!$U$92)/1000 -> -0.266 | E117: =(Females!$Z$92-Females!$U$92)/1000 -> -1.228
A118: Total employment | B118: =(FT!$Z$92-FT!$U$92)/1000 -> 5.067 | C118: =(PT!$Z$92-PT!$U$92)/1000 -> -1.116 | D118: =(SE!$Z$92-SE!$U$92)/1000 -> -0.4 | E118: =(All!$Z$92-All!$U$92)/1000 -> 3.551
A120: =A$21 -> 2014-2019
A121: Employment by Gender | B121: FT | C121: PT | D121: SE | E121: Total
A122: Male employment | B122: =(MalesFT!$AE$92-MalesFT!$Z$92)/1000 -> -0.658 | C122: =(MalesPT!$AE$92-MalesPT!$Z$92)/1000 -> 0.303 | D122: =(MalesSE!$AE$92-MalesSE!$Z$92)/1000 -> -0.001 | E122: =(Males!$AE$92-Males!$Z$92)/1000 -> -0.356
A123: Female employment | B123: =(FemalesFT!$AE$92-FemalesFT!$Z$92)/1000 -> -0.091 | C123: =(FemalesPT!$AE$92-FemalesPT!$Z$92)/1000 -> 0.057 | D123: =(FemalesSE!$AE$92-FemalesSE!$Z$92)/1000 -> -0.002 | E123: =(Females!$AE$92-Females!$Z$92)/1000 -> -0.036
A124: Total employment | B124: =(FT!$AE$92-FT!$Z$92)/1000 -> -0.749 | C124: =(PT!$AE$92-PT!$Z$92)/1000 -> 0.36 | D124: =(SE!$AE$92-SE!$Z$92)/1000 -> -0.003 | E124: =(All!$AE$92-All!$Z$92)/1000 -> -0.392
A126: =A$27 -> 2019-2024
A127: Employment by Gender | B127: FT | C127: PT | D127: SE | E127: Total
A128: Male employment | B128: =(MalesFT!$AJ$92-MalesFT!$AE$92)/1000 -> -3.697 | C128: =(MalesPT!$AJ$92-MalesPT!$AE$92)/1000 -> 0.121 | D128: =(MalesSE!$AJ$92-MalesSE!$AE$92)/1000 -> -0.015 | E128: =(Males!$AJ$92-Males!$AE$92)/1000 -> -3.591
A129: Female employment | B129: =(FemalesFT!$AJ$92-FemalesFT!$AE$92)/1000 -> -1.364 | C129: =(FemalesPT!$AJ$92-FemalesPT!$AE$92)/1000 -> -0.251 | D129: =(FemalesSE!$AJ$92-FemalesSE!$AE$92)/1000 -> -0.015 | E129: =(Females!$AJ$92-Females!$AE$92)/1000 -> -1.63
A130: Total employment | B130: =(FT!$AJ$92-FT!$AE$92)/1000 -> -5.061 | C130: =(PT!$AJ$92-PT!$AE$92)/1000 -> -0.13 | D130: =(SE!$AJ$92-SE!$AE$92)/1000 -> -0.03 | E130: =(All!$AJ$92-All!$AE$92)/1000 -> -5.221
A133: Table 6.x.2c | B133: Employment changes
A134: ='Table 6.x.2a CD'!A134 -> Engineering | E134: 000s
A135: =A$3 -> 1999-2004
A136: Employment by Gender | B136: FT | C136: PT | D136: SE | E136: Total
A137: Male employment | B137: =(MalesFT!$P$120-MalesFT!$K$120)/1000 -> -10.627 | C137: =(MalesPT!$P$120-MalesPT!$K$120)/1000 -> 0.125 | D137: =(MalesSE!$P$120-MalesSE!$K$120)/1000 -> 0.055 | E137: =(Males!$P$120-Males!$K$120)/1000 -> -10.447
A138: Female employment | B138: =(FemalesFT!$P$120-FemalesFT!$K$120)/1000 -> -5.106 | C138: =(FemalesPT!$P$120-FemalesPT!$K$120)/1000 -> -0.368 | D138: =(FemalesSE!$P$120-FemalesSE!$K$120)/1000 -> 0.006 | E138: =(Females!$P$120-Females!$K$120)/1000 -> -5.468
A139: Total employment | B139: =(FT!$P$120-FT!$K$120)/1000 -> -15.733 | C139: =(PT!$P$120-PT!$K$120)/1000 -> -0.243 | D139: =(SE!$P$120-SE!$K$120)/1000 -> 0.061 | E139: =(All!$P$120-All!$K$120)/1000 -> -15.915
A141: =A$9 -> 2004-2009
A142: Employment by Gender | B142: FT | C142: PT | D142: SE | E142: Total
A143: Male employment | B143: =(MalesFT!$U$120-MalesFT!$P$120)/1000 -> -12.368 | C143: =(MalesPT!$U$120-MalesPT!$P$120)/1000 -> -0.246 | D143: =(MalesSE!$U$120-MalesSE!$P$120)/1000 -> 0.238 | E143: =(Males!$U$120-Males!$P$120)/1000 -> -12.376
A144: Female employment | B144: =(FemalesFT!$U$120-FemalesFT!$P$120)/1000 -> -4.321 | C144: =(FemalesPT!$U$120-FemalesPT!$P$120)/1000 -> -1.004 | D144: =(FemalesSE!$U$120-FemalesSE!$P$120)/1000 -> -0.125 | E144: =(Females!$U$120-Females!$P$120)/1000 -> -5.45
A145: Total employment | B145: =(FT!$U$120-FT!$P$120)/1000 -> -16.689 | C145: =(PT!$U$120-PT!$P$120)/1000 -> -1.25 | D145: =(SE!$U$120-SE!$P$120)/1000 -> 0.113 | E145: =(All!$U$120-All!$P$120)/1000 -> -17.826
A147: =A$15 -> 2009-2014
A148: Employment by Gender | B148: FT | C148: PT | D148: SE | E148: Total
A149: Male employment | B149: =(MalesFT!$Z$120-MalesFT!$U$120)/1000 -> 2.174 | C149: =(MalesPT!$Z$120-MalesPT!$U$120)/1000 -> 0.152 | D149: =(MalesSE!$Z$120-MalesSE!$U$120)/1000 -> -0.082 | E149: =(Males!$Z$120-Males!$U$120)/1000 -> 2.244
A150: Female employment | B150: =(FemalesFT!$Z$120-FemalesFT!$U$120)/1000 -> -0.012 | C150: =(FemalesPT!$Z$120-FemalesPT!$U$120)/1000 -> -0.042 | D150: =(FemalesSE!$Z$120-FemalesSE!$U$120)/1000 -> -0.045 | E150: =(Females!$Z$120-Females!$U$120)/1000 -> -0.099
A151: Total employment | B151: =(FT!$Z$120-FT!$U$120)/1000 -> 2.162 | C151: =(PT!$Z$120-PT!$U$120)/1000 -> 0.11 | D151: =(SE!$Z$120-SE!$U$120)/1000 -> -0.127 | E151: =(All!$Z$120-All!$U$120)/1000 -> 2.145
A153: =A$21 -> 2014-2019
A154: Employment by Gender | B154: FT | C154: PT | D154: SE | E154: Total
A155: Male employment | B155: =(MalesFT!$AE$120-MalesFT!$Z$120)/1000 -> -2.281 | C155: =(MalesPT!$AE$120-MalesPT!$Z$120)/1000 -> 0.109 | D155: =(MalesSE!$AE$120-MalesSE!$Z$120)/1000 -> 0.006 | E155: =(Males!$AE$120-Males!$Z$120)/1000 -> -2.166
A156: Female employment | B156: =(FemalesFT!$AE$120-FemalesFT!$Z$120)/1000 -> -0.182 | C156: =(FemalesPT!$AE$120-FemalesPT!$Z$120)/1000 -> 0.048 | D156: =(FemalesSE!$AE$120-FemalesSE!$Z$120)/1000 -> 0.002 | E156: =(Females!$AE$120-Females!$Z$120)/1000 -> -0.132
A157: Total employment | B157: =(FT!$AE$120-FT!$Z$120)/1000 -> -2.463 | C157: =(PT!$AE$120-PT!$Z$120)/1000 -> 0.157 | D157: =(SE!$AE$120-SE!$Z$120)/1000 -> 0.008 | E157: =(All!$AE$120-All!$Z$120)/1000 -> -2.298
A159: =A$27 -> 2019-2024
A160: Employment by Gender | B160: FT | C160: PT | D160: SE | E160: Total
A161: Male employment | B161: =(MalesFT!$AJ$120-MalesFT!$AE$120)/1000 -> -4.28 | C161: =(MalesPT!$AJ$120-MalesPT!$AE$120)/1000 -> 0.074 | D161: =(MalesSE!$AJ$120-MalesSE!$AE$120)/1000 -> -0.024 | E161: =(Males!$AJ$120-Males!$AE$120)/1000 -> -4.23
A162: Female employment | B162: =(FemalesFT!$AJ$120-FemalesFT!$AE$120)/1000 -> -0.707 | C162: =(FemalesPT!$AJ$120-FemalesPT!$AE$120)/1000 -> -0.02 | D162: =(FemalesSE!$AJ$120-FemalesSE!$AE$120)/1000 -> -0.001 | E162: =(Females!$AJ$120-Females!$AE$120)/1000 -> -0.728
A163: Total employment | B163: =(FT!$AJ$120-FT!$AE$120)/1000 -> -4.987 | C163: =(PT!$AJ$120-PT!$AE$120)/1000 -> 0.054 | D163: =(SE!$AJ$120-SE!$AE$120)/1000 -> -0.025 | E163: =(All!$AJ$120-All!$AE$120)/1000 -> -4.958
A166: Table 6.x.2c | B166: Employment changes
A167: ='Table 6.x.2a CD'!A167 -> Rest of manufacturing | E167: 000s
A168: =A$3 -> 1999-2004
A169: Employment by Gender | B169: FT | C169: PT | D169: SE | E169: Total
A170: Male employment | B170: =(MalesFT!$P$148-MalesFT!$K$148)/1000 -> -52.337 | C170: =(MalesPT!$P$148-MalesPT!$K$148)/1000 -> 0.632 | D170: =(MalesSE!$P$148-MalesSE!$K$148)/1000 -> -5.881 | E170: =(Males!$P$148-Males!$K$148)/1000 -> -57.586
A171: Female employment | B171: =(FemalesFT!$P$148-FemalesFT!$K$148)/1000 -> -18.928 | C171: =(FemalesPT!$P$148-FemalesPT!$K$148)/1000 -> -2.208 | D171: =(FemalesSE!$P$148-FemalesSE!$K$148)/1000 -> -2.168 | E171: =(Females!$P$148-Females!$K$148)/1000 -> -23.304
A172: Total employment | B172: =(FT!$P$148-FT!$K$148)/1000 -> -71.265 | C172: =(PT!$P$148-PT!$K$148)/1000 -> -1.576 | D172: =(SE!$P$148-SE!$K$148)/1000 -> -8.049 | E172: =(All!$P$148-All!$K$148)/1000 -> -80.89
A174: =A$9 -> 2004-2009
A175: Employment by Gender | B175: FT | C175: PT | D175: SE | E175: Total
A176: Male employment | B176: =(MalesFT!$U$148-MalesFT!$P$148)/1000 -> -25.743 | C176: =(MalesPT!$U$148-MalesPT!$P$148)/1000 -> -0.407 | D176: =(MalesSE!$U$148-MalesSE!$P$148)/1000 -> 2.845 | E176: =(Males!$U$148-Males!$P$148)/1000 -> -23.305
A177: Female employment | B177: =(FemalesFT!$U$148-FemalesFT!$P$148)/1000 -> -8.979 | C177: =(FemalesPT!$U$148-FemalesPT!$P$148)/1000 -> -6.896 | D177: =(FemalesSE!$U$148-FemalesSE!$P$148)/1000 -> 3.286 | E177: =(Females!$U$148-Females!$P$148)/1000 -> -12.589
A178: Total employment | B178: =(FT!$U$148-FT!$P$148)/1000 -> -34.722 | C178: =(PT!$U$148-PT!$P$148)/1000 -> -7.303 | D178: =(SE!$U$148-SE!$P$148)/1000 -> 6.131 | E178: =(All!$U$148-All!$P$148)/1000 -> -35.894
A180: =A$15 -> 2009-2014
A181: Employment by Gender | B181: FT | C181: PT | D181: SE | E181: Total
A182: Male employment | B182: =(MalesFT!$Z$148-MalesFT!$U$148)/1000 -> -23.898 | C182: =(MalesPT!$Z$148-MalesPT!$U$148)/1000 -> 1.371 | D182: =(MalesSE!$Z$148-MalesSE!$U$148)/1000 -> -1.367 | E182: =(Males!$Z$148-Males!$U$148)/1000 -> -23.894
A183: Female employment | B183: =(FemalesFT!$Z$148-FemalesFT!$U$148)/1000 -> -7.517 | C183: =(FemalesPT!$Z$148-FemalesPT!$U$148)/1000 -> -1.037 | D183: =(FemalesSE!$Z$148-FemalesSE!$U$148)/1000 -> -1.948 | E183: =(Females!$Z$148-Females!$U$148)/1000 -> -10.502
A184: Total employment | B184: =(FT!$Z$148-FT!$U$148)/1000 -> -31.415 | C184: =(PT!$Z$148-PT!$U$148)/1000 -> 0.334 | D184: =(SE!$Z$148-SE!$U$148)/1000 -> -3.315 | E184: =(All!$Z$148-All!$U$148)/1000 -> -34.396
A186: =A$21 -> 2014-2019
A187: Employment by Gender | B187: FT | C187: PT | D187: SE | E187: Total
A188: Male employment | B188: =(MalesFT!$AE$148-MalesFT!$Z$148)/1000 -> -4.473 | C188: =(MalesPT!$AE$148-MalesPT!$Z$148)/1000 -> 0.73 | D188: =(MalesSE!$AE$148-MalesSE!$Z$148)/1000 -> 0.759 | E188: =(Males!$AE$148-Males!$Z$148)/1000 -> -2.984
A189: Female employment | B189: =(FemalesFT!$AE$148-FemalesFT!$Z$148)/1000 -> 0.06 | C189: =(FemalesPT!$AE$148-FemalesPT!$Z$148)/1000 -> 0.225 | D189: =(FemalesSE!$AE$148-FemalesSE!$Z$148)/1000 -> -0.102 | E189: =(Females!$AE$148-Females!$Z$148)/1000 -> 0.183
A190: Total employment | B190: =(FT!$AE$148-FT!$Z$148)/1000 -> -4.413 | C190: =(PT!$AE$148-PT!$Z$148)/1000 -> 0.955 | D190: =(SE!$AE$148-SE!$Z$148)/1000 -> 0.657 | E190: =(All!$AE$148-All!$Z$148)/1000 -> -2.801
A192: =A$27 -> 2019-2024
A193: Employment by Gender | B193: FT | C193: PT | D193: SE | E193: Total
A194: Male employment | B194: =(MalesFT!$AJ$148-MalesFT!$AE$148)/1000 -> -15.393 | C194: =(MalesPT!$AJ$148-MalesPT!$AE$148)/1000 -> 0.409 | D194: =(MalesSE!$AJ$148-MalesSE!$AE$148)/1000 -> -0.072 | E194: =(Males!$AJ$148-Males!$AE$148)/1000 -> -15.056
A195: Female employment | B195: =(FemalesFT!$AJ$148-FemalesFT!$AE$148)/1000 -> -1.546 | C195: =(FemalesPT!$AJ$148-FemalesPT!$AE$148)/1000 -> -0.313 | D195: =(FemalesSE!$AJ$148-FemalesSE!$AE$148)/1000 -> -0.379 | E195: =(Females!$AJ$148-Females!$AE$148)/1000 -> -2.238
A196: Total employment | B196: =(FT!$AJ$148-FT!$AE$148)/1000 -> -16.939 | C196: =(PT!$AJ$148-PT!$AE$148)/1000 -> 0.096 | D196: =(SE!$AJ$148-SE!$AE$148)/1000 -> -0.451 | E196: =(All!$AJ$148-All!$AE$148)/1000 -> -17.294
A199: Table 6.x.2c | B199: Employment changes
A200: ='Table 6.x.2a CD'!A200 -> Electricity and gas | E200: 000s
A201: =A$3 -> 1999-2004
A202: Employment by Gender | B202: FT | C202: PT | D202: SE | E202: Total
A203: Male employment | B203: =(MalesFT!$P$176-MalesFT!$K$176)/1000 -> -2.82 | C203: =(MalesPT!$P$176-MalesPT!$K$176)/1000 -> 0.002 | D203: =(MalesSE!$P$176-MalesSE!$K$176)/1000 -> -1.213 | E203: =(Males!$P$176-Males!$K$176)/1000 -> -4.031
A204: Female employment | B204: =(FemalesFT!$P$176-FemalesFT!$K$176)/1000 -> -0.888 | C204: =(FemalesPT!$P$176-FemalesPT!$K$176)/1000 -> -0.001 | D204: =(FemalesSE!$P$176-FemalesSE!$K$176)/1000 -> -0.016 | E204: =(Females!$P$176-Females!$K$176)/1000 -> -0.905
A205: Total employment | B205: =(FT!$P$176-FT!$K$176)/1000 -> -3.708 | C205: =(PT!$P$176-PT!$K$176)/1000 -> 0.001 | D205: =(SE!$P$176-SE!$K$176)/1000 -> -1.229 | E205: =(All!$P$176-All!$K$176)/1000 -> -4.936
A207: =A$9 -> 2004-2009
A208: Employment by Gender | B208: FT | C208: PT | D208: SE | E208: Total
A209: Male employment | B209: =(MalesFT!$U$176-MalesFT!$P$176)/1000 -> 3.922 | C209: =(MalesPT!$U$176-MalesPT!$P$176)/1000 -> 0.083 | D209: =(MalesSE!$U$176-MalesSE!$P$176)/1000 -> 0.001 | E209: =(Males!$U$176-Males!$P$176)/1000 -> 4.006
A210: Female employment | B210: =(FemalesFT!$U$176-FemalesFT!$P$176)/1000 -> 0.981 | C210: =(FemalesPT!$U$176-FemalesPT!$P$176)/1000 -> 1.165 | D210: =(FemalesSE!$U$176-FemalesSE!$P$176)/1000 -> -0.03 | E210: =(Females!$U$176-Females!$P$176)/1000 -> 2.116
A211: Total employment | B211: =(FT!$U$176-FT!$P$176)/1000 -> 4.903 | C211: =(PT!$U$176-PT!$P$176)/1000 -> 1.248 | D211: =(SE!$U$176-SE!$P$176)/1000 -> -0.029 | E211: =(All!$U$176-All!$P$176)/1000 -> 6.122
A213: =A$15 -> 2009-2014
A214: Employment by Gender | B214: FT | C214: PT | D214: SE | E214: Total
A215: Male employment | B215: =(MalesFT!$Z$176-MalesFT!$U$176)/1000 -> 2.005 | C215: =(MalesPT!$Z$176-MalesPT!$U$176)/1000 -> -0.083 | D215: =(MalesSE!$Z$176-MalesSE!$U$176)/1000 -> 0.989 | E215: =(Males!$Z$176-Males!$U$176)/1000 -> 2.911
A216: Female employment | B216: =(FemalesFT!$Z$176-FemalesFT!$U$176)/1000 -> 1.042 | C216: =(FemalesPT!$Z$176-FemalesPT!$U$176)/1000 -> -0.166 | D216: =(FemalesSE!$Z$176-FemalesSE!$U$176)/1000 -> 0 | E216: =(Females!$Z$176-Females!$U$176)/1000 -> 0.876
A217: Total employment | B217: =(FT!$Z$176-FT!$U$176)/1000 -> 3.047 | C217: =(PT!$Z$176-PT!$U$176)/1000 -> -0.249 | D217: =(SE!$Z$176-SE!$U$176)/1000 -> 0.989 | E217: =(All!$Z$176-All!$U$176)/1000 -> 3.787
A219: =A$21 -> 2014-2019
A220: Employment by Gender | B220: FT | C220: PT | D220: SE | E220: Total
A221: Male employment | B221: =(MalesFT!$AE$176-MalesFT!$Z$176)/1000 -> 1.163 | C221: =(MalesPT!$AE$176-MalesPT!$Z$176)/1000 -> -0.014 | D221: =(MalesSE!$AE$176-MalesSE!$Z$176)/1000 -> 0.091 | E221: =(Males!$AE$176-Males!$Z$176)/1000 -> 1.24
A222: Female employment | B222: =(FemalesFT!$AE$176-FemalesFT!$Z$176)/1000 -> -0.072 | C222: =(FemalesPT!$AE$176-FemalesPT!$Z$176)/1000 -> 0.06 | D222: =(FemalesSE!$AE$176-FemalesSE!$Z$176)/1000 -> 0 | E222: =(Females!$AE$176-Females!$Z$176)/1000 -> -0.012
A223: Total employment | B223: =(FT!$AE$176-FT!$Z$176)/1000 -> 1.091 | C223: =(PT!$AE$176-PT!$Z$176)/1000 -> 0.046 | D223: =(SE!$AE$176-SE!$Z$176)/1000 -> 0.091 | E223: =(All!$AE$176-All!$Z$176)/1000 -> 1.228
A225: =A$27 -> 2019-2024
A226: Employment by Gender | B226: FT | C226: PT | D226: SE | E226: Total
A227: Male employment | B227: =(MalesFT!$AJ$176-MalesFT!$AE$176)/1000 -> 0.571 | C227: =(MalesPT!$AJ$176-MalesPT!$AE$176)/1000 -> -0.028 | D227: =(MalesSE!$AJ$176-MalesSE!$AE$176)/1000 -> 0.013 | E227: =(Males!$AJ$176-Males!$AE$176)/1000 -> 0.556
A228: Female employment | B228: =(FemalesFT!$AJ$176-FemalesFT!$AE$176)/1000 -> -0.417 | C228: =(FemalesPT!$AJ$176-FemalesPT!$AE$176)/1000 -> -0.009 | D228: =(FemalesSE!$AJ$176-FemalesSE!$AE$176)/1000 -> 0 | E228: =(Females!$AJ$176-Females!$AE$176)/1000 -> -0.426
A229: Total employment | B229: =(FT!$AJ$176-FT!$AE$176)/1000 -> 0.154 | C229: =(PT!$AJ$176-PT!$AE$176)/1000 -> -0.037 | D229: =(SE!$AJ$176-SE!$AE$176)/1000 -> 0.013 | E229: =(All!$AJ$176-All!$AE$176)/1000 -> 0.13
A232: Table 6.x.2c | B232: Employment changes
A233: ='Table 6.x.2a CD'!A233 -> Water and sewerage | E233: 000s
A234: =A$3 -> 1999-2004
A235: Employment by Gender | B235: FT | C235: PT | D235: SE | E235: Total
A236: Male employment | B236: =(MalesFT!$P$204-MalesFT!$K$204)/1000 -> -0.759 | C236: =(MalesPT!$P$204-MalesPT!$K$204)/1000 -> 0.755 | D236: =(MalesSE!$P$204-MalesSE!$K$204)/1000 -> 0.175 | E236: =(Males!$P$204-Males!$K$204)/1000 -> 0.171
A237: Female employment | B237: =(FemalesFT!$P$204-FemalesFT!$K$204)/1000 -> -0.906 | C237: =(FemalesPT!$P$204-FemalesPT!$K$204)/1000 -> -0.218 | D237: =(FemalesSE!$P$204-FemalesSE!$K$204)/1000 -> 0.005 | E237: =(Females!$P$204-Females!$K$204)/1000 -> -1.119
A238: Total employment | B238: =(FT!$P$204-FT!$K$204)/1000 -> -1.665 | C238: =(PT!$P$204-PT!$K$204)/1000 -> 0.537 | D238: =(SE!$P$204-SE!$K$204)/1000 -> 0.18 | E238: =(All!$P$204-All!$K$204)/1000 -> -0.948
A240: =A$9 -> 2004-2009
A241: Employment by Gender | B241: FT | C241: PT | D241: SE | E241: Total
A242: Male employment | B242: =(MalesFT!$U$204-MalesFT!$P$204)/1000 -> -1.966 | C242: =(MalesPT!$U$204-MalesPT!$P$204)/1000 -> -1.652 | D242: =(MalesSE!$U$204-MalesSE!$P$204)/1000 -> -1.205 | E242: =(Males!$U$204-Males!$P$204)/1000 -> -4.823
A243: Female employment | B243: =(FemalesFT!$U$204-FemalesFT!$P$204)/1000 -> 0.891 | C243: =(FemalesPT!$U$204-FemalesPT!$P$204)/1000 -> 0.15 | D243: =(FemalesSE!$U$204-FemalesSE!$P$204)/1000 -> 0.002 | E243: =(Females!$U$204-Females!$P$204)/1000 -> 1.043
... 265 more rows

Sheet Figure 6.x.7
N2: Graph titles - do not remove:-
N3: Employment levels by gender and status,
N4: =CONCATENATE(N3,'Table 6.x.2a CD'!A3,"-",'Table 6.x.2a CD'!A27) -> Employment levels by gender and status, 2004-2024
N6: =CONCATENATE($N$4,CHAR(13),names!$A$3) -> Employment levels by gender and status, 2004-2024 All industries
N28: =CONCATENATE($N$4,CHAR(13),names!$A$4) -> Employment levels by gender and status, 2004-2024 Agriculture
N50: =CONCATENATE($N$4,CHAR(13),names!$A$5) -> Employment levels by gender and status, 2004-2024 Mining and quarrying
N72: =CONCATENATE($N$4,CHAR(13),names!$A$6) -> Employment levels by gender and status, 2004-2024 Food drink and tobacco
N94: =CONCATENATE($N$4,CHAR(13),names!$A$7) -> Employment levels by gender and status, 2004-2024 Engineering
N116: =CONCATENATE($N$4,CHAR(13),names!$A$8) -> Employment levels by gender and status, 2004-2024 Rest of manufacturing
N138: =CONCATENATE($N$4,CHAR(13),names!$A$9) -> Employment levels by gender and status, 2004-2024 Electricity and gas
N160: =CONCATENATE($N$4,CHAR(13),names!$A$10) -> Employment levels by gender and status, 2004-2024 Water and sewerage
N182: =CONCATENATE($N$4,CHAR(13),names!$A$11) -> Employment levels by gender and status, 2004-2024 Construction
N204: =CONCATENATE($N$4,CHAR(13),names!$A$12) -> Employment levels by gender and status, 2004-2024 Wholesale and retail trade
N226: =CONCATENATE($N$4,CHAR(13),names!$A$13) -> Employment levels by gender and status, 2004-2024 Transport and storage
N248: =CONCATENATE($N$4,CHAR(13),names!$A$14) -> Employment levels by gender and status, 2004-2024 Accommodation and food
N270: =CONCATENATE($N$4,CHAR(13),names!$A$15) -> Employment levels by gender and status, 2004-2024 Media
N292: =CONCATENATE($N$4,CHAR(13),names!$A$16) -> Employment levels by gender and status, 2004-2024 Information technology
N314: =CONCATENATE($N$4,CHAR(13),names!$A$17) -> Employment levels by gender and status, 2004-2024 Finance and insurance
N336: =CONCATENATE($N$4,CHAR(13),names!$A$18) -> Employment levels by gender and status, 2004-2024 Real estate
N358: =CONCATENATE($N$4,CHAR(13),names!$A$19) -> Employment levels by gender and status, 2004-2024 Professional services
N380: =CONCATENATE($N$4,CHAR(13),names!$A$20) -> Employment levels by gender and status, 2004-2024 Support services
N402: =CONCATENATE($N$4,CHAR(13),names!$A$21) -> Employment levels by gender and status, 2004-2024 Public admin. and defence
N424: =CONCATENATE($N$4,CHAR(13),names!$A$22) -> Employment levels by gender and status, 2004-2024 Education
N446: =CONCATENATE($N$4,CHAR(13),names!$A$23) -> Employment levels by gender and status, 2004-2024 Health and social work
N468: =CONCATENATE($N$4,CHAR(13),names!$A$24) -> Employment levels by gender and status, 2004-2024 Arts and entertainment
N489: =CONCATENATE($N$4,CHAR(13),names!$A$25) -> Employment levels by gender and status, 2004-2024 Other services

Sheet Figure 6.x.8
C7: Do NOT remove.
C8: ="Employment shares by gender and status, "&'Table 6.x.2b CD'!A3&"-"&'Table 6.x.2b CD'!A27 -> Employment shares by gender and status, 2004-2024

Sheet Figure 6.x.9
C7: Do NOT remove
C8: =CONCATENATE("Employment changes by gender and status, ",All!K7,"-",'Table 6.x.2b CD'!A27) -> Employment changes by gender and status, 1999-2024

Sheet Figure 6.x.10
P1: ="Occupational Composition, "&P2&", "&Q2&"-"&U2 -> Occupational Composition, All industries, 2004-2024
P2: =names!A3 -> All industries | Q2: =All!P7 -> 2004 | R2: =All!U7 -> 2009 | S2: =All!Z7 -> 2014 | T2: =All!AE7 -> 2019 | U2: =All!AJ7 -> 2024
P3: =names!B4 -> Managers, directors and senior officials | Q3: =(All!P9+All!P10)/1000 -> 270.492697 | R3: =(All!U9+All!U10)/1000 -> 282.892072 | S3: =(All!Z9+All!Z10)/1000 -> 311.987255 | T3: =(All!AE9+All!AE10)/1000 -> 340.640103 | U3: =(All!AJ9+All!AJ10)/1000 -> 354.365192
P4: =names!B5 -> Professional occupations | Q4: =(All!P11+All!P12+All!P13+All!P14)/1000 -> 544.160483 | R4: =(All!U11+All!U12+All!U13+All!U14)/1000 -> 605.098679 | S4: =(All!Z11+All!Z12+All!Z13+All!Z14)/1000 -> 658.518405 | T4: =(All!AE11+All!AE12+All!AE13+All!AE14)/1000 -> 703.317 | U4: =(All!AJ11+All!AJ12+All!AJ13+All!AJ14)/1000 -> 730.852943
P5: =names!B6 -> Associate professional and technical | Q5: =(All!P15+All!P16+All!P17+All!P18+All!P19)/1000 -> 399.721728 | R5: =(All!U15+All!U16+All!U17+All!U18+All!U19)/1000 -> 412.738969 | S5: =(All!Z15+All!Z16+All!Z17+All!Z18+All!Z19)/1000 -> 439.920617 | T5: =(All!AE15+All!AE16+All!AE17+All!AE18+All!AE19)/1000 -> 468.614273 | U5: =(All!AJ15+All!AJ16+All!AJ17+All!AJ18+All!AJ19)/1000 -> 485.254163
P6: =names!B7 -> Administrative and secretarial | Q6: =(All!P20+All!P21)/1000 -> 449.47232 | R6: =(All!U20+All!U21)/1000 -> 423.117084 | S6: =(All!Z20+All!Z21)/1000 -> 449.557112 | T6: =(All!AE20+All!AE21)/1000 -> 423.019216 | U6: =(All!AJ20+All!AJ21)/1000 -> 411.882345
P7: =names!B8 -> Skilled trades occupations | Q7: =(All!P22+All!P23+All!P24+All!P25)/1000 -> 423.028725 | R7: =(All!U22+All!U23+All!U24+All!U25)/1000 -> 397.628818 | S7: =(All!Z22+All!Z23+All!Z24+All!Z25)/1000 -> 386.862288 | T7: =(All!AE22+All!AE23+All!AE24+All!AE25)/1000 -> 382.065573 | U7: =(All!AJ22+All!AJ23+All!AJ24+All!AJ25)/1000 -> 372.982147
P8: =names!B9 -> Caring, leisure and other service | Q8: =(All!P26+All!P27)/1000 -> 296.976537 | R8: =(All!U26+All!U27)/1000 -> 340.624896 | S8: =(All!Z26+All!Z27)/1000 -> 383.925844 | T8: =(All!AE26+All!AE27)/1000 -> 407.002646 | U8: =(All!AJ26+All!AJ27)/1000 -> 425.769278
P9: =names!B10 -> Sales and customer service | Q9: =(All!P28+All!P29)/1000 -> 294.567536 | R9: =(All!U28+All!U29)/1000 -> 309.675137 | S9: =(All!Z28+All!Z29)/1000 -> 330.271964 | T9: =(All!AE28+All!AE29)/1000 -> 332.589596 | U9: =(All!AJ28+All!AJ29)/1000 -> 336.643571
P10: =names!B11 -> Process, plant and machine operatives | Q10: =(All!P30+All!P31)/1000 -> 276.93745 | R10: =(All!U30+All!U31)/1000 -> 259.492462 | S10: =(All!Z30+All!Z31)/1000 -> 266.093394 | T10: =(All!AE30+All!AE31)/1000 -> 256.164776 | U10: =(All!AJ30+All!AJ31)/1000 -> 244.984378
P11: =names!B12 -> Elementary occupations | Q11: =(All!P32+All!P33)/1000 -> 430.068525 | R11: =(All!U32+All!U33)/1000 -> 386.354883 | S11: =(All!Z32+All!Z33)/1000 -> 400.304122 | T11: =(All!AE32+All!AE33)/1000 -> 409.499818 | U11: =(All!AJ32+All!AJ33)/1000 -> 414.737982
P29: ="Occupational Composition, "&P30&", "&Q30&"-"&U30 -> Occupational Composition, Agriculture, 2004-2024
P30: =names!A4 -> Agriculture | Q30: =Q$2 -> 2004 | R30: =R$2 -> 2009 | S30: =S$2 -> 2014 | T30: =T$2 -> 2019 | U30: =U$2 -> 2024
P31: =P$3 -> Managers, directors and senior officials | Q31: =(All!P37+All!P38)/1000 -> 1.669144 | R31: =(All!U37+All!U38)/1000 -> 1.775548 | S31: =(All!Z37+All!Z38)/1000 -> 3.133474 | T31: =(All!AE37+All!AE38)/1000 -> 2.474796 | U31: =(All!AJ37+All!AJ38)/1000 -> 2.17365
P32: =P$4 -> Professional occupations | Q32: =(All!P39+All!P40+All!P41+All!P42)/1000 -> 0.857873 | R32: =(All!U39+All!U40+All!U41+All!U42)/1000 -> 1.233136 | S32: =(All!Z39+All!Z40+All!Z41+All!Z42)/1000 -> 1.785356 | T32: =(All!AE39+All!AE40+All!AE41+All!AE42)/1000 -> 1.640743 | U32: =(All!AJ39+All!AJ40+All!AJ41+All!AJ42)/1000 -> 1.623605
P33: =P$5 -> Associate professional and technical | Q33: =(All!P43+All!P44+All!P45+All!P46+All!P47)/1000 -> 0.513384 | R33: =(All!U43+All!U44+All!U45+All!U46+All!U47)/1000 -> 0.792371 | S33: =(All!Z43+All!Z44+All!Z45+All!Z46+All!Z47)/1000 -> 1.46896 | T33: =(All!AE43+All!AE44+All!AE45+All!AE46+All!AE47)/1000 -> 1.304069 | U33: =(All!AJ43+All!AJ44+All!AJ45+All!AJ46+All!AJ47)/1000 -> 1.261422
P34: =P$6 -> Administrative and secretarial | Q34: =(All!P48+All!P49)/1000 -> 0.975148 | R34: =(All!U48+All!U49)/1000 -> 1.340156 | S34: =(All!Z48+All!Z49)/1000 -> 3.358717 | T34: =(All!AE48+All!AE49)/1000 -> 2.558824 | U34: =(All!AJ48+All!AJ49)/1000 -> 2.275795
P35: =P$7 -> Skilled trades occupations | Q35: =(All!P50+All!P51+All!P52+All!P53)/1000 -> 12.131715 | R35: =(All!U50+All!U51+All!U52+All!U53)/1000 -> 16.78953 | S35: =(All!Z50+All!Z51+All!Z52+All!Z53)/1000 -> 22.645375 | T35: =(All!AE50+All!AE51+All!AE52+All!AE53)/1000 -> 20.22414 | U35: =(All!AJ50+All!AJ51+All!AJ52+All!AJ53)/1000 -> 19.048829
P36: =P$8 -> Caring, leisure and other service | Q36: =(All!P54+All!P55)/1000 -> 0.636844 | R36: =(All!U54+All!U55)/1000 -> 0.636656 | S36: =(All!Z54+All!Z55)/1000 -> 1.59392 | T36: =(All!AE54+All!AE55)/1000 -> 1.455205 | U36: =(All!AJ54+All!AJ55)/1000 -> 1.435362
P37: =P$9 -> Sales and customer service | Q37: =(All!P56+All!P57)/1000 -> 0.122844 | R37: =(All!U56+All!U57)/1000 -> 0.202408 | S37: =(All!Z56+All!Z57)/1000 -> 0.491684 | T37: =(All!AE56+All!AE57)/1000 -> 0.396658 | U37: =(All!AJ56+All!AJ57)/1000 -> 0.371944
P38: =P$10 -> Process, plant and machine operatives | Q38: =(All!P58+All!P59)/1000 -> 0.874966 | R38: =(All!U58+All!U59)/1000 -> 1.143933 | S38: =(All!Z58+All!Z59)/1000 -> 1.404714 | T38: =(All!AE58+All!AE59)/1000 -> 0.945227 | U38: =(All!AJ58+All!AJ59)/1000 -> 0.789652
P39: =P$11 -> Elementary occupations | Q39: =(All!P60+All!P61)/1000 -> 2.402081 | R39: =(All!U60+All!U61)/1000 -> 3.210262 | S39: =(All!Z60+All!Z61)/1000 -> 5.342801 | T39: =(All!AE60+All!AE61)/1000 -> 4.032337 | U39: =(All!AJ60+All!AJ61)/1000 -> 3.67174
P57: ="Occupational Composition, "&P58&", "&Q58&"-"&U58 -> Occupational Composition, Mining and quarrying, 2004-2024
P58: =names!A5 -> Mining and quarrying | Q58: =Q$2 -> 2004 | R58: =R$2 -> 2009 | S58: =S$2 -> 2014 | T58: =T$2 -> 2019 | U58: =U$2 -> 2024
P59: =P$3 -> Managers, directors and senior officials | Q59: =(All!P65+All!P66)/1000 -> 0.186083 | R59: =(All!U65+All!U66)/1000 -> 0.12899 | S59: =(All!Z65+All!Z66)/1000 -> 0.12528 | T59: =(All!AE65+All!AE66)/1000 -> 0.175786 | U59: =(All!AJ65+All!AJ66)/1000 -> 0.152809
P60: =P$4 -> Professional occupations | Q60: =(All!P67+All!P68+All!P69+All!P70)/1000 -> 0.279342 | R60: =(All!U67+All!U68+All!U69+All!U70)/1000 -> 0.145695 | S60: =(All!Z67+All!Z68+All!Z69+All!Z70)/1000 -> 0.122128 | T60: =(All!AE67+All!AE68+All!AE69+All!AE70)/1000 -> 0.166547 | U60: =(All!AJ67+All!AJ68+All!AJ69+All!AJ70)/1000 -> 0.143189
P61: =P$5 -> Associate professional and technical | Q61: =(All!P71+All!P72+All!P73+All!P74+All!P75)/1000 -> 0.421675 | R61: =(All!U71+All!U72+All!U73+All!U74+All!U75)/1000 -> 0.195873 | S61: =(All!Z71+All!Z72+All!Z73+All!Z74+All!Z75)/1000 -> 0.1983 | T61: =(All!AE71+All!AE72+All!AE73+All!AE74+All!AE75)/1000 -> 0.265989 | U61: =(All!AJ71+All!AJ72+All!AJ73+All!AJ74+All!AJ75)/1000 -> 0.22429
P62: =P$6 -> Administrative and secretarial | Q62: =(All!P76+All!P77)/1000 -> 0.118175 | R62: =(All!U76+All!U77)/1000 -> 0.034131 | S62: =(All!Z76+All!Z77)/1000 -> 0.0198 | T62: =(All!AE76+All!AE77)/1000 -> 0.027125 | U62: =(All!AJ76+All!AJ77)/1000 -> 0.024184
P63: =P$7 -> Skilled trades occupations | Q63: =(All!P78+All!P79+All!P80+All!P81)/1000 -> 0.473378 | R63: =(All!U78+All!U79+All!U80+All!U81)/1000 -> 0.290705 | S63: =(All!Z78+All!Z79+All!Z80+All!Z81)/1000 -> 0.279457 | T63: =(All!AE78+All!AE79+All!AE80+All!AE81)/1000 -> 0.345691 | U63: =(All!AJ78+All!AJ79+All!AJ80+All!AJ81)/1000 -> 0.27993
P64: =P$8 -> Caring, leisure and other service | Q64: =(All!P82+All!P83)/1000 -> 0.055521 | R64: =(All!U82+All!U83)/1000 -> 0.036685 | S64: =(All!Z82+All!Z83)/1000 -> 0.029513 | T64: =(All!AE82+All!AE83)/1000 -> 0.042161 | U64: =(All!AJ82+All!AJ83)/1000 -> 0.03833
P65: =P$9 -> Sales and customer service | Q65: =(All!P84+All!P85)/1000 -> 0.05028 | R65: =(All!U84+All!U85)/1000 -> 0.026186 | S65: =(All!Z84+All!Z85)/1000 -> 0.021333 | T65: =(All!AE84+All!AE85)/1000 -> 0.026043 | U65: =(All!AJ84+All!AJ85)/1000 -> 0.023258
P66: =P$10 -> Process, plant and machine operatives | Q66: =(All!P86+All!P87)/1000 -> 0.608555 | R66: =(All!U86+All!U87)/1000 -> 0.299329 | S66: =(All!Z86+All!Z87)/1000 -> 0.295636 | T66: =(All!AE86+All!AE87)/1000 -> 0.378093 | U66: =(All!AJ86+All!AJ87)/1000 -> 0.316553
P67: =P$11 -> Elementary occupations | Q67: =(All!P88+All!P89)/1000 -> 0.06399 | R67: =(All!U88+All!U89)/1000 -> 0.027406 | S67: =(All!Z88+All!Z89)/1000 -> 0.032555 | T67: =(All!AE88+All!AE89)/1000 -> 0.038564 | U67: =(All!AJ88+All!AJ89)/1000 -> 0.033457
P84: ="Occupational Composition, "&P85&", "&Q85&"-"&U85 -> Occupational Composition, Food drink and tobacco, 2004-2024
P85: =names!A6 -> Food drink and tobacco | Q85: =Q$2 -> 2004 | R85: =R$2 -> 2009 | S85: =S$2 -> 2014 | T85: =T$2 -> 2019 | U85: =U$2 -> 2024
P86: =P$3 -> Managers, directors and senior officials | Q86: =(All!P93+All!P94)/1000 -> 4.814864 | R86: =(All!U93+All!U94)/1000 -> 5.119614 | S86: =(All!Z93+All!Z94)/1000 -> 4.340351 | T86: =(All!AE93+All!AE94)/1000 -> 4.865199 | U86: =(All!AJ93+All!AJ94)/1000 -> 4.697757
P87: =P$4 -> Professional occupations | Q87: =(All!P95+All!P96+All!P97+All!P98)/1000 -> 3.6458 | R87: =(All!U95+All!U96+All!U97+All!U98)/1000 -> 3.239059 | S87: =(All!Z95+All!Z96+All!Z97+All!Z98)/1000 -> 2.751702 | T87: =(All!AE95+All!AE96+All!AE97+All!AE98)/1000 -> 3.03199 | U87: =(All!AJ95+All!AJ96+All!AJ97+All!AJ98)/1000 -> 2.857902
P88: =P$5 -> Associate professional and technical | Q88: =(All!P99+All!P100+All!P101+All!P102+All!P103)/1000 -> 5.156684 | R88: =(All!U99+All!U100+All!U101+All!U102+All!U103)/1000 -> 3.973037 | S88: =(All!Z99+All!Z100+All!Z101+All!Z102+All!Z103)/1000 -> 4.914445 | T88: =(All!AE99+All!AE100+All!AE101+All!AE102+All!AE103)/1000 -> 5.30543 | U88: =(All!AJ99+All!AJ100+All!AJ101+All!AJ102+All!AJ103)/1000 -> 4.960935
P89: =P$6 -> Administrative and secretarial | Q89: =(All!P104+All!P105)/1000 -> 2.488921 | R89: =(All!U104+All!U105)/1000 -> 2.355097 | S89: =(All!Z104+All!Z105)/1000 -> 2.937529 | T89: =(All!AE104+All!AE105)/1000 -> 3.066883 | U89: =(All!AJ104+All!AJ105)/1000 -> 3.002542
P90: =P$7 -> Skilled trades occupations | Q90: =(All!P106+All!P107+All!P108+All!P109)/1000 -> 10.549943 | R90: =(All!U106+All!U107+All!U108+All!U109)/1000 -> 7.238004 | S90: =(All!Z106+All!Z107+All!Z108+All!Z109)/1000 -> 7.693721 | T90: =(All!AE106+All!AE107+All!AE108+All!AE109)/1000 -> 7.15928 | U90: =(All!AJ106+All!AJ107+All!AJ108+All!AJ109)/1000 -> 6.057549
P91: =P$8 -> Caring, leisure and other service | Q91: =(All!P110+All!P111)/1000 -> 0.281533 | R91: =(All!U110+All!U111)/1000 -> 0.291235 | S91: =(All!Z110+All!Z111)/1000 -> 0.312139 | T91: =(All!AE110+All!AE111)/1000 -> 0.363624 | U91: =(All!AJ110+All!AJ111)/1000 -> 0.346439
P92: =P$9 -> Sales and customer service | Q92: =(All!P112+All!P113)/1000 -> 1.710743 | R92: =(All!U112+All!U113)/1000 -> 1.573158 | S92: =(All!Z112+All!Z113)/1000 -> 2.051084 | T92: =(All!AE112+All!AE113)/1000 -> 2.074153 | U92: =(All!AJ112+All!AJ113)/1000 -> 1.987993
P93: =P$10 -> Process, plant and machine operatives | Q93: =(All!P114+All!P115)/1000 -> 23.501345 | R93: =(All!U114+All!U115)/1000 -> 16.129334 | S93: =(All!Z114+All!Z115)/1000 -> 17.11143 | T93: =(All!AE114+All!AE115)/1000 -> 15.427525 | U93: =(All!AJ114+All!AJ115)/1000 -> 13.16295
P94: =P$11 -> Elementary occupations | Q94: =(All!P116+All!P117)/1000 -> 8.267168 | R94: =(All!U116+All!U117)/1000 -> 8.758463 | S94: =(All!Z116+All!Z117)/1000 -> 10.115598 | T94: =(All!AE116+All!AE117)/1000 -> 10.541915 | U94: =(All!AJ116+All!AJ117)/1000 -> 9.540933
P112: ="Occupational Composition, "&P113&", "&Q113&"-"&U113 -> Occupational Composition, Engineering, 2004-2024
P113: =names!A7 -> Engineering | Q113: =Q$2 -> 2004 | R113: =R$2 -> 2009 | S113: =S$2 -> 2014 | T113: =T$2 -> 2019 | U113: =U$2 -> 2024
P114: =P$3 -> Managers, directors and senior officials | Q114: =(All!P121+All!P122)/1000 -> 4.658575 | R114: =(All!U121+All!U122)/1000 -> 3.586804 | S114: =(All!Z121+All!Z122)/1000 -> 4.349658 | T114: =(All!AE121+All!AE122)/1000 -> 4.370456 | U114: =(All!AJ121+All!AJ122)/1000 -> 3.857323
P115: =P$4 -> Professional occupations | Q115: =(All!P123+All!P124+All!P125+All!P126)/1000 -> 9.232181 | R115: =(All!U123+All!U124+All!U125+All!U126)/1000 -> 7.020986 | S115: =(All!Z123+All!Z124+All!Z125+All!Z126)/1000 -> 8.176588 | T115: =(All!AE123+All!AE124+All!AE125+All!AE126)/1000 -> 8.133872 | U115: =(All!AJ123+All!AJ124+All!AJ125+All!AJ126)/1000 -> 7.055043
P116: =P$5 -> Associate professional and technical | Q116: =(All!P127+All!P128+All!P129+All!P130+All!P131)/1000 -> 6.92699 | R116: =(All!U127+All!U128+All!U129+All!U130+All!U131)/1000 -> 4.965596 | S116: =(All!Z127+All!Z128+All!Z129+All!Z130+All!Z131)/1000 -> 5.288831 | T116: =(All!AE127+All!AE128+All!AE129+All!AE130+All!AE131)/1000 -> 5.224674 | U116: =(All!AJ127+All!AJ128+All!AJ129+All!AJ130+All!AJ131)/1000 -> 4.537479
P117: =P$6 -> Administrative and secretarial | Q117: =(All!P132+All!P133)/1000 -> 3.794899 | R117: =(All!U132+All!U133)/1000 -> 2.21384 | S117: =(All!Z132+All!Z133)/1000 -> 2.095778 | T117: =(All!AE132+All!AE133)/1000 -> 1.915091 | U117: =(All!AJ132+All!AJ133)/1000 -> 1.621693
P118: =P$7 -> Skilled trades occupations | Q118: =(All!P134+All!P135+All!P136+All!P137)/1000 -> 12.66032 | R118: =(All!U134+All!U135+All!U136+All!U137)/1000 -> 7.408569 | S118: =(All!Z134+All!Z135+All!Z136+All!Z137)/1000 -> 7.28713 | T118: =(All!AE134+All!AE135+All!AE136+All!AE137)/1000 -> 6.220005 | U118: =(All!AJ134+All!AJ135+All!AJ136+All!AJ137)/1000 -> 4.974301
P119: =P$8 -> Caring, leisure and other service | Q119: =(All!P138+All!P139)/1000 -> 0.317549 | R119: =(All!U138+All!U139)/1000 -> 0.16799 | S119: =(All!Z138+All!Z139)/1000 -> 0.151652 | T119: =(All!AE138+All!AE139)/1000 -> 0.166583 | U119: =(All!AJ138+All!AJ139)/1000 -> 0.147822
P120: =P$9 -> Sales and customer service | Q120: =(All!P140+All!P141)/1000 -> 1.005766 | R120: =(All!U140+All!U141)/1000 -> 0.658279 | S120: =(All!Z140+All!Z141)/1000 -> 0.954256 | T120: =(All!AE140+All!AE141)/1000 -> 0.902941 | U120: =(All!AJ140+All!AJ141)/1000 -> 0.772598
P121: =P$10 -> Process, plant and machine operatives | Q121: =(All!P142+All!P143)/1000 -> 8.457894 | R121: =(All!U142+All!U143)/1000 -> 4.142734 | S121: =(All!Z142+All!Z143)/1000 -> 3.957705 | T121: =(All!AE142+All!AE143)/1000 -> 3.194134 | U121: =(All!AJ142+All!AJ143)/1000 -> 2.461137
P122: =P$11 -> Elementary occupations | Q122: =(All!P144+All!P145)/1000 -> 2.463823 | R122: =(All!U144+All!U145)/1000 -> 1.527201 | S122: =(All!Z144+All!Z145)/1000 -> 1.575404 | T122: =(All!AE144+All!AE145)/1000 -> 1.411243 | U122: =(All!AJ144+All!AJ145)/1000 -> 1.153603
P140: ="Occupational Composition, "&P141&", "&Q141&"-"&U141 -> Occupational Composition, Rest of manufacturing, 2004-2024
P141: =names!A8 -> Rest of manufacturing | Q141: =Q$2 -> 2004 | R141: =R$2 -> 2009 | S141: =S$2 -> 2014 | T141: =T$2 -> 2019 | U141: =U$2 -> 2024
P142: =P$3 -> Managers, directors and senior officials | Q142: =(All!P149+All!P150)/1000 -> 26.610271 | R142: =(All!U149+All!U150)/1000 -> 27.410775 | S142: =(All!Z149+All!Z150)/1000 -> 24.603884 | T142: =(All!AE149+All!AE150)/1000 -> 26.268175 | U142: =(All!AJ149+All!AJ150)/1000 -> 25.553666
P143: =P$4 -> Professional occupations | Q143: =(All!P151+All!P152+All!P153+All!P154)/1000 -> 35.131166 | R143: =(All!U151+All!U152+All!U153+All!U154)/1000 -> 37.503911 | S143: =(All!Z151+All!Z152+All!Z153+All!Z154)/1000 -> 39.336091 | T143: =(All!AE151+All!AE152+All!AE153+All!AE154)/1000 -> 41.718658 | U143: =(All!AJ151+All!AJ152+All!AJ153+All!AJ154)/1000 -> 40.553356
P144: =P$5 -> Associate professional and technical | Q144: =(All!P155+All!P156+All!P157+All!P158+All!P159)/1000 -> 35.674935 | R144: =(All!U155+All!U156+All!U157+All!U158+All!U159)/1000 -> 33.385482 | S144: =(All!Z155+All!Z156+All!Z157+All!Z158+All!Z159)/1000 -> 28.608749 | T144: =(All!AE155+All!AE156+All!AE157+All!AE158+All!AE159)/1000 -> 29.724485 | U144: =(All!AJ155+All!AJ156+All!AJ157+All!AJ158+All!AJ159)/1000 -> 28.507855
P145: =P$6 -> Administrative and secretarial | Q145: =(All!P160+All!P161)/1000 -> 25.944095 | R145: =(All!U160+All!U161)/1000 -> 21.365963 | S145: =(All!Z160+All!Z161)/1000 -> 16.54289 | T145: =(All!AE160+All!AE161)/1000 -> 16.191638 | U145: =(All!AJ160+All!AJ161)/1000 -> 15.042619
P146: =P$7 -> Skilled trades occupations | Q146: =(All!P162+All!P163+All!P164+All!P165)/1000 -> 86.724611 | R146: =(All!U162+All!U163+All!U164+All!U165)/1000 -> 78.401104 | S146: =(All!Z162+All!Z163+All!Z164+All!Z165)/1000 -> 63.772955 | T146: =(All!AE162+All!AE163+All!AE164+All!AE165)/1000 -> 61.12905 | U146: =(All!AJ162+All!AJ163+All!AJ164+All!AJ165)/1000 -> 55.768173
P147: =P$8 -> Caring, leisure and other service | Q147: =(All!P166+All!P167)/1000 -> 2.796097 | R147: =(All!U166+All!U167)/1000 -> 2.859917 | S147: =(All!Z166+All!Z167)/1000 -> 2.791014 | T147: =(All!AE166+All!AE167)/1000 -> 3.132817 | U147: =(All!AJ166+All!AJ167)/1000 -> 2.970379
P148: =P$9 -> Sales and customer service | Q148: =(All!P168+All!P169)/1000 -> 6.47182 | R148: =(All!U168+All!U169)/1000 -> 5.260276 | S148: =(All!Z168+All!Z169)/1000 -> 6.364544 | T148: =(All!AE168+All!AE169)/1000 -> 6.279095 | U148: =(All!AJ168+All!AJ169)/1000 -> 5.895923
P149: =P$10 -> Process, plant and machine operatives | Q149: =(All!P170+All!P171)/1000 -> 71.09641 | R149: =(All!U170+All!U171)/1000 -> 53.380917 | S149: =(All!Z170+All!Z171)/1000 -> 45.236205 | T149: =(All!AE170+All!AE171)/1000 -> 40.593713 | U149: =(All!AJ170+All!AJ171)/1000 -> 35.014661
P150: =P$11 -> Elementary occupations | Q150: =(All!P172+All!P173)/1000 -> 20.072593 | R150: =(All!U172+All!U173)/1000 -> 15.059655 | S150: =(All!Z172+All!Z173)/1000 -> 12.975669 | T150: =(All!AE172+All!AE173)/1000 -> 12.39337 | U150: =(All!AJ172+All!AJ173)/1000 -> 10.830369
P168: ="Occupational Composition, "&P169&", "&Q169&"-"&U169 -> Occupational Composition, Electricity and gas, 2004-2024
P169: =names!A9 -> Electricity and gas | Q169: =Q$2 -> 2004 | R169: =R$2 -> 2009 | S169: =S$2 -> 2014 | T169: =T$2 -> 2019 | U169: =U$2 -> 2024
P170: =P$3 -> Managers, directors and senior officials | Q170: =(All!P177+All!P178)/1000 -> 0.446777 | R170: =(All!U177+All!U178)/1000 -> 1.215399 | S170: =(All!Z177+All!Z178)/1000 -> 1.811579 | T170: =(All!AE177+All!AE178)/1000 -> 2.118832 | U170: =(All!AJ177+All!AJ178)/1000 -> 2.260849
P171: =P$4 -> Professional occupations | Q171: =(All!P179+All!P180+All!P181+All!P182)/1000 -> 0.977888 | R171: =(All!U179+All!U180+All!U181+All!U182)/1000 -> 2.217587 | S171: =(All!Z179+All!Z180+All!Z181+All!Z182)/1000 -> 3.048065 | T171: =(All!AE179+All!AE180+All!AE181+All!AE182)/1000 -> 3.52361 | U171: =(All!AJ179+All!AJ180+All!AJ181+All!AJ182)/1000 -> 3.740681
P172: =P$5 -> Associate professional and technical | Q172: =(All!P183+All!P184+All!P185+All!P186+All!P187)/1000 -> 0.798013 | R172: =(All!U183+All!U184+All!U185+All!U186+All!U187)/1000 -> 1.721896 | S172: =(All!Z183+All!Z184+All!Z185+All!Z186+All!Z187)/1000 -> 2.382691 | T172: =(All!AE183+All!AE184+All!AE185+All!AE186+All!AE187)/1000 -> 2.704451 | U172: =(All!AJ183+All!AJ184+All!AJ185+All!AJ186+All!AJ187)/1000 -> 2.809098
P173: =P$6 -> Administrative and secretarial | Q173: =(All!P188+All!P189)/1000 -> 0.643804 | R173: =(All!U188+All!U189)/1000 -> 1.210501 | S173: =(All!Z188+All!Z189)/1000 -> 1.819271 | T173: =(All!AE188+All!AE189)/1000 -> 1.708111 | U173: =(All!AJ188+All!AJ189)/1000 -> 1.511221
P174: =P$7 -> Skilled trades occupations | Q174: =(All!P190+All!P191+All!P192+All!P193)/1000 -> 1.324789 | R174: =(All!U190+All!U191+All!U192+All!U193)/1000 -> 2.455848 | S174: =(All!Z190+All!Z191+All!Z192+All!Z193)/1000 -> 2.790615 | T174: =(All!AE190+All!AE191+All!AE192+All!AE193)/1000 -> 2.879425 | U174: =(All!AJ190+All!AJ191+All!AJ192+All!AJ193)/1000 -> 2.878059
P175: =P$8 -> Caring, leisure and other service | Q175: =(All!P194+All!P195)/1000 -> 0.10092 | R175: =(All!U194+All!U195)/1000 -> 0.307224 | S175: =(All!Z194+All!Z195)/1000 -> 0.323141 | T175: =(All!AE194+All!AE195)/1000 -> 0.367511 | U175: =(All!AJ194+All!AJ195)/1000 -> 0.362608
P176: =P$9 -> Sales and customer service | Q176: =(All!P196+All!P197)/1000 -> 0.646614 | R176: =(All!U196+All!U197)/1000 -> 1.442795 | S176: =(All!Z196+All!Z197)/1000 -> 2.042253 | T176: =(All!AE196+All!AE197)/1000 -> 2.148015 | U176: =(All!AJ196+All!AJ197)/1000 -> 2.062624
P177: =P$10 -> Process, plant and machine operatives | Q177: =(All!P198+All!P199)/1000 -> 0.189426 | R177: =(All!U198+All!U199)/1000 -> 0.404757 | S177: =(All!Z198+All!Z199)/1000 -> 0.567993 | T177: =(All!AE198+All!AE199)/1000 -> 0.55919 | U177: =(All!AJ198+All!AJ199)/1000 -> 0.534083
P178: =P$11 -> Elementary occupations | Q178: =(All!P200+All!P201)/1000 -> 0.17977 | R178: =(All!U200+All!U201)/1000 -> 0.453991 | S178: =(All!Z200+All!Z201)/1000 -> 0.431392 | T178: =(All!AE200+All!AE201)/1000 -> 0.435854 | U178: =(All!AJ200+All!AJ201)/1000 -> 0.415777
P196: ="Occupational Composition, "&P197&", "&Q197&"-"&U197 -> Occupational Composition, Water and sewerage, 2004-2024
P197: =names!A10 -> Water and sewerage | Q197: =Q$2 -> 2004 | R197: =R$2 -> 2009 | S197: =S$2 -> 2014 | T197: =T$2 -> 2019 | U197: =U$2 -> 2024
P198: =P$3 -> Managers, directors and senior officials | Q198: =(All!P205+All!P206)/1000 -> 1.409551 | R198: =(All!U205+All!U206)/1000 -> 1.182309 | S198: =(All!Z205+All!Z206)/1000 -> 2.163456 | T198: =(All!AE205+All!AE206)/1000 -> 2.310665 | U198: =(All!AJ205+All!AJ206)/1000 -> 2.430206
P199: =P$4 -> Professional occupations | Q199: =(All!P207+All!P208+All!P209+All!P210)/1000 -> 1.277094 | R199: =(All!U207+All!U208+All!U209+All!U210)/1000 -> 1.27145 | S199: =(All!Z207+All!Z208+All!Z209+All!Z210)/1000 -> 1.537109 | T199: =(All!AE207+All!AE208+All!AE209+All!AE210)/1000 -> 1.656762 | U199: =(All!AJ207+All!AJ208+All!AJ209+All!AJ210)/1000 -> 1.697899
P200: =P$5 -> Associate professional and technical | Q200: =(All!P211+All!P212+All!P213+All!P214+All!P215)/1000 -> 1.480137 | R200: =(All!U211+All!U212+All!U213+All!U214+All!U215)/1000 -> 1.372941 | S200: =(All!Z211+All!Z212+All!Z213+All!Z214+All!Z215)/1000 -> 2.487729 | T200: =(All!AE211+All!AE212+All!AE213+All!AE214+All!AE215)/1000 -> 2.682183 | U200: =(All!AJ211+All!AJ212+All!AJ213+All!AJ214+All!AJ215)/1000 -> 2.769697
P201: =P$6 -> Administrative and secretarial | Q201: =(All!P216+All!P217)/1000 -> 1.724247 | R201: =(All!U216+All!U217)/1000 -> 2.049057 | S201: =(All!Z216+All!Z217)/1000 -> 2.830009 | T201: =(All!AE216+All!AE217)/1000 -> 2.642401 | U201: =(All!AJ216+All!AJ217)/1000 -> 2.522057
P202: =P$7 -> Skilled trades occupations | Q202: =(All!P218+All!P219+All!P220+All!P221)/1000 -> 1.984883 | R202: =(All!U218+All!U219+All!U220+All!U221)/1000 -> 1.084331 | S202: =(All!Z218+All!Z219+All!Z220+All!Z221)/1000 -> 2.204576 | T202: =(All!AE218+All!AE219+All!AE220+All!AE221)/1000 -> 2.230015 | U202: =(All!AJ218+All!AJ219+All!AJ220+All!AJ221)/1000 -> 2.324879
P203: =P$8 -> Caring, leisure and other service | Q203: =(All!P222+All!P223)/1000 -> 0.343367 | R203: =(All!U222+All!U223)/1000 -> 0.284629 | S203: =(All!Z222+All!Z223)/1000 -> 0.462229 | T203: =(All!AE222+All!AE223)/1000 -> 0.514233 | U203: =(All!AJ222+All!AJ223)/1000 -> 0.538459
P204: =P$9 -> Sales and customer service | Q204: =(All!P224+All!P225)/1000 -> 0.66682 | R204: =(All!U224+All!U225)/1000 -> 0.545959 | S204: =(All!Z224+All!Z225)/1000 -> 0.72931 | T204: =(All!AE224+All!AE225)/1000 -> 0.764011 | U204: =(All!AJ224+All!AJ225)/1000 -> 0.773019
P205: =P$10 -> Process, plant and machine operatives | Q205: =(All!P226+All!P227)/1000 -> 5.585345 | R205: =(All!U226+All!U227)/1000 -> 4.049054 | S205: =(All!Z226+All!Z227)/1000 -> 5.873085 | T205: =(All!AE226+All!AE227)/1000 -> 5.914723 | U205: =(All!AJ226+All!AJ227)/1000 -> 6.094499
P206: =P$11 -> Elementary occupations | Q206: =(All!P228+All!P229)/1000 -> 4.415556 | R206: =(All!U228+All!U229)/1000 -> 3.267269 | S206: =(All!Z228+All!Z229)/1000 -> 5.243496 | T206: =(All!AE228+All!AE229)/1000 -> 5.218008 | U206: =(All!AJ228+All!AJ229)/1000 -> 5.064286
P224: ="Occupational Composition, "&P225&", "&Q225&"-"&U225 -> Occupational Composition, Construction, 2004-2024
P225: =names!A11 -> Construction | Q225: =Q$2 -> 2004 | R225: =R$2 -> 2009 | S225: =S$2 -> 2014 | T225: =T$2 -> 2019 | U225: =U$2 -> 2024
P226: =P$3 -> Managers, directors and senior officials | Q226: =(All!P233+All!P234)/1000 -> 16.011405 | R226: =(All!U233+All!U234)/1000 -> 20.812059 | S226: =(All!Z233+All!Z234)/1000 -> 19.514864 | T226: =(All!AE233+All!AE234)/1000 -> 22.378302 | U226: =(All!AJ233+All!AJ234)/1000 -> 24.149897
P227: =P$4 -> Professional occupations | Q227: =(All!P235+All!P236+All!P237+All!P238)/1000 -> 16.889671 | R227: =(All!U235+All!U236+All!U237+All!U238)/1000 -> 22.169979 | S227: =(All!Z235+All!Z236+All!Z237+All!Z238)/1000 -> 17.901729 | T227: =(All!AE235+All!AE236+All!AE237+All!AE238)/1000 -> 20.263491 | U227: =(All!AJ235+All!AJ236+All!AJ237+All!AJ238)/1000 -> 21.632267
P228: =P$5 -> Associate professional and technical | Q228: =(All!P239+All!P240+All!P241+All!P242+All!P243)/1000 -> 14.777158 | R228: =(All!U239+All!U240+All!U241+All!U242+All!U243)/1000 -> 17.465148 | S228: =(All!Z239+All!Z240+All!Z241+All!Z242+All!Z243)/1000 -> 16.385548 | T228: =(All!AE239+All!AE240+All!AE241+All!AE242+All!AE243)/1000 -> 18.427416 | U228: =(All!AJ239+All!AJ240+All!AJ241+All!AJ242+All!AJ243)/1000 -> 19.612165
P229: =P$6 -> Administrative and secretarial | Q229: =(All!P244+All!P245)/1000 -> 22.910316 | R229: =(All!U244+All!U245)/1000 -> 13.278028 | S229: =(All!Z244+All!Z245)/1000 -> 15.124421 | T229: =(All!AE244+All!AE245)/1000 -> 14.603886 | U229: =(All!AJ244+All!AJ245)/1000 -> 13.986706
P230: =P$7 -> Skilled trades occupations | Q230: =(All!P246+All!P247+All!P248+All!P249)/1000 -> 125.494455 | R230: =(All!U246+All!U247+All!U248+All!U249)/1000 -> 134.345208 | S230: =(All!Z246+All!Z247+All!Z248+All!Z249)/1000 -> 129.785209 | T230: =(All!AE246+All!AE247+All!AE248+All!AE249)/1000 -> 135.267045 | U230: =(All!AJ246+All!AJ247+All!AJ248+All!AJ249)/1000 -> 138.175081
P231: =P$8 -> Caring, leisure and other service | Q231: =(All!P250+All!P251)/1000 -> 0.3246 | R231: =(All!U250+All!U251)/1000 -> 0.672938 | S231: =(All!Z250+All!Z251)/1000 -> 0.396695 | T231: =(All!AE250+All!AE251)/1000 -> 0.460165 | U231: =(All!AJ250+All!AJ251)/1000 -> 0.479953
P232: =P$9 -> Sales and customer service | Q232: =(All!P252+All!P253)/1000 -> 3.15535 | R232: =(All!U252+All!U253)/1000 -> 3.207431 | S232: =(All!Z252+All!Z253)/1000 -> 3.540221 | T232: =(All!AE252+All!AE253)/1000 -> 3.746982 | U232: =(All!AJ252+All!AJ253)/1000 -> 3.884317
P233: =P$10 -> Process, plant and machine operatives | Q233: =(All!P254+All!P255)/1000 -> 17.530212 | R233: =(All!U254+All!U255)/1000 -> 17.368971 | S233: =(All!Z254+All!Z255)/1000 -> 16.128699 | T233: =(All!AE254+All!AE255)/1000 -> 16.257019 | U233: =(All!AJ254+All!AJ255)/1000 -> 16.559534
P234: =P$11 -> Elementary occupations | Q234: =(All!P256+All!P257)/1000 -> 11.481834 | R234: =(All!U256+All!U257)/1000 -> 10.94724 | S234: =(All!Z256+All!Z257)/1000 -> 7.182614 | T234: =(All!AE256+All!AE257)/1000 -> 7.171693 | U234: =(All!AJ256+All!AJ257)/1000 -> 6.70008
... 127 more rows

Sheet Figure 6.x.11
P1: ="Occupational employment, "&CHAR(13)&P2 -> Occupational employment, All industries
P2: =names!A3 -> All industries | Q2: =All!F7 -> 1994 | R2: =All!G7 -> 1995 | S2: =All!H7 -> 1996 | T2: =All!I7 -> 1997 | U2: =All!J7 -> 1998 | V2: =All!K7 -> 1999 | W2: =All!L7 -> 2000 | X2: =All!M7 -> 2001 | Y2: =All!N7 -> 2002 | Z2: =All!O7 -> 2003 | AA2: =All!P7 -> 2004 | AB2: =All!Q7 -> 2005 | AC2: =All!R7 -> 2006 | AD2: =All!S7 -> 2007 | AE2: =All!T7 -> 2008 | AF2: =All!U7 -> 2009 | AG2: =All!V7 -> 2010 | AH2: =All!W7 -> 2011 | AI2: =All!X7 -> 2012 | AJ2: =All!Y7 -> 2013 | AK2: =All!Z7 -> 2014 | AL2: =All!AA7 -> 2015 | AM2: =All!AB7 -> 2016 | AN2: =All!AC7 -> 2017 | AO2: =All!AD7 -> 2018 | AP2: =All!AE7 -> 2019 | AQ2: =All!AF7 -> 2020 | AR2: =All!AG7 -> 2021 | AS2: =All!AH7 -> 2022 | AT2: =All!AI7 -> 2023 | AU2: =All!AJ7 -> 2024
P3: =names!B4 -> Managers, directors and senior officials | Q3: =(All!F9+All!F10)/1000 -> 211.667367 | R3: =(All!G9+All!G10)/1000 -> 214.044558 | S3: =(All!H9+All!H10)/1000 -> 214.338339 | T3: =(All!I9+All!I10)/1000 -> 225.41125 | U3: =(All!J9+All!J10)/1000 -> 227.027646 | V3: =(All!K9+All!K10)/1000 -> 234.330646 | W3: =(All!L9+All!L10)/1000 -> 240.647176 | X3: =(All!M9+All!M10)/1000 -> 245.690462 | Y3: =(All!N9+All!N10)/1000 -> 248.752936 | Z3: =(All!O9+All!O10)/1000 -> 261.525727 | AA3: =(All!P9+All!P10)/1000 -> 270.492697 | AB3: =(All!Q9+All!Q10)/1000 -> 268.692744 | AC3: =(All!R9+All!R10)/1000 -> 266.406094 | AD3: =(All!S9+All!S10)/1000 -> 281.71922 | AE3: =(All!T9+All!T10)/1000 -> 284.120894 | AF3: =(All!U9+All!U10)/1000 -> 282.892072 | AG3: =(All!V9+All!V10)/1000 -> 279.36177 | AH3: =(All!W9+All!W10)/1000 -> 286.16762 | AI3: =(All!X9+All!X10)/1000 -> 290.713715 | AJ3: =(All!Y9+All!Y10)/1000 -> 298.036587 | AK3: =(All!Z9+All!Z10)/1000 -> 311.987255 | AL3: =(All!AA9+All!AA10)/1000 -> 320.036101 | AM3: =(All!AB9+All!AB10)/1000 -> 326.140351 | AN3: =(All!AC9+All!AC10)/1000 -> 331.423737 | AO3: =(All!AD9+All!AD10)/1000 -> 336.092973 | AP3: =(All!AE9+All!AE10)/1000 -> 340.640103 | AQ3: =(All!AF9+All!AF10)/1000 -> 345.471518 | AR3: =(All!AG9+All!AG10)/1000 -> 349.722613 | AS3: =(All!AH9+All!AH10)/1000 -> 354.21628 | AT3: =(All!AI9+All!AI10)/1000 -> 354.302957 | AU3: =(All!AJ9+All!AJ10)/1000 -> 354.365192
P4: =names!B5 -> Professional occupations | Q4: =(All!F11+All!F12+All!F13+All!F14)/1000 -> 415.105696 | R4: =(All!G11+All!G12+All!G13+All!G14)/1000 -> 423.702256 | S4: =(All!H11+All!H12+All!H13+All!H14)/1000 -> 446.450126 | T4: =(All!I11+All!I12+All!I13+All!I14)/1000 -> 449.552146 | U4: =(All!J11+All!J12+All!J13+All!J14)/1000 -> 440.50657 | V4: =(All!K11+All!K12+All!K13+All!K14)/1000 -> 471.230942 | W4: =(All!L11+All!L12+All!L13+All!L14)/1000 -> 486.531841 | X4: =(All!M11+All!M12+All!M13+All!M14)/1000 -> 500.549983 | Y4: =(All!N11+All!N12+All!N13+All!N14)/1000 -> 508.191692 | Z4: =(All!O11+All!O12+All!O13+All!O14)/1000 -> 525.312094 | AA4: =(All!P11+All!P12+All!P13+All!P14)/1000 -> 544.160483 | AB4: =(All!Q11+All!Q12+All!Q13+All!Q14)/1000 -> 553.207694 | AC4: =(All!R11+All!R12+All!R13+All!R14)/1000 -> 562.629344 | AD4: =(All!S11+All!S12+All!S13+All!S14)/1000 -> 579.1153 | AE4: =(All!T11+All!T12+All!T13+All!T14)/1000 -> 583.542801 | AF4: =(All!U11+All!U12+All!U13+All!U14)/1000 -> 605.098679 | AG4: =(All!V11+All!V12+All!V13+All!V14)/1000 -> 593.709954 | AH4: =(All!W11+All!W12+All!W13+All!W14)/1000 -> 594.529238 | AI4: =(All!X11+All!X12+All!X13+All!X14)/1000 -> 587.987274 | AJ4: =(All!Y11+All!Y12+All!Y13+All!Y14)/1000 -> 605.988741 | AK4: =(All!Z11+All!Z12+All!Z13+All!Z14)/1000 -> 658.518405 | AL4: =(All!AA11+All!AA12+All!AA13+All!AA14)/1000 -> 673.712759 | AM4: =(All!AB11+All!AB12+All!AB13+All!AB14)/1000 -> 682.380048 | AN4: =(All!AC11+All!AC12+All!AC13+All!AC14)/1000 -> 690.115591 | AO4: =(All!AD11+All!AD12+All!AD13+All!AD14)/1000 -> 696.996744 | AP4: =(All!AE11+All!AE12+All!AE13+All!AE14)/1000 -> 703.317 | AQ4: =(All!AF11+All!AF12+All!AF13+All!AF14)/1000 -> 710.768883 | AR4: =(All!AG11+All!AG12+All!AG13+All!AG14)/1000 -> 718.923641 | AS4: =(All!AH11+All!AH12+All!AH13+All!AH14)/1000 -> 727.778895 | AT4: =(All!AI11+All!AI12+All!AI13+All!AI14)/1000 -> 729.273893 | AU4: =(All!AJ11+All!AJ12+All!AJ13+All!AJ14)/1000 -> 730.852943
P5: =names!B6 -> Associate professional and technical | Q5: =(All!F15+All!F16+All!F17+All!F18+All!F19)/1000 -> 324.977007 | R5: =(All!G15+All!G16+All!G17+All!G18+All!G19)/1000 -> 333.303677 | S5: =(All!H15+All!H16+All!H17+All!H18+All!H19)/1000 -> 341.543939 | T5: =(All!I15+All!I16+All!I17+All!I18+All!I19)/1000 -> 354.346123 | U5: =(All!J15+All!J16+All!J17+All!J18+All!J19)/1000 -> 349.483626 | V5: =(All!K15+All!K16+All!K17+All!K18+All!K19)/1000 -> 363.051924 | W5: =(All!L15+All!L16+All!L17+All!L18+All!L19)/1000 -> 371.92943 | X5: =(All!M15+All!M16+All!M17+All!M18+All!M19)/1000 -> 377.616991 | Y5: =(All!N15+All!N16+All!N17+All!N18+All!N19)/1000 -> 385.317251 | Z5: =(All!O15+All!O16+All!O17+All!O18+All!O19)/1000 -> 387.198521 | AA5: =(All!P15+All!P16+All!P17+All!P18+All!P19)/1000 -> 399.721728 | AB5: =(All!Q15+All!Q16+All!Q17+All!Q18+All!Q19)/1000 -> 400.153657 | AC5: =(All!R15+All!R16+All!R17+All!R18+All!R19)/1000 -> 398.072805 | AD5: =(All!S15+All!S16+All!S17+All!S18+All!S19)/1000 -> 413.984885 | AE5: =(All!T15+All!T16+All!T17+All!T18+All!T19)/1000 -> 415.08431 | AF5: =(All!U15+All!U16+All!U17+All!U18+All!U19)/1000 -> 412.738969 | AG5: =(All!V15+All!V16+All!V17+All!V18+All!V19)/1000 -> 403.873446 | AH5: =(All!W15+All!W16+All!W17+All!W18+All!W19)/1000 -> 402.684709 | AI5: =(All!X15+All!X16+All!X17+All!X18+All!X19)/1000 -> 397.291021 | AJ5: =(All!Y15+All!Y16+All!Y17+All!Y18+All!Y19)/1000 -> 410.782775 | AK5: =(All!Z15+All!Z16+All!Z17+All!Z18+All!Z19)/1000 -> 439.920617 | AL5: =(All!AA15+All!AA16+All!AA17+All!AA18+All!AA19)/1000 -> 447.766832 | AM5: =(All!AB15+All!AB16+All!AB17+All!AB18+All!AB19)/1000 -> 453.15921 | AN5: =(All!AC15+All!AC16+All!AC17+All!AC18+All!AC19)/1000 -> 458.651703 | AO5: =(All!AD15+All!AD16+All!AD17+All!AD18+All!AD19)/1000 -> 463.804506 | AP5: =(All!AE15+All!AE16+All!AE17+All!AE18+All!AE19)/1000 -> 468.614273 | AQ5: =(All!AF15+All!AF16+All!AF17+All!AF18+All!AF19)/1000 -> 473.905224 | AR5: =(All!AG15+All!AG16+All!AG17+All!AG18+All!AG19)/1000 -> 478.358918 | AS5: =(All!AH15+All!AH16+All!AH17+All!AH18+All!AH19)/1000 -> 483.206764 | AT5: =(All!AI15+All!AI16+All!AI17+All!AI18+All!AI19)/1000 -> 484.201509 | AU5: =(All!AJ15+All!AJ16+All!AJ17+All!AJ18+All!AJ19)/1000 -> 485.254163
P6: =names!B7 -> Administrative and secretarial | Q6: =(All!F20+All!F21)/1000 -> 445.20644 | R6: =(All!G20+All!G21)/1000 -> 442.282924 | S6: =(All!H20+All!H21)/1000 -> 436.206248 | T6: =(All!I20+All!I21)/1000 -> 435.029748 | U6: =(All!J20+All!J21)/1000 -> 420.06258 | V6: =(All!K20+All!K21)/1000 -> 427.176489 | W6: =(All!L20+All!L21)/1000 -> 432.584545 | X6: =(All!M20+All!M21)/1000 -> 440.015596 | Y6: =(All!N20+All!N21)/1000 -> 446.367191 | Z6: =(All!O20+All!O21)/1000 -> 443.667759 | AA6: =(All!P20+All!P21)/1000 -> 449.47232 | AB6: =(All!Q20+All!Q21)/1000 -> 444.613984 | AC6: =(All!R20+All!R21)/1000 -> 436.754599 | AD6: =(All!S20+All!S21)/1000 -> 439.122905 | AE6: =(All!T20+All!T21)/1000 -> 429.510424 | AF6: =(All!U20+All!U21)/1000 -> 423.117084 | AG6: =(All!V20+All!V21)/1000 -> 428.0871 | AH6: =(All!W20+All!W21)/1000 -> 427.979398 | AI6: =(All!X20+All!X21)/1000 -> 425.512237 | AJ6: =(All!Y20+All!Y21)/1000 -> 422.483967 | AK6: =(All!Z20+All!Z21)/1000 -> 449.557112 | AL6: =(All!AA20+All!AA21)/1000 -> 449.349222 | AM6: =(All!AB20+All!AB21)/1000 -> 443.08423 | AN6: =(All!AC20+All!AC21)/1000 -> 436.728957 | AO6: =(All!AD20+All!AD21)/1000 -> 429.79197 | AP6: =(All!AE20+All!AE21)/1000 -> 423.019216 | AQ6: =(All!AF20+All!AF21)/1000 -> 416.547549 | AR6: =(All!AG20+All!AG21)/1000 -> 410.875299 | AS6: =(All!AH20+All!AH21)/1000 -> 405.401258 | AT6: =(All!AI20+All!AI21)/1000 -> 408.575938 | AU6: =(All!AJ20+All!AJ21)/1000 -> 411.882345
P7: =names!B8 -> Skilled trades occupations | Q7: =(All!F22+All!F23+All!F24+All!F25)/1000 -> 454.068153 | R7: =(All!G22+All!G23+All!G24+All!G25)/1000 -> 454.061528 | S7: =(All!H22+All!H23+All!H24+All!H25)/1000 -> 450.025715 | T7: =(All!I22+All!I23+All!I24+All!I25)/1000 -> 451.065379 | U7: =(All!J22+All!J23+All!J24+All!J25)/1000 -> 427.568592 | V7: =(All!K22+All!K23+All!K24+All!K25)/1000 -> 435.078826 | W7: =(All!L22+All!L23+All!L24+All!L25)/1000 -> 422.951782 | X7: =(All!M22+All!M23+All!M24+All!M25)/1000 -> 418.206042 | Y7: =(All!N22+All!N23+All!N24+All!N25)/1000 -> 413.362328 | Z7: =(All!O22+All!O23+All!O24+All!O25)/1000 -> 426.58304 | AA7: =(All!P22+All!P23+All!P24+All!P25)/1000 -> 423.028725 | AB7: =(All!Q22+All!Q23+All!Q24+All!Q25)/1000 -> 412.688648 | AC7: =(All!R22+All!R23+All!R24+All!R25)/1000 -> 399.274973 | AD7: =(All!S22+All!S23+All!S24+All!S25)/1000 -> 407.634411 | AE7: =(All!T22+All!T23+All!T24+All!T25)/1000 -> 414.099068 | AF7: =(All!U22+All!U23+All!U24+All!U25)/1000 -> 397.628818 | AG7: =(All!V22+All!V23+All!V24+All!V25)/1000 -> 392.284119 | AH7: =(All!W22+All!W23+All!W24+All!W25)/1000 -> 374.210181 | AI7: =(All!X22+All!X23+All!X24+All!X25)/1000 -> 378.231682 | AJ7: =(All!Y22+All!Y23+All!Y24+All!Y25)/1000 -> 366.774917 | AK7: =(All!Z22+All!Z23+All!Z24+All!Z25)/1000 -> 386.862288 | AL7: =(All!AA22+All!AA23+All!AA24+All!AA25)/1000 -> 390.209754 | AM7: =(All!AB22+All!AB23+All!AB24+All!AB25)/1000 -> 389.784135 | AN7: =(All!AC22+All!AC23+All!AC24+All!AC25)/1000 -> 387.817917 | AO7: =(All!AD22+All!AD23+All!AD24+All!AD25)/1000 -> 384.931261 | AP7: =(All!AE22+All!AE23+All!AE24+All!AE25)/1000 -> 382.065573 | AQ7: =(All!AF22+All!AF23+All!AF24+All!AF25)/1000 -> 379.23941 | AR7: =(All!AG22+All!AG23+All!AG24+All!AG25)/1000 -> 375.376405 | AS7: =(All!AH22+All!AH23+All!AH24+All!AH25)/1000 -> 371.808137 | AT7: =(All!AI22+All!AI23+All!AI24+All!AI25)/1000 -> 372.384413 | AU7: =(All!AJ22+All!AJ23+All!AJ24+All!AJ25)/1000 -> 372.982147
P8: =names!B9 -> Caring, leisure and other service | Q8: =(All!F26+All!F27)/1000 -> 200.039397 | R8: =(All!G26+All!G27)/1000 -> 211.559919 | S8: =(All!H26+All!H27)/1000 -> 224.850677 | T8: =(All!I26+All!I27)/1000 -> 227.798996 | U8: =(All!J26+All!J27)/1000 -> 227.155198 | V8: =(All!K26+All!K27)/1000 -> 239.537794 | W8: =(All!L26+All!L27)/1000 -> 254.749771 | X8: =(All!M26+All!M27)/1000 -> 268.953475 | Y8: =(All!N26+All!N27)/1000 -> 281.81514 | Z8: =(All!O26+All!O27)/1000 -> 286.976622 | AA8: =(All!P26+All!P27)/1000 -> 296.976537 | AB8: =(All!Q26+All!Q27)/1000 -> 301.482171 | AC8: =(All!R26+All!R27)/1000 -> 312.279126 | AD8: =(All!S26+All!S27)/1000 -> 311.843546 | AE8: =(All!T26+All!T27)/1000 -> 330.881287 | AF8: =(All!U26+All!U27)/1000 -> 340.624896 | AG8: =(All!V26+All!V27)/1000 -> 352.576147 | AH8: =(All!W26+All!W27)/1000 -> 346.205761 | AI8: =(All!X26+All!X27)/1000 -> 345.022442 | AJ8: =(All!Y26+All!Y27)/1000 -> 354.634608 | AK8: =(All!Z26+All!Z27)/1000 -> 383.925844 | AL8: =(All!AA26+All!AA27)/1000 -> 391.210417 | AM8: =(All!AB26+All!AB27)/1000 -> 394.945335 | AN8: =(All!AC26+All!AC27)/1000 -> 398.779567 | AO8: =(All!AD26+All!AD27)/1000 -> 403.2765 | AP8: =(All!AE26+All!AE27)/1000 -> 407.002646 | AQ8: =(All!AF26+All!AF27)/1000 -> 410.87831 | AR8: =(All!AG26+All!AG27)/1000 -> 416.152231 | AS8: =(All!AH26+All!AH27)/1000 -> 421.859746 | AT8: =(All!AI26+All!AI27)/1000 -> 423.764168 | AU8: =(All!AJ26+All!AJ27)/1000 -> 425.769278
P9: =names!B10 -> Sales and customer service | Q9: =(All!F28+All!F29)/1000 -> 259.730679 | R9: =(All!G28+All!G29)/1000 -> 255.453128 | S9: =(All!H28+All!H29)/1000 -> 275.313812 | T9: =(All!I28+All!I29)/1000 -> 275.935701 | U9: =(All!J28+All!J29)/1000 -> 276.463079 | V9: =(All!K28+All!K29)/1000 -> 272.613567 | W9: =(All!L28+All!L29)/1000 -> 274.846116 | X9: =(All!M28+All!M29)/1000 -> 282.417411 | Y9: =(All!N28+All!N29)/1000 -> 285.122194 | Z9: =(All!O28+All!O29)/1000 -> 286.949661 | AA9: =(All!P28+All!P29)/1000 -> 294.567536 | AB9: =(All!Q28+All!Q29)/1000 -> 292.462867 | AC9: =(All!R28+All!R29)/1000 -> 298.516469 | AD9: =(All!S28+All!S29)/1000 -> 294.882085 | AE9: =(All!T28+All!T29)/1000 -> 294.675257 | AF9: =(All!U28+All!U29)/1000 -> 309.675137 | AG9: =(All!V28+All!V29)/1000 -> 300.390363 | AH9: =(All!W28+All!W29)/1000 -> 302.273276 | AI9: =(All!X28+All!X29)/1000 -> 313.511555 | AJ9: =(All!Y28+All!Y29)/1000 -> 313.121857 | AK9: =(All!Z28+All!Z29)/1000 -> 330.271964 | AL9: =(All!AA28+All!AA29)/1000 -> 331.510833 | AM9: =(All!AB28+All!AB29)/1000 -> 332.792024 | AN9: =(All!AC28+All!AC29)/1000 -> 332.960343 | AO9: =(All!AD28+All!AD29)/1000 -> 332.727767 | AP9: =(All!AE28+All!AE29)/1000 -> 332.589596 | AQ9: =(All!AF28+All!AF29)/1000 -> 332.690621 | AR9: =(All!AG28+All!AG29)/1000 -> 332.163209 | AS9: =(All!AH28+All!AH29)/1000 -> 331.481823 | AT9: =(All!AI28+All!AI29)/1000 -> 334.010376 | AU9: =(All!AJ28+All!AJ29)/1000 -> 336.643571
P10: =names!B11 -> Process, plant and machine operatives | Q10: =(All!F30+All!F31)/1000 -> 317.337594 | R10: =(All!G30+All!G31)/1000 -> 317.81312 | S10: =(All!H30+All!H31)/1000 -> 316.242263 | T10: =(All!I30+All!I31)/1000 -> 325.980307 | U10: =(All!J30+All!J31)/1000 -> 312.196734 | V10: =(All!K30+All!K31)/1000 -> 313.721487 | W10: =(All!L30+All!L31)/1000 -> 301.732239 | X10: =(All!M30+All!M31)/1000 -> 298.236644 | Y10: =(All!N30+All!N31)/1000 -> 286.219833 | Z10: =(All!O30+All!O31)/1000 -> 279.370995 | AA10: =(All!P30+All!P31)/1000 -> 276.93745 | AB10: =(All!Q30+All!Q31)/1000 -> 285.776483 | AC10: =(All!R30+All!R31)/1000 -> 284.632521 | AD10: =(All!S30+All!S31)/1000 -> 287.501966 | AE10: =(All!T30+All!T31)/1000 -> 274.001401 | AF10: =(All!U30+All!U31)/1000 -> 259.492462 | AG10: =(All!V30+All!V31)/1000 -> 257.655444 | AH10: =(All!W30+All!W31)/1000 -> 258.620465 | AI10: =(All!X30+All!X31)/1000 -> 249.75217 | AJ10: =(All!Y30+All!Y31)/1000 -> 245.195756 | AK10: =(All!Z30+All!Z31)/1000 -> 266.093394 | AL10: =(All!AA30+All!AA31)/1000 -> 265.329204 | AM10: =(All!AB30+All!AB31)/1000 -> 263.631041 | AN10: =(All!AC30+All!AC31)/1000 -> 261.719454 | AO10: =(All!AD30+All!AD31)/1000 -> 259.12484 | AP10: =(All!AE30+All!AE31)/1000 -> 256.164776 | AQ10: =(All!AF30+All!AF31)/1000 -> 253.493431 | AR10: =(All!AG30+All!AG31)/1000 -> 249.705364 | AS10: =(All!AH30+All!AH31)/1000 -> 245.947627 | AT10: =(All!AI30+All!AI31)/1000 -> 245.503881 | AU10: =(All!AJ30+All!AJ31)/1000 -> 244.984378
P11: =names!B12 -> Elementary occupations | Q11: =(All!F32+All!F33)/1000 -> 396.603665 | R11: =(All!G32+All!G33)/1000 -> 399.83989 | S11: =(All!H32+All!H33)/1000 -> 418.12988 | T11: =(All!I32+All!I33)/1000 -> 421.37835 | U11: =(All!J32+All!J33)/1000 -> 413.029974 | V11: =(All!K32+All!K33)/1000 -> 413.780326 | W11: =(All!L32+All!L33)/1000 -> 405.495102 | X11: =(All!M32+All!M33)/1000 -> 408.288399 | Y11: =(All!N32+All!N33)/1000 -> 422.918435 | Z11: =(All!O32+All!O33)/1000 -> 426.54558 | AA11: =(All!P32+All!P33)/1000 -> 430.068525 | AB11: =(All!Q32+All!Q33)/1000 -> 421.477753 | AC11: =(All!R32+All!R33)/1000 -> 425.100071 | AD11: =(All!S32+All!S33)/1000 -> 416.634683 | AE11: =(All!T32+All!T33)/1000 -> 415.729558 | AF11: =(All!U32+All!U33)/1000 -> 386.354883 | AG11: =(All!V32+All!V33)/1000 -> 369.174657 | AH11: =(All!W32+All!W33)/1000 -> 372.007353 | AI11: =(All!X32+All!X33)/1000 -> 372.771904 | AJ11: =(All!Y32+All!Y33)/1000 -> 379.114793 | AK11: =(All!Z32+All!Z33)/1000 -> 400.304122 | AL11: =(All!AA32+All!AA33)/1000 -> 405.438877 | AM11: =(All!AB32+All!AB33)/1000 -> 408.070624 | AN11: =(All!AC32+All!AC33)/1000 -> 408.831729 | AO11: =(All!AD32+All!AD33)/1000 -> 409.104437 | AP11: =(All!AE32+All!AE33)/1000 -> 409.499818 | AQ11: =(All!AF32+All!AF33)/1000 -> 410.542054 | AR11: =(All!AG32+All!AG33)/1000 -> 410.836322 | AS11: =(All!AH32+All!AH33)/1000 -> 411.443467 | AT11: =(All!AI32+All!AI33)/1000 -> 413.091866 | AU11: =(All!AJ32+All!AJ33)/1000 -> 414.737982
P37: ="Occupational employment, "&CHAR(13)&P38 -> Occupational employment, Agriculture
P38: =names!A4 -> Agriculture | Q38: =Q2 -> 1994 | R38: 1995 | S38: 1996 | T38: 1997 | U38: 1998 | V38: 1999 | W38: 2000 | X38: 2001 | Y38: 2002 | Z38: 2003 | AA38: 2004 | AB38: 2005 | AC38: 2006 | AD38: 2007 | AE38: 2008 | AF38: 2009 | AG38: 2010 | AH38: 2011 | AI38: 2012 | AJ38: 2013 | AK38: 2014 | AL38: 2015 | AM38: 2016 | AN38: 2017 | AO38: 2018 | AP38: 2019 | AQ38: 2020 | AR38: 2021 | AS38: 2022 | AT38: 2023 | AU38: 2024
P39: =P3 -> Managers, directors and senior officials | Q39: =(All!D37+All!D38)/1000 -> 4.916548 | R39: =(All!E37+All!E38)/1000 -> 4.564357 | S39: =(All!F37+All!F38)/1000 -> 4.44548 | T39: =(All!G37+All!G38)/1000 -> 4.107205 | U39: =(All!H37+All!H38)/1000 -> 3.919425 | V39: =(All!I37+All!I38)/1000 -> 3.649853 | W39: =(All!J37+All!J38)/1000 -> 2.329528 | X39: =(All!K37+All!K38)/1000 -> 2.667176 | Y39: =(All!L37+All!L38)/1000 -> 1.966118 | Z39: =(All!M37+All!M38)/1000 -> 1.548075 | AA39: =(All!N37+All!N38)/1000 -> 1.284926 | AB39: =(All!O37+All!O38)/1000 -> 1.255042 | AC39: =(All!P37+All!P38)/1000 -> 1.669144 | AD39: =(All!Q37+All!Q38)/1000 -> 1.270409 | AE39: =(All!R37+All!R38)/1000 -> 1.078567 | AF39: =(All!S37+All!S38)/1000 -> 1.701245 | AG39: =(All!T37+All!T38)/1000 -> 1.930535 | AH39: =(All!U37+All!U38)/1000 -> 1.775548 | AI39: =(All!V37+All!V38)/1000 -> 2.284865 | AJ39: =(All!W37+All!W38)/1000 -> 1.759965 | AK39: =(All!X37+All!X38)/1000 -> 1.778355 | AL39: =(All!Y37+All!Y38)/1000 -> 1.771216 | AM39: =(All!Z37+All!Z38)/1000 -> 3.133474 | AN39: =(All!AA37+All!AA38)/1000 -> 2.70802 | AO39: =(All!AB37+All!AB38)/1000 -> 2.624778 | AP39: =(All!AC37+All!AC38)/1000 -> 2.573053 | AQ39: =(All!AD37+All!AD38)/1000 -> 2.522919 | AR39: =(All!AE37+All!AE38)/1000 -> 2.474796 | AS39: =(All!AF37+All!AF38)/1000 -> 2.434236 | AT39: =(All!AG37+All!AG38)/1000 -> 2.377503 | AU39: =(All!AH37+All!AH38)/1000 -> 2.330517
P40: Professional occupations | Q40: =(All!D39+All!D40+All!D41+All!D42)/1000 -> 1.53682 | R40: =(All!E39+All!E40+All!E41+All!E42)/1000 -> 1.425341 | S40: =(All!F39+All!F40+All!F41+All!F42)/1000 -> 1.38314 | T40: =(All!G39+All!G40+All!G41+All!G42)/1000 -> 1.366245 | U40: =(All!H39+All!H40+All!H41+All!H42)/1000 -> 1.309863 | V40: =(All!I39+All!I40+All!I41+All!I42)/1000 -> 1.314442 | W40: =(All!J39+All!J40+All!J41+All!J42)/1000 -> 0.97785 | X40: =(All!K39+All!K40+All!K41+All!K42)/1000 -> 1.067966 | Y40: =(All!L39+All!L40+All!L41+All!L42)/1000 -> 0.965825 | Z40: =(All!M39+All!M40+All!M41+All!M42)/1000 -> 0.790933 | AA40: =(All!N39+All!N40+All!N41+All!N42)/1000 -> 0.804936 | AB40: =(All!O39+All!O40+All!O41+All!O42)/1000 -> 0.865717 | AC40: =(All!P39+All!P40+All!P41+All!P42)/1000 -> 0.857873 | AD40: =(All!Q39+All!Q40+All!Q41+All!Q42)/1000 -> 0.714169 | AE40: =(All!R39+All!R40+All!R41+All!R42)/1000 -> 0.661439 | AF40: =(All!S39+All!S40+All!S41+All!S42)/1000 -> 1.097054 | AG40: =(All!T39+All!T40+All!T41+All!T42)/1000 -> 1.188054 | AH40: =(All!U39+All!U40+All!U41+All!U42)/1000 -> 1.233136 | AI40: =(All!V39+All!V40+All!V41+All!V42)/1000 -> 1.068472 | AJ40: =(All!W39+All!W40+All!W41+All!W42)/1000 -> 1.259576 | AK40: =(All!X39+All!X40+All!X41+All!X42)/1000 -> 1.068007 | AL40: =(All!Y39+All!Y40+All!Y41+All!Y42)/1000 -> 1.146857 | AM40: =(All!Z39+All!Z40+All!Z41+All!Z42)/1000 -> 1.785356 | AN40: =(All!AA39+All!AA40+All!AA41+All!AA42)/1000 -> 1.559236 | AO40: =(All!AB39+All!AB40+All!AB41+All!AB42)/1000 -> 1.569077 | AP40: =(All!AC39+All!AC40+All!AC41+All!AC42)/1000 -> 1.593787 | AQ40: =(All!AD39+All!AD40+All!AD41+All!AD42)/1000 -> 1.618777 | AR40: =(All!AE39+All!AE40+All!AE41+All!AE42)/1000 -> 1.640743 | AS40: =(All!AF39+All!AF40+All!AF41+All!AF42)/1000 -> 1.664413 | AT40: =(All!AG39+All!AG40+All!AG41+All!AG42)/1000 -> 1.671805 | AU40: =(All!AH39+All!AH40+All!AH41+All!AH42)/1000 -> 1.677502
P41: Associate professional and technical | Q41: =(All!D43+All!D44+All!D45+All!D46+All!D47)/1000 -> 0.909324 | R41: =(All!E43+All!E44+All!E45+All!E46+All!E47)/1000 -> 0.861202 | S41: =(All!F43+All!F44+All!F45+All!F46+All!F47)/1000 -> 0.853349 | T41: =(All!G43+All!G44+All!G45+All!G46+All!G47)/1000 -> 0.857118 | U41: =(All!H43+All!H44+All!H45+All!H46+All!H47)/1000 -> 0.809938 | V41: =(All!I43+All!I44+All!I45+All!I46+All!I47)/1000 -> 0.860823 | W41: =(All!J43+All!J44+All!J45+All!J46+All!J47)/1000 -> 0.649127 | X41: =(All!K43+All!K44+All!K45+All!K46+All!K47)/1000 -> 0.701134 | Y41: =(All!L43+All!L44+All!L45+All!L46+All!L47)/1000 -> 0.630984 | Z41: =(All!M43+All!M44+All!M45+All!M46+All!M47)/1000 -> 0.504257 | AA41: =(All!N43+All!N44+All!N45+All!N46+All!N47)/1000 -> 0.475277 | AB41: =(All!O43+All!O44+All!O45+All!O46+All!O47)/1000 -> 0.542002 | AC41: =(All!P43+All!P44+All!P45+All!P46+All!P47)/1000 -> 0.513384 | AD41: =(All!Q43+All!Q44+All!Q45+All!Q46+All!Q47)/1000 -> 0.449556 | AE41: =(All!R43+All!R44+All!R45+All!R46+All!R47)/1000 -> 0.422574 | AF41: =(All!S43+All!S44+All!S45+All!S46+All!S47)/1000 -> 0.741379 | AG41: =(All!T43+All!T44+All!T45+All!T46+All!T47)/1000 -> 0.804596 | AH41: =(All!U43+All!U44+All!U45+All!U46+All!U47)/1000 -> 0.792371 | AI41: =(All!V43+All!V44+All!V45+All!V46+All!V47)/1000 -> 0.820113 | AJ41: =(All!W43+All!W44+All!W45+All!W46+All!W47)/1000 -> 1.014461 | AK41: =(All!X43+All!X44+All!X45+All!X46+All!X47)/1000 -> 0.819848 | AL41: =(All!Y43+All!Y44+All!Y45+All!Y46+All!Y47)/1000 -> 0.9178 | AM41: =(All!Z43+All!Z44+All!Z45+All!Z46+All!Z47)/1000 -> 1.46896 | AN41: =(All!AA43+All!AA44+All!AA45+All!AA46+All!AA47)/1000 -> 1.282835 | AO41: =(All!AB43+All!AB44+All!AB45+All!AB46+All!AB47)/1000 -> 1.279651 | AP41: =(All!AC43+All!AC44+All!AC45+All!AC46+All!AC47)/1000 -> 1.28834 | AQ41: =(All!AD43+All!AD44+All!AD45+All!AD46+All!AD47)/1000 -> 1.297498 | AR41: =(All!AE43+All!AE44+All!AE45+All!AE46+All!AE47)/1000 -> 1.304069 | AS41: =(All!AF43+All!AF44+All!AF45+All!AF46+All!AF47)/1000 -> 1.310822 | AT41: =(All!AG43+All!AG44+All!AG45+All!AG46+All!AG47)/1000 -> 1.306219 | AU41: =(All!AH43+All!AH44+All!AH45+All!AH46+All!AH47)/1000 -> 1.302706
P42: Administrative and secretarial | Q42: =(All!D48+All!D49)/1000 -> 2.54821 | R42: =(All!E48+All!E49)/1000 -> 2.320588 | S42: =(All!F48+All!F49)/1000 -> 2.344916 | T42: =(All!G48+All!G49)/1000 -> 2.300808 | U42: =(All!H48+All!H49)/1000 -> 1.947352 | V42: =(All!I48+All!I49)/1000 -> 1.898243 | W42: =(All!J48+All!J49)/1000 -> 1.371777 | X42: =(All!K48+All!K49)/1000 -> 1.235468 | Y42: =(All!L48+All!L49)/1000 -> 1.309475 | Z42: =(All!M48+All!M49)/1000 -> 1.294602 | AA42: =(All!N48+All!N49)/1000 -> 0.879596 | AB42: =(All!O48+All!O49)/1000 -> 1.099651 | AC42: =(All!P48+All!P49)/1000 -> 0.975148 | AD42: =(All!Q48+All!Q49)/1000 -> 0.95676 | AE42: =(All!R48+All!R49)/1000 -> 0.505192 | AF42: =(All!S48+All!S49)/1000 -> 1.60072 | AG42: =(All!T48+All!T49)/1000 -> 1.806018 | AH42: =(All!U48+All!U49)/1000 -> 1.340156 | AI42: =(All!V48+All!V49)/1000 -> 1.596605 | AJ42: =(All!W48+All!W49)/1000 -> 2.277354 | AK42: =(All!X48+All!X49)/1000 -> 1.769803 | AL42: =(All!Y48+All!Y49)/1000 -> 1.549402 | AM42: =(All!Z48+All!Z49)/1000 -> 3.358717 | AN42: =(All!AA48+All!AA49)/1000 -> 2.899517 | AO42: =(All!AB48+All!AB49)/1000 -> 2.798138 | AP42: =(All!AC48+All!AC49)/1000 -> 2.720704 | AQ42: =(All!AD48+All!AD49)/1000 -> 2.643177 | AR42: =(All!AE48+All!AE49)/1000 -> 2.558824 | AS42: =(All!AF48+All!AF49)/1000 -> 2.475694 | AT42: =(All!AG48+All!AG49)/1000 -> 2.390697 | AU42: =(All!AH48+All!AH49)/1000 -> 2.315832
P43: Skilled trades occupations | Q43: =(All!D50+All!D51+All!D52+All!D53)/1000 -> 24.381661 | R43: =(All!E50+All!E51+All!E52+All!E53)/1000 -> 23.027114 | S43: =(All!F50+All!F51+All!F52+All!F53)/1000 -> 23.601095 | T43: =(All!G50+All!G51+All!G52+All!G53)/1000 -> 22.637056 | U43: =(All!H50+All!H51+All!H52+All!H53)/1000 -> 23.252788 | V43: =(All!I50+All!I51+All!I52+All!I53)/1000 -> 20.602836 | W43: =(All!J50+All!J51+All!J52+All!J53)/1000 -> 12.624139 | X43: =(All!K50+All!K51+All!K52+All!K53)/1000 -> 16.232185 | Y43: =(All!L50+All!L51+All!L52+All!L53)/1000 -> 11.577315 | Z43: =(All!M50+All!M51+All!M52+All!M53)/1000 -> 10.87943 | AA43: =(All!N50+All!N51+All!N52+All!N53)/1000 -> 8.04326 | AB43: =(All!O50+All!O51+All!O52+All!O53)/1000 -> 8.619166 | AC43: =(All!P50+All!P51+All!P52+All!P53)/1000 -> 12.131715 | AD43: =(All!Q50+All!Q51+All!Q52+All!Q53)/1000 -> 10.14304 | AE43: =(All!R50+All!R51+All!R52+All!R53)/1000 -> 9.025929 | AF43: =(All!S50+All!S51+All!S52+All!S53)/1000 -> 14.764065 | AG43: =(All!T50+All!T51+All!T52+All!T53)/1000 -> 16.175765 | AH43: =(All!U50+All!U51+All!U52+All!U53)/1000 -> 16.78953 | AI43: =(All!V50+All!V51+All!V52+All!V53)/1000 -> 19.495833 | AJ43: =(All!W50+All!W51+All!W52+All!W53)/1000 -> 13.291653 | AK43: =(All!X50+All!X51+All!X52+All!X53)/1000 -> 15.768669 | AL43: =(All!Y50+All!Y51+All!Y52+All!Y53)/1000 -> 16.827015 | AM43: =(All!Z50+All!Z51+All!Z52+All!Z53)/1000 -> 22.645375 | AN43: =(All!AA50+All!AA51+All!AA52+All!AA53)/1000 -> 21.290981 | AO43: =(All!AB50+All!AB51+All!AB52+All!AB53)/1000 -> 21.026029 | AP43: =(All!AC50+All!AC51+All!AC52+All!AC53)/1000 -> 20.850223 | AQ43: =(All!AD50+All!AD51+All!AD52+All!AD53)/1000 -> 20.526272 | AR43: =(All!AE50+All!AE51+All!AE52+All!AE53)/1000 -> 20.22414 | AS43: =(All!AF50+All!AF51+All!AF52+All!AF53)/1000 -> 19.976011 | AT43: =(All!AG50+All!AG51+All!AG52+All!AG53)/1000 -> 19.70003 | AU43: =(All!AH50+All!AH51+All!AH52+All!AH53)/1000 -> 19.493089
P44: Caring, leisure and other service | Q44: =(All!D54+All!D55)/1000 -> 1.677711 | R44: =(All!E54+All!E55)/1000 -> 1.619202 | S44: =(All!F54+All!F55)/1000 -> 1.671372 | T44: =(All!G54+All!G55)/1000 -> 1.657933 | U44: =(All!H54+All!H55)/1000 -> 1.473522 | V44: =(All!I54+All!I55)/1000 -> 1.411878 | W44: =(All!J54+All!J55)/1000 -> 1.043443 | X44: =(All!K54+All!K55)/1000 -> 1.140148 | Y44: =(All!L54+All!L55)/1000 -> 0.984074 | Z44: =(All!M54+All!M55)/1000 -> 0.970243 | AA44: =(All!N54+All!N55)/1000 -> 0.520784 | AB44: =(All!O54+All!O55)/1000 -> 0.590742 | AC44: =(All!P54+All!P55)/1000 -> 0.636844 | AD44: =(All!Q54+All!Q55)/1000 -> 0.494631 | AE44: =(All!R54+All!R55)/1000 -> 0.293994 | AF44: =(All!S54+All!S55)/1000 -> 0.773996 | AG44: =(All!T54+All!T55)/1000 -> 0.909157 | AH44: =(All!U54+All!U55)/1000 -> 0.636656 | AI44: =(All!V54+All!V55)/1000 -> 0.926365 | AJ44: =(All!W54+All!W55)/1000 -> 0.584476 | AK44: =(All!X54+All!X55)/1000 -> 0.909757 | AL44: =(All!Y54+All!Y55)/1000 -> 1.096562 | AM44: =(All!Z54+All!Z55)/1000 -> 1.59392 | AN44: =(All!AA54+All!AA55)/1000 -> 1.408906 | AO44: =(All!AB54+All!AB55)/1000 -> 1.416102 | AP44: =(All!AC54+All!AC55)/1000 -> 1.440737 | AQ44: =(All!AD54+All!AD55)/1000 -> 1.454629 | AR44: =(All!AE54+All!AE55)/1000 -> 1.455205 | AS44: =(All!AF54+All!AF55)/1000 -> 1.454553 | AT44: =(All!AG54+All!AG55)/1000 -> 1.468834 | AU44: =(All!AH54+All!AH55)/1000 -> 1.490751
P45: Sales and customer service | Q45: =(All!D56+All!D57)/1000 -> 0.279287 | R45: =(All!E56+All!E57)/1000 -> 0.263211 | S45: =(All!F56+All!F57)/1000 -> 0.264973 | T45: =(All!G56+All!G57)/1000 -> 0.257927 | U45: =(All!H56+All!H57)/1000 -> 0.2371 | V45: =(All!I56+All!I57)/1000 -> 0.250411 | W45: =(All!J56+All!J57)/1000 -> 0.192168 | X45: =(All!K56+All!K57)/1000 -> 0.194756 | Y45: =(All!L56+All!L57)/1000 -> 0.178705 | Z45: =(All!M56+All!M57)/1000 -> 0.162051 | AA45: =(All!N56+All!N57)/1000 -> 0.10776 | AB45: =(All!O56+All!O57)/1000 -> 0.13257 | AC45: =(All!P56+All!P57)/1000 -> 0.122844 | AD45: =(All!Q56+All!Q57)/1000 -> 0.103269 | AE45: =(All!R56+All!R57)/1000 -> 0.072357 | AF45: =(All!S56+All!S57)/1000 -> 0.18505 | AG45: =(All!T56+All!T57)/1000 -> 0.214323 | AH45: =(All!U56+All!U57)/1000 -> 0.202408 | AI45: =(All!V56+All!V57)/1000 -> 0.237267 | AJ45: =(All!W56+All!W57)/1000 -> 0.310535 | AK45: =(All!X56+All!X57)/1000 -> 0.240593 | AL45: =(All!Y56+All!Y57)/1000 -> 0.256063 | AM45: =(All!Z56+All!Z57)/1000 -> 0.491684 | AN45: =(All!AA56+All!AA57)/1000 -> 0.428676 | AO45: =(All!AB56+All!AB57)/1000 -> 0.415116 | AP45: =(All!AC56+All!AC57)/1000 -> 0.406561 | AQ45: =(All!AD56+All!AD57)/1000 -> 0.401187 | AR45: =(All!AE56+All!AE57)/1000 -> 0.396658 | AS45: =(All!AF56+All!AF57)/1000 -> 0.392826 | AT45: =(All!AG56+All!AG57)/1000 -> 0.385498 | AU45: =(All!AH56+All!AH57)/1000 -> 0.378834
P46: Process, plant and machine operatives | Q46: =(All!D58+All!D59)/1000 -> 1.940728 | R46: =(All!E58+All!E59)/1000 -> 1.8731 | S46: =(All!F58+All!F59)/1000 -> 1.847548 | T46: =(All!G58+All!G59)/1000 -> 1.749963 | U46: =(All!H58+All!H59)/1000 -> 1.692434 | V46: =(All!I58+All!I59)/1000 -> 1.973012 | W46: =(All!J58+All!J59)/1000 -> 1.480252 | X46: =(All!K58+All!K59)/1000 -> 1.576824 | Y46: =(All!L58+All!L59)/1000 -> 1.328818 | Z46: =(All!M58+All!M59)/1000 -> 0.91727 | AA46: =(All!N58+All!N59)/1000 -> 0.678361 | AB46: =(All!O58+All!O59)/1000 -> 0.620543 | AC46: =(All!P58+All!P59)/1000 -> 0.874966 | AD46: =(All!Q58+All!Q59)/1000 -> 0.44076 | AE46: =(All!R58+All!R59)/1000 -> 0.420054 | AF46: =(All!S58+All!S59)/1000 -> 1.214814 | AG46: =(All!T58+All!T59)/1000 -> 1.279564 | AH46: =(All!U58+All!U59)/1000 -> 1.143933 | AI46: =(All!V58+All!V59)/1000 -> 1.095929 | AJ46: =(All!W58+All!W59)/1000 -> 0.830887 | AK46: =(All!X58+All!X59)/1000 -> 0.935178 | AL46: =(All!Y58+All!Y59)/1000 -> 1.226553 | AM46: =(All!Z58+All!Z59)/1000 -> 1.404714 | AN46: =(All!AA58+All!AA59)/1000 -> 1.120887 | AO46: =(All!AB58+All!AB59)/1000 -> 1.068558 | AP46: =(All!AC58+All!AC59)/1000 -> 1.02563 | AQ46: =(All!AD58+All!AD59)/1000 -> 0.983651 | AR46: =(All!AE58+All!AE59)/1000 -> 0.945227 | AS46: =(All!AF58+All!AF59)/1000 -> 0.910972 | AT46: =(All!AG58+All!AG59)/1000 -> 0.863312 | AU46: =(All!AH58+All!AH59)/1000 -> 0.819313
P47: Elementary occupations | Q47: =(All!D60+All!D61)/1000 -> 6.417713 | R47: =(All!E60+All!E61)/1000 -> 6.010882 | S47: =(All!F60+All!F61)/1000 -> 6.158127 | T47: =(All!G60+All!G61)/1000 -> 6.050746 | U47: =(All!H60+All!H61)/1000 -> 5.572578 | V47: =(All!I60+All!I61)/1000 -> 6.034503 | W47: =(All!J60+All!J61)/1000 -> 4.455714 | X47: =(All!K60+All!K61)/1000 -> 4.504341 | Y47: =(All!L60+All!L61)/1000 -> 4.045684 | Z47: =(All!M60+All!M61)/1000 -> 3.19814 | AA47: =(All!N60+All!N61)/1000 -> 2.180099 | AB47: =(All!O60+All!O61)/1000 -> 2.445569 | AC47: =(All!P60+All!P61)/1000 -> 2.402081 | AD47: =(All!Q60+All!Q61)/1000 -> 1.570407 | AE47: =(All!R60+All!R61)/1000 -> 1.371895 | AF47: =(All!S60+All!S61)/1000 -> 3.099678 | AG47: =(All!T60+All!T61)/1000 -> 3.710989 | AH47: =(All!U60+All!U61)/1000 -> 3.210262 | AI47: =(All!V60+All!V61)/1000 -> 3.489551 | AJ47: =(All!W60+All!W61)/1000 -> 2.731094 | AK47: =(All!X60+All!X61)/1000 -> 3.83279 | AL47: =(All!Y60+All!Y61)/1000 -> 5.059533 | AM47: =(All!Z60+All!Z61)/1000 -> 5.342801 | AN47: =(All!AA60+All!AA61)/1000 -> 4.519944 | AO47: =(All!AB60+All!AB61)/1000 -> 4.365552 | AP47: =(All!AC60+All!AC61)/1000 -> 4.259962 | AQ47: =(All!AD60+All!AD61)/1000 -> 4.14289 | AR47: =(All!AE60+All!AE61)/1000 -> 4.032337 | AS47: =(All!AF60+All!AF61)/1000 -> 3.939473 | AT47: =(All!AG60+All!AG61)/1000 -> 3.856101 | AU47: =(All!AH60+All!AH61)/1000 -> 3.787457
P72: ="Occupational employment, "&CHAR(13)&P73 -> Occupational employment, Mining and quarrying
P73: =names!A5 -> Mining and quarrying | Q73: =Q38 -> 1994 | R73: 1995 | S73: 1996 | T73: 1997 | U73: 1998 | V73: 1999 | W73: 2000 | X73: 2001 | Y73: 2002 | Z73: 2003 | AA73: 2004 | AB73: 2005 | AC73: 2006 | AD73: 2007 | AE73: 2008 | AF73: 2009 | AG73: 2010 | AH73: 2011 | AI73: 2012 | AJ73: 2013 | AK73: 2014 | AL73: 2015 | AM73: 2016 | AN73: 2017 | AO73: 2018 | AP73: 2019 | AQ73: 2020 | AR73: 2021 | AS73: 2022 | AT73: 2023 | AU73: 2024
P74: =P39 -> Managers, directors and senior officials | Q74: =(All!D65+All!D66)/1000 -> 0.217673 | R74: =(All!E65+All!E66)/1000 -> 0.21604 | S74: =(All!F65+All!F66)/1000 -> 0.14392 | T74: =(All!G65+All!G66)/1000 -> 0.151813 | U74: =(All!H65+All!H66)/1000 -> 0.169568 | V74: =(All!I65+All!I66)/1000 -> 0.307239 | W74: =(All!J65+All!J66)/1000 -> 0.178197 | X74: =(All!K65+All!K66)/1000 -> 0.155887 | Y74: =(All!L65+All!L66)/1000 -> 0.226664 | Z74: =(All!M65+All!M66)/1000 -> 0.535014 | AA74: =(All!N65+All!N66)/1000 -> 0.173467 | AB74: =(All!O65+All!O66)/1000 -> 0.181563 | AC74: =(All!P65+All!P66)/1000 -> 0.186083 | AD74: =(All!Q65+All!Q66)/1000 -> 0.204293 | AE74: =(All!R65+All!R66)/1000 -> 0.196277 | AF74: =(All!S65+All!S66)/1000 -> 0.227794 | AG74: =(All!T65+All!T66)/1000 -> 0.220568 | AH74: =(All!U65+All!U66)/1000 -> 0.12899 | AI74: =(All!V65+All!V66)/1000 -> 0.129108 | AJ74: =(All!W65+All!W66)/1000 -> 0.114498 | AK74: =(All!X65+All!X66)/1000 -> 0.259925 | AL74: =(All!Y65+All!Y66)/1000 -> 0.24184 | AM74: =(All!Z65+All!Z66)/1000 -> 0.12528 | AN74: =(All!AA65+All!AA66)/1000 -> 0.172593 | AO74: =(All!AB65+All!AB66)/1000 -> 0.175055 | AP74: =(All!AC65+All!AC66)/1000 -> 0.175704 | AQ74: =(All!AD65+All!AD66)/1000 -> 0.180196 | AR74: =(All!AE65+All!AE66)/1000 -> 0.175786 | AS74: =(All!AF65+All!AF66)/1000 -> 0.171512 | AT74: =(All!AG65+All!AG66)/1000 -> 0.167293 | AU74: =(All!AH65+All!AH66)/1000 -> 0.163306
P75: Professional occupations | Q75: =(All!D67+All!D68+All!D69+All!D70)/1000 -> 0.652259 | R75: =(All!E67+All!E68+All!E69+All!E70)/1000 -> 0.582621 | S75: =(All!F67+All!F68+All!F69+All!F70)/1000 -> 0.405887 | T75: =(All!G67+All!G68+All!G69+All!G70)/1000 -> 0.403285 | U75: =(All!H67+All!H68+All!H69+All!H70)/1000 -> 0.345606 | V75: =(All!I67+All!I68+All!I69+All!I70)/1000 -> 0.471262 | W75: =(All!J67+All!J68+All!J69+All!J70)/1000 -> 0.26526 | X75: =(All!K67+All!K68+All!K69+All!K70)/1000 -> 0.275016 | Y75: =(All!L67+All!L68+All!L69+All!L70)/1000 -> 0.607986 | Z75: =(All!M67+All!M68+All!M69+All!M70)/1000 -> 0.527411 | AA75: =(All!N67+All!N68+All!N69+All!N70)/1000 -> 0.26737 | AB75: =(All!O67+All!O68+All!O69+All!O70)/1000 -> 0.284117 | AC75: =(All!P67+All!P68+All!P69+All!P70)/1000 -> 0.279342 | AD75: =(All!Q67+All!Q68+All!Q69+All!Q70)/1000 -> 0.271184 | AE75: =(All!R67+All!R68+All!R69+All!R70)/1000 -> 0.221861 | AF75: =(All!S67+All!S68+All!S69+All!S70)/1000 -> 0.191632 | AG75: =(All!T67+All!T68+All!T69+All!T70)/1000 -> 0.239692 | AH75: =(All!U67+All!U68+All!U69+All!U70)/1000 -> 0.145695 | AI75: =(All!V67+All!V68+All!V69+All!V70)/1000 -> 0.108643 | AJ75: =(All!W67+All!W68+All!W69+All!W70)/1000 -> 0.118309 | AK75: =(All!X67+All!X68+All!X69+All!X70)/1000 -> 0.276629 | AL75: =(All!Y67+All!Y68+All!Y69+All!Y70)/1000 -> 0.251257 | AM75: =(All!Z67+All!Z68+All!Z69+All!Z70)/1000 -> 0.122128 | AN75: =(All!AA67+All!AA68+All!AA69+All!AA70)/1000 -> 0.162895 | AO75: =(All!AB67+All!AB68+All!AB69+All!AB70)/1000 -> 0.165446 | AP75: =(All!AC67+All!AC68+All!AC69+All!AC70)/1000 -> 0.166478 | AQ75: =(All!AD67+All!AD68+All!AD69+All!AD70)/1000 -> 0.17076 | AR75: =(All!AE67+All!AE68+All!AE69+All!AE70)/1000 -> 0.166547 | AS75: =(All!AF67+All!AF68+All!AF69+All!AF70)/1000 -> 0.162815 | AT75: =(All!AG67+All!AG68+All!AG69+All!AG70)/1000 -> 0.157999 | AU75: =(All!AH67+All!AH68+All!AH69+All!AH70)/1000 -> 0.153747
P76: Associate professional and technical | Q76: =(All!D71+All!D72+All!D73+All!D74+All!D75)/1000 -> 0.76204 | R76: =(All!E71+All!E72+All!E73+All!E74+All!E75)/1000 -> 0.708642 | S76: =(All!F71+All!F72+All!F73+All!F74+All!F75)/1000 -> 0.493153 | T76: =(All!G71+All!G72+All!G73+All!G74+All!G75)/1000 -> 0.477691 | U76: =(All!H71+All!H72+All!H73+All!H74+All!H75)/1000 -> 0.425392 | V76: =(All!I71+All!I72+All!I73+All!I74+All!I75)/1000 -> 0.769907 | W76: =(All!J71+All!J72+All!J73+All!J74+All!J75)/1000 -> 0.423679 | X76: =(All!K71+All!K72+All!K73+All!K74+All!K75)/1000 -> 0.446261 | Y76: =(All!L71+All!L72+All!L73+All!L74+All!L75)/1000 -> 0.657261 | Z76: =(All!M71+All!M72+All!M73+All!M74+All!M75)/1000 -> 0.577187 | AA76: =(All!N71+All!N72+All!N73+All!N74+All!N75)/1000 -> 0.429603 | AB76: =(All!O71+All!O72+All!O73+All!O74+All!O75)/1000 -> 0.443849 | AC76: =(All!P71+All!P72+All!P73+All!P74+All!P75)/1000 -> 0.421675 | AD76: =(All!Q71+All!Q72+All!Q73+All!Q74+All!Q75)/1000 -> 0.415831 | AE76: =(All!R71+All!R72+All!R73+All!R74+All!R75)/1000 -> 0.392819 | AF76: =(All!S71+All!S72+All!S73+All!S74+All!S75)/1000 -> 0.322584 | AG76: =(All!T71+All!T72+All!T73+All!T74+All!T75)/1000 -> 0.354551 | AH76: =(All!U71+All!U72+All!U73+All!U74+All!U75)/1000 -> 0.195873 | AI76: =(All!V71+All!V72+All!V73+All!V74+All!V75)/1000 -> 0.169662 | AJ76: =(All!W71+All!W72+All!W73+All!W74+All!W75)/1000 -> 0.184562 | AK76: =(All!X71+All!X72+All!X73+All!X74+All!X75)/1000 -> 0.347153 | AL76: =(All!Y71+All!Y72+All!Y73+All!Y74+All!Y75)/1000 -> 0.325231 | AM76: =(All!Z71+All!Z72+All!Z73+All!Z74+All!Z75)/1000 -> 0.1983 | AN76: =(All!AA71+All!AA72+All!AA73+All!AA74+All!AA75)/1000 -> 0.270783 | AO76: =(All!AB71+All!AB72+All!AB73+All!AB74+All!AB75)/1000 -> 0.272621 | AP76: =(All!AC71+All!AC72+All!AC73+All!AC74+All!AC75)/1000 -> 0.271368 | AQ76: =(All!AD71+All!AD72+All!AD73+All!AD74+All!AD75)/1000 -> 0.27542 | AR76: =(All!AE71+All!AE72+All!AE73+All!AE74+All!AE75)/1000 -> 0.265989 | AS76: =(All!AF71+All!AF72+All!AF73+All!AF74+All!AF75)/1000 -> 0.256458 | AT76: =(All!AG71+All!AG72+All!AG73+All!AG74+All!AG75)/1000 -> 0.248598 | AU76: =(All!AH71+All!AH72+All!AH73+All!AH74+All!AH75)/1000 -> 0.241334
P77: Administrative and secretarial | Q77: =(All!D76+All!D77)/1000 -> 0.069472 | R77: =(All!E76+All!E77)/1000 -> 0.117512 | S77: =(All!F76+All!F77)/1000 -> 0.083558 | T77: =(All!G76+All!G77)/1000 -> 0.064895 | U77: =(All!H76+All!H77)/1000 -> 0.106366 | V77: =(All!I76+All!I77)/1000 -> 0.201521 | W77: =(All!J76+All!J77)/1000 -> 0.127056 | X77: =(All!K76+All!K77)/1000 -> 0.080091 | Y77: =(All!L76+All!L77)/1000 -> 0.172148 | Z77: =(All!M76+All!M77)/1000 -> 0.80988 | AA77: =(All!N76+All!N77)/1000 -> 0.111336 | AB77: =(All!O76+All!O77)/1000 -> 0.109587 | AC77: =(All!P76+All!P77)/1000 -> 0.118175 | AD77: =(All!Q76+All!Q77)/1000 -> 0.123596 | AE77: =(All!R76+All!R77)/1000 -> 0.047512 | AF77: =(All!S76+All!S77)/1000 -> 0.058468 | AG77: =(All!T76+All!T77)/1000 -> 0.131969 | AH77: =(All!U76+All!U77)/1000 -> 0.034131 | AI77: =(All!V76+All!V77)/1000 -> 0.038178 | AJ77: =(All!W76+All!W77)/1000 -> 0.020067 | AK77: =(All!X76+All!X77)/1000 -> 0.074169 | AL77: =(All!Y76+All!Y77)/1000 -> 0.072432 | AM77: =(All!Z76+All!Z77)/1000 -> 0.0198 | AN77: =(All!AA76+All!AA77)/1000 -> 0.025981 | AO77: =(All!AB76+All!AB77)/1000 -> 0.026797 | AP77: =(All!AC76+All!AC77)/1000 -> 0.02707 | AQ77: =(All!AD76+All!AD77)/1000 -> 0.027697 | AR77: =(All!AE76+All!AE77)/1000 -> 0.027125 | AS77: =(All!AF76+All!AF77)/1000 -> 0.026535 | AT77: =(All!AG76+All!AG77)/1000 -> 0.025748 | AU77: =(All!AH76+All!AH77)/1000 -> 0.025168
P78: Skilled trades occupations | Q78: =(All!D78+All!D79+All!D80+All!D81)/1000 -> 1.040547 | R78: =(All!E78+All!E79+All!E80+All!E81)/1000 -> 0.684418 | S78: =(All!F78+All!F79+All!F80+All!F81)/1000 -> 0.508647 | T78: =(All!G78+All!G79+All!G80+All!G81)/1000 -> 0.450318 | U78: =(All!H78+All!H79+All!H80+All!H81)/1000 -> 0.404436 | V78: =(All!I78+All!I79+All!I80+All!I81)/1000 -> 0.782805 | W78: =(All!J78+All!J79+All!J80+All!J81)/1000 -> 0.407199 | X78: =(All!K78+All!K79+All!K80+All!K81)/1000 -> 0.446445 | Y78: =(All!L78+All!L79+All!L80+All!L81)/1000 -> 0.651528 | Z78: =(All!M78+All!M79+All!M80+All!M81)/1000 -> 0.481993 | AA78: =(All!N78+All!N79+All!N80+All!N81)/1000 -> 0.442169 | AB78: =(All!O78+All!O79+All!O80+All!O81)/1000 -> 0.466608 | AC78: =(All!P78+All!P79+All!P80+All!P81)/1000 -> 0.473378 | AD78: =(All!Q78+All!Q79+All!Q80+All!Q81)/1000 -> 0.509452 | AE78: =(All!R78+All!R79+All!R80+All!R81)/1000 -> 0.502012 | AF78: =(All!S78+All!S79+All!S80+All!S81)/1000 -> 0.463362 | AG78: =(All!T78+All!T79+All!T80+All!T81)/1000 -> 0.499457 | AH78: =(All!U78+All!U79+All!U80+All!U81)/1000 -> 0.290705 | AI78: =(All!V78+All!V79+All!V80+All!V81)/1000 -> 0.2675 | AJ78: =(All!W78+All!W79+All!W80+All!W81)/1000 -> 0.271549 | AK78: =(All!X78+All!X79+All!X80+All!X81)/1000 -> 0.451917 | AL78: =(All!Y78+All!Y79+All!Y80+All!Y81)/1000 -> 0.419898 | AM78: =(All!Z78+All!Z79+All!Z80+All!Z81)/1000 -> 0.279457 | AN78: =(All!AA78+All!AA79+All!AA80+All!AA81)/1000 -> 0.377944 | AO78: =(All!AB78+All!AB79+All!AB80+All!AB81)/1000 -> 0.372179 | AP78: =(All!AC78+All!AC79+All!AC80+All!AC81)/1000 -> 0.36326 | AQ78: =(All!AD78+All!AD79+All!AD80+All!AD81)/1000 -> 0.362802 | AR78: =(All!AE78+All!AE79+All!AE80+All!AE81)/1000 -> 0.345691 | AS78: =(All!AF78+All!AF79+All!AF80+All!AF81)/1000 -> 0.328225 | AT78: =(All!AG78+All!AG79+All!AG80+All!AG81)/1000 -> 0.313059 | AU78: =(All!AH78+All!AH79+All!AH80+All!AH81)/1000 -> 0.298906
P79: Caring, leisure and other service | Q79: =(All!D82+All!D83)/1000 -> 0.020424 | R79: =(All!E82+All!E83)/1000 -> 0.02425 | S79: =(All!F82+All!F83)/1000 -> 0.015766 | T79: =(All!G82+All!G83)/1000 -> 0.028891 | U79: =(All!H82+All!H83)/1000 -> 0.042249 | V79: =(All!I82+All!I83)/1000 -> 0.058057 | W79: =(All!J82+All!J83)/1000 -> 0.042087 | X79: =(All!K82+All!K83)/1000 -> 0.056596 | Y79: =(All!L82+All!L83)/1000 -> 0.068057 | Z79: =(All!M82+All!M83)/1000 -> 0.064171 | AA79: =(All!N82+All!N83)/1000 -> 0.073849 | AB79: =(All!O82+All!O83)/1000 -> 0.051153 | AC79: =(All!P82+All!P83)/1000 -> 0.055521 | AD79: =(All!Q82+All!Q83)/1000 -> 0.050642 | AE79: =(All!R82+All!R83)/1000 -> 0.037954 | AF79: =(All!S82+All!S83)/1000 -> 0.041203 | AG79: =(All!T82+All!T83)/1000 -> 0.048843 | AH79: =(All!U82+All!U83)/1000 -> 0.036685 | AI79: =(All!V82+All!V83)/1000 -> 0.024876 | AJ79: =(All!W82+All!W83)/1000 -> 0.026791 | AK79: =(All!X82+All!X83)/1000 -> 0.036324 | AL79: =(All!Y82+All!Y83)/1000 -> 0.036607 | AM79: =(All!Z82+All!Z83)/1000 -> 0.029513 | AN79: =(All!AA82+All!AA83)/1000 -> 0.04009 | AO79: =(All!AB82+All!AB83)/1000 -> 0.040996 | AP79: =(All!AC82+All!AC83)/1000 -> 0.041562 | AQ79: =(All!AD82+All!AD83)/1000 -> 0.042971 | AR79: =(All!AE82+All!AE83)/1000 -> 0.042161 | AS79: =(All!AF82+All!AF83)/1000 -> 0.041513 | AT79: =(All!AG82+All!AG83)/1000 -> 0.041054 | AU79: =(All!AH82+All!AH83)/1000 -> 0.040581
P80: Sales and customer service | Q80: =(All!D84+All!D85)/1000 -> 0.032773 | R80: =(All!E84+All!E85)/1000 -> 0.042565 | S80: =(All!F84+All!F85)/1000 -> 0.037196 | T80: =(All!G84+All!G85)/1000 -> 0.032544 | U80: =(All!H84+All!H85)/1000 -> 0.032428 | V80: =(All!I84+All!I85)/1000 -> 0.059558 | W80: =(All!J84+All!J85)/1000 -> 0.046066 | X80: =(All!K84+All!K85)/1000 -> 0.037032 | Y80: =(All!L84+All!L85)/1000 -> 0.054059 | Z80: =(All!M84+All!M85)/1000 -> 0.126106 | AA80: =(All!N84+All!N85)/1000 -> 0.043222 | AB80: =(All!O84+All!O85)/1000 -> 0.049507 | AC80: =(All!P84+All!P85)/1000 -> 0.05028 | AD80: =(All!Q84+All!Q85)/1000 -> 0.046102 | AE80: =(All!R84+All!R85)/1000 -> 0.026922 | AF80: =(All!S84+All!S85)/1000 -> 0.027245 | AG80: =(All!T84+All!T85)/1000 -> 0.047238 | AH80: =(All!U84+All!U85)/1000 -> 0.026186 | AI80: =(All!V84+All!V85)/1000 -> 0.0178 | AJ80: =(All!W84+All!W85)/1000 -> 0.021191 | AK80: =(All!X84+All!X85)/1000 -> 0.040048 | AL80: =(All!Y84+All!Y85)/1000 -> 0.038889 | AM80: =(All!Z84+All!Z85)/1000 -> 0.021333 | AN80: =(All!AA84+All!AA85)/1000 -> 0.027029 | AO80: =(All!AB84+All!AB85)/1000 -> 0.026802 | AP80: =(All!AC84+All!AC85)/1000 -> 0.026402 | AQ80: =(All!AD84+All!AD85)/1000 -> 0.026719 | AR80: =(All!AE84+All!AE85)/1000 -> 0.026043 | AS80: =(All!AF84+All!AF85)/1000 -> 0.025324 | AT80: =(All!AG84+All!AG85)/1000 -> 0.024871 | AU80: =(All!AH84+All!AH85)/1000 -> 0.024389
P81: Process, plant and machine operatives | Q81: =(All!D86+All!D87)/1000 -> 0.910528 | R81: =(All!E86+All!E87)/1000 -> 0.693446 | S81: =(All!F86+All!F87)/1000 -> 0.438053 | T81: =(All!G86+All!G87)/1000 -> 0.477966 | U81: =(All!H86+All!H87)/1000 -> 0.64685 | V81: =(All!I86+All!I87)/1000 -> 1.421664 | W81: =(All!J86+All!J87)/1000 -> 0.759618 | X81: =(All!K86+All!K87)/1000 -> 0.657433 | Y81: =(All!L86+All!L87)/1000 -> 0.755389 | Z81: =(All!M86+All!M87)/1000 -> 0.718328 | AA81: =(All!N86+All!N87)/1000 -> 0.687397 | AB81: =(All!O86+All!O87)/1000 -> 0.593473 | AC81: =(All!P86+All!P87)/1000 -> 0.608555 | AD81: =(All!Q86+All!Q87)/1000 -> 0.637215 | AE81: =(All!R86+All!R87)/1000 -> 0.585593 | AF81: =(All!S86+All!S87)/1000 -> 0.67268 | AG81: =(All!T86+All!T87)/1000 -> 0.553804 | AH81: =(All!U86+All!U87)/1000 -> 0.299329 | AI81: =(All!V86+All!V87)/1000 -> 0.344198 | AJ81: =(All!W86+All!W87)/1000 -> 0.288961 | AK81: =(All!X86+All!X87)/1000 -> 0.412768 | AL81: =(All!Y86+All!Y87)/1000 -> 0.396984 | AM81: =(All!Z86+All!Z87)/1000 -> 0.295636 | AN81: =(All!AA86+All!AA87)/1000 -> 0.395999 | AO81: =(All!AB86+All!AB87)/1000 -> 0.396016 | AP81: =(All!AC86+All!AC87)/1000 -> 0.390013 | AQ81: =(All!AD86+All!AD87)/1000 -> 0.393335 | AR81: =(All!AE86+All!AE87)/1000 -> 0.378093 | AS81: =(All!AF86+All!AF87)/1000 -> 0.364742 | AT81: =(All!AG86+All!AG87)/1000 -> 0.350334 | AU81: =(All!AH86+All!AH87)/1000 -> 0.336373
P82: Elementary occupations | Q82: =(All!D88+All!D89)/1000 -> 0.068285 | R82: =(All!E88+All!E89)/1000 -> 0.104504 | S82: =(All!F88+All!F89)/1000 -> 0.07482 | T82: =(All!G88+All!G89)/1000 -> 0.072597 | U82: =(All!H88+All!H89)/1000 -> 0.069106 | V82: =(All!I88+All!I89)/1000 -> 0.131988 | W82: =(All!J88+All!J89)/1000 -> 0.083837 | X82: =(All!K88+All!K89)/1000 -> 0.072238 | Y82: =(All!L88+All!L89)/1000 -> 0.12091 | Z82: =(All!M88+All!M89)/1000 -> 0.105909 | AA82: =(All!N88+All!N89)/1000 -> 0.080588 | AB82: =(All!O88+All!O89)/1000 -> 0.080141 | AC82: =(All!P88+All!P89)/1000 -> 0.06399 | AD82: =(All!Q88+All!Q89)/1000 -> 0.060683 | AE82: =(All!R88+All!R89)/1000 -> 0.045048 | AF82: =(All!S88+All!S89)/1000 -> 0.061031 | AG82: =(All!T88+All!T89)/1000 -> 0.057878 | AH82: =(All!U88+All!U89)/1000 -> 0.027406 | AI82: =(All!V88+All!V89)/1000 -> 0.028036 | AJ82: =(All!W88+All!W89)/1000 -> 0.037072 | AK82: =(All!X88+All!X89)/1000 -> 0.132066 | AL82: =(All!Y88+All!Y89)/1000 -> 0.116862 | AM82: =(All!Z88+All!Z89)/1000 -> 0.032555 | AN82: =(All!AA88+All!AA89)/1000 -> 0.041687 | AO82: =(All!AB88+All!AB89)/1000 -> 0.041088 | AP82: =(All!AC88+All!AC89)/1000 -> 0.040144 | AQ82: =(All!AD88+All!AD89)/1000 -> 0.040101 | AR82: =(All!AE88+All!AE89)/1000 -> 0.038564 | AS82: =(All!AF88+All!AF89)/1000 -> 0.036877 | AT82: =(All!AG88+All!AG89)/1000 -> 0.036043 | AU82: =(All!AH88+All!AH89)/1000 -> 0.035197
P107: ="Occupational employment, "&CHAR(13)&P108 -> Occupational employment, Food drink and tobacco
P108: =names!A6 -> Food drink and tobacco | Q108: =Q73 -> 1994 | R108: 1995 | S108: 1996 | T108: 1997 | U108: 1998 | V108: 1999 | W108: 2000 | X108: 2001 | Y108: 2002 | Z108: 2003 | AA108: 2004 | AB108: 2005 | AC108: 2006 | AD108: 2007 | AE108: 2008 | AF108: 2009 | AG108: 2010 | AH108: 2011 | AI108: 2012 | AJ108: 2013 | AK108: 2014 | AL108: 2015 | AM108: 2016 | AN108: 2017 | AO108: 2018 | AP108: 2019 | AQ108: 2020 | AR108: 2021 | AS108: 2022 | AT108: 2023 | AU108: 2024
P109: =P74 -> Managers, directors and senior officials | Q109: =(All!D93+All!D94)/1000 -> 3.187143 | R109: =(All!E93+All!E94)/1000 -> 3.116833 | S109: =(All!F93+All!F94)/1000 -> 3.157578 | T109: =(All!G93+All!G94)/1000 -> 3.005578 | U109: =(All!H93+All!H94)/1000 -> 3.164369 | V109: =(All!I93+All!I94)/1000 -> 3.135085 | W109: =(All!J93+All!J94)/1000 -> 3.634188 | X109: =(All!K93+All!K94)/1000 -> 4.064024 | Y109: =(All!L93+All!L94)/1000 -> 4.08075 | Z109: =(All!M93+All!M94)/1000 -> 4.141211 | AA109: =(All!N93+All!N94)/1000 -> 3.973362 | AB109: =(All!O93+All!O94)/1000 -> 4.432092 | AC109: =(All!P93+All!P94)/1000 -> 4.814864 | AD109: =(All!Q93+All!Q94)/1000 -> 5.281904 | AE109: =(All!R93+All!R94)/1000 -> 5.300338 | AF109: =(All!S93+All!S94)/1000 -> 4.921922 | AG109: =(All!T93+All!T94)/1000 -> 4.651745 | AH109: =(All!U93+All!U94)/1000 -> 5.119614 | AI109: =(All!V93+All!V94)/1000 -> 3.802738 | AJ109: =(All!W93+All!W94)/1000 -> 3.830226 | AK109: =(All!X93+All!X94)/1000 -> 3.454801 | AL109: =(All!Y93+All!Y94)/1000 -> 4.028476 | AM109: =(All!Z93+All!Z94)/1000 -> 4.340351 | AN109: =(All!AA93+All!AA94)/1000 -> 4.796742 | AO109: =(All!AB93+All!AB94)/1000 -> 4.82915 | AP109: =(All!AC93+All!AC94)/1000 -> 4.845905 | AQ109: =(All!AD93+All!AD94)/1000 -> 4.85717 | AR109: =(All!AE93+All!AE94)/1000 -> 4.865199 | AS109: =(All!AF93+All!AF94)/1000 -> 4.872111 | AT109: =(All!AG93+All!AG94)/1000 -> 4.885997 | AU109: =(All!AH93+All!AH94)/1000 -> 4.895619
P110: Professional occupations | Q110: =(All!D95+All!D96+All!D97+All!D98)/1000 -> 2.742769 | R110: =(All!E95+All!E96+All!E97+All!E98)/1000 -> 2.655243 | S110: =(All!F95+All!F96+All!F97+All!F98)/1000 -> 2.678992 | T110: =(All!G95+All!G96+All!G97+All!G98)/1000 -> 2.558685 | U110: =(All!H95+All!H96+All!H97+All!H98)/1000 -> 2.672507 | V110: =(All!I95+All!I96+All!I97+All!I98)/1000 -> 2.618617 | W110: =(All!J95+All!J96+All!J97+All!J98)/1000 -> 3.015538 | X110: =(All!K95+All!K96+All!K97+All!K98)/1000 -> 3.320995 | Y110: =(All!L95+All!L96+All!L97+All!L98)/1000 -> 3.281289 | Z110: =(All!M95+All!M96+All!M97+All!M98)/1000 -> 3.292792 | AA110: =(All!N95+All!N96+All!N97+All!N98)/1000 -> 3.234457 | AB110: =(All!O95+All!O96+All!O97+All!O98)/1000 -> 3.188869 | AC110: =(All!P95+All!P96+All!P97+All!P98)/1000 -> 3.6458 | AD110: =(All!Q95+All!Q96+All!Q97+All!Q98)/1000 -> 3.595329 | AE110: =(All!R95+All!R96+All!R97+All!R98)/1000 -> 3.652639 | AF110: =(All!S95+All!S96+All!S97+All!S98)/1000 -> 3.687115 | AG110: =(All!T95+All!T96+All!T97+All!T98)/1000 -> 3.729272 | AH110: =(All!U95+All!U96+All!U97+All!U98)/1000 -> 3.239059 | AI110: =(All!V95+All!V96+All!V97+All!V98)/1000 -> 2.496622 | AJ110: =(All!W95+All!W96+All!W97+All!W98)/1000 -> 2.490048 | AK110: =(All!X95+All!X96+All!X97+All!X98)/1000 -> 2.23656 | AL110: =(All!Y95+All!Y96+All!Y97+All!Y98)/1000 -> 2.547268 | AM110: =(All!Z95+All!Z96+All!Z97+All!Z98)/1000 -> 2.751702 | AN110: =(All!AA95+All!AA96+All!AA97+All!AA98)/1000 -> 3.026565 | AO110: =(All!AB95+All!AB96+All!AB97+All!AB98)/1000 -> 3.040346 | AP110: =(All!AC95+All!AC96+All!AC97+All!AC98)/1000 -> 3.045858 | AQ110: =(All!AD95+All!AD96+All!AD97+All!AD98)/1000 -> 3.041292 | AR110: =(All!AE95+All!AE96+All!AE97+All!AE98)/1000 -> 3.03199 | AS110: =(All!AF95+All!AF96+All!AF97+All!AF98)/1000 -> 3.024784 | AT110: =(All!AG95+All!AG96+All!AG97+All!AG98)/1000 -> 3.021862 | AU110: =(All!AH95+All!AH96+All!AH97+All!AH98)/1000 -> 3.018612
P111: Associate professional and technical | Q111: =(All!D99+All!D100+All!D101+All!D102+All!D103)/1000 -> 4.910022 | R111: =(All!E99+All!E100+All!E101+All!E102+All!E103)/1000 -> 4.648805 | S111: =(All!F99+All!F100+All!F101+All!F102+All!F103)/1000 -> 4.676084 | T111: =(All!G99+All!G100+All!G101+All!G102+All!G103)/1000 -> 4.528705 | U111: =(All!H99+All!H100+All!H101+All!H102+All!H103)/1000 -> 4.489372 | V111: =(All!I99+All!I100+All!I101+All!I102+All!I103)/1000 -> 4.462955 | W111: =(All!J99+All!J100+All!J101+All!J102+All!J103)/1000 -> 4.896462 | X111: =(All!K99+All!K100+All!K101+All!K102+All!K103)/1000 -> 5.109527 | Y111: =(All!L99+All!L100+All!L101+All!L102+All!L103)/1000 -> 5.004889 | Z111: =(All!M99+All!M100+All!M101+All!M102+All!M103)/1000 -> 4.856578 | AA111: =(All!N99+All!N100+All!N101+All!N102+All!N103)/1000 -> 4.929512 | AB111: =(All!O99+All!O100+All!O101+All!O102+All!O103)/1000 -> 4.674149 | AC111: =(All!P99+All!P100+All!P101+All!P102+All!P103)/1000 -> 5.156684 | AD111: =(All!Q99+All!Q100+All!Q101+All!Q102+All!Q103)/1000 -> 4.210145 | AE111: =(All!R99+All!R100+All!R101+All!R102+All!R103)/1000 -> 4.179197 | AF111: =(All!S99+All!S100+All!S101+All!S102+All!S103)/1000 -> 4.003506 | AG111: =(All!T99+All!T100+All!T101+All!T102+All!T103)/1000 -> 4.102415 | AH111: =(All!U99+All!U100+All!U101+All!U102+All!U103)/1000 -> 3.973037 | AI111: =(All!V99+All!V100+All!V101+All!V102+All!V103)/1000 -> 4.603022 | AJ111: =(All!W99+All!W100+All!W101+All!W102+All!W103)/1000 -> 4.605775 | AK111: =(All!X99+All!X100+All!X101+All!X102+All!X103)/1000 -> 4.133774 | AL111: =(All!Y99+All!Y100+All!Y101+All!Y102+All!Y103)/1000 -> 4.588893 | AM111: =(All!Z99+All!Z100+All!Z101+All!Z102+All!Z103)/1000 -> 4.914445 | AN111: =(All!AA99+All!AA100+All!AA101+All!AA102+All!AA103)/1000 -> 5.365254 | AO111: =(All!AB99+All!AB100+All!AB101+All!AB102+All!AB103)/1000 -> 5.37051 | AP111: =(All!AC99+All!AC100+All!AC101+All!AC102+All!AC103)/1000 -> 5.359462 | AQ111: =(All!AD99+All!AD100+All!AD101+All!AD102+All!AD103)/1000 -> 5.33513 | AR111: =(All!AE99+All!AE100+All!AE101+All!AE102+All!AE103)/1000 -> 5.30543 | AS111: =(All!AF99+All!AF100+All!AF101+All!AF102+All!AF103)/1000 -> 5.274856 | AT111: =(All!AG99+All!AG100+All!AG101+All!AG102+All!AG103)/1000 -> 5.246866 | AU111: =(All!AH99+All!AH100+All!AH101+All!AH102+All!AH103)/1000 -> 5.219144
P112: Administrative and secretarial | Q112: =(All!D104+All!D105)/1000 -> 4.431245 | R112: =(All!E104+All!E105)/1000 -> 3.944372 | S112: =(All!F104+All!F105)/1000 -> 4.012585 | T112: =(All!G104+All!G105)/1000 -> 4.020264 | U112: =(All!H104+All!H105)/1000 -> 3.701636 | V112: =(All!I104+All!I105)/1000 -> 3.828974 | W112: =(All!J104+All!J105)/1000 -> 3.721514 | X112: =(All!K104+All!K105)/1000 -> 3.217454 | Y112: =(All!L104+All!L105)/1000 -> 3.162774 | Z112: =(All!M104+All!M105)/1000 -> 2.978984 | AA112: =(All!N104+All!N105)/1000 -> 2.310092 | AB112: =(All!O104+All!O105)/1000 -> 2.581201 | AC112: =(All!P104+All!P105)/1000 -> 2.488921 | AD112: =(All!Q104+All!Q105)/1000 -> 2.427807 | AE112: =(All!R104+All!R105)/1000 -> 2.063002 | AF112: =(All!S104+All!S105)/1000 -> 2.117913 | AG112: =(All!T104+All!T105)/1000 -> 2.307095 | AH112: =(All!U104+All!U105)/1000 -> 2.355097 | AI112: =(All!V104+All!V105)/1000 -> 2.847709 | AJ112: =(All!W104+All!W105)/1000 -> 2.987187 | AK112: =(All!X104+All!X105)/1000 -> 3.044397 | AL112: =(All!Y104+All!Y105)/1000 -> 2.919774 | AM112: =(All!Z104+All!Z105)/1000 -> 2.937529 | AN112: =(All!AA104+All!AA105)/1000 -> 3.272168 | AO112: =(All!AB104+All!AB105)/1000 -> 3.232256 | AP112: =(All!AC104+All!AC105)/1000 -> 3.183229 | AQ112: =(All!AD104+All!AD105)/1000 -> 3.126492 | AR112: =(All!AE104+All!AE105)/1000 -> 3.066883 | AS112: =(All!AF104+All!AF105)/1000 -> 3.005182 | AT112: =(All!AG104+All!AG105)/1000 -> 3.015381 | AU112: =(All!AH104+All!AH105)/1000 -> 3.028174
P113: Skilled trades occupations | Q113: =(All!D106+All!D107+All!D108+All!D109)/1000 -> 13.880258 | R113: =(All!E106+All!E107+All!E108+All!E109)/1000 -> 12.952749 | S113: =(All!F106+All!F107+All!F108+All!F109)/1000 -> 12.550381 | T113: =(All!G106+All!G107+All!G108+All!G109)/1000 -> 11.552713 | U113: =(All!H106+All!H107+All!H108+All!H109)/1000 -> 11.23415 | V113: =(All!I106+All!I107+All!I108+All!I109)/1000 -> 10.720486 | W113: =(All!J106+All!J107+All!J108+All!J109)/1000 -> 11.87626 | X113: =(All!K106+All!K107+All!K108+All!K109)/1000 -> 12.733889 | Y113: =(All!L106+All!L107+All!L108+All!L109)/1000 -> 12.309756 | Z113: =(All!M106+All!M107+All!M108+All!M109)/1000 -> 11.860947 | AA113: =(All!N106+All!N107+All!N108+All!N109)/1000 -> 11.472068 | AB113: =(All!O106+All!O107+All!O108+All!O109)/1000 -> 11.677375 | AC113: =(All!P106+All!P107+All!P108+All!P109)/1000 -> 10.549943 | AD113: =(All!Q106+All!Q107+All!Q108+All!Q109)/1000 -> 9.757031 | AE113: =(All!R106+All!R107+All!R108+All!R109)/1000 -> 7.706736 | AF113: =(All!S106+All!S107+All!S108+All!S109)/1000 -> 9.78586 | AG113: =(All!T106+All!T107+All!T108+All!T109)/1000 -> 9.31362 | AH113: =(All!U106+All!U107+All!U108+All!U109)/1000 -> 7.238004 | AI113: =(All!V106+All!V107+All!V108+All!V109)/1000 -> 8.185095 | AJ113: =(All!W106+All!W107+All!W108+All!W109)/1000 -> 7.719798 | AK113: =(All!X106+All!X107+All!X108+All!X109)/1000 -> 6.740407 | AL113: =(All!Y106+All!Y107+All!Y108+All!Y109)/1000 -> 7.282966 | AM113: =(All!Z106+All!Z107+All!Z108+All!Z109)/1000 -> 7.693721 | AN113: =(All!AA106+All!AA107+All!AA108+All!AA109)/1000 -> 8.203377 | AO113: =(All!AB106+All!AB107+All!AB108+All!AB109)/1000 -> 7.961074 | AP113: =(All!AC106+All!AC107+All!AC108+All!AC109)/1000 -> 7.691893 | AQ113: =(All!AD106+All!AD107+All!AD108+All!AD109)/1000 -> 7.42487 | AR113: =(All!AE106+All!AE107+All!AE108+All!AE109)/1000 -> 7.15928 | AS113: =(All!AF106+All!AF107+All!AF108+All!AF109)/1000 -> 6.895358 | AT113: =(All!AG106+All!AG107+All!AG108+All!AG109)/1000 -> 6.633516 | AU113: =(All!AH106+All!AH107+All!AH108+All!AH109)/1000 -> 6.378449
P114: Caring, leisure and other service | Q114: =(All!D110+All!D111)/1000 -> 0.307245 | R114: =(All!E110+All!E111)/1000 -> 0.283391 | S114: =(All!F110+All!F111)/1000 -> 0.309458 | T114: =(All!G110+All!G111)/1000 -> 0.332931 | U114: =(All!H110+All!H111)/1000 -> 0.313244 | V114: =(All!I110+All!I111)/1000 -> 0.332513 | W114: =(All!J110+All!J111)/1000 -> 0.333483 | X114: =(All!K110+All!K111)/1000 -> 0.295866 | Y114: =(All!L110+All!L111)/1000 -> 0.287889 | Z114: =(All!M110+All!M111)/1000 -> 0.305569 | AA114: =(All!N110+All!N111)/1000 -> 0.271515 | AB114: =(All!O110+All!O111)/1000 -> 0.277976 | AC114: =(All!P110+All!P111)/1000 -> 0.281533 | AD114: =(All!Q110+All!Q111)/1000 -> 0.273247 | AE114: =(All!R110+All!R111)/1000 -> 0.263082 | AF114: =(All!S110+All!S111)/1000 -> 0.273239 | AG114: =(All!T110+All!T111)/1000 -> 0.284496 | AH114: =(All!U110+All!U111)/1000 -> 0.291235 | AI114: =(All!V110+All!V111)/1000 -> 0.291355 | AJ114: =(All!W110+All!W111)/1000 -> 0.301864 | AK114: =(All!X110+All!X111)/1000 -> 0.285001 | AL114: =(All!Y110+All!Y111)/1000 -> 0.304959 | AM114: =(All!Z110+All!Z111)/1000 -> 0.312139 | AN114: =(All!AA110+All!AA111)/1000 -> 0.351829 | AO114: =(All!AB110+All!AB111)/1000 -> 0.357049 | AP114: =(All!AC110+All!AC111)/1000 -> 0.361433 | AQ114: =(All!AD110+All!AD111)/1000 -> 0.363965 | AR114: =(All!AE110+All!AE111)/1000 -> 0.363624 | AS114: =(All!AF110+All!AF111)/1000 -> 0.362767 | AT114: =(All!AG110+All!AG111)/1000 -> 0.366005 | AU114: =(All!AH110+All!AH111)/1000 -> 0.369666
P115: Sales and customer service | Q115: =(All!D112+All!D113)/1000 -> 1.791753 | R115: =(All!E112+All!E113)/1000 -> 1.689951 | S115: =(All!F112+All!F113)/1000 -> 1.84626 | T115: =(All!G112+All!G113)/1000 -> 1.997 | U115: =(All!H112+All!H113)/1000 -> 1.912299 | V115: =(All!I112+All!I113)/1000 -> 2.122156 | W115: =(All!J112+All!J113)/1000 -> 2.101973 | X115: =(All!K112+All!K113)/1000 -> 1.91248 | Y115: =(All!L112+All!L113)/1000 -> 1.924249 | Z115: =(All!M112+All!M113)/1000 -> 1.87013 | AA115: =(All!N112+All!N113)/1000 -> 1.599714 | AB115: =(All!O112+All!O113)/1000 -> 1.944889 | AC115: =(All!P112+All!P113)/1000 -> 1.710743 | AD115: =(All!Q112+All!Q113)/1000 -> 1.542635 | AE115: =(All!R112+All!R113)/1000 -> 1.396404 | AF115: =(All!S112+All!S113)/1000 -> 1.562975 | AG115: =(All!T112+All!T113)/1000 -> 1.623588 | AH115: =(All!U112+All!U113)/1000 -> 1.573158 | AI115: =(All!V112+All!V113)/1000 -> 2.04357 | AJ115: =(All!W112+All!W113)/1000 -> 2.2095 | AK115: =(All!X112+All!X113)/1000 -> 2.096993 | AL115: =(All!Y112+All!Y113)/1000 -> 1.941255 | AM115: =(All!Z112+All!Z113)/1000 -> 2.051084 | AN115: =(All!AA112+All!AA113)/1000 -> 2.195287 | AO115: =(All!AB112+All!AB113)/1000 -> 2.15873 | AP115: =(All!AC112+All!AC113)/1000 -> 2.120994 | AQ115: =(All!AD112+All!AD113)/1000 -> 2.094288 | AR115: =(All!AE112+All!AE113)/1000 -> 2.074153 | AS115: =(All!AF112+All!AF113)/1000 -> 2.055335 | AT115: =(All!AG112+All!AG113)/1000 -> 2.046101 | AU115: =(All!AH112+All!AH113)/1000 -> 2.034301
P116: Process, plant and machine operatives | Q116: =(All!D114+All!D115)/1000 -> 32.239418 | R116: =(All!E114+All!E115)/1000 -> 29.481627 | S116: =(All!F114+All!F115)/1000 -> 29.396083 | T116: =(All!G114+All!G115)/1000 -> 28.58064 | U116: =(All!H114+All!H115)/1000 -> 26.745873 | V116: =(All!I114+All!I115)/1000 -> 26.85675 | W116: =(All!J114+All!J115)/1000 -> 27.723337 | X116: =(All!K114+All!K115)/1000 -> 28.310471 | Y116: =(All!L114+All!L115)/1000 -> 27.404997 | Z116: =(All!M114+All!M115)/1000 -> 25.868564 | AA116: =(All!N114+All!N115)/1000 -> 24.305759 | AB116: =(All!O114+All!O115)/1000 -> 24.037773 | AC116: =(All!P114+All!P115)/1000 -> 23.501345 | AD116: =(All!Q114+All!Q115)/1000 -> 22.330069 | AE116: =(All!R114+All!R115)/1000 -> 21.711112 | AF116: =(All!S114+All!S115)/1000 -> 22.228406 | AG116: =(All!T114+All!T115)/1000 -> 20.071614 | AH116: =(All!U114+All!U115)/1000 -> 16.129334 | AI116: =(All!V114+All!V115)/1000 -> 19.086264 | AJ116: =(All!W114+All!W115)/1000 -> 18.257913 | AK116: =(All!X114+All!X115)/1000 -> 15.975509 | AL116: =(All!Y114+All!Y115)/1000 -> 16.657866 | AM116: =(All!Z114+All!Z115)/1000 -> 17.11143 | AN116: =(All!AA114+All!AA115)/1000 -> 17.674529 | AO116: =(All!AB114+All!AB115)/1000 -> 17.188224 | AP116: =(All!AC114+All!AC115)/1000 -> 16.566882 | AQ116: =(All!AD114+All!AD115)/1000 -> 15.977528 | AR116: =(All!AE114+All!AE115)/1000 -> 15.427525 | AS116: =(All!AF114+All!AF115)/1000 -> 14.888614 | AT116: =(All!AG114+All!AG115)/1000 -> 14.26777 | AU116: =(All!AH114+All!AH115)/1000 -> 13.648379
P117: Elementary occupations | Q117: =(All!D116+All!D117)/1000 -> 13.285148 | R117: =(All!E116+All!E117)/1000 -> 11.914025 | S117: =(All!F116+All!F117)/1000 -> 11.887581 | T117: =(All!G116+All!G117)/1000 -> 11.613484 | U117: =(All!H116+All!H117)/1000 -> 10.575554 | V117: =(All!I116+All!I117)/1000 -> 10.785463 | W117: =(All!J116+All!J117)/1000 -> 10.874246 | X117: =(All!K116+All!K117)/1000 -> 10.701294 | Y117: =(All!L116+All!L117)/1000 -> 10.562405 | Z117: =(All!M116+All!M117)/1000 -> 9.586223 | AA117: =(All!N116+All!N117)/1000 -> 9.522521 | AB117: =(All!O116+All!O117)/1000 -> 8.956676 | AC117: =(All!P116+All!P117)/1000 -> 8.267168 | AD117: =(All!Q116+All!Q117)/1000 -> 9.573833 | AE117: =(All!R116+All!R117)/1000 -> 9.22149 | AF117: =(All!S116+All!S117)/1000 -> 8.060063 | AG117: =(All!T116+All!T117)/1000 -> 8.072155 | AH117: =(All!U116+All!U117)/1000 -> 8.758463 | AI117: =(All!V116+All!V117)/1000 -> 10.093624 | AJ117: =(All!W116+All!W117)/1000 -> 10.171689 | AK117: =(All!X116+All!X117)/1000 -> 9.315556 | AL117: =(All!Y116+All!Y117)/1000 -> 9.726543 | AM117: =(All!Z116+All!Z117)/1000 -> 10.115598 | AN117: =(All!AA116+All!AA117)/1000 -> 10.968252 | AO117: =(All!AB116+All!AB117)/1000 -> 10.908663 | AP117: =(All!AC116+All!AC117)/1000 -> 10.788343 | AQ117: =(All!AD116+All!AD117)/1000 -> 10.660263 | AR117: =(All!AE116+All!AE117)/1000 -> 10.541915 | AS117: =(All!AF116+All!AF117)/1000 -> 10.432994 | AT117: =(All!AG116+All!AG117)/1000 -> 10.286501 | AU117: =(All!AH116+All!AH117)/1000 -> 10.133658
P142: ="Occupational employment, "&CHAR(13)&P143 -> Occupational employment, Engineering
P143: =names!A7 -> Engineering | Q143: =Q108 -> 1994 | R143: 1995 | S143: 1996 | T143: 1997 | U143: 1998 | V143: 1999 | W143: 2000 | X143: 2001 | Y143: 2002 | Z143: 2003 | AA143: 2004 | AB143: 2005 | AC143: 2006 | AD143: 2007 | AE143: 2008 | AF143: 2009 | AG143: 2010 | AH143: 2011 | AI143: 2012 | AJ143: 2013 | AK143: 2014 | AL143: 2015 | AM143: 2016 | AN143: 2017 | AO143: 2018 | AP143: 2019 | AQ143: 2020 | AR143: 2021 | AS143: 2022 | AT143: 2023 | AU143: 2024
P144: =P109 -> Managers, directors and senior officials | Q144: =(All!D121+All!D122)/1000 -> 4.501934 | R144: =(All!E121+All!E122)/1000 -> 4.319542 | S144: =(All!F121+All!F122)/1000 -> 4.597684 | T144: =(All!G121+All!G122)/1000 -> 5.142883 | U144: =(All!H121+All!H122)/1000 -> 5.526056 | V144: =(All!I121+All!I122)/1000 -> 5.807047 | W144: =(All!J121+All!J122)/1000 -> 5.789492 | X144: =(All!K121+All!K122)/1000 -> 5.398632 | Y144: =(All!L121+All!L122)/1000 -> 5.583689 | Z144: =(All!M121+All!M122)/1000 -> 5.558832 | AA144: =(All!N121+All!N122)/1000 -> 5.349201 | AB144: =(All!O121+All!O122)/1000 -> 5.04107 | AC144: =(All!P121+All!P122)/1000 -> 4.658575 | AD144: =(All!Q121+All!Q122)/1000 -> 4.755869 | AE144: =(All!R121+All!R122)/1000 -> 4.711561 | AF144: =(All!S121+All!S122)/1000 -> 5.019562 | AG144: =(All!T121+All!T122)/1000 -> 4.827166 | AH144: =(All!U121+All!U122)/1000 -> 3.586804 | AI144: =(All!V121+All!V122)/1000 -> 3.518133 | AJ144: =(All!W121+All!W122)/1000 -> 5.054602 | AK144: =(All!X121+All!X122)/1000 -> 3.828481 | AL144: =(All!Y121+All!Y122)/1000 -> 4.264988 | AM144: =(All!Z121+All!Z122)/1000 -> 4.349658 | AN144: =(All!AA121+All!AA122)/1000 -> 4.697103 | AO144: =(All!AB121+All!AB122)/1000 -> 4.624165 | AP144: =(All!AC121+All!AC122)/1000 -> 4.548811 | AQ144: =(All!AD121+All!AD122)/1000 -> 4.459901 | AR144: =(All!AE121+All!AE122)/1000 -> 4.370456 | AS144: =(All!AF121+All!AF122)/1000 -> 4.277566 | AT144: =(All!AG121+All!AG122)/1000 -> 4.194614 | AU144: =(All!AH121+All!AH122)/1000 -> 4.113427
P145: Professional occupations | Q145: =(All!D123+All!D124+All!D125+All!D126)/1000 -> 7.531424 | R145: =(All!E123+All!E124+All!E125+All!E126)/1000 -> 7.282076 | S145: =(All!F123+All!F124+All!F125+All!F126)/1000 -> 7.774321 | T145: =(All!G123+All!G124+All!G125+All!G126)/1000 -> 8.73908 | U145: =(All!H123+All!H124+All!H125+All!H126)/1000 -> 9.560525 | V145: =(All!I123+All!I124+All!I125+All!I126)/1000 -> 10.064642 | W145: =(All!J123+All!J124+All!J125+All!J126)/1000 -> 10.266434 | X145: =(All!K123+All!K124+All!K125+All!K126)/1000 -> 9.638246 | Y145: =(All!L123+All!L124+All!L125+All!L126)/1000 -> 9.81411 | Z145: =(All!M123+All!M124+All!M125+All!M126)/1000 -> 9.860009 | AA145: =(All!N123+All!N124+All!N125+All!N126)/1000 -> 9.796333 | AB145: =(All!O123+All!O124+All!O125+All!O126)/1000 -> 9.40313 | AC145: =(All!P123+All!P124+All!P125+All!P126)/1000 -> 9.232181 | AD145: =(All!Q123+All!Q124+All!Q125+All!Q126)/1000 -> 9.440895 | AE145: =(All!R123+All!R124+All!R125+All!R126)/1000 -> 9.594601 | AF145: =(All!S123+All!S124+All!S125+All!S126)/1000 -> 9.667112 | AG145: =(All!T123+All!T124+All!T125+All!T126)/1000 -> 8.964251 | AH145: =(All!U123+All!U124+All!U125+All!U126)/1000 -> 7.020986 | AI145: =(All!V123+All!V124+All!V125+All!V126)/1000 -> 6.676513 | AJ145: =(All!W123+All!W124+All!W125+All!W126)/1000 -> 9.731906 | AK145: =(All!X123+All!X124+All!X125+All!X126)/1000 -> 7.540029 | AL145: =(All!Y123+All!Y124+All!Y125+All!Y126)/1000 -> 8.060619 | AM145: =(All!Z123+All!Z124+All!Z125+All!Z126)/1000 -> 8.176588 | AN145: =(All!AA123+All!AA124+All!AA125+All!AA126)/1000 -> 8.864683 | AO145: =(All!AB123+All!AB124+All!AB125+All!AB126)/1000 -> 8.697115 | AP145: =(All!AC123+All!AC124+All!AC125+All!AC126)/1000 -> 8.546255 | AQ145: =(All!AD123+All!AD124+All!AD125+All!AD126)/1000 -> 8.34171 | AR145: =(All!AE123+All!AE124+All!AE125+All!AE126)/1000 -> 8.133872 | AS145: =(All!AF123+All!AF124+All!AF125+All!AF126)/1000 -> 7.921051 | AT145: =(All!AG123+All!AG124+All!AG125+All!AG126)/1000 -> 7.744106 | AU145: =(All!AH123+All!AH124+All!AH125+All!AH126)/1000 -> 7.573526
P146: Associate professional and technical | Q146: =(All!D127+All!D128+All!D129+All!D130+All!D131)/1000 -> 7.540467 | R146: =(All!E127+All!E128+All!E129+All!E130+All!E131)/1000 -> 7.201683 | S146: =(All!F127+All!F128+All!F129+All!F130+All!F131)/1000 -> 7.65767 | T146: =(All!G127+All!G128+All!G129+All!G130+All!G131)/1000 -> 8.551975 | U146: =(All!H127+All!H128+All!H129+All!H130+All!H131)/1000 -> 9.198261 | V146: =(All!I127+All!I128+All!I129+All!I130+All!I131)/1000 -> 9.670274 | W146: =(All!J127+All!J128+All!J129+All!J130+All!J131)/1000 -> 9.730555 | X146: =(All!K127+All!K128+All!K129+All!K130+All!K131)/1000 -> 9.07383 | Y146: =(All!L127+All!L128+All!L129+All!L130+All!L131)/1000 -> 9.079172 | Z146: =(All!M127+All!M128+All!M129+All!M130+All!M131)/1000 -> 8.951538 | AA146: =(All!N127+All!N128+All!N129+All!N130+All!N131)/1000 -> 8.104737 | AB146: =(All!O127+All!O128+All!O129+All!O130+All!O131)/1000 -> 7.718925 | AC146: =(All!P127+All!P128+All!P129+All!P130+All!P131)/1000 -> 6.92699 | AD146: =(All!Q127+All!Q128+All!Q129+All!Q130+All!Q131)/1000 -> 6.755069 | AE146: =(All!R127+All!R128+All!R129+All!R130+All!R131)/1000 -> 6.284655 | AF146: =(All!S127+All!S128+All!S129+All!S130+All!S131)/1000 -> 7.483583 | AG146: =(All!T127+All!T128+All!T129+All!T130+All!T131)/1000 -> 6.243154 | AH146: =(All!U127+All!U128+All!U129+All!U130+All!U131)/1000 -> 4.965596 | AI146: =(All!V127+All!V128+All!V129+All!V130+All!V131)/1000 -> 4.463157 | AJ146: =(All!W127+All!W128+All!W129+All!W130+All!W131)/1000 -> 6.369376 | AK146: =(All!X127+All!X128+All!X129+All!X130+All!X131)/1000 -> 4.873562 | AL146: =(All!Y127+All!Y128+All!Y129+All!Y130+All!Y131)/1000 -> 5.221881 | AM146: =(All!Z127+All!Z128+All!Z129+All!Z130+All!Z131)/1000 -> 5.288831 | AN146: =(All!AA127+All!AA128+All!AA129+All!AA130+All!AA131)/1000 -> 5.696088 | AO146: =(All!AB127+All!AB128+All!AB129+All!AB130+All!AB131)/1000 -> 5.591522 | AP146: =(All!AC127+All!AC128+All!AC129+All!AC130+All!AC131)/1000 -> 5.487111 | AQ146: =(All!AD127+All!AD128+All!AD129+All!AD130+All!AD131)/1000 -> 5.356647 | AR146: =(All!AE127+All!AE128+All!AE129+All!AE130+All!AE131)/1000 -> 5.224674 | AS146: =(All!AF127+All!AF128+All!AF129+All!AF130+All!AF131)/1000 -> 5.088356 | AT146: =(All!AG127+All!AG128+All!AG129+All!AG130+All!AG131)/1000 -> 4.968085 | AU146: =(All!AH127+All!AH128+All!AH129+All!AH130+All!AH131)/1000 -> 4.853227
P147: Administrative and secretarial | Q147: =(All!D132+All!D133)/1000 -> 5.783556 | R147: =(All!E132+All!E133)/1000 -> 5.177452 | S147: =(All!F132+All!F133)/1000 -> 5.227931 | T147: =(All!G132+All!G133)/1000 -> 5.633151 | U147: =(All!H132+All!H133)/1000 -> 5.592899 | V147: =(All!I132+All!I133)/1000 -> 5.697034 | W147: =(All!J132+All!J133)/1000 -> 5.828727 | X147: =(All!K132+All!K133)/1000 -> 5.515235 | Y147: =(All!L132+All!L133)/1000 -> 5.325023 | Z147: =(All!M132+All!M133)/1000 -> 5.063921 | AA147: =(All!N132+All!N133)/1000 -> 5.227214 | AB147: =(All!O132+All!O133)/1000 -> 4.436062 | AC147: =(All!P132+All!P133)/1000 -> 3.794899 | AD147: =(All!Q132+All!Q133)/1000 -> 3.378789 | AE147: =(All!R132+All!R133)/1000 -> 3.706945 | AF147: =(All!S132+All!S133)/1000 -> 3.670865 | AG147: =(All!T132+All!T133)/1000 -> 2.951069 | AH147: =(All!U132+All!U133)/1000 -> 2.21384 | AI147: =(All!V132+All!V133)/1000 -> 2.206033 | AJ147: =(All!W132+All!W133)/1000 -> 2.90429 | AK147: =(All!X132+All!X133)/1000 -> 2.13267 | AL147: =(All!Y132+All!Y133)/1000 -> 2.091844 | AM147: =(All!Z132+All!Z133)/1000 -> 2.095778 | AN147: =(All!AA132+All!AA133)/1000 -> 2.212802 | AO147: =(All!AB132+All!AB133)/1000 -> 2.140078 | AP147: =(All!AC132+All!AC133)/1000 -> 2.068316 | AQ147: =(All!AD132+All!AD133)/1000 -> 1.990619 | AR147: =(All!AE132+All!AE133)/1000 -> 1.915091 | AS147: =(All!AF132+All!AF133)/1000 -> 1.84036 | AT147: =(All!AG132+All!AG133)/1000 -> 1.770744 | AU147: =(All!AH132+All!AH133)/1000 -> 1.70481
P148: Skilled trades occupations | Q148: =(All!D134+All!D135+All!D136+All!D137)/1000 -> 19.403096 | R148: =(All!E134+All!E135+All!E136+All!E137)/1000 -> 17.712119 | S148: =(All!F134+All!F135+All!F136+All!F137)/1000 -> 18.024045 | T148: =(All!G134+All!G135+All!G136+All!G137)/1000 -> 19.124398 | U148: =(All!H134+All!H135+All!H136+All!H137)/1000 -> 19.800171 | V148: =(All!I134+All!I135+All!I136+All!I137)/1000 -> 19.977618 | W148: =(All!J134+All!J135+All!J136+All!J137)/1000 -> 18.714192 | X148: =(All!K134+All!K135+All!K136+All!K137)/1000 -> 17.075529 | Y148: =(All!L134+All!L135+All!L136+All!L137)/1000 -> 16.624118 | Z148: =(All!M134+All!M135+All!M136+All!M137)/1000 -> 16.083859 | AA148: =(All!N134+All!N135+All!N136+All!N137)/1000 -> 14.745148 | AB148: =(All!O134+All!O135+All!O136+All!O137)/1000 -> 13.213166 | AC148: =(All!P134+All!P135+All!P136+All!P137)/1000 -> 12.66032 | AD148: =(All!Q134+All!Q135+All!Q136+All!Q137)/1000 -> 11.712138 | AE148: =(All!R134+All!R135+All!R136+All!R137)/1000 -> 10.084537 | AF148: =(All!S134+All!S135+All!S136+All!S137)/1000 -> 11.084735 | AG148: =(All!T134+All!T135+All!T136+All!T137)/1000 -> 9.987379 | AH148: =(All!U134+All!U135+All!U136+All!U137)/1000 -> 7.408569 | AI148: =(All!V134+All!V135+All!V136+All!V137)/1000 -> 6.548827 | AJ148: =(All!W134+All!W135+All!W136+All!W137)/1000 -> 9.06973 | AK148: =(All!X134+All!X135+All!X136+All!X137)/1000 -> 6.367591 | AL148: =(All!Y134+All!Y135+All!Y136+All!Y137)/1000 -> 7.320971 | AM148: =(All!Z134+All!Z135+All!Z136+All!Z137)/1000 -> 7.28713 | AN148: =(All!AA134+All!AA135+All!AA136+All!AA137)/1000 -> 7.546677 | AO148: =(All!AB134+All!AB135+All!AB136+All!AB137)/1000 -> 7.199248 | AP148: =(All!AC134+All!AC135+All!AC136+All!AC137)/1000 -> 6.85501 | AQ148: =(All!AD134+All!AD135+All!AD136+All!AD137)/1000 -> 6.524612 | AR148: =(All!AE134+All!AE135+All!AE136+All!AE137)/1000 -> 6.220005 | AS148: =(All!AF134+All!AF135+All!AF136+All!AF137)/1000 -> 5.924684 | AT148: =(All!AG134+All!AG135+All!AG136+All!AG137)/1000 -> 5.608957 | AU148: =(All!AH134+All!AH135+All!AH136+All!AH137)/1000 -> 5.313454
P149: Caring, leisure and other service | Q149: =(All!D138+All!D139)/1000 -> 0.366907 | R149: =(All!E138+All!E139)/1000 -> 0.331852 | S149: =(All!F138+All!F139)/1000 -> 0.335153 | T149: =(All!G138+All!G139)/1000 -> 0.362578 | U149: =(All!H138+All!H139)/1000 -> 0.360986 | V149: =(All!I138+All!I139)/1000 -> 0.372602 | W149: =(All!J138+All!J139)/1000 -> 0.41067 | X149: =(All!K138+All!K139)/1000 -> 0.425816 | Y149: =(All!L138+All!L139)/1000 -> 0.370391 | Z149: =(All!M138+All!M139)/1000 -> 0.38988 | AA149: =(All!N138+All!N139)/1000 -> 0.397731 | AB149: =(All!O138+All!O139)/1000 -> 0.335923 | AC149: =(All!P138+All!P139)/1000 -> 0.317549 | AD149: =(All!Q138+All!Q139)/1000 -> 0.296256 | AE149: =(All!R138+All!R139)/1000 -> 0.289719 | AF149: =(All!S138+All!S139)/1000 -> 0.303993 | AG149: =(All!T138+All!T139)/1000 -> 0.265367 | AH149: =(All!U138+All!U139)/1000 -> 0.16799 | AI149: =(All!V138+All!V139)/1000 -> 0.178616 | AJ149: =(All!W138+All!W139)/1000 -> 0.224313 | AK149: =(All!X138+All!X139)/1000 -> 0.153861 | AL149: =(All!Y138+All!Y139)/1000 -> 0.157648 | AM149: =(All!Z138+All!Z139)/1000 -> 0.151652 | AN149: =(All!AA138+All!AA139)/1000 -> 0.166811 | AO149: =(All!AB138+All!AB139)/1000 -> 0.168213 | AP149: =(All!AC138+All!AC139)/1000 -> 0.169159 | AQ149: =(All!AD138+All!AD139)/1000 -> 0.168672 | AR149: =(All!AE138+All!AE139)/1000 -> 0.166583 | AS149: =(All!AF138+All!AF139)/1000 -> 0.16374 | AT149: =(All!AG138+All!AG139)/1000 -> 0.162102 | AU149: =(All!AH138+All!AH139)/1000 -> 0.160664
P150: Sales and customer service | Q150: =(All!D140+All!D141)/1000 -> 0.792796 | R150: =(All!E140+All!E141)/1000 -> 0.760009 | S150: =(All!F140+All!F141)/1000 -> 0.81451 | T150: =(All!G140+All!G141)/1000 -> 0.9167 | U150: =(All!H140+All!H141)/1000 -> 0.980185 | V150: =(All!I140+All!I141)/1000 -> 1.059675 | W150: =(All!J140+All!J141)/1000 -> 1.101867 | X150: =(All!K140+All!K141)/1000 -> 1.071029 | Y150: =(All!L140+All!L141)/1000 -> 1.074642 | Z150: =(All!M140+All!M141)/1000 -> 1.077593 | AA150: =(All!N140+All!N141)/1000 -> 1.093442 | AB150: =(All!O140+All!O141)/1000 -> 0.991842 | AC150: =(All!P140+All!P141)/1000 -> 1.005766 | AD150: =(All!Q140+All!Q141)/1000 -> 1.003038 | AE150: =(All!R140+All!R141)/1000 -> 1.05407 | AF150: =(All!S140+All!S141)/1000 -> 0.95291 | AG150: =(All!T140+All!T141)/1000 -> 0.94327 | AH150: =(All!U140+All!U141)/1000 -> 0.658279 | AI150: =(All!V140+All!V141)/1000 -> 0.795517 | AJ150: =(All!W140+All!W141)/1000 -> 1.115035 | AK150: =(All!X140+All!X141)/1000 -> 0.833154 | AL150: =(All!Y140+All!Y141)/1000 -> 0.905673 | AM150: =(All!Z140+All!Z141)/1000 -> 0.954256 | AN150: =(All!AA140+All!AA141)/1000 -> 1.031228 | AO150: =(All!AB140+All!AB141)/1000 -> 0.993489 | AP150: =(All!AC140+All!AC141)/1000 -> 0.960756 | AQ150: =(All!AD140+All!AD141)/1000 -> 0.930987 | AR150: =(All!AE140+All!AE141)/1000 -> 0.902941 | AS150: =(All!AF140+All!AF141)/1000 -> 0.876146 | AT150: =(All!AG140+All!AG141)/1000 -> 0.851249 | AU150: =(All!AH140+All!AH141)/1000 -> 0.826147
P151: Process, plant and machine operatives | Q151: =(All!D142+All!D143)/1000 -> 15.730766 | R151: =(All!E142+All!E143)/1000 -> 14.27841 | S151: =(All!F142+All!F143)/1000 -> 14.535008 | T151: =(All!G142+All!G143)/1000 -> 15.546688 | U151: =(All!H142+All!H143)/1000 -> 15.816252 | V151: =(All!I142+All!I143)/1000 -> 15.915807 | W151: =(All!J142+All!J143)/1000 -> 15.160206 | X151: =(All!K142+All!K143)/1000 -> 13.95112 | Y151: =(All!L142+All!L143)/1000 -> 13.803279 | Z151: =(All!M142+All!M143)/1000 -> 12.837988 | AA151: =(All!N142+All!N143)/1000 -> 11.412278 | AB151: =(All!O142+All!O143)/1000 -> 9.383665 | AC151: =(All!P142+All!P143)/1000 -> 8.457894 | AD151: =(All!Q142+All!Q143)/1000 -> 8.954185 | AE151: =(All!R142+All!R143)/1000 -> 7.72705 | AF151: =(All!S142+All!S143)/1000 -> 7.866943 | AG151: =(All!T142+All!T143)/1000 -> 6.58228 | AH151: =(All!U142+All!U143)/1000 -> 4.142734 | AI151: =(All!V142+All!V143)/1000 -> 4.062173 | AJ151: =(All!W142+All!W143)/1000 -> 5.442162 | AK151: =(All!X142+All!X143)/1000 -> 3.889724 | AL151: =(All!Y142+All!Y143)/1000 -> 4.04427 | AM151: =(All!Z142+All!Z143)/1000 -> 3.957705 | AN151: =(All!AA142+All!AA143)/1000 -> 3.987355 | AO151: =(All!AB142+All!AB143)/1000 -> 3.798384 | AP151: =(All!AC142+All!AC143)/1000 -> 3.585829 | AQ151: =(All!AD142+All!AD143)/1000 -> 3.38002 | AR151: =(All!AE142+All!AE143)/1000 -> 3.194134 | AS151: =(All!AF142+All!AF143)/1000 -> 3.017384 | AT151: =(All!AG142+All!AG143)/1000 -> 2.828718 | AU151: =(All!AH142+All!AH143)/1000 -> 2.648508
P152: Elementary occupations | Q152: =(All!D144+All!D145)/1000 -> 3.631055 | R152: =(All!E144+All!E145)/1000 -> 3.284855 | S152: =(All!F144+All!F145)/1000 -> 3.288678 | T152: =(All!G144+All!G145)/1000 -> 3.489547 | U152: =(All!H144+All!H145)/1000 -> 3.553667 | V152: =(All!I144+All!I145)/1000 -> 3.604302 | W152: =(All!J144+All!J145)/1000 -> 3.531856 | X152: =(All!K144+All!K145)/1000 -> 3.283564 | Y152: =(All!L144+All!L145)/1000 -> 3.077577 | Z152: =(All!M144+All!M145)/1000 -> 2.978381 | AA152: =(All!N144+All!N145)/1000 -> 2.825918 | AB152: =(All!O144+All!O145)/1000 -> 2.697219 | AC152: =(All!P144+All!P145)/1000 -> 2.463823 | AD152: =(All!Q144+All!Q145)/1000 -> 2.19676 | AE152: =(All!R144+All!R145)/1000 -> 2.226862 | AF152: =(All!S144+All!S145)/1000 -> 2.559297 | AG152: =(All!T144+All!T145)/1000 -> 2.256065 | AH152: =(All!U144+All!U145)/1000 -> 1.527201 | AI152: =(All!V144+All!V145)/1000 -> 1.469028 | AJ152: =(All!W144+All!W145)/1000 -> 2.007587 | AK152: =(All!X144+All!X145)/1000 -> 1.44993 | AL152: =(All!Y144+All!Y145)/1000 -> 1.591107 | AM152: =(All!Z144+All!Z145)/1000 -> 1.575404 | AN152: =(All!AA144+All!AA145)/1000 -> 1.661255 | AO152: =(All!AB144+All!AB145)/1000 -> 1.604787 | AP152: =(All!AC144+All!AC145)/1000 -> 1.53775 | AQ152: =(All!AD144+All!AD145)/1000 -> 1.470829 | AR152: =(All!AE144+All!AE145)/1000 -> 1.411243 | AS152: =(All!AF144+All!AF145)/1000 -> 1.355712 | AT152: =(All!AG144+All!AG145)/1000 -> 1.302425 | AU152: =(All!AH144+All!AH145)/1000 -> 1.251237
P177: ="Occupational employment, "&CHAR(13)&P178 -> Occupational employment, Rest of manufacturing
P178: =names!A8 -> Rest of manufacturing | Q178: =Q143 -> 1994 | R178: 1995 | S178: 1996 | T178: 1997 | U178: 1998 | V178: 1999 | W178: 2000 | X178: 2001 | Y178: 2002 | Z178: 2003 | AA178: 2004 | AB178: 2005 | AC178: 2006 | AD178: 2007 | AE178: 2008 | AF178: 2009 | AG178: 2010 | AH178: 2011 | AI178: 2012 | AJ178: 2013 | AK178: 2014 | AL178: 2015 | AM178: 2016 | AN178: 2017 | AO178: 2018 | AP178: 2019 | AQ178: 2020 | AR178: 2021 | AS178: 2022 | AT178: 2023 | AU178: 2024
P179: =P144 -> Managers, directors and senior officials | Q179: =(All!D149+All!D150)/1000 -> 24.54186 | R179: =(All!E149+All!E150)/1000 -> 24.637706 | S179: =(All!F149+All!F150)/1000 -> 25.667601 | T179: =(All!G149+All!G150)/1000 -> 26.313007 | U179: =(All!H149+All!H150)/1000 -> 27.199558 | V179: =(All!I149+All!I150)/1000 -> 28.37482 | W179: =(All!J149+All!J150)/1000 -> 28.824395 | X179: =(All!K149+All!K150)/1000 -> 28.807944 | Y179: =(All!L149+All!L150)/1000 -> 29.226559 | Z179: =(All!M149+All!M150)/1000 -> 27.26754 | AA179: =(All!N149+All!N150)/1000 -> 28.087468 | AB179: =(All!O149+All!O150)/1000 -> 27.185614 | AC179: =(All!P149+All!P150)/1000 -> 26.610271 | AD179: =(All!Q149+All!Q150)/1000 -> 25.547252 | AE179: =(All!R149+All!R150)/1000 -> 27.143854 | AF179: =(All!S149+All!S150)/1000 -> 26.296791 | AG179: =(All!T149+All!T150)/1000 -> 25.288517 | AH179: =(All!U149+All!U150)/1000 -> 27.410775 | AI179: =(All!V149+All!V150)/1000 -> 22.248937 | AJ179: =(All!W149+All!W150)/1000 -> 24.344489 | AK179: =(All!X149+All!X150)/1000 -> 22.212322 | AL179: =(All!Y149+All!Y150)/1000 -> 23.060006 | AM179: =(All!Z149+All!Z150)/1000 -> 24.603884 | AN179: =(All!AA149+All!AA150)/1000 -> 25.363973 | AO179: =(All!AB149+All!AB150)/1000 -> 25.834862 | AP179: =(All!AC149+All!AC150)/1000 -> 26.094955 | AQ179: =(All!AD149+All!AD150)/1000 -> 26.240439 | AR179: =(All!AE149+All!AE150)/1000 -> 26.268175 | AS179: =(All!AF149+All!AF150)/1000 -> 26.293359 | AT179: =(All!AG149+All!AG150)/1000 -> 26.313549 | AU179: =(All!AH149+All!AH150)/1000 -> 26.322727
P180: Professional occupations | Q180: =(All!D151+All!D152+All!D153+All!D154)/1000 -> 31.503177 | R180: =(All!E151+All!E152+All!E153+All!E154)/1000 -> 31.887075 | S180: =(All!F151+All!F152+All!F153+All!F154)/1000 -> 32.786412 | T180: =(All!G151+All!G152+All!G153+All!G154)/1000 -> 34.197341 | U180: =(All!H151+All!H152+All!H153+All!H154)/1000 -> 36.416934 | V180: =(All!I151+All!I152+All!I153+All!I154)/1000 -> 38.334356 | W180: =(All!J151+All!J152+All!J153+All!J154)/1000 -> 39.747689 | X180: =(All!K151+All!K152+All!K153+All!K154)/1000 -> 38.610245 | Y180: =(All!L151+All!L152+All!L153+All!L154)/1000 -> 38.465617 | Z180: =(All!M151+All!M152+All!M153+All!M154)/1000 -> 36.653679 | AA180: =(All!N151+All!N152+All!N153+All!N154)/1000 -> 35.529438 | AB180: =(All!O151+All!O152+All!O153+All!O154)/1000 -> 36.396434 | AC180: =(All!P151+All!P152+All!P153+All!P154)/1000 -> 35.131166 | AD180: =(All!Q151+All!Q152+All!Q153+All!Q154)/1000 -> 35.71836 | AE180: =(All!R151+All!R152+All!R153+All!R154)/1000 -> 37.065215 | AF180: =(All!S151+All!S152+All!S153+All!S154)/1000 -> 38.328092 | AG180: =(All!T151+All!T152+All!T153+All!T154)/1000 -> 37.195554 | AH180: =(All!U151+All!U152+All!U153+All!U154)/1000 -> 37.503911 | AI180: =(All!V151+All!V152+All!V153+All!V154)/1000 -> 36.1024 | AJ180: =(All!W151+All!W152+All!W153+All!W154)/1000 -> 36.642063 | AK180: =(All!X151+All!X152+All!X153+All!X154)/1000 -> 36.826788 | AL180: =(All!Y151+All!Y152+All!Y153+All!Y154)/1000 -> 36.856947 | AM180: =(All!Z151+All!Z152+All!Z153+All!Z154)/1000 -> 39.336091 | AN180: =(All!AA151+All!AA152+All!AA153+All!AA154)/1000 -> 40.185573 | AO180: =(All!AB151+All!AB152+All!AB153+All!AB154)/1000 -> 41.118468 | AP180: =(All!AC151+All!AC152+All!AC153+All!AC154)/1000 -> 41.647294 | AQ180: =(All!AD151+All!AD152+All!AD153+All!AD154)/1000 -> 41.801073 | AR180: =(All!AE151+All!AE152+All!AE153+All!AE154)/1000 -> 41.718658 | AS180: =(All!AF151+All!AF152+All!AF153+All!AF154)/1000 -> 41.650978 | AT180: =(All!AG151+All!AG152+All!AG153+All!AG154)/1000 -> 41.659159 | AU180: =(All!AH151+All!AH152+All!AH153+All!AH154)/1000 -> 41.670879
P181: Associate professional and technical | Q181: =(All!D155+All!D156+All!D157+All!D158+All!D159)/1000 -> 36.800163 | R181: =(All!E155+All!E156+All!E157+All!E158+All!E159)/1000 -> 37.284333 | S181: =(All!F155+All!F156+All!F157+All!F158+All!F159)/1000 -> 38.486453 | T181: =(All!G155+All!G156+All!G157+All!G158+All!G159)/1000 -> 39.670911 | U181: =(All!H155+All!H156+All!H157+All!H158+All!H159)/1000 -> 41.029622 | V181: =(All!I155+All!I156+All!I157+All!I158+All!I159)/1000 -> 43.220785 | W181: =(All!J155+All!J156+All!J157+All!J158+All!J159)/1000 -> 43.193641 | X181: =(All!K155+All!K156+All!K157+All!K158+All!K159)/1000 -> 42.129104 | Y181: =(All!L155+All!L156+All!L157+All!L158+All!L159)/1000 -> 41.719624 | Z181: =(All!M155+All!M156+All!M157+All!M158+All!M159)/1000 -> 39.868306 | AA181: =(All!N155+All!N156+All!N157+All!N158+All!N159)/1000 -> 38.870996 | AB181: =(All!O155+All!O156+All!O157+All!O158+All!O159)/1000 -> 36.174301 | AC181: =(All!P155+All!P156+All!P157+All!P158+All!P159)/1000 -> 35.674935 | AD181: =(All!Q155+All!Q156+All!Q157+All!Q158+All!Q159)/1000 -> 33.148844 | AE181: =(All!R155+All!R156+All!R157+All!R158+All!R159)/1000 -> 32.630947 | AF181: =(All!S155+All!S156+All!S157+All!S158+All!S159)/1000 -> 33.434533 | AG181: =(All!T155+All!T156+All!T157+All!T158+All!T159)/1000 -> 30.185531 | AH181: =(All!U155+All!U156+All!U157+All!U158+All!U159)/1000 -> 33.385482 | AI181: =(All!V155+All!V156+All!V157+All!V158+All!V159)/1000 -> 26.856732 | AJ181: =(All!W155+All!W156+All!W157+All!W158+All!W159)/1000 -> 28.726196 | AK181: =(All!X155+All!X156+All!X157+All!X158+All!X159)/1000 -> 26.980425 | AL181: =(All!Y155+All!Y156+All!Y157+All!Y158+All!Y159)/1000 -> 27.010898 | AM181: =(All!Z155+All!Z156+All!Z157+All!Z158+All!Z159)/1000 -> 28.608749 | AN181: =(All!AA155+All!AA156+All!AA157+All!AA158+All!AA159)/1000 -> 29.088356 | AO181: =(All!AB155+All!AB156+All!AB157+All!AB158+All!AB159)/1000 -> 29.553509 | AP181: =(All!AC155+All!AC156+All!AC157+All!AC158+All!AC159)/1000 -> 29.780005 | AQ181: =(All!AD155+All!AD156+All!AD157+All!AD158+All!AD159)/1000 -> 29.823417 | AR181: =(All!AE155+All!AE156+All!AE157+All!AE158+All!AE159)/1000 -> 29.724485 | AS181: =(All!AF155+All!AF156+All!AF157+All!AF158+All!AF159)/1000 -> 29.63365 | AT181: =(All!AG155+All!AG156+All!AG157+All!AG158+All!AG159)/1000 -> 29.525376 | AU181: =(All!AH155+All!AH156+All!AH157+All!AH158+All!AH159)/1000 -> 29.429244
P182: Administrative and secretarial | Q182: =(All!D160+All!D161)/1000 -> 31.441196 | R182: =(All!E160+All!E161)/1000 -> 30.266424 | S182: =(All!F160+All!F161)/1000 -> 30.290789 | T182: =(All!G160+All!G161)/1000 -> 30.745928 | U182: =(All!H160+All!H161)/1000 -> 30.189428 | V182: =(All!I160+All!I161)/1000 -> 31.385216 | W182: =(All!J160+All!J161)/1000 -> 31.348452 | X182: =(All!K160+All!K161)/1000 -> 30.766432 | Y182: =(All!L160+All!L161)/1000 -> 29.355257 | Z182: =(All!M160+All!M161)/1000 -> 29.631787 | AA182: =(All!N160+All!N161)/1000 -> 27.798029 | AB182: =(All!O160+All!O161)/1000 -> 26.712181 | AC182: =(All!P160+All!P161)/1000 -> 25.944095 | AD182: =(All!Q160+All!Q161)/1000 -> 24.00437 | AE182: =(All!R160+All!R161)/1000 -> 23.265201 | AF182: =(All!S160+All!S161)/1000 -> 22.622491 | AG182: =(All!T160+All!T161)/1000 -> 19.476461 | AH182: =(All!U160+All!U161)/1000 -> 21.365963 | AI182: =(All!V160+All!V161)/1000 -> 17.257599 | AJ182: =(All!W160+All!W161)/1000 -> 17.679036 | AK182: =(All!X160+All!X161)/1000 -> 17.67485 | AL182: =(All!Y160+All!Y161)/1000 -> 16.429206 | AM182: =(All!Z160+All!Z161)/1000 -> 16.54289 | AN182: =(All!AA160+All!AA161)/1000 -> 16.725528 | AO182: =(All!AB160+All!AB161)/1000 -> 16.946974 | AP182: =(All!AC160+All!AC161)/1000 -> 16.804071 | AQ182: =(All!AD160+All!AD161)/1000 -> 16.531249 | AR182: =(All!AE160+All!AE161)/1000 -> 16.191638 | AS182: =(All!AF160+All!AF161)/1000 -> 15.849371 | AT182: =(All!AG160+All!AG161)/1000 -> 15.539029 | AU182: =(All!AH160+All!AH161)/1000 -> 15.240418
P183: Skilled trades occupations | Q183: =(All!D162+All!D163+All!D164+All!D165)/1000 -> 126.920329 | R183: =(All!E162+All!E163+All!E164+All!E165)/1000 -> 122.467456 | S183: =(All!F162+All!F163+All!F164+All!F165)/1000 -> 122.404711 | T183: =(All!G162+All!G163+All!G164+All!G165)/1000 -> 120.998764 | U183: =(All!H162+All!H163+All!H164+All!H165)/1000 -> 122.478079 | V183: =(All!I162+All!I163+All!I164+All!I165)/1000 -> 122.234207 | W183: =(All!J162+All!J163+All!J164+All!J165)/1000 -> 119.798422 | X183: =(All!K162+All!K163+All!K164+All!K165)/1000 -> 113.299568 | Y183: =(All!L162+All!L163+All!L164+All!L165)/1000 -> 107.986533 | Z183: =(All!M162+All!M163+All!M164+All!M165)/1000 -> 99.59339 | AA183: =(All!N162+All!N163+All!N164+All!N165)/1000 -> 90.542315 | AB183: =(All!O162+All!O163+All!O164+All!O165)/1000 -> 92.757824 | AC183: =(All!P162+All!P163+All!P164+All!P165)/1000 -> 86.724611 | AD183: =(All!Q162+All!Q163+All!Q164+All!Q165)/1000 -> 81.37276 | AE183: =(All!R162+All!R163+All!R164+All!R165)/1000 -> 79.348177 | AF183: =(All!S162+All!S163+All!S164+All!S165)/1000 -> 77.523243 | AG183: =(All!T162+All!T163+All!T164+All!T165)/1000 -> 75.281959 | AH183: =(All!U162+All!U163+All!U164+All!U165)/1000 -> 78.401104 | AI183: =(All!V162+All!V163+All!V164+All!V165)/1000 -> 67.378613 | AJ183: =(All!W162+All!W163+All!W164+All!W165)/1000 -> 68.996269 | AK183: =(All!X162+All!X163+All!X164+All!X165)/1000 -> 63.269518 | AL183: =(All!Y162+All!Y163+All!Y164+All!Y165)/1000 -> 63.268006 | AM183: =(All!Z162+All!Z163+All!Z164+All!Z165)/1000 -> 63.772955 | AN183: =(All!AA162+All!AA163+All!AA164+All!AA165)/1000 -> 64.706667 | AO183: =(All!AB162+All!AB163+All!AB164+All!AB165)/1000 -> 64.276846 | AP183: =(All!AC162+All!AC163+All!AC164+All!AC165)/1000 -> 63.459366 | AQ183: =(All!AD162+All!AD163+All!AD164+All!AD165)/1000 -> 62.397602 | AR183: =(All!AE162+All!AE163+All!AE164+All!AE165)/1000 -> 61.12905 | AS183: =(All!AF162+All!AF163+All!AF164+All!AF165)/1000 -> 59.814211 | AT183: =(All!AG162+All!AG163+All!AG164+All!AG165)/1000 -> 58.422952 | AU183: =(All!AH162+All!AH163+All!AH164+All!AH165)/1000 -> 57.076601
P184: Caring, leisure and other service | Q184: =(All!D166+All!D167)/1000 -> 3.276018 | R184: =(All!E166+All!E167)/1000 -> 3.161772 | S184: =(All!F166+All!F167)/1000 -> 3.3263 | T184: =(All!G166+All!G167)/1000 -> 3.397845 | U184: =(All!H166+All!H167)/1000 -> 3.397841 | V184: =(All!I166+All!I167)/1000 -> 3.536077 | W184: =(All!J166+All!J167)/1000 -> 3.509399 | X184: =(All!K166+All!K167)/1000 -> 3.164225 | Y184: =(All!L166+All!L167)/1000 -> 2.930069 | Z184: =(All!M166+All!M167)/1000 -> 3.095722 | AA184: =(All!N166+All!N167)/1000 -> 2.860557 | AB184: =(All!O166+All!O167)/1000 -> 2.679583 | AC184: =(All!P166+All!P167)/1000 -> 2.796097 | AD184: =(All!Q166+All!Q167)/1000 -> 2.684405 | AE184: =(All!R166+All!R167)/1000 -> 2.639317 | AF184: =(All!S166+All!S167)/1000 -> 2.92878 | AG184: =(All!T166+All!T167)/1000 -> 2.696641 | AH184: =(All!U166+All!U167)/1000 -> 2.859917 | AI184: =(All!V166+All!V167)/1000 -> 2.12793 | AJ184: =(All!W166+All!W167)/1000 -> 2.176817 | AK184: =(All!X166+All!X167)/1000 -> 2.503148 | AL184: =(All!Y166+All!Y167)/1000 -> 2.652712 | AM184: =(All!Z166+All!Z167)/1000 -> 2.791014 | AN184: =(All!AA166+All!AA167)/1000 -> 2.964268 | AO184: =(All!AB166+All!AB167)/1000 -> 3.083614 | AP184: =(All!AC166+All!AC167)/1000 -> 3.126833 | AQ184: =(All!AD166+All!AD167)/1000 -> 3.15256 | AR184: =(All!AE166+All!AE167)/1000 -> 3.132817 | AS184: =(All!AF166+All!AF167)/1000 -> 3.10561 | AT184: =(All!AG166+All!AG167)/1000 -> 3.117134 | AU184: =(All!AH166+All!AH167)/1000 -> 3.122604
P185: Sales and customer service | Q185: =(All!D168+All!D169)/1000 -> 6.728249 | R185: =(All!E168+All!E169)/1000 -> 6.717802 | S185: =(All!F168+All!F169)/1000 -> 7.038518 | T185: =(All!G168+All!G169)/1000 -> 7.215734 | U185: =(All!H168+All!H169)/1000 -> 7.386102 | V185: =(All!I168+All!I169)/1000 -> 8.0353 | W185: =(All!J168+All!J169)/1000 -> 8.042113 | X185: =(All!K168+All!K169)/1000 -> 7.604094 | Y185: =(All!L168+All!L169)/1000 -> 7.479764 | Z185: =(All!M168+All!M169)/1000 -> 7.330471 | AA185: =(All!N168+All!N169)/1000 -> 7.08377 | AB185: =(All!O168+All!O169)/1000 -> 6.483694 | AC185: =(All!P168+All!P169)/1000 -> 6.47182 | AD185: =(All!Q168+All!Q169)/1000 -> 6.293281 | AE185: =(All!R168+All!R169)/1000 -> 5.955847 | AF185: =(All!S168+All!S169)/1000 -> 5.831434 | AG185: =(All!T168+All!T169)/1000 -> 5.642878 | AH185: =(All!U168+All!U169)/1000 -> 5.260276 | AI185: =(All!V168+All!V169)/1000 -> 5.356524 | AJ185: =(All!W168+All!W169)/1000 -> 5.866639 | AK185: =(All!X168+All!X169)/1000 -> 5.565202 | AL185: =(All!Y168+All!Y169)/1000 -> 5.966584 | AM185: =(All!Z168+All!Z169)/1000 -> 6.364544 | AN185: =(All!AA168+All!AA169)/1000 -> 6.52922 | AO185: =(All!AB168+All!AB169)/1000 -> 6.500279 | AP185: =(All!AC168+All!AC169)/1000 -> 6.424278 | AQ185: =(All!AD168+All!AD169)/1000 -> 6.356247 | AR185: =(All!AE168+All!AE169)/1000 -> 6.279095 | AS185: =(All!AF168+All!AF169)/1000 -> 6.213186 | AT185: =(All!AG168+All!AG169)/1000 -> 6.127726 | AU185: =(All!AH168+All!AH169)/1000 -> 6.030343
P186: Process, plant and machine operatives | Q186: =(All!D170+All!D171)/1000 -> 121.96583 | R186: =(All!E170+All!E171)/1000 -> 116.78951 | S186: =(All!F170+All!F171)/1000 -> 118.296869 | T186: =(All!G170+All!G171)/1000 -> 117.130046 | U186: =(All!H170+All!H171)/1000 -> 115.591247 | V186: =(All!I170+All!I171)/1000 -> 117.362098 | W186: =(All!J170+All!J171)/1000 -> 109.728123 | X186: =(All!K170+All!K171)/1000 -> 101.236811 | Y186: =(All!L170+All!L171)/1000 -> 96.6988 | Z186: =(All!M170+All!M171)/1000 -> 88.221852 | AA186: =(All!N170+All!N171)/1000 -> 81.129818 | AB186: =(All!O170+All!O171)/1000 -> 76.768044 | AC186: =(All!P170+All!P171)/1000 -> 71.09641 | AD186: =(All!Q170+All!Q171)/1000 -> 68.272614 | AE186: =(All!R170+All!R171)/1000 -> 61.097534 | AF186: =(All!S170+All!S171)/1000 -> 59.316435 | AG186: =(All!T170+All!T171)/1000 -> 52.918669 | AH186: =(All!U170+All!U171)/1000 -> 53.380917 | AI186: =(All!V170+All!V171)/1000 -> 45.542046 | AJ186: =(All!W170+All!W171)/1000 -> 47.68274 | AK186: =(All!X170+All!X171)/1000 -> 43.885698 | AL186: =(All!Y170+All!Y171)/1000 -> 44.786896 | AM186: =(All!Z170+All!Z171)/1000 -> 45.236205 | AN186: =(All!AA170+All!AA171)/1000 -> 44.797461 | AO186: =(All!AB170+All!AB171)/1000 -> 44.227983 | AP186: =(All!AC170+All!AC171)/1000 -> 43.214124 | AQ186: =(All!AD170+All!AD171)/1000 -> 41.975555 | AR186: =(All!AE170+All!AE171)/1000 -> 40.593713 | AS186: =(All!AF170+All!AF171)/1000 -> 39.236526 | AT186: =(All!AG170+All!AG171)/1000 -> 37.792863 | AU186: =(All!AH170+All!AH171)/1000 -> 36.408552
P187: Elementary occupations | Q187: =(All!D172+All!D173)/1000 -> 31.965178 | R187: =(All!E172+All!E173)/1000 -> 30.565923 | S187: =(All!F172+All!F173)/1000 -> 30.723348 | T187: =(All!G172+All!G173)/1000 -> 30.031426 | U187: =(All!H172+All!H173)/1000 -> 28.907189 | V187: =(All!I172+All!I173)/1000 -> 29.22414 | W187: =(All!J172+All!J173)/1000 -> 27.897766 | X187: =(All!K172+All!K173)/1000 -> 25.793578 | Y187: =(All!L172+All!L173)/1000 -> 24.449776 | Z187: =(All!M172+All!M173)/1000 -> 22.309253 | AA187: =(All!N172+All!N173)/1000 -> 21.786608 | AB187: =(All!O172+All!O173)/1000 -> 19.917329 | AC187: =(All!P172+All!P173)/1000 -> 20.072593 | AD187: =(All!Q172+All!Q173)/1000 -> 17.685115 | AE187: =(All!R172+All!R173)/1000 -> 17.72991 | AF187: =(All!S172+All!S173)/1000 -> 16.251202 | AG187: =(All!T172+All!T173)/1000 -> 14.707789 | AH187: =(All!U172+All!U173)/1000 -> 15.059655 | AI187: =(All!V172+All!V173)/1000 -> 12.50822 | AJ187: =(All!W172+All!W173)/1000 -> 13.62575 | AK187: =(All!X172+All!X173)/1000 -> 12.73305 | AL187: =(All!Y172+All!Y173)/1000 -> 12.781741 | AM187: =(All!Z172+All!Z173)/1000 -> 12.975669 | AN187: =(All!AA172+All!AA173)/1000 -> 12.952953 | AO187: =(All!AB172+All!AB173)/1000 -> 12.949462 | AP187: =(All!AC172+All!AC173)/1000 -> 12.815072 | AQ187: =(All!AD172+All!AD173)/1000 -> 12.63686 | AR187: =(All!AE172+All!AE173)/1000 -> 12.39337 | AS187: =(All!AF172+All!AF173)/1000 -> 12.166109 | AT187: =(All!AG172+All!AG173)/1000 -> 11.850211 | AU187: =(All!AH172+All!AH173)/1000 -> 11.535635
P212: ="Occupational employment, "&CHAR(13)&P213 -> Occupational employment, Electricity and gas
P213: =names!A9 -> Electricity and gas | Q213: =Q178 -> 1994 | R213: 1995 | S213: 1996 | T213: 1997 | U213: 1998 | V213: 1999 | W213: 2000 | X213: 2001 | Y213: 2002 | Z213: 2003 | AA213: 2004 | AB213: 2005 | AC213: 2006 | AD213: 2007 | AE213: 2008 | AF213: 2009 | AG213: 2010 | AH213: 2011 | AI213: 2012 | AJ213: 2013 | AK213: 2014 | AL213: 2015 | AM213: 2016 | AN213: 2017 | AO213: 2018 | AP213: 2019 | AQ213: 2020 | AR213: 2021 | AS213: 2022 | AT213: 2023 | AU213: 2024
P214: =P179 -> Managers, directors and senior officials | Q214: =(All!D177+All!D178)/1000 -> 1.142407 | R214: =(All!E177+All!E178)/1000 -> 0.974528 | S214: =(All!F177+All!F178)/1000 -> 0.889948 | T214: =(All!G177+All!G178)/1000 -> 0.875286 | U214: =(All!H177+All!H178)/1000 -> 0.776552 | V214: =(All!I177+All!I178)/1000 -> 0.788258 | W214: =(All!J177+All!J178)/1000 -> 0.733977 | X214: =(All!K177+All!K178)/1000 -> 0.792756 | Y214: =(All!L177+All!L178)/1000 -> 0.645921 | Z214: =(All!M177+All!M178)/1000 -> 0.787014 | AA214: =(All!N177+All!N178)/1000 -> 0.844441 | AB214: =(All!O177+All!O178)/1000 -> 0.723588 | AC214: =(All!P177+All!P178)/1000 -> 0.446777 | AD214: =(All!Q177+All!Q178)/1000 -> 0.580952 | AE214: =(All!R177+All!R178)/1000 -> 0.415094 | AF214: =(All!S177+All!S178)/1000 -> 0.582234 | AG214: =(All!T177+All!T178)/1000 -> 0.620633 | AH214: =(All!U177+All!U178)/1000 -> 1.215399 | AI214: =(All!V177+All!V178)/1000 -> 1.616799 | AJ214: =(All!W177+All!W178)/1000 -> 1.464912 | AK214: =(All!X177+All!X178)/1000 -> 1.647929 | AL214: =(All!Y177+All!Y178)/1000 -> 1.931051 | AM214: =(All!Z177+All!Z178)/1000 -> 1.811579 | AN214: =(All!AA177+All!AA178)/1000 -> 2.006993 | AO214: =(All!AB177+All!AB178)/1000 -> 2.036524 | AP214: =(All!AC177+All!AC178)/1000 -> 2.060803 | AQ214: =(All!AD177+All!AD178)/1000 -> 2.094942 | AR214: =(All!AE177+All!AE178)/1000 -> 2.118832 | AS214: =(All!AF177+All!AF178)/1000 -> 2.147159 | AT214: =(All!AG177+All!AG178)/1000 -> 2.180298 | AU214: =(All!AH177+All!AH178)/1000 -> 2.223511
P215: Professional occupations | Q215: =(All!D179+All!D180+All!D181+All!D182)/1000 -> 2.84994 | R215: =(All!E179+All!E180+All!E181+All!E182)/1000 -> 2.402937 | S215: =(All!F179+All!F180+All!F181+All!F182)/1000 -> 2.149664 | T215: =(All!G179+All!G180+All!G181+All!G182)/1000 -> 2.097341 | U215: =(All!H179+All!H180+All!H181+All!H182)/1000 -> 1.850783 | V215: =(All!I179+All!I180+All!I181+All!I182)/1000 -> 1.856227 | W215: =(All!J179+All!J180+All!J181+All!J182)/1000 -> 1.69471 | X215: =(All!K179+All!K180+All!K181+All!K182)/1000 -> 1.907046 | Y215: =(All!L179+All!L180+All!L181+All!L182)/1000 -> 1.388655 | Z215: =(All!M179+All!M180+All!M181+All!M182)/1000 -> 1.62085 | AA215: =(All!N179+All!N180+All!N181+All!N182)/1000 -> 1.728114 | AB215: =(All!O179+All!O180+All!O181+All!O182)/1000 -> 1.31655 | AC215: =(All!P179+All!P180+All!P181+All!P182)/1000 -> 0.977888 | AD215: =(All!Q179+All!Q180+All!Q181+All!Q182)/1000 -> 1.013694 | AE215: =(All!R179+All!R180+All!R181+All!R182)/1000 -> 0.789598 | AF215: =(All!S179+All!S180+All!S181+All!S182)/1000 -> 1.094325 | AG215: =(All!T179+All!T180+All!T181+All!T182)/1000 -> 1.044891 | AH215: =(All!U179+All!U180+All!U181+All!U182)/1000 -> 2.217587 | AI215: =(All!V179+All!V180+All!V181+All!V182)/1000 -> 2.974425 | AJ215: =(All!W179+All!W180+All!W181+All!W182)/1000 -> 2.478281 | AK215: =(All!X179+All!X180+All!X181+All!X182)/1000 -> 2.892416 | AL215: =(All!Y179+All!Y180+All!Y181+All!Y182)/1000 -> 3.289385 | AM215: =(All!Z179+All!Z180+All!Z181+All!Z182)/1000 -> 3.048065 | AN215: =(All!AA179+All!AA180+All!AA181+All!AA182)/1000 -> 3.336191 | AO215: =(All!AB179+All!AB180+All!AB181+All!AB182)/1000 -> 3.395244 | AP215: =(All!AC179+All!AC180+All!AC181+All!AC182)/1000 -> 3.438811 | AQ215: =(All!AD179+All!AD180+All!AD181+All!AD182)/1000 -> 3.490219 | AR215: =(All!AE179+All!AE180+All!AE181+All!AE182)/1000 -> 3.52361 | AS215: =(All!AF179+All!AF180+All!AF181+All!AF182)/1000 -> 3.563622 | AT215: =(All!AG179+All!AG180+All!AG181+All!AG182)/1000 -> 3.611229 | AU215: =(All!AH179+All!AH180+All!AH181+All!AH182)/1000 -> 3.679515
P216: Associate professional and technical | Q216: =(All!D183+All!D184+All!D185+All!D186+All!D187)/1000 -> 2.602519 | R216: =(All!E183+All!E184+All!E185+All!E186+All!E187)/1000 -> 2.20129 | S216: =(All!F183+All!F184+All!F185+All!F186+All!F187)/1000 -> 2.012986 | T216: =(All!G183+All!G184+All!G185+All!G186+All!G187)/1000 -> 1.943439 | U216: =(All!H183+All!H184+All!H185+All!H186+All!H187)/1000 -> 1.682832 | V216: =(All!I183+All!I184+All!I185+All!I186+All!I187)/1000 -> 1.693405 | W216: =(All!J183+All!J184+All!J185+All!J186+All!J187)/1000 -> 1.558004 | X216: =(All!K183+All!K184+All!K185+All!K186+All!K187)/1000 -> 1.55675 | Y216: =(All!L183+All!L184+All!L185+All!L186+All!L187)/1000 -> 1.340101 | Z216: =(All!M183+All!M184+All!M185+All!M186+All!M187)/1000 -> 1.632741 | AA216: =(All!N183+All!N184+All!N185+All!N186+All!N187)/1000 -> 1.427034 | AB216: =(All!O183+All!O184+All!O185+All!O186+All!O187)/1000 -> 1.140636 | AC216: =(All!P183+All!P184+All!P185+All!P186+All!P187)/1000 -> 0.798013 | AD216: =(All!Q183+All!Q184+All!Q185+All!Q186+All!Q187)/1000 -> 0.829834 | AE216: =(All!R183+All!R184+All!R185+All!R186+All!R187)/1000 -> 0.634195 | AF216: =(All!S183+All!S184+All!S185+All!S186+All!S187)/1000 -> 0.735133 | AG216: =(All!T183+All!T184+All!T185+All!T186+All!T187)/1000 -> 0.839761 | AH216: =(All!U183+All!U184+All!U185+All!U186+All!U187)/1000 -> 1.721896 | AI216: =(All!V183+All!V184+All!V185+All!V186+All!V187)/1000 -> 2.233088 | AJ216: =(All!W183+All!W184+All!W185+All!W186+All!W187)/1000 -> 2.026671 | AK216: =(All!X183+All!X184+All!X185+All!X186+All!X187)/1000 -> 2.222982 | AL216: =(All!Y183+All!Y184+All!Y185+All!Y186+All!Y187)/1000 -> 2.581252 | AM216: =(All!Z183+All!Z184+All!Z185+All!Z186+All!Z187)/1000 -> 2.382691 | AN216: =(All!AA183+All!AA184+All!AA185+All!AA186+All!AA187)/1000 -> 2.610135 | AO216: =(All!AB183+All!AB184+All!AB185+All!AB186+All!AB187)/1000 -> 2.640863 | AP216: =(All!AC183+All!AC184+All!AC185+All!AC186+All!AC187)/1000 -> 2.660451 | AQ216: =(All!AD183+All!AD184+All!AD185+All!AD186+All!AD187)/1000 -> 2.689249 | AR216: =(All!AE183+All!AE184+All!AE185+All!AE186+All!AE187)/1000 -> 2.704451 | AS216: =(All!AF183+All!AF184+All!AF185+All!AF186+All!AF187)/1000 -> 2.723227 | AT216: =(All!AG183+All!AG184+All!AG185+All!AG186+All!AG187)/1000 -> 2.747295 | AU216: =(All!AH183+All!AH184+All!AH185+All!AH186+All!AH187)/1000 -> 2.786623
P217: Administrative and secretarial | Q217: =(All!D188+All!D189)/1000 -> 2.04944 | R217: =(All!E188+All!E189)/1000 -> 1.826571 | S217: =(All!F188+All!F189)/1000 -> 1.92547 | T217: =(All!G188+All!G189)/1000 -> 1.831535 | U217: =(All!H188+All!H189)/1000 -> 1.337238 | V217: =(All!I188+All!I189)/1000 -> 1.324045 | W217: =(All!J188+All!J189)/1000 -> 1.296235 | X217: =(All!K188+All!K189)/1000 -> 1.090296 | Y217: =(All!L188+All!L189)/1000 -> 1.398962 | Z217: =(All!M188+All!M189)/1000 -> 2.138424 | AA217: =(All!N188+All!N189)/1000 -> 1.391672 | AB217: =(All!O188+All!O189)/1000 -> 1.356981 | AC217: =(All!P188+All!P189)/1000 -> 0.643804 | AD217: =(All!Q188+All!Q189)/1000 -> 0.491751 | AE217: =(All!R188+All!R189)/1000 -> 0.57174 | AF217: =(All!S188+All!S189)/1000 -> 0.57409 | AG217: =(All!T188+All!T189)/1000 -> 0.571025 | AH217: =(All!U188+All!U189)/1000 -> 1.210501 | AI217: =(All!V188+All!V189)/1000 -> 1.607806 | AJ217: =(All!W188+All!W189)/1000 -> 1.772587 | AK217: =(All!X188+All!X189)/1000 -> 1.758272 | AL217: =(All!Y188+All!Y189)/1000 -> 1.98171 | AM217: =(All!Z188+All!Z189)/1000 -> 1.819271 | AN217: =(All!AA188+All!AA189)/1000 -> 1.952457 | AO217: =(All!AB188+All!AB189)/1000 -> 1.864652 | AP217: =(All!AC188+All!AC189)/1000 -> 1.807743 | AQ217: =(All!AD188+All!AD189)/1000 -> 1.76223 | AR217: =(All!AE188+All!AE189)/1000 -> 1.708111 | AS217: =(All!AF188+All!AF189)/1000 -> 1.657004 | AT217: =(All!AG188+All!AG189)/1000 -> 1.603506 | AU217: =(All!AH188+All!AH189)/1000 -> 1.559665
P218: Skilled trades occupations | Q218: =(All!D190+All!D191+All!D192+All!D193)/1000 -> 5.298884 | R218: =(All!E190+All!E191+All!E192+All!E193)/1000 -> 4.257832 | S218: =(All!F190+All!F191+All!F192+All!F193)/1000 -> 3.594286 | T218: =(All!G190+All!G191+All!G192+All!G193)/1000 -> 3.361105 | U218: =(All!H190+All!H191+All!H192+All!H193)/1000 -> 2.986475 | V218: =(All!I190+All!I191+All!I192+All!I193)/1000 -> 2.917282 | W218: =(All!J190+All!J191+All!J192+All!J193)/1000 -> 2.597929 | X218: =(All!K190+All!K191+All!K192+All!K193)/1000 -> 2.582901 | Y218: =(All!L190+All!L191+All!L192+All!L193)/1000 -> 1.989961 | Z218: =(All!M190+All!M191+All!M192+All!M193)/1000 -> 2.320261 | AA218: =(All!N190+All!N191+All!N192+All!N193)/1000 -> 2.172306 | AB218: =(All!O190+All!O191+All!O192+All!O193)/1000 -> 1.461174 | AC218: =(All!P190+All!P191+All!P192+All!P193)/1000 -> 1.324789 | AD218: =(All!Q190+All!Q191+All!Q192+All!Q193)/1000 -> 1.107453 | AE218: =(All!R190+All!R191+All!R192+All!R193)/1000 -> 0.905341 | AF218: =(All!S190+All!S191+All!S192+All!S193)/1000 -> 1.13064 | AG218: =(All!T190+All!T191+All!T192+All!T193)/1000 -> 1.136559 | AH218: =(All!U190+All!U191+All!U192+All!U193)/1000 -> 2.455848 | AI218: =(All!V190+All!V191+All!V192+All!V193)/1000 -> 2.886359 | AJ218: =(All!W190+All!W191+All!W192+All!W193)/1000 -> 2.463929 | AK218: =(All!X190+All!X191+All!X192+All!X193)/1000 -> 2.659998 | AL218: =(All!Y190+All!Y191+All!Y192+All!Y193)/1000 -> 3.065843 | AM218: =(All!Z190+All!Z191+All!Z192+All!Z193)/1000 -> 2.790615 | AN218: =(All!AA190+All!AA191+All!AA192+All!AA193)/1000 -> 2.985757 | AO218: =(All!AB190+All!AB191+All!AB192+All!AB193)/1000 -> 2.940897 | AP218: =(All!AC190+All!AC191+All!AC192+All!AC193)/1000 -> 2.907445 | AQ218: =(All!AD190+All!AD191+All!AD192+All!AD193)/1000 -> 2.898317 | AR218: =(All!AE190+All!AE191+All!AE192+All!AE193)/1000 -> 2.879425 | AS218: =(All!AF190+All!AF191+All!AF192+All!AF193)/1000 -> 2.861674 | AT218: =(All!AG190+All!AG191+All!AG192+All!AG193)/1000 -> 2.826309 | AU218: =(All!AH190+All!AH191+All!AH192+All!AH193)/1000 -> 2.805805
P219: Caring, leisure and other service | Q219: =(All!D194+All!D195)/1000 -> 0.276741 | R219: =(All!E194+All!E195)/1000 -> 0.249869 | S219: =(All!F194+All!F195)/1000 -> 0.26214 | T219: =(All!G194+All!G195)/1000 -> 0.248709 | U219: =(All!H194+All!H195)/1000 -> 0.174832 | V219: =(All!I194+All!I195)/1000 -> 0.172939 | W219: =(All!J194+All!J195)/1000 -> 0.180552 | X219: =(All!K194+All!K195)/1000 -> 0.166822 | Y219: =(All!L194+All!L195)/1000 -> 0.206181 | Z219: =(All!M194+All!M195)/1000 -> 0.276248 | AA219: =(All!N194+All!N195)/1000 -> 0.203548 | AB219: =(All!O194+All!O195)/1000 -> 0.174424 | AC219: =(All!P194+All!P195)/1000 -> 0.10092 | AD219: =(All!Q194+All!Q195)/1000 -> 0.082514 | AE219: =(All!R194+All!R195)/1000 -> 0.085891 | AF219: =(All!S194+All!S195)/1000 -> 0.092307 | AG219: =(All!T194+All!T195)/1000 -> 0.090398 | AH219: =(All!U194+All!U195)/1000 -> 0.307224 | AI219: =(All!V194+All!V195)/1000 -> 0.275676 | AJ219: =(All!W194+All!W195)/1000 -> 0.313217 | AK219: =(All!X194+All!X195)/1000 -> 0.302553 | AL219: =(All!Y194+All!Y195)/1000 -> 0.32908 | AM219: =(All!Z194+All!Z195)/1000 -> 0.323141 | AN219: =(All!AA194+All!AA195)/1000 -> 0.363516 | AO219: =(All!AB194+All!AB195)/1000 -> 0.364686 | AP219: =(All!AC194+All!AC195)/1000 -> 0.366477 | AQ219: =(All!AD194+All!AD195)/1000 -> 0.369169 | AR219: =(All!AE194+All!AE195)/1000 -> 0.367511 | AS219: =(All!AF194+All!AF195)/1000 -> 0.365478 | AT219: =(All!AG194+All!AG195)/1000 -> 0.366502 | AU219: =(All!AH194+All!AH195)/1000 -> 0.369866
P220: Sales and customer service | Q220: =(All!D196+All!D197)/1000 -> 1.555981 | R220: =(All!E196+All!E197)/1000 -> 1.408081 | S220: =(All!F196+All!F197)/1000 -> 1.472673 | T220: =(All!G196+All!G197)/1000 -> 1.444997 | U220: =(All!H196+All!H197)/1000 -> 1.174254 | V220: =(All!I196+All!I197)/1000 -> 1.218643 | W220: =(All!J196+All!J197)/1000 -> 1.239363 | X220: =(All!K196+All!K197)/1000 -> 1.160691 | Y220: =(All!L196+All!L197)/1000 -> 1.452861 | Z220: =(All!M196+All!M197)/1000 -> 2.173823 | AA220: =(All!N196+All!N197)/1000 -> 1.42649 | AB220: =(All!O196+All!O197)/1000 -> 1.376418 | AC220: =(All!P196+All!P197)/1000 -> 0.646614 | AD220: =(All!Q196+All!Q197)/1000 -> 0.546826 | AE220: =(All!R196+All!R197)/1000 -> 0.547429 | AF220: =(All!S196+All!S197)/1000 -> 0.583155 | AG220: =(All!T196+All!T197)/1000 -> 0.567779 | AH220: =(All!U196+All!U197)/1000 -> 1.442795 | AI220: =(All!V196+All!V197)/1000 -> 1.604811 | AJ220: =(All!W196+All!W197)/1000 -> 1.798034 | AK220: =(All!X196+All!X197)/1000 -> 1.817422 | AL220: =(All!Y196+All!Y197)/1000 -> 2.098183 | AM220: =(All!Z196+All!Z197)/1000 -> 2.042253 | AN220: =(All!AA196+All!AA197)/1000 -> 2.245056 | AO220: =(All!AB196+All!AB197)/1000 -> 2.208162 | AP220: =(All!AC196+All!AC197)/1000 -> 2.176911 | AQ220: =(All!AD196+All!AD197)/1000 -> 2.165199 | AR220: =(All!AE196+All!AE197)/1000 -> 2.148015 | AS220: =(All!AF196+All!AF197)/1000 -> 2.133786 | AT220: =(All!AG196+All!AG197)/1000 -> 2.115486 | AU220: =(All!AH196+All!AH197)/1000 -> 2.104687
P221: Process, plant and machine operatives | Q221: =(All!D198+All!D199)/1000 -> 1.30149 | R221: =(All!E198+All!E199)/1000 -> 1.078613 | S221: =(All!F198+All!F199)/1000 -> 0.946381 | T221: =(All!G198+All!G199)/1000 -> 0.908835 | U221: =(All!H198+All!H199)/1000 -> 0.757833 | V221: =(All!I198+All!I199)/1000 -> 0.736024 | W221: =(All!J198+All!J199)/1000 -> 0.644363 | X221: =(All!K198+All!K199)/1000 -> 0.657899 | Y221: =(All!L198+All!L199)/1000 -> 0.502125 | Z221: =(All!M198+All!M199)/1000 -> 0.538166 | AA221: =(All!N198+All!N199)/1000 -> 0.495297 | AB221: =(All!O198+All!O199)/1000 -> 0.357229 | AC221: =(All!P198+All!P199)/1000 -> 0.189426 | AD221: =(All!Q198+All!Q199)/1000 -> 0.215365 | AE221: =(All!R198+All!R199)/1000 -> 0.196655 | AF221: =(All!S198+All!S199)/1000 -> 0.172428 | AG221: =(All!T198+All!T199)/1000 -> 0.164352 | AH221: =(All!U198+All!U199)/1000 -> 0.404757 | AI221: =(All!V198+All!V199)/1000 -> 0.64925 | AJ221: =(All!W198+All!W199)/1000 -> 0.487249 | AK221: =(All!X198+All!X199)/1000 -> 0.589391 | AL221: =(All!Y198+All!Y199)/1000 -> 0.635152 | AM221: =(All!Z198+All!Z199)/1000 -> 0.567993 | AN221: =(All!AA198+All!AA199)/1000 -> 0.592371 | AO221: =(All!AB198+All!AB199)/1000 -> 0.583952 | AP221: =(All!AC198+All!AC199)/1000 -> 0.573314 | AQ221: =(All!AD198+All!AD199)/1000 -> 0.566863 | AR221: =(All!AE198+All!AE199)/1000 -> 0.55919 | AS221: =(All!AF198+All!AF199)/1000 -> 0.552163 | AT221: =(All!AG198+All!AG199)/1000 -> 0.541201 | AU221: =(All!AH198+All!AH199)/1000 -> 0.532694
P222: Elementary occupations | Q222: =(All!D200+All!D201)/1000 -> 0.598598 | R222: =(All!E200+All!E201)/1000 -> 0.506282 | S222: =(All!F200+All!F201)/1000 -> 0.483452 | T222: =(All!G200+All!G201)/1000 -> 0.45775 | U222: =(All!H200+All!H201)/1000 -> 0.383202 | V222: =(All!I200+All!I201)/1000 -> 0.388178 | W222: =(All!J200+All!J201)/1000 -> 0.369867 | X222: =(All!K200+All!K201)/1000 -> 0.32884 | Y222: =(All!L200+All!L201)/1000 -> 0.292231 | Z222: =(All!M200+All!M201)/1000 -> 0.461474 | AA222: =(All!N200+All!N201)/1000 -> 0.280098 | AB222: =(All!O200+All!O201)/1000 -> 0.263002 | AC222: =(All!P200+All!P201)/1000 -> 0.17977 | AD222: =(All!Q200+All!Q201)/1000 -> 0.135612 | AE222: =(All!R200+All!R201)/1000 -> 0.090057 | AF222: =(All!S200+All!S201)/1000 -> 0.133687 | AG222: =(All!T200+All!T201)/1000 -> 0.1796 | AH222: =(All!U200+All!U201)/1000 -> 0.453991 | AI222: =(All!V200+All!V201)/1000 -> 0.433786 | AJ222: =(All!W200+All!W201)/1000 -> 0.440119 | AK222: =(All!X200+All!X201)/1000 -> 0.438037 | AL222: =(All!Y200+All!Y201)/1000 -> 0.451344 | AM222: =(All!Z200+All!Z201)/1000 -> 0.431392 | AN222: =(All!AA200+All!AA201)/1000 -> 0.463524 | AO222: =(All!AB200+All!AB201)/1000 -> 0.456018 | AP222: =(All!AC200+All!AC201)/1000 -> 0.448046 | AQ222: =(All!AD200+All!AD201)/1000 -> 0.442814 | AR222: =(All!AE200+All!AE201)/1000 -> 0.435854 | AS222: =(All!AF200+All!AF201)/1000 -> 0.429887 | AT222: =(All!AG200+All!AG201)/1000 -> 0.424173 | AU222: =(All!AH200+All!AH201)/1000 -> 0.420634
P247: ="Occupational employment, "&CHAR(13)&P248 -> Occupational employment, Water and sewerage
P248: =names!A10 -> Water and sewerage | Q248: =Q213 -> 1994 | R248: 1995 | S248: 1996 | T248: 1997 | U248: 1998 | V248: 1999 | W248: 2000 | X248: 2001 | Y248: 2002 | Z248: 2003 | AA248: 2004 | AB248: 2005 | AC248: 2006 | AD248: 2007 | AE248: 2008 | AF248: 2009 | AG248: 2010 | AH248: 2011 | AI248: 2012 | AJ248: 2013 | AK248: 2014 | AL248: 2015 | AM248: 2016 | AN248: 2017 | AO248: 2018 | AP248: 2019 | AQ248: 2020 | AR248: 2021 | AS248: 2022 | AT248: 2023 | AU248: 2024
P249: =P214 -> Managers, directors and senior officials | Q249: =(All!D205+All!D206)/1000 -> 0.927927 | R249: =(All!E205+All!E206)/1000 -> 0.997737 | S249: =(All!F205+All!F206)/1000 -> 1.014844 | T249: =(All!G205+All!G206)/1000 -> 0.992903 | U249: =(All!H205+All!H206)/1000 -> 0.999194 | V249: =(All!I205+All!I206)/1000 -> 1.26465 | W249: =(All!J205+All!J206)/1000 -> 1.199413 | X249: =(All!K205+All!K206)/1000 -> 1.344862 | Y249: =(All!L205+All!L206)/1000 -> 1.218746 | Z249: =(All!M205+All!M206)/1000 -> 1.468128 | AA249: =(All!N205+All!N206)/1000 -> 1.239562 | AB249: =(All!O205+All!O206)/1000 -> 1.093239 | AC249: =(All!P205+All!P206)/1000 -> 1.409551 | AD249: =(All!Q205+All!Q206)/1000 -> 1.272062 | AE249: =(All!R205+All!R206)/1000 -> 1.046754 | AF249: =(All!S205+All!S206)/1000 -> 1.577829 | AG249: =(All!T205+All!T206)/1000 -> 1.577168 | AH249: =(All!U205+All!U206)/1000 -> 1.182309 | AI249: =(All!V205+All!V206)/1000 -> 1.891357 | AJ249: =(All!W205+All!W206)/1000 -> 1.884747 | AK249: =(All!X205+All!X206)/1000 -> 1.799734 | AL249: =(All!Y205+All!Y206)/1000 -> 1.849905 | AM249: =(All!Z205+All!Z206)/1000 -> 2.163456 | AN249: =(All!AA205+All!AA206)/1000 -> 2.185479 | AO249: =(All!AB205+All!AB206)/1000 -> 2.236824 | AP249: =(All!AC205+All!AC206)/1000 -> 2.26179 | AQ249: =(All!AD205+All!AD206)/1000 -> 2.281852 | AR249: =(All!AE205+All!AE206)/1000 -> 2.310665 | AS249: =(All!AF205+All!AF206)/1000 -> 2.338621 | AT249: =(All!AG205+All!AG206)/1000 -> 2.37597 | AU249: =(All!AH205+All!AH206)/1000 -> 2.411724
P250: Professional occupations | Q250: =(All!D207+All!D208+All!D209+All!D210)/1000 -> 1.302081 | R250: =(All!E207+All!E208+All!E209+All!E210)/1000 -> 1.342217 | S250: =(All!F207+All!F208+All!F209+All!F210)/1000 -> 1.414615 | T250: =(All!G207+All!G208+All!G209+All!G210)/1000 -> 1.437257 | U250: =(All!H207+All!H208+All!H209+All!H210)/1000 -> 1.352905 | V250: =(All!I207+All!I208+All!I209+All!I210)/1000 -> 1.557163 | W250: =(All!J207+All!J208+All!J209+All!J210)/1000 -> 1.698999 | X250: =(All!K207+All!K208+All!K209+All!K210)/1000 -> 1.638819 | Y250: =(All!L207+All!L208+All!L209+All!L210)/1000 -> 1.643188 | Z250: =(All!M207+All!M208+All!M209+All!M210)/1000 -> 1.950856 | AA250: =(All!N207+All!N208+All!N209+All!N210)/1000 -> 1.379623 | AB250: =(All!O207+All!O208+All!O209+All!O210)/1000 -> 1.267541 | AC250: =(All!P207+All!P208+All!P209+All!P210)/1000 -> 1.277094 | AD250: =(All!Q207+All!Q208+All!Q209+All!Q210)/1000 -> 1.104241 | AE250: =(All!R207+All!R208+All!R209+All!R210)/1000 -> 1.497396 | AF250: =(All!S207+All!S208+All!S209+All!S210)/1000 -> 1.582746 | AG250: =(All!T207+All!T208+All!T209+All!T210)/1000 -> 1.531592 | AH250: =(All!U207+All!U208+All!U209+All!U210)/1000 -> 1.27145 | AI250: =(All!V207+All!V208+All!V209+All!V210)/1000 -> 1.454804 | AJ250: =(All!W207+All!W208+All!W209+All!W210)/1000 -> 1.337673 | AK250: =(All!X207+All!X208+All!X209+All!X210)/1000 -> 1.285187 | AL250: =(All!Y207+All!Y208+All!Y209+All!Y210)/1000 -> 1.252891 | AM250: =(All!Z207+All!Z208+All!Z209+All!Z210)/1000 -> 1.537109 | AN250: =(All!AA207+All!AA208+All!AA209+All!AA210)/1000 -> 1.542983 | AO250: =(All!AB207+All!AB208+All!AB209+All!AB210)/1000 -> 1.591095 | AP250: =(All!AC207+All!AC208+All!AC209+All!AC210)/1000 -> 1.618593 | AQ250: =(All!AD207+All!AD208+All!AD209+All!AD210)/1000 -> 1.638574 | AR250: =(All!AE207+All!AE208+All!AE209+All!AE210)/1000 -> 1.656762 | AS250: =(All!AF207+All!AF208+All!AF209+All!AF210)/1000 -> 1.674841 | AT250: =(All!AG207+All!AG208+All!AG209+All!AG210)/1000 -> 1.698934 | AU250: =(All!AH207+All!AH208+All!AH209+All!AH210)/1000 -> 1.722674
... 102 more rows

Sheet Figure 7.1
AT1: Share of all occupations, 1994-2024 | DA1: Data is written here by the initial setup process (module DataQ) and the appropriate occupation copied to BL116 when an occupation is selected
AT2: Replacement demand, 2014-2024 | AZ2: When an occupation is selected, data for that occupation is written here.
F3: Click on an occupation from the list and the charts will be customised for that occupation | AT3: Qualification shares, 2014 | BB3: Chart data | CJ3: Employment by broad ind sector for current occupation | DA3: Emp x qualification for occupation 1 for every industry
AT4: Employment by gender and status, 2014 | BB4: Shares of total employment for selected occupation for every sector | CJ4: (obviously not reproduced for every industry - that wouldn't make sense) | DA4: 2012 | DB4: =LEFT(names!$D$4,4) -> QCF8 | DC4: =LEFT(names!$D$5,4) -> QCF7 | DD4: =LEFT(names!$D$6,4) -> QCF6 | DE4: =LEFT(names!$D$7,4) -> QCF5 | DF4: =LEFT(names!$D$8,4) -> QCF4 | DG4: =LEFT(names!$D$9,4) -> QCF3 | DH4: =LEFT(names!$D$10,4) -> QCF2 | DI4: =LEFT(names!$D$11,4) -> QCF1 | DJ4: =LEFT(names!$D$12,7) -> No Qual
BB5: 1994 | BC5: 1995 | BD5: 1996 | BE5: 1997 | BF5: 1998 | BG5: 1999 | BH5: 2000 | BI5: 2001 | BJ5: 2002 | BK5: 2003 | BL5: 2004 | BM5: 2005 | BN5: 2006 | BO5: 2007 | BP5: 2008 | BQ5: 2009 | BR5: 2010 | BS5: 2011 | BT5: 2012 | BU5: 2013 | BV5: 2014 | BW5: 2015 | BX5: 2016 | BY5: 2017 | BZ5: 2018 | CA5: 2019 | CB5: 2020 | CC5: 2021 | CD5: 2022 | CE5: 2023 | CF5: 2024 | CJ5: Industries, 2012 | DA5: =names!$A$3 -> All industries | DB5: 1788.296613 | DC5: 15766.22769 | DD5: 49512.76333 | DE5: 11078.42439 | DF5: 15556.8504 | DG5: 37581.53983 | DH5: 31533.11692 | DI5: 19761.21979 | DJ5: 4817.558583
AZ6: =names!$A$3 -> All industries | BA6: Males | BB6: 53.51057031 | BC6: 54.22898132 | BD6: 54.34751051 | BE6: 55.77161494 | BF6: 57.68928276 | BG6: 60.8604479 | BH6: 60.66082075 | BI6: 62.34036062 | BJ6: 62.89787602 | BK6: 63.90906177 | BL6: 65.33675235 | BM6: 64.94219067 | BN6: 66.21139404 | BO6: 65.57246355 | BP6: 65.20367613 | BQ6: 63.47891846 | BR6: 66.8932827 | BS6: 67.24172166 | BT6: 67.98067596 | BU6: 68.70187765 | BV6: 69.43001417 | BW6: 70.12280541 | BX6: 70.77956276 | BY6: 71.45594282 | BZ6: 72.18553896 | CA6: 72.9620458 | CB6: 73.79947945 | CC6: 72.9620458 | CD6: 73.79947945 | CE6: 74.69932652 | CF6: 75.66883453 | CJ6: Primary sector & utilities | CK6: 2646.683 | DA6: =names!$A$4 -> Agriculture | DB6: 4.107552422 | DC6: 22.44720647 | DD6: 81.08534044 | DE6: 0.5216128811 | DF6: 43.2747289 | DG6: 67.64726408 | DH6: 54.69469609 | DI6: 32.92734951 | DJ6: 3.00361788
BA7: Females | BB7: 46.48942969 | BC7: 45.77101868 | BD7: 45.65248949 | BE7: 44.22838506 | BF7: 42.31071724 | BG7: 39.1395521 | BH7: 39.33917925 | BI7: 37.65963938 | BJ7: 37.10212398 | BK7: 36.09093823 | BL7: 34.66324765 | BM7: 35.05780933 | BN7: 33.78860596 | BO7: 34.42753645 | BP7: 34.79632387 | BQ7: 36.52108154 | BR7: 33.1067173 | BS7: 32.75827834 | BT7: 32.01932404 | BU7: 31.29812235 | BV7: 30.56998583 | BW7: 29.87719459 | BX7: 29.22043724 | BY7: 28.54405718 | BZ7: 27.81446104 | CA7: 27.0379542 | CB7: 26.20052055 | CC7: 27.0379542 | CD7: 26.20052055 | CE7: 25.30067348 | CF7: 24.33116547 | CJ7: Manufacturing | CK7: 197969.419 | DA7: =names!$A$5 -> Mining and quarrying | DB7: 0 | DC7: 57.83735313 | DD7: 29.93931581 | DE7: 7.694537389 | DF7: 6.726041692 | DG7: 31.84855309 | DH7: 61.33992812 | DI7: 17.51029463 | DJ7: 4.262303233
AZ8: =names!$A$4 -> Agriculture | BA8: Males | BB8: 65.26596718 | BC8: 69.56406662 | BD8: 70.86608031 | BE8: 70.83327877 | BF8: 63.65899326 | BG8: 66.95142193 | BH8: 65.79477518 | BI8: 64.72849875 | BJ8: 70.2873198 | BK8: 70.78054555 | BL8: 73.17436979 | BM8: 66.91129011 | BN8: 72.39675222 | BO8: 73.16392687 | BP8: 68.15488649 | BQ8: 76.9438396 | BR8: 76.56664326 | BS8: 76.28390331 | BT8: 75.70896959 | BU8: 74.64672102 | BV8: 72.57040535 | BW8: 72.30349896 | BX8: 72.0501165 | BY8: 71.77809668 | BZ8: 71.53131157 | CA8: 71.33270109 | CB8: 71.09232877 | CC8: 71.33270109 | CD8: 71.09232877 | CE8: 70.83881785 | CF8: 70.57106084 | CJ8: Construction | CK8: 259459.625 | DA8: =names!$A$6 -> Food drink and tobacco | DB8: 0 | DC8: 199.786925 | DD8: 986.6453971 | DE8: 268.8317462 | DF8: 286.6322514 | DG8: 616.0562982 | DH8: 648.6842093 | DI8: 300.8675161 | DJ8: 69.37135259
BA9: Females | BB9: 34.73403282 | BC9: 30.43593338 | BD9: 29.13391969 | BE9: 29.16672123 | BF9: 36.34100674 | BG9: 33.04857807 | BH9: 34.20522482 | BI9: 35.27150125 | BJ9: 29.7126802 | BK9: 29.21949748 | BL9: 26.82563021 | BM9: 33.08870989 | BN9: 27.60324778 | BO9: 26.83607313 | BP9: 31.84511351 | BQ9: 23.0561604 | BR9: 23.43331531 | BS9: 23.71605523 | BT9: 24.29103041 | BU9: 25.35327898 | BV9: 27.42959465 | BW9: 27.69650104 | BX9: 27.9498835 | BY9: 28.22190332 | BZ9: 28.46868843 | CA9: 28.66729891 | CB9: 28.90772391 | CC9: 28.66729891 | CD9: 28.90772391 | CE9: 29.16129039 | CF9: 29.42910609 | CJ9: Trade, accomod. &, transport | CK9: 19196.205 | DA9: =names!$A$7 -> Engineering | DB9: 43.99092505 | DC9: 313.8904904 | DD9: 1035.887304 | DE9: 172.5544633 | DF9: 524.9286047 | DG9: 854.28603 | DH9: 631.0186933 | DI9: 279.2278132 | DJ9: 95.74924044
AZ10: =names!$A$5 -> Mining and quarrying | BA10: Males | BB10: 87.98533929 | BC10: 87.08475985 | BD10: 90.97668867 | BE10: 88.66443288 | BF10: 85.10194582 | BG10: 81.02215079 | BH10: 80.51993078 | BI10: 77.63627774 | BJ10: 78.18410526 | BK10: 80.06003784 | BL10: 76.69941159 | BM10: 78.32662198 | BN10: 82.09029849 | BO10: 81.35440923 | BP10: 86.0900847 | BQ10: 84.99128667 | BR10: 81.94483071 | BS10: 82.97547991 | BT10: 83.19051857 | BU10: 83.67761822 | BV10: 84.2673781 | BW10: 84.74827929 | BX10: 85.1732934 | BY10: 85.62839608 | BZ10: 86.09377429 | CA10: 86.606065 | CB10: 87.19183641 | CC10: 86.606065 | CD10: 87.19183641 | CE10: 87.84612081 | CF10: 88.58168493 | CJ10: Business & other services | CK10: 65584.071 | DA10: =names!$A$8 -> Rest of manufacturing | DB10: 259.5091723 | DC10: 1573.151079 | DD10: 5122.461557 | DE10: 1000.017187 | DF10: 2646.985368 | DG10: 3999.568363 | DH10: 3298.024331 | DI10: 1818.12013 | DJ10: 506.5052789
BA11: Females | BB11: 12.01466071 | BC11: 12.91524015 | BD11: 9.023311326 | BE11: 11.33556712 | BF11: 14.89819566 | BG11: 18.97784921 | BH11: 19.48006922 | BI11: 22.36372226 | BJ11: 21.81589474 | BK11: 19.93996216 | BL11: 23.30058841 | BM11: 21.67337802 | BN11: 17.90989682 | BO11: 18.64559077 | BP11: 13.9099153 | BQ11: 15.00871333 | BR11: 18.05516929 | BS11: 17.02452009 | BT11: 16.80925611 | BU11: 16.32214594 | BV11: 15.7326219 | BW11: 15.25172071 | BX11: 14.82697596 | BY11: 14.37160392 | BZ11: 13.90622571 | CA11: 13.393935 | CB11: 12.8084962 | CC11: 13.393935 | CD11: 12.8084962 | CE11: 12.15458332 | CF11: 11.41943686 | CJ11: Non-market services | CK11: 23145.923 | DA11: =names!$A$9 -> Electricity and gas | DB11: 19.88611386 | DC11: 215.2578698 | DD11: 575.1521166 | DE11: 112.4304017 | DF11: 275.7510331 | DG11: 296.53148 | DH11: 50.04156915 | DI11: 135.5993913 | DJ11: 8.346909564
AZ12: =names!$A$6 -> Food drink and tobacco | BA12: Males | BB12: 68.38061628 | BC12: 70.32962537 | BD12: 72.66312684 | BE12: 70.55302629 | BF12: 73.71937477 | BG12: 78.17135883 | BH12: 79.66922738 | BI12: 79.3370953 | BJ12: 76.75978815 | BK12: 81.1250953 | BL12: 74.90397039 | BM12: 74.75305861 | BN12: 75.36216946 | BO12: 82.09709092 | BP12: 78.08225183 | BQ12: 67.00648311 | BR12: 62.25943049 | BS12: 63.5929905 | BT12: 65.64845682 | BU12: 67.02737284 | BV12: 68.39583634 | BW12: 69.79017924 | BX12: 70.86192477 | BY12: 71.93764855 | BZ12: 73.10173474 | CA12: 74.34717252 | CB12: 75.68098045 | CC12: 74.34717252 | CD12: 75.68098045 | CE12: 77.13032921 | CF12: 78.71091154 | DA12: =names!$A$10 -> Water and sewerage | DB12: 7.493846564 | DC12: 130.10365 | DD12: 347.8913238 | DE12: 11.36519793 | DF12: 91.61169576 | DG12: 0 | DH12: 138.2186121 | DI12: 142.4761059 | DJ12: 94.54711915
BA13: Females | BB13: 31.61938145 | BC13: 29.67037463 | BD13: 27.33687316 | BE13: 29.44697371 | BF13: 26.28062523 | BG13: 21.82864117 | BH13: 20.33077262 | BI13: 20.6629047 | BJ13: 23.24021185 | BK13: 18.87490731 | BL13: 25.09602961 | BM13: 25.24693782 | BN13: 24.63783054 | BO13: 17.90290908 | BP13: 21.91774817 | BQ13: 32.99351689 | BR13: 37.74056572 | BS13: 36.4070095 | BT13: 34.35154318 | BU13: 32.97262282 | BV13: 31.60416366 | BW13: 30.20982076 | BX13: 29.13807523 | BY13: 28.06235145 | BZ13: 26.89827038 | CA13: 25.65282748 | CB13: 24.31901955 | CC13: 25.65282748 | CD13: 24.31901955 | CE13: 22.86967079 | CF13: 21.28908846 | DA13: =names!$A$11 -> Construction | DB13: 36.25998475 | DC13: 1178.624263 | DD13: 2892.929136 | DE13: 820.2732135 | DF13: 2076.986503 | DG13: 4034.143246 | DH13: 2963.773982 | DI13: 1624.52761 | DJ13: 587.3179325
G14: Charts all refer to the selected occupation - current selection is :- | AZ14: =names!$A$7 -> Engineering | BA14: Males | BB14: 69.28160415 | BC14: 71.01362456 | BD14: 71.37402618 | BE14: 72.83027158 | BF14: 71.12592125 | BG14: 68.85631066 | BH14: 69.19893958 | BI14: 70.31880554 | BJ14: 73.65166324 | BK14: 76.56450397 | BL14: 73.70198902 | BM14: 79.19330418 | BN14: 82.31444533 | BO14: 82.01576734 | BP14: 82.3981458 | BQ14: 73.87643705 | BR14: 77.65976889 | BS14: 77.77262385 | BT14: 78.06439015 | BU14: 78.35399493 | BV14: 78.81425218 | BW14: 79.2910988 | BX14: 79.77188819 | BY14: 80.37327613 | BZ14: 80.9687369 | CA14: 81.58291929 | CB14: 82.2043363 | CC14: 81.58291929 | CD14: 82.2043363 | CE14: 82.89642817 | CF14: 83.67197883 | CJ14: Employment change by broad industrial sector | DA14: =names!$A$12 -> Wholesale and retail trade | DB14: 46.22613613 | DC14: 1231.841555 | DD14: 7982.241722 | DE14: 1776.079439 | DF14: 2784.836913 | DG14: 10391.28558 | DH14: 9433.164567 | DI14: 7729.39987 | DJ14: 1569.887528
BA15: Females | BB15: 30.71839585 | BC15: 28.98637544 | BD15: 28.62597382 | BE15: 27.16971648 | BF15: 28.87407875 | BG15: 31.14368934 | BH15: 30.80106042 | BI15: 29.68119446 | BJ15: 26.34833676 | BK15: 23.43548108 | BL15: 26.29801098 | BM15: 20.80669582 | BN15: 17.68553972 | BO15: 17.98424807 | BP15: 17.6018542 | BQ15: 26.12356295 | BR15: 22.34023111 | BS15: 22.22737615 | BT15: 21.93560985 | BU15: 21.64597428 | BV15: 21.18574782 | BW15: 20.7089012 | BX15: 20.22811181 | BY15: 19.62672387 | BZ15: 19.0312631 | CA15: 18.41708071 | CB15: 17.7956637 | CC15: 18.41708071 | CD15: 17.7956637 | CE15: 17.10357183 | CF15: 16.32802117 | CJ15: Industries, 2012 - 2022 | DA15: =names!$A$13 -> Transport and storage | DB15: 44.20166609 | DC15: 476.4226345 | DD15: 2064.947996 | DE15: 250.1971272 | DF15: 490.0601028 | DG15: 1700.870625 | DH15: 1869.940811 | DI15: 1212.565876 | DJ15: 357.9593412
B16: 54 Textiles, printing and other skilled trades | AZ16: =names!$A$8 -> Rest of manufacturing | BA16: Males | BB16: 67.16948351 | BC16: 67.83773133 | BD16: 68.85306559 | BE16: 69.82391308 | BF16: 70.41508588 | BG16: 73.69744738 | BH16: 74.83800867 | BI16: 76.16540229 | BJ16: 76.64938935 | BK16: 77.34484016 | BL16: 79.12076548 | BM16: 79.74211121 | BN16: 79.3284957 | BO16: 78.59573214 | BP16: 80.42733656 | BQ16: 80.17239314 | BR16: 80.10930227 | BS16: 80.734705 | BT16: 81.39632643 | BU16: 81.95984905 | BV16: 82.51682822 | BW16: 83.19235781 | BX16: 83.72519867 | BY16: 84.19657917 | BZ16: 84.74032965 | CA16: 85.32042577 | CB16: 85.89147952 | CC16: 85.32042577 | CD16: 85.89147952 | CE16: 86.52683373 | CF16: 87.23799663 | CJ16: =CJ11 -> Non-market services | CK16: -3.754973 | DA16: =names!$A$14 -> Accommodation and food | DB16: 1.606146082 | DC16: 244.2705756 | DD16: 824.34723 | DE16: 81.31016779 | DF16: 215.2667942 | DG16: 629.5382256 | DH16: 881.8944084 | DI16: 524.1508902 | DJ16: 85.10623023
BA17: Females | BB17: 32.83051649 | BC17: 32.16226867 | BD17: 31.14693393 | BE17: 30.17608692 | BF17: 29.58491412 | BG17: 26.30255262 | BH17: 25.16199133 | BI17: 23.83459771 | BJ17: 23.35061065 | BK17: 22.6551591 | BL17: 20.87923452 | BM17: 20.25788797 | BN17: 20.6715043 | BO17: 21.4042688 | BP17: 19.57266252 | BQ17: 19.82760686 | BR17: 19.89069891 | BS17: 19.26529375 | BT17: 18.60367357 | BU17: 18.04015095 | BV17: 17.48317178 | BW17: 16.80764219 | BX17: 16.27480133 | BY17: 15.80342083 | BZ17: 15.25967035 | CA17: 14.67957602 | CB17: 14.10852048 | CC17: 14.67957602 | CD17: 14.10852048 | CE17: 13.47316429 | CF17: 12.76199916 | CJ17: =CJ10 -> Business & other services | CK17: -20.135074 | DA17: =names!$A$15 -> Media | DB17: 20.28486672 | DC17: 116.4295574 | DD17: 474.9639935 | DE17: 52.50639928 | DF17: 75.07300567 | DG17: 297.7070268 | DH17: 247.6775085 | DI17: 147.7169264 | DJ17: 17.51918322
J18: All industries | AZ18: =names!$A$9 -> Electricity and gas | BA18: Males | BB18: 47.98186068 | BC18: 51.43196644 | BD18: 53.7230347 | BE18: 54.83142603 | BF18: 53.32775439 | BG18: 46.53474175 | BH18: 45.35062081 | BI18: 45.2838635 | BJ18: 46.03924992 | BK18: 40.18760724 | BL18: 37.7529589 | BM18: 46.87434727 | BN18: 45.65604521 | BO18: 53.34769054 | BP18: 58.18379716 | BQ18: 55.09622369 | BR18: 56.85410988 | BS18: 57.93863462 | BT18: 58.81932782 | BU18: 59.74810469 | BV18: 60.78761692 | BW18: 61.83454578 | BX18: 62.55907688 | BY18: 63.35757776 | BZ18: 64.24414768 | CA18: 65.20527802 | CB18: 66.28922986 | CC18: 65.20527802 | CD18: 66.28922986 | CE18: 67.58984121 | CF18: 69.17928349 | CJ18: =CJ9 -> Trade, accomod. &, transport | CK18: -2.06135 | DA18: =names!$A$16 -> Information technology | DB18: 50.00073293 | DC18: 817.3094534 | DD18: 3043.387364 | DE18: 413.1493955 | DF18: 814.881736 | DG18: 1330.259492 | DH18: 1232.497187 | DI18: 643.2598472 | DJ18: 62.92561444
BA19: Females | BB19: 52.01813932 | BC19: 48.56803356 | BD19: 46.2769653 | BE19: 45.16857397 | BF19: 46.67207655 | BG19: 53.46525825 | BH19: 54.64956998 | BI19: 54.7161365 | BJ19: 53.96056671 | BK19: 59.81239276 | BL19: 62.2470411 | BM19: 53.12538147 | BN19: 54.34370147 | BO19: 46.65258104 | BP19: 41.81595434 | BQ19: 44.90377631 | BR19: 43.14589012 | BS19: 42.06136538 | BT19: 41.18087453 | BU19: 40.25210929 | BV19: 39.21215325 | BW19: 38.16545422 | BX19: 37.44092312 | BY19: 36.64270167 | BZ19: 35.75585232 | CA19: 34.79472198 | CB19: 33.71077014 | CC19: 34.79472198 | CD19: 33.71077014 | CE19: 32.41015879 | CF19: 30.82071651 | CJ19: =CJ8 -> Construction | CK19: -50.472131 | DA19: =names!$A$17 -> Finance and insurance | DB19: 117.5127263 | DC19: 1323.168102 | DD19: 3567.341709 | DE19: 596.1853758 | DF19: 481.6621992 | DG19: 2061.565866 | DH19: 1821.740221 | DI19: 869.9316891 | DJ19: 51.11828089
AZ20: =names!$A$10 -> Water and sewerage | BA20: Males | BB20: 57.60575564 | BC20: 57.35320149 | BD20: 60.16949088 | BE20: 64.13494587 | BF20: 59.83006176 | BG20: 65.77870278 | BH20: 64.50592175 | BI20: 59.97065004 | BJ20: 62.04188705 | BK20: 64.8301404 | BL20: 69.42461313 | BM20: 71.20371776 | BN20: 63.57425351 | BO20: 70.44835591 | BP20: 72.63410123 | BQ20: 63.76373546 | BR20: 64.96346406 | BS20: 64.01692419 | BT20: 63.65463713 | BU20: 64.18804671 | BV20: 64.69082053 | BW20: 65.14782206 | BX20: 64.92386662 | BY20: 64.52410105 | BZ20: 64.15751911 | CA20: 63.80902567 | CB20: 64.09392512 | CC20: 63.80902567 | CD20: 64.09392512 | CE20: 64.38557477 | CF20: 64.68421739 | CJ20: =CJ7 -> Manufacturing | CK20: -54.771227 | DA20: =names!$A$18 -> Real estate | DB20: 9.541119287 | DC20: 374.9728435 | DD20: 1040.073246 | DE20: 138.5109933 | DF20: 615.0369859 | DG20: 989.0992639 | DH20: 461.1651719 | DI20: 462.5053899 | DJ20: 77.1282548
BA21: Females | BB21: 42.39424436 | BC21: 42.6468682 | BD21: 39.83050912 | BE21: 35.86505413 | BF21: 40.16993824 | BG21: 34.22129722 | BH21: 35.49407825 | BI21: 40.02934996 | BJ21: 37.95811295 | BK21: 35.1698596 | BL21: 30.57538687 | BM21: 28.79628224 | BN21: 36.42574649 | BO21: 29.55164409 | BP21: 27.36589877 | BQ21: 36.23626454 | BR21: 35.03653594 | BS21: 35.98314903 | BT21: 36.34536287 | BU21: 35.81195329 | BV21: 35.30917947 | BW21: 34.85217794 | BX21: 35.07613338 | BY21: 35.47589895 | BZ21: 35.84248089 | CA21: 36.19090403 | CB21: 35.90607488 | CC21: 36.19090403 | CD21: 35.90607488 | CE21: 35.6144972 | CF21: 35.31592827 | CJ21: =CJ6 -> Primary sector & utilities | CK21: -0.582124 | DA21: =names!$A$19 -> Professional services | DB21: 573.6061739 | DC21: 2548.029376 | DD21: 7787.011357 | DE21: 427.4095758 | DF21: 1652.39031 | DG21: 2748.880321 | DH21: 2461.755647 | DI21: 1157.262058 | DJ21: 289.6671024
AZ22: =names!$A$11 -> Construction | BA22: Males | BB22: 93.04665698 | BC22: 93.31863653 | BD22: 92.96859637 | BE22: 93.78718197 | BF22: 93.07349521 | BG22: 92.63921776 | BH22: 92.30311362 | BI22: 92.35663691 | BJ22: 90.49085847 | BK22: 91.06180325 | BL22: 91.7800779 | BM22: 89.90638445 | BN22: 90.32993559 | BO22: 92.22537128 | BP22: 92.22831038 | BQ22: 88.88026692 | BR22: 93.07600486 | BS22: 92.66523246 | BT22: 92.42570031 | BU22: 92.07711624 | BV22: 91.80774751 | BW22: 91.56183513 | BX22: 91.33000173 | BY22: 91.03504826 | BZ22: 90.72280873 | CA22: 90.42772247 | CB22: 90.13255249 | CC22: 90.42772247 | CD22: 90.13255249 | CE22: 89.82813681 | CF22: 89.51403411 | DA22: =names!$A$20 -> Support services | DB22: 38.80703753 | DC22: 882.0619394 | DD22: 2697.911999 | DE22: 285.1140607 | DF22: 1040.376916 | DG22: 2569.421822 | DH22: 1746.628679 | DI22: 1338.430416 | DJ22: 524.0817537
BA23: Females | BB23: 6.953335881 | BC23: 6.681363469 | BD23: 7.031403629 | BE23: 6.212818026 | BF23: 6.926504793 | BG23: 7.360790491 | BH23: 7.696886385 | BI23: 7.643363093 | BJ23: 9.509141528 | BK23: 8.938196753 | BL23: 8.219922104 | BM23: 10.09361555 | BN23: 9.670064414 | BO23: 7.774634286 | BP23: 7.771695068 | BQ23: 11.11973308 | BR23: 6.92400067 | BS23: 7.33476754 | BT23: 7.574293913 | BU23: 7.922883762 | BV23: 8.192252488 | BW23: 8.438164866 | BX23: 8.669998267 | BY23: 8.964951744 | BZ23: 9.277191275 | CA23: 9.572277532 | CB23: 9.867447513 | CC23: 9.572277532 | CD23: 9.867447513 | CE23: 10.17186319 | CF23: 10.48596589 | DA23: =names!$A$21 -> Public admin. and defence | DB23: 81.91752165 | DC23: 1449.040894 | DD23: 2266.397899 | DE23: 926.497135 | DF23: 412.5308031 | DG23: 1299.364784 | DH23: 994.9470443 | DI23: 406.0145398 | DJ23: 111.7668136
AZ24: =names!$A$12 -> Wholesale and retail trade | BA24: Males | BB24: 53.61028944 | BC24: 55.40695398 | BD24: 55.52899456 | BE24: 56.67389858 | BF24: 55.80485891 | BG24: 59.19094916 | BH24: 61.28737354 | BI24: 60.94381342 | BJ24: 62.13365709 | BK24: 65.92301637 | BL24: 60.06191234 | BM24: 61.20539457 | BN24: 61.32371635 | BO24: 60.16277001 | BP24: 56.69118338 | BQ24: 57.97368341 | BR24: 56.78329834 | BS24: 57.34420934 | BT24: 58.13442422 | BU24: 58.90255798 | BV24: 59.77394271 | BW24: 60.70522018 | BX24: 61.69569765 | BY24: 62.71367126 | BZ24: 63.82031023 | CA24: 65.00510379 | CB24: 66.31972517 | CC24: 65.00510379 | CD24: 66.31972517 | CE24: 67.77159619 | CF24: 69.38339444 | DA24: =names!$A$22 -> Education | DB24: 67.42167459 | DC24: 226.0379353 | DD24: 682.5419442 | DE24: 394.5035982 | DF24: 238.4007019 | DG24: 744.6195459 | DH24: 424.6700826 | DI24: 230.5726647 | DJ24: 38.81906599
BA25: Females | BB25: 46.3897097 | BC25: 44.59304602 | BD25: 44.47100544 | BE25: 43.32610049 | BF25: 44.19514109 | BG25: 40.80905084 | BH25: 38.71262646 | BI25: 39.05618658 | BJ25: 37.86634383 | BK25: 34.07698363 | BL25: 39.93808766 | BM25: 38.79460444 | BN25: 38.67628365 | BO25: 39.83723095 | BP25: 43.30881759 | BQ25: 42.02631659 | BR25: 43.2167028 | BS25: 42.65579066 | BT25: 41.86557578 | BU25: 41.09744076 | BV25: 40.22605729 | BW25: 39.29477982 | BX25: 38.30430095 | BY25: 37.28632874 | BZ25: 36.17968977 | CA25: 34.99489621 | CB25: 33.68027483 | CC25: 34.99489621 | CD25: 33.68027483 | CE25: 32.22840381 | CF25: 30.61660556 | CJ25: =TableQ!A3 -> QCF group | CK25: Base year level | DA25: =names!$A$23 -> Health and social work | DB25: 266.5570699 | DC25: 1910.120628 | DD25: 4484.912691 | DE25: 3043.679699 | DF25: 449.2375659 | DG25: 1929.397584 | DH25: 1159.663671 | DI25: 270.4293171 | DJ25: 179.6196743
AZ26: =names!$A$13 -> Transport and storage | BA26: Males | BB26: 78.86223116 | BC26: 79.55200359 | BD26: 77.51322587 | BE26: 79.69883544 | BF26: 76.78006691 | BG26: 69.66999668 | BH26: 68.6166448 | BI26: 72.37035662 | BJ26: 75.02608782 | BK26: 71.16507951 | BL26: 75.31966339 | BM26: 79.4788951 | BN26: 84.62422933 | BO26: 82.39467581 | BP26: 83.4294002 | BQ26: 81.20439653 | BR26: 83.80517661 | BS26: 83.81651221 | BT26: 83.88274568 | BU26: 83.89136274 | BV26: 84.04977235 | BW26: 84.17780892 | BX26: 84.29893704 | BY26: 84.41716448 | BZ26: 84.5849526 | CA26: 84.74026909 | CB26: 84.91161207 | CC26: 84.74026909 | CD26: 84.91161207 | CE26: 85.09185276 | CF26: 85.2817027 | CK26: 2012 | DA26: =names!$A$24 -> Arts and entertainment | DB26: 21.50629474 | DC26: 180.5457123 | DD26: 827.7716985 | DE26: 82.97059508 | DF26: 138.3401563 | DG26: 589.1891653 | DH26: 436.7317699 | DI26: 191.3638512 | DJ26: 69.35181848
BA27: Females | BB27: 21.13776884 | BC27: 20.44799641 | BD27: 22.48677413 | BE27: 20.30116456 | BF27: 23.21993309 | BG27: 30.32998841 | BH27: 31.38334018 | BI27: 27.62962855 | BJ27: 24.97391218 | BK27: 28.83492049 | BL27: 24.68033661 | BM27: 20.5211049 | BN27: 15.37577067 | BO27: 17.60532419 | BP27: 16.5705998 | BQ27: 18.79561691 | BR27: 16.19482339 | BS27: 16.18348779 | BT27: 16.11725432 | BU27: 16.10863726 | BV27: 15.95022765 | BW27: 15.82220575 | BX27: 15.70106296 | BY27: 15.58282025 | BZ27: 15.4150474 | CA27: 15.25973091 | CB27: 15.08837153 | CC27: 15.25973091 | CD27: 15.08837153 | CE27: 14.9081136 | CF27: 14.71824549 | CJ27: =TableQ!A5 -> QCF 7-8 | CK27: 1878259.585 | DA27: =names!$A$25 -> Other services | DB27: 77.85985235 | DC27: 294.8776484 | DD27: 696.9209916 | DE27: 216.6224682 | DF27: 195.8599826 | DG27: 400.2593006 | DH27: 514.8441267 | DI27: 226.3602396 | DJ27: 13.50416754
AZ28: =names!$A$14 -> Accommodation and food | BA28: Males | BB28: 50.87074215 | BC28: 50.33479214 | BD28: 49.16493982 | BE28: 51.34969904 | BF28: 56.17639973 | BG28: 60.77751958 | BH28: 58.08790891 | BI28: 62.25974014 | BJ28: 63.43917156 | BK28: 60.51120568 | BL28: 67.41254178 | BM28: 66.54397656 | BN28: 66.65348336 | BO28: 66.14508442 | BP28: 67.55818894 | BQ28: 65.30087208 | BR28: 72.50638265 | BS28: 72.76943019 | BT28: 73.21671981 | BU28: 73.79157676 | BV28: 74.37907382 | BW28: 74.92500005 | BX28: 75.49271086 | BY28: 76.12655447 | BZ28: 76.79671091 | CA28: 77.51561585 | CB28: 78.3056966 | CC28: 77.51561585 | CD28: 78.3056966 | CE28: 79.14505348 | CF28: 80.03844479 | CJ28: =TableQ!A6 -> QCF 4-6 | CK28: 7417568.277
BA29: Females | BB29: 49.12925738 | BC29: 49.66520786 | BD29: 50.83506018 | BE29: 48.65030096 | BF29: 43.82360027 | BG29: 39.22248042 | BH29: 41.91209109 | BI29: 37.74025986 | BJ29: 36.56082844 | BK29: 39.48879432 | BL29: 32.58745822 | BM29: 33.45602344 | BN29: 33.34651664 | BO29: 33.85491558 | BP29: 32.44181106 | BQ29: 34.6991275 | BR29: 27.49361735 | BS29: 27.23056981 | BT29: 26.78327982 | BU29: 26.20842324 | BV29: 25.62092657 | BW29: 25.07499995 | BX29: 24.50728914 | BY29: 23.87344512 | BZ29: 23.20328909 | CA29: 22.48438415 | CB29: 21.6943034 | CC29: 22.48438415 | CD29: 21.6943034 | CE29: 20.85494652 | CF29: 19.96155521 | CJ29: =TableQ!A7 -> QCF 3 | CK29: 5973784.73
AZ30: =names!$A$15 -> Media | BA30: Males | BB30: 48.81441707 | BC30: 51.73831529 | BD30: 49.13242807 | BE30: 51.79262731 | BF30: 55.26712209 | BG30: 66.22384922 | BH30: 64.31292612 | BI30: 64.21636685 | BJ30: 72.49129444 | BK30: 73.69659342 | BL30: 74.03471859 | BM30: 72.47882605 | BN30: 75.67532413 | BO30: 76.89629254 | BP30: 71.65799569 | BQ30: 66.24813654 | BR30: 76.42562412 | BS30: 76.88926477 | BT30: 77.63493538 | BU30: 78.11106617 | BV30: 78.27094878 | BW30: 78.31744783 | BX30: 78.47796444 | BY30: 78.87908712 | BZ30: 79.39335955 | CA30: 80.20303153 | CB30: 80.96278091 | CC30: 80.20303153 | CD30: 80.96278091 | CE30: 81.73487258 | CF30: 82.51960974 | CJ30: =TableQ!A8 -> QCF 2 | CK30: 6685148.396
BA31: Females | BB31: 51.18558293 | BC31: 48.26168471 | BD31: 50.86757593 | BE31: 48.20736861 | BF31: 44.73287791 | BG31: 33.77615078 | BH31: 35.68707388 | BI31: 35.78363315 | BJ31: 27.50870556 | BK31: 26.3034109 | BL31: 25.96528141 | BM31: 27.52117395 | BN31: 24.32467587 | BO31: 23.10371345 | BP31: 28.34200431 | BQ31: 33.75186346 | BR31: 23.57438368 | BS31: 23.11073523 | BT31: 22.36507304 | BU31: 21.88893383 | BV31: 21.72905122 | BW31: 21.6825617 | BX31: 21.52204526 | BY31: 21.12091288 | BZ31: 20.60664045 | CA31: 19.79696847 | CB31: 19.03721909 | CC31: 19.79696847 | CD31: 19.03721909 | CE31: 18.26512742 | CF31: 17.48039026 | CJ31: =TableQ!A9 -> QCF 1 | CK31: 5357778.981
AZ32: =names!$A$16 -> Information technology | BA32: Males | BB32: 63.2731232 | BC32: 64.59321512 | BD32: 67.19426985 | BE32: 71.11506658 | BF32: 64.28311211 | BG32: 60.17648479 | BH32: 60.74377051 | BI32: 55.40716416 | BJ32: 58.85920845 | BK32: 67.74733817 | BL32: 68.80271533 | BM32: 68.3994392 | BN32: 73.06532146 | BO32: 72.64799511 | BP32: 72.3303848 | BQ32: 72.36542975 | BR32: 72.70519091 | BS32: 72.95031357 | BT32: 73.2042598 | BU32: 73.50380176 | BV32: 73.56825828 | BW32: 73.82227119 | BX32: 74.02093135 | BY32: 74.13433017 | BZ32: 74.1748048 | CA32: 74.3210557 | CB32: 74.7148261 | CC32: 74.3210557 | CD32: 74.7148261 | CE32: 75.13182999 | CF32: 75.57418615 | CJ32: =TableQ!A10 -> No Qual | CK32: 3124402.429
BA33: Females | BB33: 36.72681257 | BC33: 35.40678488 | BD33: 32.80566836 | BE33: 28.8848772 | BF33: 35.71683938 | BG33: 39.82351521 | BH33: 39.25622949 | BI33: 44.59283584 | BJ33: 41.14082671 | BK33: 32.25266183 | BL33: 31.19728467 | BM33: 31.6005608 | BN33: 26.93467854 | BO33: 27.35200489 | BP33: 27.66965993 | BQ33: 27.63457025 | BR33: 27.29480909 | BS33: 27.04968643 | BT33: 26.7957402 | BU33: 26.49614694 | BV33: 26.43174172 | BW33: 26.17772881 | BX33: 25.97906865 | BY33: 25.86566983 | BZ33: 25.82525548 | CA33: 25.6789443 | CB33: 25.28510991 | CC33: 25.6789443 | CD33: 25.28510991 | CE33: 24.86803824 | CF33: 24.4256102 | DA33: Emp x qualification for occupation 2 for every industry
AZ34: =names!$A$17 -> Finance and insurance | BA34: Males | BB34: 53.17539236 | BC34: 50.8415758 | BD34: 51.6331695 | BE34: 53.03396138 | BF34: 52.17834988 | BG34: 48.24905877 | BH34: 49.33283647 | BI34: 52.71127183 | BJ34: 50.92053559 | BK34: 49.32544393 | BL34: 50.96054033 | BM34: 51.17011983 | BN34: 48.42589617 | BO34: 47.03886613 | BP34: 47.8282107 | BQ34: 45.38628404 | BR34: 53.54532658 | BS34: 52.98711218 | BT34: 52.42997012 | BU34: 51.87757097 | BV34: 51.30220698 | BW34: 50.79435633 | BX34: 50.27989777 | BY34: 49.90431255 | BZ34: 49.6728888 | CA34: 49.78970645 | CB34: 50.14416641 | CC34: 49.78970645 | CD34: 50.14416641 | CE34: 50.53041238 | CF34: 50.95292064 | DA34: 2012 | DB34: =DB4 -> QCF8 | DC34: =DC4 -> QCF7 | DD34: QCF6 | DE34: QCF5 | DF34: QCF4 | DG34: QCF3 | DH34: QCF2 | DI34: QCF1 | DJ34: No Qual
BA35: Females | BB35: 46.82460764 | BC35: 49.1584242 | BD35: 48.3668305 | BE35: 46.96608461 | BF35: 47.82160567 | BG35: 51.75094123 | BH35: 50.66716353 | BI35: 47.28872817 | BJ35: 49.07946441 | BK35: 50.67455607 | BL35: 49.03945967 | BM35: 48.82991889 | BN35: 51.57406231 | BO35: 52.96113387 | BP35: 52.1717893 | BQ35: 54.61371596 | BR35: 46.45467342 | BS35: 47.01288782 | BT35: 47.57002988 | BU35: 48.12238431 | BV35: 48.69783903 | BW35: 49.20564367 | BX35: 49.72010223 | BY35: 50.09568745 | BZ35: 50.32716391 | CA35: 50.21029355 | CB35: 49.85589067 | CC35: 50.21029355 | CD35: 49.85589067 | CE35: 49.46970691 | CF35: 49.04726669 | DA35: =names!$A$3 -> All industries | DB35: 721.4765901 | DC35: 7224.265646 | DD35: 20475.49535 | DE35: 6762.410267 | DF35: 7214.776062 | DG35: 23660.74846 | DH35: 22054.83857 | DI35: 15033.12311 | DJ35: 7493.454517
AZ36: =names!$A$18 -> Real estate | BA36: Males | BB36: 46.74130884 | BC36: 46.12077867 | BD36: 48.6593046 | BE36: 50.57530873 | BF36: 46.59855389 | BG36: 46.3031667 | BH36: 46.48489978 | BI36: 46.07168079 | BJ36: 46.79918554 | BK36: 48.34110541 | BL36: 48.28728407 | BM36: 48.24175092 | BN36: 47.61764037 | BO36: 51.1353156 | BP36: 45.47601532 | BQ36: 41.40029141 | BR36: 47.44454934 | BS36: 47.07971909 | BT36: 47.28204501 | BU36: 47.1472999 | BV36: 46.89917634 | BW36: 46.77161216 | BX36: 46.32056778 | BY36: 46.04710843 | BZ36: 45.77443724 | CA36: 45.45738409 | CB36: 45.40977295 | CC36: 45.45738409 | CD36: 45.40977295 | CE36: 45.36176856 | CF36: 45.31336602 | DA36: =names!$A$4 -> Agriculture | DB36: 2.475212736 | DC36: 54.01536062 | DD36: 196.0334371 | DE36: 83.2177425 | DF36: 79.8750917 | DG36: 418.0977542 | DH36: 305.5812653 | DI36: 185.995985 | DJ36: 136.2149941
BA37: Females | BB37: 53.25869116 | BC37: 53.8791943 | BD37: 51.3406954 | BE37: 49.42469127 | BF37: 53.40144611 | BG37: 53.6968333 | BH37: 53.51510022 | BI37: 53.92831921 | BJ37: 53.20081446 | BK37: 51.65889459 | BL37: 51.71271593 | BM37: 51.75824908 | BN37: 52.38235963 | BO37: 48.86470937 | BP37: 54.52400844 | BQ37: 58.59970859 | BR37: 52.55545066 | BS37: 52.92028091 | BT37: 52.71795499 | BU37: 52.8527001 | BV37: 53.10082366 | BW37: 53.22838784 | BX37: 53.67943222 | BY37: 53.95291525 | BZ37: 54.22556276 | CA37: 54.54261591 | CB37: 54.59020339 | CC37: 54.54261591 | CD37: 54.59020339 | CE37: 54.63818392 | CF37: 54.68656241 | DA37: =names!$A$5 -> Mining and quarrying | DB37: 0 | DC37: 3.488562185 | DD37: 1.133973497 | DE37: 0.3472164003 | DF37: 0.5927465012 | DG37: 5.440860763 | DH37: 1.105814849 | DI37: 2.204610557 | DJ37: 10.36860321
AZ38: =names!$A$19 -> Professional services | BA38: Males | BB38: 63.49070503 | BC38: 63.02595926 | BD38: 64.75518095 | BE38: 66.03230087 | BF38: 67.01967132 | BG38: 64.27401032 | BH38: 64.3340726 | BI38: 65.9838352 | BJ38: 69.59504294 | BK38: 71.58880275 | BL38: 73.37791554 | BM38: 70.29325459 | BN38: 72.52005638 | BO38: 62.3802112 | BP38: 67.04438056 | BQ38: 63.54871561 | BR38: 67.6009296 | BS38: 68.39490765 | BT38: 69.24886171 | BU38: 70.04325913 | BV38: 70.81230504 | BW38: 71.63828385 | BX38: 72.21325155 | BY38: 72.7551154 | BZ38: 73.27210504 | CA38: 73.88030869 | CB38: 74.44890489 | CC38: 73.88030869 | CD38: 74.44890489 | CE38: 75.0289172 | CF38: 75.62069292 | DA38: =names!$A$6 -> Food drink and tobacco | DB38: 0 | DC38: 27.95032825 | DD38: 226.136781 | DE38: 90.67579144 | DF38: 20.66893644 | DG38: 96.12292947 | DH38: 106.4430069 | DI38: 53.52373297 | DJ38: 30.07846869
BA39: Females | BB39: 36.50927572 | BC39: 36.97404074 | BD39: 35.24481905 | BE39: 33.96769913 | BF39: 32.98032868 | BG39: 35.72598968 | BH39: 35.6659274 | BI39: 34.01614768 | BJ39: 30.40495706 | BK39: 28.41119725 | BL39: 26.62209646 | BM39: 29.70674541 | BN39: 27.47994362 | BO39: 37.6197888 | BP39: 32.95561944 | BQ39: 36.45128439 | BR39: 32.3990704 | BS39: 31.60509235 | BT39: 30.75113829 | BU39: 29.95674087 | BV39: 29.18769496 | BW39: 28.36172726 | BX39: 27.78674845 | BY39: 27.24489579 | BZ39: 26.72790617 | CA39: 26.11969131 | CB39: 25.55109511 | CC39: 26.11969131 | CD39: 25.55109511 | CE39: 24.9710828 | CF39: 24.37930708 | DA39: =names!$A$7 -> Engineering | DB39: 0.8827111814 | DC39: 23.61359869 | DD39: 31.24795279 | DE39: 22.0447702 | DF39: 47.94944393 | DG39: 85.11545608 | DH39: 40.92766086 | DI39: 47.27853098 | DJ39: 14.39342384
AZ40: =names!$A$20 -> Support services | BA40: Males | BB40: 56.58941421 | BC40: 56.76696725 | BD40: 54.81349739 | BE40: 56.13598541 | BF40: 58.41431714 | BG40: 58.94677712 | BH40: 60.72911439 | BI40: 60.93339759 | BJ40: 57.99441972 | BK40: 67.06273645 | BL40: 73.38453881 | BM40: 61.43089798 | BN40: 72.28447881 | BO40: 69.87861692 | BP40: 58.18749177 | BQ40: 66.14680295 | BR40: 61.67487851 | BS40: 61.60419621 | BT40: 61.68952041 | BU40: 61.83572003 | BV40: 61.97299378 | BW40: 62.10580221 | BX40: 62.35237647 | BY40: 62.57591367 | BZ40: 62.80471039 | CA40: 63.10441499 | CB40: 63.40728665 | CC40: 63.10441499 | CD40: 63.40728665 | CE40: 63.72356555 | CF40: 64.0541621 | DA40: =names!$A$8 -> Rest of manufacturing | DB40: 58.28080906 | DC40: 153.7439042 | DD40: 721.1735369 | DE40: 223.785902 | DF40: 319.8938538 | DG40: 756.5140653 | DH40: 167.5216175 | DI40: 297.904708 | DJ40: 136.8455508
BA41: Females | BB41: 43.41058579 | BC41: 43.23303275 | BD41: 45.18650261 | BE41: 43.86401459 | BF41: 41.58568286 | BG41: 41.05322288 | BH41: 39.27088561 | BI41: 39.06660241 | BJ41: 42.00558028 | BK41: 32.93725959 | BL41: 26.61545786 | BM41: 38.56909677 | BN41: 27.71552119 | BO41: 30.12138765 | BP41: 41.81250823 | BQ41: 33.85319705 | BR41: 38.32512149 | BS41: 38.39580379 | BT41: 38.31048479 | BU41: 38.16427997 | BV41: 38.02700622 | BW41: 37.89419779 | BX41: 37.64762911 | BY41: 37.42408633 | BZ41: 37.19528961 | CA41: 36.89559097 | CB41: 36.59271335 | CC41: 36.89559097 | CD41: 36.59271335 | CE41: 36.27642822 | CF41: 35.94582516 | DA41: =names!$A$9 -> Electricity and gas | DB41: 0.846814183 | DC41: 24.87819998 | DD41: 24.76805853 | DE41: 7.658088114 | DF41: 49.42048099 | DG41: 23.86581669 | DH41: 30.41089217 | DI41: 79.51709941 | DJ41: 0.6887073201
AZ42: =names!$A$21 -> Public admin. and defence | BA42: Males | BB42: 39.57938456 | BC42: 40.29815366 | BD42: 39.62239505 | BE42: 41.35498127 | BF42: 40.54070221 | BG42: 40.47093079 | BH42: 41.94799881 | BI42: 43.29286448 | BJ42: 41.45075754 | BK42: 29.02148579 | BL42: 28.3346972 | BM42: 51.47596337 | BN42: 49.30117294 | BO42: 41.53888411 | BP42: 57.88691972 | BQ42: 52.83400789 | BR42: 46.9829187 | BS42: 47.40582664 | BT42: 47.86112129 | BU42: 48.20497625 | BV42: 48.57372225 | BW42: 48.96322583 | BX42: 49.33830809 | BY42: 49.6713831 | BZ42: 50.02491534 | CA42: 50.37030792 | CB42: 50.68829804 | CC42: 50.37030792 | CD42: 50.68829804 | CE42: 51.01949901 | CF42: 51.36475157 | DA42: =names!$A$10 -> Water and sewerage | DB42: 66.64524583 | DC42: 192.0635549 | DD42: 49.21512608 | DE42: 51.92429171 | DF42: 10.01222553 | DG42: 143.297646 | DH42: 207.0575668 | DI42: 37.00257911 | DJ42: 128.9785708
BA43: Females | BB43: 60.42061544 | BC43: 59.70183213 | BD43: 60.37760495 | BE43: 58.64501873 | BF43: 59.45929779 | BG43: 59.52906921 | BH43: 58.05200119 | BI43: 56.70713552 | BJ43: 58.54923006 | BK43: 70.97851421 | BL43: 71.66528471 | BM43: 48.52401547 | BN43: 50.69882706 | BO43: 58.46111589 | BP43: 42.11306268 | BQ43: 47.16599211 | BR43: 53.0170813 | BS43: 52.59417336 | BT43: 52.13891868 | BU43: 51.79502375 | BV43: 51.42627775 | BW43: 51.03677417 | BX43: 50.66164265 | BY43: 50.3285668 | BZ43: 49.97508466 | CA43: 49.62969208 | CB43: 49.31170196 | CC43: 49.62969208 | CD43: 49.31170196 | CE43: 48.98050099 | CF43: 48.63524843 | DA43: =names!$A$11 -> Construction | DB43: 19.87196857 | DC43: 183.1283967 | DD43: 493.6515172 | DE43: 194.0799817 | DF43: 118.4177715 | DG43: 503.518446 | DH43: 433.8664656 | DI43: 129.4360901 | DJ43: 210.1366444
AZ44: =names!$A$22 -> Education | BA44: Males | BB44: 12.21601676 | BC44: 12.57793516 | BD44: 12.93391887 | BE44: 13.99103398 | BF44: 12.22682231 | BG44: 15.64725957 | BH44: 17.19301815 | BI44: 16.82966251 | BJ44: 15.02347596 | BK44: 15.25356174 | BL44: 13.39552913 | BM44: 13.16866033 | BN44: 15.35630975 | BO44: 14.10008091 | BP44: 14.13813773 | BQ44: 15.80773965 | BR44: 22.64815077 | BS44: 23.22944103 | BT44: 23.9704765 | BU44: 24.73949656 | BV44: 25.62368691 | BW44: 26.26069967 | BX44: 27.174204 | BY44: 28.19644633 | BZ44: 29.38196994 | CA44: 30.72773781 | CB44: 32.23505102 | CC44: 30.72773781 | CD44: 32.23505102 | CE44: 34.06627432 | CF44: 36.33838521 | DA44: =names!$A$12 -> Wholesale and retail trade | DB44: 108.5153936 | DC44: 622.5427099 | DD44: 2507.479955 | DE44: 615.8199654 | DF44: 1031.861774 | DG44: 4539.198053 | DH44: 5025.138965 | DI44: 2620.275681 | DJ44: 1949.555378
BA45: Females | BB45: 87.78398324 | BC45: 87.42206484 | BD45: 87.06608113 | BE45: 86.00896602 | BF45: 87.77317769 | BG45: 84.35274043 | BH45: 82.80698185 | BI45: 83.17034117 | BJ45: 84.97652851 | BK45: 84.74643826 | BL45: 86.60447542 | BM45: 86.83133967 | BN45: 84.64369025 | BO45: 85.89991909 | BP45: 85.86186227 | BQ45: 84.19226035 | BR45: 77.35184923 | BS45: 76.77055897 | BT45: 76.0295235 | BU45: 75.26050344 | BV45: 74.37631309 | BW45: 73.73930033 | BX45: 72.825796 | BY45: 71.80355367 | BZ45: 70.61803006 | CA45: 69.27226219 | CB45: 67.76494898 | CC45: 69.27226219 | CD45: 67.76494898 | CE45: 65.93372568 | CF45: 63.66161479 | DA45: =names!$A$13 -> Transport and storage | DB45: 9.266124925 | DC45: 68.55792673 | DD45: 213.4403891 | DE45: 109.7685243 | DF45: 144.7941542 | DG45: 858.5543164 | DH45: 558.3633619 | DI45: 310.1037273 | DJ45: 231.4379265
AZ46: =names!$A$23 -> Health and social work | BA46: Males | BB46: 14.3831163 | BC46: 15.3237752 | BD46: 16.44627998 | BE46: 17.6698572 | BF46: 18.96822175 | BG46: 19.25060971 | BH46: 19.2768057 | BI46: 22.58049473 | BJ46: 17.42944934 | BK46: 33.69359508 | BL46: 31.78152598 | BM46: 28.54702973 | BN46: 23.68473756 | BO46: 37.87238063 | BP46: 24.49089764 | BQ46: 38.60302321 | BR46: 36.31328177 | BS46: 36.98692206 | BT46: 37.84922116 | BU46: 38.81398083 | BV46: 39.8894829 | BW46: 41.00951304 | BX46: 42.41495863 | BY46: 43.9764139 | BZ46: 45.74578214 | CA46: 47.7183883 | CB46: 49.94365973 | CC46: 47.7183883 | CD46: 49.94365973 | CE46: 52.48308446 | CF46: 55.40824108 | DA46: =names!$A$14 -> Accommodation and food | DB46: 119.0496708 | DC46: 1301.854302 | DD46: 5186.986099 | DE46: 1908.853559 | DF46: 1849.921858 | DG46: 6193.332201 | DH46: 8502.816766 | DI46: 6216.51883 | DJ46: 1914.879546
BA47: Females | BB47: 85.61688193 | BC47: 84.6762248 | BD47: 83.55372206 | BE47: 82.3301428 | BF47: 81.03177825 | BG47: 80.74938786 | BH47: 80.7231943 | BI47: 77.41950527 | BJ47: 82.57055066 | BK47: 66.30640222 | BL47: 68.21847687 | BM47: 71.45297027 | BN47: 76.31526244 | BO47: 62.12761937 | BP47: 75.50910236 | BQ47: 61.39697679 | BR47: 63.68671823 | BS47: 63.01307794 | BT47: 62.15078269 | BU47: 61.18601917 | BV47: 60.1105171 | BW47: 58.99048696 | BX47: 57.58504137 | BY47: 56.0235802 | BZ47: 54.25422413 | CA47: 52.2816117 | CB47: 50.05634027 | CC47: 52.2816117 | CD47: 50.05634027 | CE47: 47.51691554 | CF47: 44.59175892 | DA47: =names!$A$15 -> Media | DB47: 9.090146305 | DC47: 74.308699 | DD47: 440.847976 | DE47: 71.1677767 | DF47: 110.4489646 | DG47: 407.0312979 | DH47: 199.0041301 | DI47: 116.2779876 | DJ47: 74.1693665
AZ48: =names!$A$24 -> Arts and entertainment | BA48: Males | BB48: 46.81365257 | BC48: 48.36222466 | BD48: 47.73882418 | BE48: 47.40017324 | BF48: 49.10903863 | BG48: 49.23704602 | BH48: 54.1586176 | BI48: 52.44038794 | BJ48: 46.72474931 | BK48: 45.00443797 | BL48: 38.470253 | BM48: 48.57008437 | BN48: 59.97294522 | BO48: 55.89088092 | BP48: 53.21884934 | BQ48: 61.62471209 | BR48: 55.54522906 | BS48: 54.85483442 | BT48: 54.20739371 | BU48: 53.41365406 | BV48: 52.7087984 | BW48: 51.76663807 | BX48: 51.3443311 | BY48: 50.91922263 | BZ48: 50.60374662 | CA48: 50.27051375 | CB48: 50.04116114 | CC48: 50.27051375 | CD48: 50.04116114 | CE48: 49.79819371 | CF48: 49.54036206 | DA48: =names!$A$16 -> Information technology | DB48: 18.53844448 | DC48: 54.99246939 | DD48: 175.2933767 | DE48: 43.26178998 | DF48: 73.55854367 | DG48: 233.2560242 | DH48: 61.82664769 | DI48: 51.9695153 | DJ48: 30.97402777
BA49: Females | BB49: 53.18634743 | BC49: 51.63777534 | BD49: 52.26117582 | BE49: 52.59982676 | BF49: 50.89095102 | BG49: 50.76294459 | BH49: 45.8413824 | BI49: 47.55961206 | BJ49: 53.27524218 | BK49: 54.99556203 | BL49: 61.529747 | BM49: 51.42991563 | BN49: 40.02705478 | BO49: 44.10912798 | BP49: 46.7811601 | BQ49: 38.37528791 | BR49: 44.45476448 | BS49: 45.14517222 | BT49: 45.79260629 | BU49: 46.58634594 | BV49: 47.2912016 | BW49: 48.23336193 | BX49: 48.6556689 | BY49: 49.08078497 | BZ49: 49.39625338 | CA49: 49.72948625 | CB49: 49.95883886 | CC49: 49.72948625 | CD49: 49.95883886 | CE49: 50.20180629 | CF49: 50.45963794 | DA49: =names!$A$17 -> Finance and insurance | DB49: 7.039288073 | DC49: 104.9589278 | DD49: 197.0935057 | DE49: 66.42257802 | DF49: 48.01878717 | DG49: 214.3422626 | DH49: 136.4874618 | DI49: 115.827868 | DJ49: 6.749335613
AZ50: =names!$A$25 -> Other services | BA50: Males | BB50: 43.54719707 | BC50: 44.43024382 | BD50: 44.3112807 | BE50: 43.6270251 | BF50: 44.14685005 | BG50: 44.98838974 | BH50: 49.75470468 | BI50: 47.23967604 | BJ50: 44.66601583 | BK50: 48.45225067 | BL50: 43.62278202 | BM50: 47.33505268 | BN50: 51.44009614 | BO50: 49.88013399 | BP50: 46.72765173 | BQ50: 48.13077794 | BR50: 43.39376989 | BS50: 42.88481289 | BT50: 42.36778805 | BU50: 41.603341 | BV50: 40.86261357 | BW50: 40.34519879 | BX50: 40.14869812 | BY50: 39.8097704 | BZ50: 39.65208322 | CA50: 39.68946603 | CB50: 39.45902085 | CC50: 39.68946603 | CD50: 39.45902085 | CE50: 39.22086717 | CF50: 38.97461162 | DA50: =names!$A$18 -> Real estate | DB50: 37.73296495 | DC50: 775.8846099 | DD50: 1517.931297 | DE50: 505.8356844 | DF50: 444.3723521 | DG50: 1676.932688 | DH50: 671.962019 | DI50: 854.9686884 | DJ50: 597.5622323
BA51: Females | BB51: 56.45280293 | BC51: 55.56975618 | BD51: 55.6887193 | BE51: 56.3729749 | BF51: 55.85314995 | BG51: 55.01161026 | BH51: 50.24529532 | BI51: 52.76032396 | BJ51: 55.33398417 | BK51: 51.54774933 | BL51: 56.37721798 | BM51: 52.66494732 | BN51: 48.55990386 | BO51: 50.11987573 | BP51: 53.27234827 | BQ51: 51.86923235 | BR51: 56.60623998 | BS51: 57.11519736 | BT51: 57.63221195 | BU51: 58.396659 | BV51: 59.13737531 | BW51: 59.65480121 | BX51: 59.85130188 | BY51: 60.1902296 | BZ51: 60.34791678 | CA51: 60.31053397 | CB51: 60.54097915 | CC51: 60.31053397 | CD51: 60.54097915 | CE51: 60.77913283 | CF51: 61.02538838 | DA51: =names!$A$19 -> Professional services | DB51: 138.5707683 | DC51: 1165.561228 | DD51: 2538.509201 | DE51: 65.54690143 | DF51: 522.5802959 | DG51: 608.5376287 | DH51: 477.0604979 | DI51: 132.4291011 | DJ51: 141.0373088
DA52: =names!$A$20 -> Support services | DB52: 25.85151449 | DC52: 859.7727443 | DD52: 2328.766304 | DE52: 546.4925081 | DF52: 1125.566419 | DG52: 2658.626401 | DH52: 1676.819165 | DI52: 2214.505156 | DJ52: 1042.473199
DA53: =names!$A$21 -> Public admin. and defence | DB53: 22.70897721 | DC53: 322.8344606 | DD53: 592.8225598 | DE53: 267.644752 | DF53: 143.4048943 | DG53: 547.3334906 | DH53: 192.4411096 | DI53: 32.03559197 | DJ53: 21.05956551
DA54: =names!$A$22 -> Education | DB54: 1.626463129 | DC54: 207.4126137 | DD54: 391.2468864 | DE54: 335.2117804 | DF54: 253.8746331 | DG54: 476.6177631 | DH54: 471.7825245 | DI54: 249.1626931 | DJ54: 125.2124585
DA55: =names!$A$23 -> Health and social work | DB55: 19.21760776 | DC55: 295.9708233 | DD55: 843.7842896 | DE55: 745.8157198 | DF55: 203.0908129 | DG55: 989.094401 | DH55: 174.6442999 | DI55: 231.258037 | DJ55: 29.75678778
DA56: =names!$A$24 -> Arts and entertainment | DB56: 24.25325007 | DC56: 577.7982402 | DD56: 1240.999415 | DE56: 350.5774157 | DF56: 410.2424453 | DG56: 1271.495064 | DH56: 1644.654583 | DI56: 700.0475977 | DJ56: 503.03087
DA57: =names!$A$25 -> Other services | DB57: 31.01321443 | DC57: 128.9339847 | DD57: 556.9337096 | DE57: 456.2575279 | DF57: 206.209577 | DG57: 954.4238951 | DH57: 968.9227515 | DI57: 354.8792948 | DJ57: 157.8515516
BB59: Selected occupation as % of all occupations, separately for men and women
BB60: 1994 | BC60: 1995 | BD60: 1996 | BE60: 1997 | BF60: 1998 | BG60: 1999 | BH60: 2000 | BI60: 2001 | BJ60: 2002 | BK60: 2003 | BL60: 2004 | BM60: 2005 | BN60: 2006 | BO60: 2007 | BP60: 2008 | BQ60: 2009 | BR60: 2010 | BS60: 2011 | BT60: 2012 | BU60: 2013 | BV60: 2014 | BW60: 2015 | BX60: 2016 | BY60: 2017 | BZ60: 2018 | CA60: 2019 | CB60: 2020 | CC60: 2021 | CD60: 2022 | CE60: 2023 | CF60: 2024
AZ61: =names!$A$3 -> All industries | BA61: Males | BB61: 3.11064203 | BC61: 3.0433412 | BD61: 2.944088044 | BE61: 2.933905861 | BF61: 2.986634527 | BG61: 3.052131121 | BH61: 2.942476201 | BI61: 2.959333589 | BJ61: 2.909694396 | BK61: 2.826443252 | BL61: 2.992431894 | BM61: 2.768284687 | BN61: 2.727802395 | BO61: 2.700691339 | BP61: 2.600305338 | BQ61: 2.404650447 | BR61: 2.674695427 | BS61: 2.603788845 | BT61: 2.544842558 | BU61: 2.485598808 | BV61: 2.423614073 | BW61: 2.360039279 | BX61: 2.298979538 | BY61: 2.239998213 | BZ61: 2.18101979 | CA61: 2.122637411 | CB61: 2.063920827 | CC61: 2.122637411 | CD61: 2.063920827 | CE61: 2.005690726 | CF61: 1.947941087
BA62: Females | BB62: 2.97544005 | BC62: 2.830758226 | BD62: 2.67192622 | BE62: 2.556476053 | BF62: 2.446651435 | BG62: 2.246735447 | BH62: 2.145243598 | BI62: 2.022823178 | BJ62: 1.922960393 | BK62: 1.810862848 | BL62: 1.792466403 | BM62: 1.67201459 | BN62: 1.566432797 | BO62: 1.605681821 | BP62: 1.594352909 | BQ62: 1.564468413 | BR62: 1.489656504 | BS62: 1.416701331 | BT62: 1.341658104 | BU62: 1.269983358 | BV62: 1.200102622 | BW62: 1.133199782 | BX62: 1.06692494 | BY62: 1.002092965 | BZ62: 0.9375184767 | CA62: 0.8733809195 | CB62: 0.8099949042 | CC62: 0.8733809195 | CD62: 0.8099949042 | CE62: 0.7476834932 | CF62: 0.6864195891
AZ63: =names!$A$4 -> Agriculture | BA63: Males | BB63: 0.7200093139 | BC63: 0.724480663 | BD63: 0.6851952038 | BE63: 0.6752099431 | BF63: 0.6540512921 | BG63: 0.6223503974 | BH63: 0.6302375887 | BI63: 0.6108290461 | BJ63: 0.6144416603 | BK63: 0.6029490685 | BL63: 0.5799952947 | BM63: 0.5603413553 | BN63: 0.5310961261 | BO63: 0.5213199254 | BP63: 0.5348002032 | BQ63: 0.5094638485 | BR63: 0.5398581034 | BS63: 0.5321759828 | BT63: 0.515388694 | BU63: 0.5010393014 | BV63: 0.487758421 | BW63: 0.4757965766 | BX63: 0.4668808878 | BY63: 0.4583376015 | BZ63: 0.449353541 | CA63: 0.4409559551 | CB63: 0.4327648302 | CC63: 0.4409559551 | CD63: 0.4327648302 | CE63: 0.4243925137 | CF63: 0.4158329262 | DA63: Emp x qualification for occupation 3 for every industry
BA64: Females | BB64: 1.27023336 | BC64: 1.108136378 | BD64: 1.022394034 | BE64: 1.028578543 | BF64: 1.081962023 | BG64: 0.9734593558 | BH64: 1.008272653 | BI64: 0.9644971215 | BJ64: 0.8007035738 | BK64: 0.769006093 | BL64: 0.7199543439 | BM64: 0.7183515027 | BN64: 0.59771046 | BO64: 0.5397064866 | BP64: 0.6416120397 | BQ64: 0.5373680507 | BR64: 0.5122153303 | BS64: 0.5104615989 | BT64: 0.5061929108 | BU64: 0.5171158593 | BV64: 0.5558962435 | BW64: 0.5462702998 | BX64: 0.5396856186 | BY64: 0.5340416529 | BZ64: 0.5271826774 | CA64: 0.5197288848 | CB64: 0.5135456639 | CC64: 0.5197288848 | CD64: 0.5135456639 | CE64: 0.5072883909 | CF64: 0.5009557277 | DA64: 2012 | DB64: =DB34 -> QCF8 | DC64: =DC34 -> QCF7 | DD64: QCF6 | DE64: QCF5 | DF64: QCF4 | DG64: QCF3 | DH64: QCF2 | DI64: QCF1 | DJ64: No Qual
AZ65: =names!$A$5 -> Mining and quarrying | BA65: Males | BB65: 0.9708822872 | BC65: 0.9192661993 | BD65: 0.9013473656 | BE65: 0.9153958548 | BF65: 0.8793187632 | BG65: 0.834309636 | BH65: 0.8165720254 | BI65: 0.820158403 | BJ65: 0.8181024565 | BK65: 0.8035866608 | BL65: 0.7993531202 | BM65: 0.7940393541 | BN65: 0.7813380674 | BO65: 0.7588878667 | BP65: 0.7945656803 | BQ65: 0.7740197604 | BR65: 0.7709483938 | BS65: 0.7667269332 | BT65: 0.7520511671 | BU65: 0.7327433811 | BV65: 0.7187345329 | BW65: 0.704244891 | BX65: 0.6872527711 | BY65: 0.6695256891 | BZ65: 0.6519795369 | CA65: 0.634775678 | CB65: 0.6175504723 | CC65: 0.634775678 | CD65: 0.6175504723 | CE65: 0.5996323176 | CF65: 0.5809785408 | DA65: =names!$A$3 -> All industries | DB65: 6677.041286 | DC65: 22474.15067 | DD65: 55324.59248 | DE65: 6070.307149 | DF65: 17328.61562 | DG65: 24590.73893 | DH65: 17741.27214 | DI65: 9304.605489 | DJ65: 2190.73098
BA66: Females | BB66: 1.547037359 | BC66: 1.488875536 | BD66: 1.257676349 | BE66: 1.293436005 | BF66: 1.422396326 | BG66: 1.443847352 | BH66: 1.368470396 | BI66: 1.526416984 | BJ66: 1.393329203 | BK66: 1.600323387 | BL66: 1.645893851 | BM66: 1.261870586 | BN66: 1.030001123 | BO66: 1.158042196 | BP66: 0.9538159727 | BQ66: 0.9142448289 | BR66: 1.080614597 | BS66: 0.9917209419 | BT66: 0.9424204144 | BU66: 0.8779525561 | BV66: 0.8163179382 | BW66: 0.7639691715 | BX66: 0.7159859521 | BY66: 0.6674920969 | BZ66: 0.6208861604 | CA66: 0.5742432432 | CB66: 0.526870981 | CC66: 0.5742432432 | CD66: 0.526870981 | CE66: 0.4783042394 | CF66: 0.4284972639 | DA66: =names!$A$4 -> Agriculture | DB66: 6.286206961 | DC66: 66.98628918 | DD66: 84.91226508 | DE66: 5.422276648 | DF66: 78.77623549 | DG66: 11.45416227 | DH66: 63.01653323 | DI66: 50.99446549 | DJ66: 49.52450443
AZ67: =names!$A$6 -> Food drink and tobacco | BA67: Males | BB67: 11.74741291 | BC67: 11.64787209 | BD67: 11.60370744 | BE67: 11.33617142 | BF67: 11.09208539 | BG67: 10.59287956 | BH67: 10.73965261 | BI67: 10.66475769 | BJ67: 9.037357794 | BK67: 10.07135799 | BL67: 7.862586627 | BM67: 7.187664107 | BN67: 6.826350368 | BO67: 9.208733475 | BP67: 10.11297512 | BQ67: 6.677656335 | BR67: 6.384636889 | BS67: 6.250262463 | BT67: 6.124207181 | BU67: 5.97199273 | BV67: 5.83084134 | BW67: 5.690582577 | BX67: 5.592394911 | BY67: 5.478936568 | BZ67: 5.359460737 | CA67: 5.236146116 | CB67: 5.10447012 | CC67: 5.236146116 | CD67: 5.10447012 | CE67: 4.973469547 | CF67: 4.843139213 | DA67: =names!$A$5 -> Mining and quarrying | DB67: 4.009532952 | DC67: 22.61275516 | DD67: 48.45554561 | DE67: 0 | DF67: 18.15737672 | DG67: 28.64117287 | DH67: 8.511390572 | DI67: 35.13264238 | DJ67: 2.56611225
BA68: Females | BB68: 6.103070091 | BC68: 5.590121987 | BD68: 5.367774726 | BE68: 5.346952653 | BF68: 5.36394597 | BG68: 5.172883761 | BH68: 5.056401681 | BI68: 5.111013857 | BJ68: 5.252632418 | BK68: 4.61186175 | BL68: 5.199990897 | BM68: 4.679707489 | BN68: 4.394323524 | BO68: 4.045495593 | BP68: 5.566936219 | BQ68: 5.974170384 | BR68: 6.903002795 | BS68: 6.443132418 | BT68: 5.82701493 | BU68: 5.395167888 | BV68: 4.997349197 | BW68: 4.614566406 | BX68: 4.353819265 | BY68: 4.089374041 | BZ68: 3.81337648 | CA68: 3.530752188 | CB68: 3.239694544 | CC68: 3.530752188 | CD68: 3.239694544 | CE68: 2.943900246 | CF68: 2.64325272 | DA68: =names!$A$6 -> Food drink and tobacco | DB68: 2.618044312 | DC68: 65.50528683 | DD68: 259.9079641 | DE68: 88.97196297 | DF68: 381.0456472 | DG68: 548.3369788 | DH68: 175.9048307 | DI68: 83.36021395 | DJ68: 17.60335518
AZ69: =names!$A$7 -> Engineering | BA69: Males | BB69: 1.107349013 | BC69: 1.077528334 | BD69: 1.061152991 | BE69: 1.051664056 | BF69: 1.004750255 | BG69: 0.9324997669 | BH69: 0.9213022685 | BI69: 0.9301860748 | BJ69: 1.111058822 | BK69: 1.155380197 | BL69: 0.9065601099 | BM69: 1.185679569 | BN69: 1.430627057 | BO69: 1.341503742 | BP69: 1.367047994 | BQ69: 0.6964335673 | BR69: 0.9507102627 | BS69: 0.9311380475 | BT69: 0.9149273866 | BU69: 0.8927568717 | BV69: 0.8732558098 | BW69: 0.8546531463 | BX69: 0.8398496547 | BY69: 0.8232359063 | BZ69: 0.804680015 | CA69: 0.7827110214 | CB69: 0.7610507783 | CC69: 0.7827110214 | CD69: 0.7610507783 | CE69: 0.7386459194 | CF69: 0.7154573767 | DA69: =names!$A$7 -> Engineering | DB69: 128.8921973 | DC69: 494.4658904 | DD69: 1839.631989 | DE69: 42.43756012 | DF69: 1072.37936 | DG69: 1506.343546 | DH69: 613.5211775 | DI69: 346.1149939 | DJ69: 164.2805756
BA70: Females | BB70: 1.480790977 | BC70: 1.38225778 | BD70: 1.366113078 | BE70: 1.297233788 | BF70: 1.270256504 | BG70: 1.295094924 | BH70: 1.239870781 | BI70: 1.229333253 | BJ70: 1.22483481 | BK70: 1.18782643 | BL70: 1.124996475 | BM70: 1.112456389 | BN70: 1.097798395 | BO70: 1.032264313 | BP70: 1.00976907 | BQ70: 0.9365819967 | BR70: 0.9491464581 | BS70: 0.9159549748 | BT70: 0.8753796578 | BU70: 0.8298413748 | BV70: 0.7826414602 | BW70: 0.7367770377 | BX70: 0.6957738629 | BY70: 0.653559805 | BZ70: 0.6117321714 | CA70: 0.5691097818 | CB70: 0.5283179141 | CC70: 0.5691097818 | CD70: 0.5283179141 | CE70: 0.4864988826 | CF70: 0.4436133956 | DA70: =names!$A$8 -> Rest of manufacturing | DB70: 1119.777822 | DC70: 2635.992813 | DD70: 8048.265903 | DE70: 1069.488443 | DF70: 4512.628121 | DG70: 5011.249763 | DH70: 3136.994979 | DI70: 1815.862933 | DJ70: 243.3436692
AZ71: =names!$A$8 -> Rest of manufacturing | BA71: Males | BB71: 7.375582012 | BC71: 7.031703427 | BD71: 6.582071507 | BE71: 6.415838378 | BF71: 6.410127785 | BG71: 6.32989392 | BH71: 6.265690583 | BI71: 6.116897919 | BJ71: 6.043950355 | BK71: 5.758167874 | BL71: 6.116957703 | BM71: 5.916890883 | BN71: 6.076626704 | BO71: 5.405011198 | BP71: 5.7124461 | BQ71: 5.254074102 | BR71: 5.009330143 | BS71: 4.864888628 | BT71: 4.720762979 | BU71: 4.528838047 | BV71: 4.352953051 | BW71: 4.186709263 | BX71: 4.068066951 | BY71: 3.945743442 | BZ71: 3.829978391 | CA71: 3.719648379 | CB71: 3.606060819 | CC71: 3.719648379 | CD71: 3.606060819 | CE71: 3.489166943 | CF71: 3.368820258 | DA71: =names!$A$9 -> Electricity and gas | DB71: 80.92182805 | DC71: 353.6635828 | DD71: 737.381634 | DE71: 126.8061686 | DF71: 475.8115425 | DG71: 505.2098631 | DH71: 229.5433643 | DI71: 80.67967251 | DJ71: 0.2603320244
BA72: Females | BB72: 9.012262404 | BC72: 8.566222136 | BD72: 7.882643484 | BE72: 7.407423806 | BF72: 7.264120033 | BG72: 6.375041954 | BH72: 6.137136997 | BI72: 5.606502133 | BJ72: 5.410378249 | BK72: 5.315871755 | BL72: 5.197191205 | BM72: 5.001343106 | BN72: 5.427411322 | BO72: 4.907822992 | BP72: 4.866405487 | BQ72: 4.783124582 | BR72: 4.650417354 | BS72: 4.327001883 | BT72: 4.012899472 | BU72: 3.705381936 | BV72: 3.432579898 | BW72: 3.146304509 | BX72: 2.939257295 | BY72: 2.747449503 | BZ72: 2.551877249 | CA72: 2.355690284 | CB72: 2.166198912 | CC72: 2.355690284 | CD72: 2.166198912 | CE72: 1.973737579 | CF72: 1.778235909 | DA72: =names!$A$10 -> Water and sewerage | DB72: 8.873231101 | DC72: 7.762673713 | DD72: 241.5847388 | DE72: 36.4371883 | DF72: 111.2699584 | DG72: 27.38594761 | DH72: 49.81393802 | DI72: 4.982137789 | DJ72: 51.35572143
AZ73: =names!$A$9 -> Electricity and gas | BA73: Males | BB73: 0.3811041147 | BC73: 0.3796853445 | BD73: 0.3861674305 | BE73: 0.3892609124 | BF73: 0.3997908772 | BG73: 0.3634085876 | BH73: 0.3542593145 | BI73: 0.3686504634 | BJ73: 0.3645741668 | BK73: 0.3607057211 | BL73: 0.3316013235 | BM73: 0.3386290149 | BN73: 0.3531872783 | BO73: 0.3259316409 | BP73: 0.3515585586 | BQ73: 0.3411042746 | BR73: 0.3666213543 | BS73: 0.3568495932 | BT73: 0.3524338939 | BU73: 0.3448840197 | BV73: 0.3375745045 | BW73: 0.3308459258 | BX73: 0.3233640096 | BY73: 0.3155912482 | BZ73: 0.3080724971 | CA73: 0.3004903855 | CB73: 0.2925394682 | CC73: 0.3004903855 | CD73: 0.2925394682 | CE73: 0.2838457039 | CF73: 0.2742998858 | DA73: =names!$A$11 -> Construction | DB73: 92.7707907 | DC73: 1039.15621 | DD73: 2343.570622 | DE73: 343.5945299 | DF73: 1218.843246 | DG73: 2688.926997 | DH73: 1679.761828 | DI73: 458.5571844 | DJ73: 256.369311
BA74: Females | BB74: 1.226938753 | BC74: 1.187279004 | BD74: 1.064101032 | BE74: 1.014928016 | BF74: 1.026320681 | BG74: 1.026614615 | BH74: 1.034037254 | BI74: 0.9582425383 | BJ74: 0.9668824341 | BK74: 1.047834809 | BL74: 1.002586265 | BM74: 0.8993938002 | BN74: 0.8661969556 | BO74: 0.7363624673 | BP74: 0.7512813644 | BQ74: 0.7609696485 | BR74: 0.8268389264 | BS74: 0.7666314601 | BT74: 0.7283398347 | BU74: 0.6846447809 | BV74: 0.6407631352 | BW74: 0.5996615841 | BX74: 0.5674875103 | BY74: 0.5344935806 | BZ74: 0.5011561909 | CA74: 0.4678662793 | CB74: 0.4332112829 | CC74: 0.4678662793 | CD74: 0.4332112829 | CE74: 0.3954770785 | CF74: 0.3542341897 | DA74: =names!$A$12 -> Wholesale and retail trade | DB74: 151.4133113 | DC74: 394.2018427 | DD74: 2938.997669 | DE74: 333.2119656 | DF74: 720.1463473 | DG74: 2539.829497 | DH74: 2049.651928 | DI74: 1460.831378 | DJ74: 464.9931149
AZ75: =names!$A$10 -> Water and sewerage | BA75: Males | BB75: 0.6969809976 | BC75: 0.6996310465 | BD75: 0.7042148168 | BE75: 0.7643389883 | BF75: 0.7078117238 | BG75: 0.7323387261 | BH75: 0.7848355835 | BI75: 0.6790519321 | BJ75: 0.6701462919 | BK75: 0.6627996072 | BL75: 0.7344983912 | BM75: 0.7627466848 | BN75: 0.6279465488 | BO75: 0.6417049346 | BP75: 0.639172195 | BQ75: 0.7046890457 | BR75: 0.743048895 | BS75: 0.7378601205 | BT75: 0.7403251141 | BU75: 0.7379306417 | BV75: 0.736408066 | BW75: 0.7316970225 | BX75: 0.7230589472 | BY75: 0.7153798689 | BZ75: 0.7087619417 | CA75: 0.7023337873 | CB75: 0.6907631692 | CC75: 0.7023337873 | CD75: 0.6907631692 | CE75: 0.6794076549 | CF75: 0.6682613014 | DA75: =names!$A$13 -> Transport and storage | DB75: 53.29156843 | DC75: 283.9851442 | DD75: 676.553462 | DE75: 81.92306269 | DF75: 517.628037 | DG75: 525.8304782 | DH75: 609.9116863 | DI75: 280.6849281 | DJ75: 77.12148111
BA76: Females | BB76: 1.62599958 | BC76: 1.589565692 | BD76: 1.389251962 | BE76: 1.279019943 | BF76: 1.500554234 | BG76: 1.193946824 | BH76: 1.416510446 | BI76: 1.120405516 | BJ76: 0.8574682469 | BK76: 1.142514903 | BL76: 1.177441983 | BM76: 1.30610327 | BN76: 1.409127949 | BO76: 1.378241021 | BP76: 1.199503041 | BQ76: 1.16018963 | BR76: 1.242963387 | BS76: 1.236889392 | BT76: 1.231258775 | BU76: 1.188809266 | BV76: 1.137041227 | BW76: 1.078399546 | BX76: 1.03314806 | BY76: 0.9894565175 | BZ76: 0.9419248748 | CA76: 0.8921854419 | CB76: 0.8435044863 | CC76: 0.8921854419 | CD76: 0.8435044863 | CE76: 0.798198329 | CF76: 0.7559277909 | DA76: =names!$A$14 -> Accommodation and food | DB76: 1.526843563 | DC76: 193.0360398 | DD76: 217.8088512 | DE76: 27.54037013 | DF76: 151.5646116 | DG76: 329.8784864 | DH76: 219.3185034 | DI76: 113.7213682 | DJ76: 68.24825799
AZ77: =names!$A$11 -> Construction | BA77: Males | BB77: 0.8028125648 | BC77: 0.7934411092 | BD77: 0.7835078776 | BE77: 0.7750005215 | BF77: 0.733025882 | BG77: 0.6817953859 | BH77: 0.6398155308 | BI77: 0.6684905235 | BJ77: 0.5911693654 | BK77: 0.689603725 | BL77: 0.6746925836 | BM77: 0.6066492654 | BN77: 0.6467129252 | BO77: 0.8113133411 | BP77: 0.8377506496 | BQ77: 0.6688006784 | BR77: 0.9012727248 | BS77: 0.8745962209 | BT77: 0.8597796287 | BU77: 0.8358626242 | BV77: 0.8164925262 | BW77: 0.7976213218 | BX77: 0.7816217754 | BY77: 0.7638212612 | BZ77: 0.7452159732 | CA77: 0.7259030292 | CB77: 0.7067876302 | CC77: 0.7259030292 | CD77: 0.7067876302 | CE77: 0.6879787133 | CF77: 0.6694689662 | DA77: =names!$A$15 -> Media | DB77: 15.70111714 | DC77: 262.038315 | DD77: 814.2166782 | DE77: 94.17367188 | DF77: 117.7643932 | DG77: 240.3727346 | DH77: 177.7741105 | DI77: 99.70387806 | DJ77: 18.4734345
BA78: Females | BB78: 0.4203305022 | BC78: 0.4226308007 | BD78: 0.414247143 | BE78: 0.4219176303 | BF78: 0.3826272368 | BG78: 0.3794892293 | BH78: 0.3731296519 | BI78: 0.3866892538 | BJ78: 0.4656043678 | BK78: 0.5017765966 | BL78: 0.4551752649 | BM78: 0.5062735504 | BN78: 0.5023143818 | BO78: 0.5343132827 | BP78: 0.5371554983 | BQ78: 0.6962321547 | BR78: 0.5565838672 | BS78: 0.5720534833 | BT78: 0.5789402342 | BU78: 0.5875179072 | BV78: 0.5913832402 | BW78: 0.5929925804 | BX78: 0.5947877472 | BY78: 0.5986844871 | BZ78: 0.6022373942 | CA78: 0.6029787071 | CB78: 0.6029415318 | CC78: 0.6029787071 | CD78: 0.6029415318 | CE78: 0.6029054564 | CF78: 0.6028704328 | DA78: =names!$A$16 -> Information technology | DB78: 382.9282194 | DC78: 3353.409467 | DD78: 8989.260871 | DE78: 918.1431999 | DF78: 2024.53709 | DG78: 2544.396916 | DH78: 1804.059076 | DI78: 1694.608407 | DJ78: 317.5934328
AZ79: =names!$A$12 -> Wholesale and retail trade | BA79: Males | BB79: 2.672034033 | BC79: 2.649733619 | BD79: 2.52258733 | BE79: 2.528073793 | BF79: 2.472747114 | BG79: 2.661251382 | BH79: 2.712342179 | BI79: 2.751010946 | BJ79: 2.727998598 | BK79: 2.924653677 | BL79: 2.678180025 | BM79: 2.456173336 | BN79: 2.289116353 | BO79: 2.401732163 | BP79: 2.216243958 | BQ79: 2.206465603 | BR79: 2.026968074 | BS79: 2.000210986 | BT79: 1.966338265 | BU79: 1.928137477 | BV79: 1.893597678 | BW79: 1.859350402 | BX79: 1.81726165 | BY79: 1.774873048 | BZ79: 1.733186108 | CA79: 1.6907747 | CB79: 1.645907653 | CC79: 1.6907747 | CD79: 1.645907653 | CE79: 1.600905375 | CF79: 1.555767253 | DA79: =names!$A$17 -> Finance and insurance | DB79: 39.06342283 | DC79: 857.1623991 | DD79: 2163.847676 | DE79: 286.6883137 | DF79: 440.5396841 | DG79: 1104.876664 | DH79: 1139.103908 | DI79: 351.2450539 | DJ79: 11.1226375
